{"text_format":"1","workbook":"xlsx","n_sheets":11,"sheets":["1. Demande","1.1 Grille d'évaluation","Feuil1","3.1 Rapport détaillé des coûts","Autres sites","Data2","EntenteType","2. Plan d'implantation","4. Résultats plan implantation","Data","Code SCIAN"],"not_rendered":{"charts":0,"images":2,"macros":1,"external_links":0,"defined_names":123,"comments":2,"pivot_tables":0},"unopened":[],"bounds":{"document_bytes":16777216,"sheet_cells":100000,"rows_first":2000,"rows_last":500,"rows_between":2000,"halvings":0,"cell_chars":16384,"cell_head_chars":4096},"cells_cut":0,"cells_raw":0,"read":"whole","date_system":"1900"}

{"sheet":"1. Demande","index":0,"n_rows":226,"n_cols":44,"rows_kept":226,"cut":false,"hidden":false,"merged":[[94,20,94,22],[104,9,104,42],[5,2,8,20],[99,28,99,33],[97,39,97,40],[95,39,95,40],[100,36,100,38],[99,9,99,14],[100,25,100,27],[98,20,98,22],[99,20,99,22],[99,23,99,24],[99,17,99,19],[95,17,95,19],[98,25,98,27],[96,28,96,33],[97,28,97,33],[96,23,96,24],[94,15,94,16],[97,4,97,5],[98,4,98,5],[98,17,98,19],[93,25,93,42],[94,25,94,27],[94,41,94,42],[94,28,94,33],[95,28,95,33],[95,25,95,27],[98,28,98,33],[94,39,94,40],[95,36,95,38],[98,39,98,40],[96,39,96,40],[94,36,94,38],[94,34,94,35],[96,41,96,42],[97,41,97,42],[95,41,95,42],[95,34,95,35],[96,34,96,35],[94,23,94,24],[96,36,96,38],[97,36,97,38],[97,9,97,14],[94,9,94,14],[94,6,94,8],[95,23,95,24],[70,1,79,1],[97,6,97,8],[94,4,94,5],[95,6,95,8],[96,6,96,8],[95,4,95,5],[96,4,96,5],[91,1,102,1],[98,6,98,8],[78,3,78,20],[97,15,97,16],[96,15,96,16],[95,9,95,14],[96,9,96,14],[96,17,96,19],[93,6,93,24],[94,17,94,19],[100,4,100,5],[100,6,100,8],[100,15,100,16],[100,9,100,14],[99,4,99,5],[98,9,98,14],[100,20,100,22],[100,28,100,33],[99,41,99,42],[100,41,100,42],[98,36,98,38],[99,39,99,40],[99,15,99,16],[98,15,98,16],[99,25,99,27],[96,20,96,22],[97,20,97,22],[97,17,97,19],[95,15,95,16],[95,20,95,22],[137,32,137,36],[129,7,129,10],[137,19,137,23],[154,25,154,27],[154,28,154,30],[143,3,143,20],[144,3,144,20],[154,31,154,34],[131,3,137,5],[133,11,133,14],[133,15,133,18],[133,19,133,23],[133,24,133,27],[136,7,136,10],[132,15,132,18],[132,32,132,36],[137,7,137,10],[137,11,137,14],[137,15,137,18],[158,3,158,6],[157,3,157,6],[132,24,132,27],[132,28,132,31],[137,28,137,31],[137,24,137,27],[145,3,145,20],[157,31,157,34],[153,3,153,6],[154,3,154,6],[156,31,156,34],[153,25,153,27],[142,3,142,20],[155,31,155,34],[155,25,155,27],[155,28,155,30],[154,7,154,20],[154,21,154,24],[150,21,150,37],[152,31,152,34],[142,25,142,27],[153,31,153,34],[147,35,147,37],[141,25,141,27],[155,35,155,37],[156,35,156,37],[153,41,153,42],[153,38,153,40],[157,35,157,37],[154,35,154,37],[156,41,156,42],[155,38,155,40],[154,38,154,40],[155,41,155,42],[154,41,154,42],[157,41,157,42],[156,38,156,40],[128,19,128,23],[128,24,128,27],[128,37,128,42],[128,32,128,36],[110,39,110,42],[128,28,128,31],[129,32,129,36],[106,39,106,42],[159,38,159,40],[157,38,157,40],[158,41,158,42],[159,31,159,34],[159,41,159,42],[158,38,158,40],[158,7,158,20],[158,21,158,24],[158,31,158,34],[158,28,158,30],[158,25,158,27],[158,35,158,37],[157,7,157,20],[159,28,159,30],[159,7,159,20],[159,21,159,24],[93,3,93,5],[92,21,92,25],[92,26,92,28],[96,25,96,27],[97,25,97,27],[99,36,99,38],[97,34,97,35],[99,6,99,8],[136,15,136,18],[106,14,106,17],[128,7,128,10],[131,24,131,42],[135,9,135,23],[132,19,132,23],[136,19,136,23],[136,24,136,27],[107,39,107,42],[132,37,132,42],[101,39,101,40],[129,19,129,23],[129,24,129,27],[129,28,129,31],[101,25,101,35],[112,3,112,38],[147,41,147,42],[152,41,152,42],[147,21,147,24],[152,3,152,6],[152,7,152,20],[152,28,152,30],[152,21,152,24],[32,41,32,42],[136,28,136,31],[136,32,136,36],[136,37,136,42],[133,28,133,31],[133,38,133,42],[133,32,133,36],[91,3,91,42],[100,34,100,35],[34,41,34,42],[45,41,45,42],[58,41,58,42],[97,23,97,24],[98,23,98,24],[100,17,100,19],[98,34,98,35],[100,23,100,24],[139,1,148,1],[139,3,139,42],[149,1,161,1],[149,3,149,42],[150,3,151,20],[161,3,161,42],[160,25,160,27],[146,28,146,30],[142,28,142,30],[142,35,142,37],[155,21,155,24],[156,21,156,24],[142,21,142,24],[143,21,143,24],[144,21,144,24],[145,21,145,24],[147,31,147,34],[152,25,152,27],[157,28,157,30],[156,28,156,30],[156,25,156,27],[157,21,157,24],[157,25,157,27],[146,21,146,24],[146,38,146,40],[143,31,143,34],[143,35,143,37],[142,31,142,34],[144,31,144,34],[146,31,146,34],[145,31,145,34],[143,28,143,30],[144,28,144,30],[144,35,144,37],[142,38,142,40],[144,38,144,40],[146,41,146,42],[146,35,146,37],[144,41,144,42],[101,41,101,42],[101,3,101,16],[101,17,101,19],[101,23,101,24],[101,20,101,21],[146,3,146,20],[145,25,145,27],[140,3,140,20],[141,3,141,20],[141,38,141,40],[145,38,145,40],[146,25,146,27],[145,28,145,30],[143,25,143,27],[144,25,144,27],[102,3,102,42],[141,41,141,42],[143,41,143,42],[141,35,141,37],[142,41,142,42],[143,38,143,40],[87,17,87,20],[156,3,156,6],[156,7,156,20],[155,3,155,6],[147,3,147,20],[128,3,129,6],[129,11,129,14],[129,15,129,18],[122,3,122,20],[155,7,155,20],[128,11,128,14],[128,15,128,18],[148,3,148,42],[153,7,153,20],[153,28,153,30],[153,35,153,37],[153,21,153,24],[147,38,147,40],[147,28,147,30],[152,38,152,40],[151,21,151,42],[147,25,147,27],[152,35,152,37],[150,38,150,42],[89,39,89,42],[89,3,89,12],[89,13,89,16],[89,17,89,20],[89,21,89,25],[89,35,89,38],[89,26,89,29],[89,30,89,34],[140,35,140,42],[90,35,90,38],[111,39,111,42],[112,39,112,42],[129,38,129,42],[98,41,98,42],[99,34,99,35],[131,6,137,6],[131,9,131,23],[132,7,132,10],[132,11,132,14],[136,11,136,14],[137,38,137,42],[100,39,100,40],[101,36,101,38],[133,7,133,10],[85,39,85,42],[86,30,86,34],[86,39,86,42],[88,39,88,42],[87,21,87,25],[87,26,87,29],[87,30,87,34],[88,21,88,25],[88,26,88,29],[88,30,88,34],[88,35,88,38],[87,35,87,38],[87,39,87,42],[84,21,84,25],[84,26,84,29],[86,3,86,8],[83,26,83,29],[82,35,82,38],[84,35,84,38],[83,35,83,38],[86,9,86,12],[86,13,86,16],[86,17,86,20],[86,21,86,25],[86,26,86,29],[85,30,85,34],[84,30,84,34],[86,35,86,38],[85,35,85,38],[83,30,83,34],[83,13,83,16],[88,17,88,20],[81,39,81,42],[192,7,192,20],[82,26,82,29],[82,30,82,34],[85,3,85,8],[85,9,85,12],[85,13,85,16],[85,17,85,20],[84,39,84,42],[82,17,82,20],[82,21,82,25],[87,9,87,12],[87,13,87,16],[178,3,178,16],[88,3,88,8],[88,9,88,12],[88,13,88,16],[111,3,111,38],[164,35,164,38],[84,3,84,8],[180,3,180,16],[180,21,180,25],[84,17,84,20],[183,3,183,42],[185,39,185,42],[188,21,188,29],[186,3,186,6],[186,7,186,20],[187,7,187,20],[187,3,187,6],[188,7,188,20],[186,39,186,42],[181,26,181,29],[182,17,182,20],[182,26,182,29],[176,39,182,42],[194,30,194,38],[182,3,182,16],[181,3,181,16],[181,17,181,20],[190,7,190,20],[188,3,188,6],[189,3,189,6],[184,3,184,42],[192,3,192,6],[193,39,193,42],[191,30,191,38],[185,3,185,20],[193,7,193,20],[190,3,190,6],[194,39,194,42],[193,30,193,38],[191,3,191,6],[182,21,182,25],[193,21,193,29],[181,21,181,25],[168,30,168,34],[165,39,165,42],[167,35,167,38],[167,39,167,42],[168,39,168,42],[166,39,166,42],[165,35,165,38],[168,35,168,38],[168,26,168,29],[167,30,167,34],[167,26,167,29],[160,38,160,40],[167,21,167,25],[160,28,160,30],[160,35,160,37],[159,35,159,37],[164,39,164,42],[160,3,160,24],[163,3,163,6],[163,7,163,16],[163,30,163,42],[164,30,164,34],[165,26,165,29],[166,26,166,29],[166,21,166,25],[166,35,166,38],[167,17,167,20],[160,31,160,34],[160,41,160,42],[164,17,164,20],[164,21,164,25],[164,26,164,29],[162,3,162,42],[221,1,221,3],[220,1,220,3],[202,1,202,21],[165,21,165,25],[184,1,195,1],[167,3,167,16],[165,3,165,16],[166,3,166,16],[189,7,189,20],[197,9,197,29],[205,1,205,3],[212,1,212,3],[213,1,213,3],[177,3,177,16],[191,7,191,20],[166,17,166,20],[216,26,216,42],[218,26,218,42],[169,39,169,42],[170,39,170,42],[169,26,169,29],[165,30,165,34],[166,30,166,34],[202,23,202,43],[170,26,170,29],[174,21,174,34],[175,30,175,34],[170,30,170,34],[171,35,171,38],[171,21,171,25],[170,17,170,20],[179,17,179,20],[180,17,180,20],[171,17,171,20],[180,26,180,29],[171,3,171,16],[172,3,172,42],[171,30,171,34],[171,39,171,42],[171,26,171,29],[192,21,192,29],[194,21,194,29],[57,1,69,1],[60,28,60,40],[169,30,169,34],[145,41,145,42],[66,7,66,20],[66,25,66,28],[64,7,64,28],[60,7,60,25],[90,41,90,42],[114,3,114,20],[90,39,90,40],[81,26,81,29],[81,35,81,38],[90,30,90,34],[81,3,81,20],[81,21,81,25],[85,21,85,25],[214,26,214,42],[177,21,177,25],[178,21,178,25],[179,21,179,25],[176,35,176,38],[192,39,192,42],[192,30,192,38],[188,39,188,42],[191,39,191,42],[189,39,189,42],[186,30,186,38],[177,35,177,38],[180,35,180,38],[177,30,177,34],[177,26,177,29],[178,26,178,29],[179,26,179,29],[197,35,197,42],[190,21,190,29],[195,3,195,42],[193,3,193,6],[187,30,187,38],[188,30,188,38],[189,30,189,38],[51,7,51,28],[58,12,58,25],[58,28,58,40],[14,25,14,29],[25,34,25,40],[36,7,36,25],[27,25,27,28],[42,7,42,20],[47,7,47,25],[53,34,53,40],[55,34,55,40],[42,34,42,40],[49,34,49,40],[51,34,51,40],[42,25,42,28],[53,25,53,28],[45,28,45,40],[47,28,47,40],[49,7,49,28],[55,30,55,31],[90,13,90,20],[90,21,90,25],[90,28,90,29],[196,1,200,1],[31,1,43,1],[44,1,56,1],[38,7,38,28],[189,21,189,29],[62,7,62,28],[45,7,45,9],[45,12,45,25],[53,7,53,20],[58,7,58,9],[185,21,185,38],[190,30,190,38],[85,26,85,29],[90,26,90,27],[62,34,62,40],[64,34,64,40],[190,39,190,42],[187,39,187,42],[191,21,191,29],[186,21,186,29],[187,21,187,29],[3,1,3,43],[10,7,10,29],[12,37,12,42],[40,7,40,28],[38,34,38,40],[36,28,36,40],[40,34,40,40],[16,3,16,20],[27,34,27,40],[9,1,17,1],[32,7,32,25],[19,12,19,25],[21,28,21,40],[12,7,12,29],[4,1,8,1],[18,1,30,1],[4,2,4,20],[4,21,4,43],[5,21,8,43],[73,34,73,40],[75,34,75,40],[80,3,80,42],[83,17,83,20],[83,21,83,25],[82,3,82,8],[71,42,72,42],[68,34,68,40],[71,7,71,28],[75,7,75,20],[71,34,71,40],[75,25,75,28],[73,7,73,28],[68,30,68,31],[83,39,83,42],[82,39,82,42],[66,34,66,40],[14,37,14,42],[23,34,23,40],[19,28,19,40],[23,7,23,28],[19,41,19,42],[34,7,34,9],[163,17,163,29],[176,30,176,34],[14,7,14,20],[19,7,19,9],[34,12,34,25],[27,7,27,20],[25,7,25,28],[21,7,21,25],[34,28,34,40],[169,35,169,38],[170,35,170,38],[77,25,77,28],[145,35,145,37],[141,28,141,30],[81,30,81,34],[141,31,141,34],[140,21,140,34],[173,1,183,1],[173,3,173,42],[174,3,174,6],[174,7,174,16],[175,21,175,25],[176,3,176,16],[179,3,179,16],[174,35,175,38],[181,35,181,38],[182,35,182,38],[181,30,181,34],[176,17,176,20],[176,21,176,25],[182,30,182,34],[178,35,178,38],[179,35,179,38],[178,30,178,34],[179,30,179,34],[180,30,180,34],[175,26,175,29],[176,26,176,29],[174,17,175,20],[177,17,177,20],[178,17,178,20],[168,17,168,20],[165,17,165,20],[162,1,172,1],[80,1,90,1],[141,21,141,24],[103,1,138,1],[82,13,82,16],[90,3,90,8],[90,9,90,12],[82,9,82,12],[83,3,83,8],[83,9,83,12],[87,3,87,8],[168,3,168,16],[169,3,169,16],[170,3,170,16],[168,21,168,25],[169,17,169,20],[169,21,169,25],[170,21,170,25],[159,3,159,6],[159,25,159,27],[84,9,84,12],[84,13,84,16]]}
[]
[null,null,null,null,null,null,null,null,null,"Demande d'aide financière - Constitution d'une base de référence"]
[]
[null,"FORMULAIRE DE DEMANDE D'AIDE FINANCIÈRE"]
[null,"A-Volet(s)","Analyse",null,null,null,null,null,null,null,null,null,null,null,null,null,null,null,null,null,null,"Implantation"]
[]
[]
[]
[]
[null,"B-Organisme requérant"]
[null,null,"13-1943-00","Raison sociale"]
[]
[null,null,null,"Adresse",null,null,null,null,null,null,null,null,null,null,null,null,null,null,null,null,null,null,null,null,null,null,null,null,null,null,"NEQ (facultatif)"]
[]
[null,null,null,"Municipalité",null,null,null,null,null,null,null,null,null,null,null,null,null,null,null,null,null,null,null,null,"  Code postal",null,null,null,null,null,"Nombre d'employés"]
[]
[null,null,null,"Description sommaire du requérant",null,null,null,null,null,null,null,null,null,null,null,null,null,null,null,null,null,null,null,null,null,null,null,null,null,true]
[]
[null,"C-Signataire autorisé"]
[null,null,null,"Appel",null,null,null,"Choisir…",null,null,null,"Nom",null,null,null,null,null,null,null,null,null,null,null,null,null,null," Prénom"]
[]
[null,null,null,"Fonction",null,null,null,null,null,null,null,null,null,null,null,null,null,null,null,null,null,null,null,null,null,null," Courriel"]
[]
[null,null,null,"Entreprise",null,null,null,null,null,null,null,null,null,null,null,null,null,null,null,null,null,null,null,null,null,null,null,null,null,"NEQ (facultatif)",null,null,null,null,null,null,null,null,null,null,null,null,"Poste"]
[]
[null,null,null,"Adresse",null,null,null,null,null,null,null,null,null,null,null,null,null,null,null,null,null,null,null,null,null,null,null,null,null,"Téléphone"]
[]
[null,null,null,"Municipalité",null,null,null,null,null,null,null,null,null,null,null,null,null,null,null,null,null,null,null,null,"  Code postal",null,null,null,null,"Cellulaire"]
[]
[]
[]
[null,"D-Rep. administratif"]
[null,null,null,null,null,null,null,"Correspondant principal avec TEQ"]
[]
[null,null,null,"Appel",null,null,null,"Choisir…",null,null,null,"Nom",null,null,null,null,null,null,null,null,null,null,null,null,null,null," Prénom"]
[]
[null,null,null,"Fonction",null,null,null,null,null,null,null,null,null,null,null,null,null,null,null,null,null,null,null,null,null,null," Courriel"]
[]
[null,null,null,"Entreprise*",null,null,null,null,null,null,null,null,null,null,null,null,null,null,null,null,null,null,null,null,null,null,null,null,null,"NEQ (facultatif)",null,null,null,null,null,null,null,null,null,null,null,null,"Poste"]
[]
[null,null,null,"Adresse*",null,null,null,null,null,null,null,null,null,null,null,null,null,null,null,null,null,null,null,null,null,null,null,null,null,"Téléphone"]
[]
[null,null,null,"Municipalité*",null,null,null,null,null,null,null,null,null,null,null,null,null,null,null,null,null,null,null,null,"  Code postal*",null,null,null,null,"Cellulaire"]
[]
[null,"E-Rep. technique"]
[null,null,null,"Appel",null,null,null,"Choisir…",null,null,null,"Nom",null,null,null,null,null,null,null,null,null,null,null,null,null,null," Prénom"]
[]
[null,null,null,"Fonction",null,null,null,null,null,null,null,null,null,null,null,null,null,null,null,null,null,null,null,null,null,null," Courriel"]
[]
[null,null,null,"Entreprise*",null,null,null,null,null,null,null,null,null,null,null,null,null,null,null,null,null,null,null,null,null,null,null,null,null,"NEQ (facultatif)",null,null,null,null,null,null,null,null,null,null,null,null,"Poste"]
[]
[null,null,null,"Adresse*",null,null,null,null,null,null,null,null,null,null,null,null,null,null,null,null,null,null,null,null,null,null,null,null,null,"Téléphone"]
[]
[null,null,null,"Municipalité*",null,null,null,null,null,null,null,null,null,null,null,null,null,null,null,null,null,null,null,null,"  Code postal*",null,null,null,null,"Cellulaire"]
[]
[null,null,null,null,null,null,null,null,null,null,null,null,null,null,null,null,null,null,null,null,null,null,null,null,null,null,null,null,null,"No ","Choisir…"]
[]
[null,"F-Consultant ext. autorisé"]
[null,null,null,"Appel",null,null,null,"Choisir…",null,null,null,"Nom",null,null,null,null,null,null,null,null,null,null,null,null,null,null," Prénom"]
[]
[null,null,null,"Fonction",null,null,null,null,null,null,null,null,null,null,null,null,null,null,null,null,null,null,null,null,null,null," Courriel"]
[]
[null,null,null,"Entreprise*",null,null,null,null,null,null,null,null,null,null,null,null,null,null,null,null,null,null,null,null,null,null,null,null,null,"NEQ*",null,null,null,null,null,null,null,null,null,null,null,null,"Poste"]
[]
[null,null,null,"Adresse*",null,null,null,null,null,null,null,null,null,null,null,null,null,null,null,null,null,null,null,null,null,null,null,null,null,"Téléphone"]
[]
[null,null,null,"Municipalité*",null,null,null,null,null,null,null,null,null,null,null,null,null,null,null,null,null,null,null,null,"  Code postal*",null,null,null,null,"Cellulaire"]
[]
[null,null,null,null,null,null,null,null,null,null,null,null,null,null,null,null,null,null,null,null,null,null,null,null,null,null,null,null,null,"No ","Choisir…"]
[]
[null,"G-Site",null,null,null,null,null,"(remplissez l'onglet Autres sites, si nécessaire)"]
[null,null,0,"Nom site*",null,null,null,null,null,null,null,null,null,null,null,null,null,null,null,null,null,null,null,null,null,null,null,null,null,"NEQ (facultatif)"]
[]
[null,null,null,"Adresse*",null,null,null,null,null,null,null,null,null,null,null,null,null,null,null,null,null,null,null,null,null,null,null,null,null,"Code SCIAN"]
[]
[null,null,null,"Municipalité*",null,null,null,null,null,null,null,null,null,null,null,null,null,null,null,null,null,null,null,null,"  Code postal*",null,null,null,null,"Type d'organisme",null,null,null,null,"Choisir…"]
[]
[null,null,null,null,null,null,null,false,null,null,null,null,null,null,null,null,null,null,null,null,null,null,null,null,null,{"$f":"SUMIF(D84:D89,\"<>électricité\",AA84:AD89)","v":0}]
[null,null,null,"Description sommaire des activités du site"]
[]
[null,"H-Consommation d'énergie"]
[null,null,null,"Consommation annuelle d'énergie du cas de référence",null,null,null,null,null,null,null,null,null,null,null,null,null,null,null,null,null,"AAAA/MM/JJ =>",null,null,null,null,"Période du",null,null,null,null,null,null,null,null,"au"]
[null,null,"Code","Énergie",null,null,null,null,null,"Unité",null,null,null,"% Coût Étude",null,null,null,"Quantité",null,null,null,"Coût Énergie",null,null,null,null,"GJ/an",null,null,null,"GES (t/an)",null,null,null,null,"$/GJ"]
[null,null,{"$f":"INDEX(OFFSET(Énergie,,-1,,),MATCH(D84,Énergie,0))","v":{"$error":"#N/A"}},null,null,null,null,null,null,{"$f":"IF(D84=\"\",\"\",INDEX(OFFSET(Énergie,,1),MATCH(D84,Énergie,0)))","v":""},null,null,null,0,null,null,null,0,null,null,null,0,null,null,null,null,{"$f":"IF(D84=\"\",0,INDEX(OFFSET(Énergie,,2),MATCH(D84,Énergie,0)))*R84/1000","v":0},null,null,null,{"$f":"IF(D84=\"\",0,INDEX(OFFSET(Énergie,,3),MATCH(D84,Énergie,0)))*R84/1000000","v":0},null,null,null,null,{"$f":"IF(AA84=0,0,V84/AA84)","v":0},null,null,null,{"$f":"IF(OR(Data2!B$56=TRUE,N84=0),0,AA84/N84)","v":0}]
[null,null,{"$error":"#N/A"},null,null,null,null,null,null,"",null,null,null,0,null,null,null,0,null,null,null,0,null,null,null,null,0,null,null,null,0,null,null,null,null,0,null,null,null,{"$f":"IF(OR(Data2!B$56=TRUE,N85=0),0,AA85/N85)","v":0}]
[null,null,{"$error":"#N/A"},null,null,null,null,null,null,"",null,null,null,0,null,null,null,0,null,null,null,0,null,null,null,null,0,null,null,null,0,null,null,null,null,0,null,null,null,{"$f":"IF(OR(Data2!B$56=TRUE,N86=0),0,AA86/N86)","v":0}]
[null,null,{"$error":"#N/A"},null,null,null,null,null,null,"",null,null,null,0,null,null,null,0,null,null,null,0,null,null,null,null,0,null,null,null,0,null,null,null,null,0,null,null,null,{"$f":"IF(OR(Data2!B$56=TRUE,N87=0),0,AA87/N87)","v":0}]
[null,null,{"$error":"#N/A"},null,null,null,null,null,null,"",null,null,null,0,null,null,null,0,null,null,null,0,null,null,null,null,0,null,null,null,0,null,null,null,null,0,null,null,null,{"$f":"IF(OR(Data2!B$56=TRUE,N88=0),0,AA88/N88)","v":0}]
[null,null,{"$error":"#N/A"},null,null,null,null,null,null,"",null,null,null,0,null,null,null,0,null,null,null,0,null,null,null,null,0,null,null,null,0,null,null,null,null,0,null,null,null,{"$f":"IF(OR(Data2!B$56=TRUE,N89=0),0,AA89/N89)","v":0}]
[null,null,null,"Total",null,null,null,null,null,null,null,null,null,null,null,null,null,null,null,null,null,{"$f":"SUM(V84:Z89)","v":0},null,null,null,null,{"$f":"SUM(AA84:AD89)","v":0},null,null,null,{"$f":"SUM(AE84:AI89)","v":0},null,null,null,null,0]
[null,null,null,"Degré jour de chauffe",null,null,null,null,null,5700,null,null,null,"Superficie (pour bâtiment)",null,null,null,null,null,null,null,1,null,null,null,null,"Unité",null,"pi²",null,"Production",null,null,null,null,null,null,null,null,"Unité",null,"kg"]
[null,"I-Système de réfrigération"]
[null,null,null,"Caractéristique des systèmes de réfrigération",null,null,null,null,null,null,null,null,null,null,null,null,null,null,null,null,null,"Taux de fuites",null,null,null,null,{"$f":"IF(Data2!$G$59=TRUE,Data2!H59,Data2!H57)","v":0.15}]
[null,null,null,null,null,null,"Cas de référence",null,null,null,null,null,null,null,null,null,null,null,null,null,null,null,null,null,null,"Prévu"]
[null,null,"Code","No","Type",null,"Capacité(t)",null,null,"Réfrigérant",null,null,null,null,null,"PRP",null,"Charge",null,null,"Unité",null,null,"GES (t)",null,"Capacité(t)",null,null,"Réfrigérant",null,null,null,null,null,"PRP",null,"Charge",null,null,"Unité",null,"GES (t)"]
[null,null,{"$f":"INDEX(OFFSET(PRP,,-1,,),MATCH(J96,PRP,0))","v":{"$error":"#N/A"}},1,null,null,null,null,null,null,null,null,null,null,null,{"$f":"IF(J96=\"\",\"\",INDEX(OFFSET(PRP,,3),MATCH(J96,PRP,0)))","v":""},null,null,null,null,"Choisir…",null,null,{"$f":"IF(U96=\"Choisir...\",0,INDEX(OFFSET(Unite,,1,,),MATCH(U96,Unite,0))*R96*IF(P96=\"\",0,P96)*AA$93/1000)","v":0},null,null,null,null,null,null,null,null,null,null,{"$f":"IF(AC96=\"\",\"\",INDEX(OFFSET(PRP,,3),MATCH(AC96,PRP,0)))","v":""},null,null,null,null,"Choisir…",null,{"$f":"IF(AN96=\"\",0,INDEX(OFFSET(Unite,,1,,),MATCH(AN96,Unite,0))*AK96*IF(AI96=\"\",0,AI96)*AA$93/1000)","v":0}]
[null,null,{"$f":"INDEX(OFFSET(PRP,,-1,,),MATCH(J97,PRP,0))","v":{"$error":"#N/A"}},2,null,null,null,null,null,null,null,null,null,null,null,"",null,null,null,null,"Choisir…",null,null,0,null,null,null,null,null,null,null,null,null,null,"",null,null,null,null,"Choisir…",null,0]
[null,null,{"$f":"INDEX(OFFSET(PRP,,-1,,),MATCH(J98,PRP,0))","v":{"$error":"#N/A"}},3,null,null,null,null,null,null,null,null,null,null,null,"",null,null,null,null,"Choisir…",null,null,0,null,null,null,null,null,null,null,null,null,null,"",null,null,null,null,"Choisir…",null,0]
[null,null,{"$f":"INDEX(OFFSET(PRP,,-1,,),MATCH(J99,PRP,0))","v":{"$error":"#N/A"}},4,null,null,null,null,null,null,null,null,null,null,null,"",null,null,null,null,"Choisir…",null,null,0,null,null,null,null,null,null,null,null,null,null,"",null,null,null,null,"Choisir…",null,0]
[null,null,null,5,null,null,null,null,null,null,null,null,null,null,null,"",null,null,null,null,"Choisir…",null,null,0,null,null,null,null,null,null,null,null,null,null,"",null,null,null,null,"Choisir…",null,0]
[null,null,null,6,null,null,null,null,null,null,null,null,null,null,null,"",null,null,null,null,"Choisir…",null,null,0,null,null,null,null,null,null,null,null,null,null,"",null,null,null,null,"Choisir…",null,0]
[null,null,null,"Total",null,null,null,null,null,null,null,null,null,null,null,null,null,{"$f":"SUM(R96:T99)","v":0},null,null,null,null,null,{"$f":"SUM(X96:Y99)","v":0},null,null,null,null,null,null,null,null,null,null,null,null,{"$f":"SUM(AK96:AM99)","v":0},null,null,null,null,{"$f":"SUM(AP96:AQ99)","v":0}]
[]
[null,"J-Projet"]
[null,null,null,"Titre du projet à venir:"]
[]
[null,null,null,"Échéancier:",null,null,null,null,null,null,null,null,null,"Date prévue de l'appel d'offre du projet",null,null,null,null,null,null,null,null,null,null,null,null,null,null,null,null,null,null,null,null,null,null,null,null," Date prévue pour débuter constitution de la Base de référence"]
[null,null,null,null,null,null,null,null,null,null,null,null,null,null,"(AAAA/MM/JJ)",null,null,null,null,null,null,null,null,null,null,null,null,null,null,null,null,null,null,null,null,null,null,null,null,"(AAAA/MM/JJ)"]
[]
[]
[null,null,null,"Potentiel énergétique et GES  (remplir l'onglet plan d'implantation si applicable)",null,null,null,null,null,null,null,null,null,null,null,null,null,null,null,null,null,null,null,null,null,null,null,null,null,null,null,null,null,null,null,"Durée d'engagement (maximum 10 ans, volet 4 seulement)",null,null,null,0]
[null,null,null,"Potentiel de réduction de la consommation d'énergie annuelle attribuable au projet (GJ/an)",null,null,null,null,null,null,null,null,null,null,null,null,null,null,null,null,null,null,null,null,null,null,null,null,null,null,null,null,null,null,null,null,null,null,null,{"$f":"'2. Plan d''implantation'!O50","v":0}]
[null,null,null,"Potentiel de réduction des émissions de GES annuelle attribuable au projet (tCO2equiv)",null,null,null,null,null,null,null,null,null,null,null,null,null,null,null,null,null,null,null,null,null,null,null,null,null,null,null,null,null,null,null,null,null,null,null,{"$f":"'2. Plan d''implantation'!P50","v":0}]
[]
[null,null,null,"Description sommaire du projet à venir qui fait l'objet de la Base de référence"]
[]
[]
[]
[]
[]
[]
[]
[null,null,null,"Description sommaire de la nouvelle technologie ou du nouveau procédé"]
[]
[]
[]
[]
[]
[null,null,null,"Domaine d'application ",null,null,null,"Résidentiel",null,null,null,"Commercial",null,null,null,"Institutionnel",null,null,null,"Municipal",null,null,null,null,"Transport",null,null,null,"Industriel",null,null,null,"Agricole",null,null,null,null,"Autre (précisez)"]
[]
[]
[null,null,null,"Type de nouvelle technologie ou de procédé",null,null,null,null,null,"Production d'énergie renouvelable (cochez ci-dessous) "]
[null,null,null,null,null,null,null,"Bioénergie",null,null,null,"Éolienne",null,null,null,"Géothermie",null,null,null,"Hydrolienne",null,null,null,null,"Hydrogène",null,null,null,"Marémotrice",null,null,null,"Solaire",null,null,null,null,"Autre (précisez)"]
[]
[]
[null,null,null,null,null,null,null,null,null,"Efficacité énergétique (cochez ci-dessous) "]
[null,null,null,null,null,null,null,"Électricité",null,null,null,"Mazout léger",null,null,null,"Mazout lourd",null,null,null,"Gaz naturel",null,null,null,null,"Propane",null,null,null,"Essence",null,null,null,"Diesel",null,null,null,null,"Autre (précisez)"]
[]
[]
[null,"K-Sommaire coûts projet"]
[null,null,null,"Sommaire des coûts de projet",null,null,null,null,null,null,null,null,null,null,null,null,null,null,null,null,null,"Coûts",null,null,null,null,null,null,null,null,null,null,null,null,null,"Contributions"]
[null,null,null,"Type de dépenses",null,null,null,null,null,null,null,null,null,null,null,null,null,null,null,null,null,"T interne",null,null,null,"T externe",null,null,"Matériel",null,null,"Total",null,null,null,"Bureau",null,null,"Requérant",null,null,"%"]
[null,null,null,{"$f":"#REF!","v":{"$error":"#REF!"}},null,null,null,null,null,null,null,null,null,null,null,null,null,null,null,null,null,{"$f":"#REF!","v":{"$error":"#REF!"}},null,null,null,{"$f":"#REF!","v":{"$error":"#REF!"}},null,null,{"$f":"#REF!","v":{"$error":"#REF!"}},null,null,{"$f":"#REF!","v":{"$error":"#REF!"}},null,null,null,{"$f":"#REF!","v":{"$error":"#REF!"}},null,null,{"$f":"#REF!","v":{"$error":"#REF!"}},null,null,{"$f":"IF(AF143=0,0,AJ143/AF143)","v":{"$error":"#REF!"}}]
[null,null,null,{"$f":"#REF!","v":{"$error":"#REF!"}},null,null,null,null,null,null,null,null,null,null,null,null,null,null,null,null,null,{"$f":"#REF!","v":{"$error":"#REF!"}},null,null,null,{"$f":"#REF!","v":{"$error":"#REF!"}},null,null,{"$f":"#REF!","v":{"$error":"#REF!"}},null,null,{"$f":"#REF!","v":{"$error":"#REF!"}},null,null,null,{"$f":"#REF!","v":{"$error":"#REF!"}},null,null,{"$f":"#REF!","v":{"$error":"#REF!"}},null,null,{"$f":"IF(AF144=0,0,AJ144/AF144)","v":{"$error":"#REF!"}}]
[null,null,null,{"$f":"#REF!","v":{"$error":"#REF!"}},null,null,null,null,null,null,null,null,null,null,null,null,null,null,null,null,null,{"$f":"#REF!","v":{"$error":"#REF!"}},null,null,null,{"$f":"#REF!","v":{"$error":"#REF!"}},null,null,{"$f":"#REF!","v":{"$error":"#REF!"}},null,null,{"$f":"#REF!","v":{"$error":"#REF!"}},null,null,null,{"$f":"#REF!","v":{"$error":"#REF!"}},null,null,{"$f":"#REF!","v":{"$error":"#REF!"}},null,null,{"$f":"IF(AF145=0,0,AJ145/AF145)","v":{"$error":"#REF!"}}]
[null,null,null,{"$f":"#REF!","v":{"$error":"#REF!"}},null,null,null,null,null,null,null,null,null,null,null,null,null,null,null,null,null,{"$f":"#REF!","v":{"$error":"#REF!"}},null,null,null,{"$f":"#REF!","v":{"$error":"#REF!"}},null,null,{"$f":"#REF!","v":{"$error":"#REF!"}},null,null,{"$f":"#REF!","v":{"$error":"#REF!"}},null,null,null,{"$f":"#REF!","v":{"$error":"#REF!"}},null,null,{"$f":"#REF!","v":{"$error":"#REF!"}},null,null,{"$f":"IF(AF146=0,0,AJ146/AF146)","v":{"$error":"#REF!"}}]
[null,null,null,{"$f":"#REF!","v":{"$error":"#REF!"}},null,null,null,null,null,null,null,null,null,null,null,null,null,null,null,null,null,{"$f":"#REF!","v":{"$error":"#REF!"}},null,null,null,{"$f":"#REF!","v":{"$error":"#REF!"}},null,null,{"$f":"#REF!","v":{"$error":"#REF!"}},null,null,{"$f":"#REF!","v":{"$error":"#REF!"}},null,null,null,{"$f":"#REF!","v":{"$error":"#REF!"}},null,null,{"$f":"#REF!","v":{"$error":"#REF!"}},null,null,{"$f":"IF(AF147=0,0,AJ147/AF147)","v":{"$error":"#REF!"}}]
[null,null,null,"Total des coûts ",null,null,null,null,null,null,null,null,null,null,null,null,null,null,null,null,null,{"$f":"SUM(V143:Y147)","v":{"$error":"#REF!"}},null,null,null,{"$f":"SUM(Z143:AB147)","v":{"$error":"#REF!"}},null,null,{"$f":"SUM(AC143:AE147)","v":{"$error":"#REF!"}},null,null,{"$f":"SUM(AF143:AI147)","v":{"$error":"#REF!"}},null,null,null,{"$f":"SUM(AJ143:AL147)","v":{"$error":"#REF!"}},null,null,{"$f":"SUM(AM143:AO147)","v":{"$error":"#REF!"}},null,null,{"$f":"SUM(AP143:AQ147)","v":{"$error":"#REF!"}}]
[]
[null,"L-Données financières"]
[null,null,null,"Montage financier \n(inscrivez d'abord le nom des partenaires ici et remplirssez ensuite les onglets 3a à 3e)",null,null,null,null,null,null,null,null,null,null,null,null,null,null,null,null,null,"Montant d'aide financière demandé (voir note)",null,null,null,null,null,null,null,null,null,null,null,null,null,null,null,null,0]
[null,null,null,null,null,null,null,null,null,null,null,null,null,null,null,null,null,null,null,null,null,"Contribution"]
[null,null,"Code","Partenaires",null,null,null,"(précisez si nécessaire)",null,null,null,null,null,null,null,null,null,null,null,null,null,"Nature",null,null,null,"Contribution",null,null,"T interne",null,null,"T externe",null,null,null,"Matériel",null,null,"Total",null,null,"%"]
[null,null,{"$f":"IF(D154<>\"Choisir…\",INDEX(OFFSET(Fin_Autre,,-1,,),MATCH(D154,Fin_Autre,0)),\"\")","v":{"$error":"#N/A"}},"BEIE",null,null,null,"Bureau de l'efficacité et de l'innovation énergétiques",null,null,null,null,null,null,null,null,null,null,null,null,null,"Subvention",null,null,null,{"$f":"#REF!+#REF!+#REF!+#REF!+#REF!","v":{"$error":"#REF!"}},null,null,null,null,null,null,null,null,null,null,null,null,{"$f":"SUM(Z154:AL154)","v":{"$error":"#REF!"}},null,null,{"$f":"IF(AM$161=0,0,AM154/AM$161)","v":{"$error":"#REF!"}}]
[null,null,15,"Autre…",null,null,null,{"$f":"IF(H11=\"\",\"\",H11)","v":""},null,null,null,null,null,null,null,null,null,null,null,null,null,"Équité",null,null,null,{"$f":"#REF!+#REF!+#REF!+#REF!+#REF!","v":{"$error":"#REF!"}},null,null,{"$f":"#REF!+#REF!+#REF!+#REF!+#REF!","v":{"$error":"#REF!"}},null,null,{"$f":"#REF!+#REF!+#REF!+#REF!+#REF!","v":{"$error":"#REF!"}},null,null,null,{"$f":"#REF!+#REF!+#REF!+#REF!+#REF!","v":{"$error":"#REF!"}},null,null,{"$f":"SUM(Z155:AL155)","v":{"$error":"#REF!"}},null,null,{"$error":"#REF!"}]
[null,null,"","Choisir…",null,null,null,null,null,null,null,null,null,null,null,null,null,null,null,null,null,"Choisir…",null,null,null,{"$f":"#REF!+#REF!+#REF!+#REF!+#REF!","v":{"$error":"#REF!"}},null,null,{"$f":"#REF!+#REF!+#REF!+#REF!+#REF!","v":{"$error":"#REF!"}},null,null,{"$f":"#REF!+#REF!+#REF!+#REF!+#REF!","v":{"$error":"#REF!"}},null,null,null,{"$f":"#REF!+#REF!+#REF!+#REF!+#REF!","v":{"$error":"#REF!"}},null,null,{"$error":"#REF!"},null,null,{"$error":"#REF!"}]
[null,null,"","Choisir…",null,null,null,null,null,null,null,null,null,null,null,null,null,null,null,null,null,"Choisir…",null,null,null,{"$f":"#REF!+#REF!+#REF!+#REF!+#REF!","v":{"$error":"#REF!"}},null,null,{"$f":"#REF!+#REF!+#REF!+#REF!+#REF!","v":{"$error":"#REF!"}},null,null,{"$f":"#REF!+#REF!+#REF!+#REF!+#REF!","v":{"$error":"#REF!"}},null,null,null,{"$f":"#REF!+#REF!+#REF!+#REF!+#REF!","v":{"$error":"#REF!"}},null,null,{"$error":"#REF!"},null,null,{"$error":"#REF!"}]
[null,null,"","Choisir…",null,null,null,null,null,null,null,null,null,null,null,null,null,null,null,null,null,"Choisir…",null,null,null,{"$f":"#REF!+#REF!+#REF!+#REF!+#REF!","v":{"$error":"#REF!"}},null,null,{"$f":"#REF!+#REF!+#REF!+#REF!+#REF!","v":{"$error":"#REF!"}},null,null,{"$f":"#REF!+#REF!+#REF!+#REF!+#REF!","v":{"$error":"#REF!"}},null,null,null,{"$f":"#REF!+#REF!+#REF!+#REF!+#REF!","v":{"$error":"#REF!"}},null,null,{"$error":"#REF!"},null,null,{"$error":"#REF!"}]
[null,null,"","Choisir…",null,null,null,null,null,null,null,null,null,null,null,null,null,null,null,null,null,"Choisir…",null,null,null,{"$f":"#REF!+#REF!+#REF!+#REF!+#REF!","v":{"$error":"#REF!"}},null,null,{"$f":"#REF!+#REF!+#REF!+#REF!+#REF!","v":{"$error":"#REF!"}},null,null,{"$f":"#REF!+#REF!+#REF!+#REF!+#REF!","v":{"$error":"#REF!"}},null,null,null,{"$f":"#REF!+#REF!+#REF!+#REF!+#REF!","v":{"$error":"#REF!"}},null,null,{"$error":"#REF!"},null,null,{"$error":"#REF!"}]
[null,null,"","Choisir…",null,null,null,null,null,null,null,null,null,null,null,null,null,null,null,null,null,"Choisir…",null,null,null,{"$f":"#REF!+#REF!+#REF!+#REF!+#REF!","v":{"$error":"#REF!"}},null,null,{"$f":"#REF!+#REF!+#REF!+#REF!+#REF!","v":{"$error":"#REF!"}},null,null,{"$f":"#REF!+#REF!+#REF!+#REF!+#REF!","v":{"$error":"#REF!"}},null,null,null,{"$f":"#REF!+#REF!+#REF!+#REF!+#REF!","v":{"$error":"#REF!"}},null,null,{"$error":"#REF!"},null,null,{"$error":"#REF!"}]
[null,null,null,"Total des contributions  ",null,null,null,null,null,null,null,null,null,null,null,null,null,null,null,null,null,null,null,null,null,{"$f":"SUM(Z156:AB160)","v":{"$error":"#REF!"}},null,null,{"$f":"SUM(AC154:AE160)","v":{"$error":"#REF!"}},null,null,{"$f":"SUM(AF154:AI160)","v":{"$error":"#REF!"}},null,null,null,{"$f":"SUM(AJ156:AL160)","v":{"$error":"#REF!"}},null,null,{"$f":"SUM(AM154:AO160)","v":{"$error":"#REF!"}},null,null,{"$f":"SUM(AP154:AQ160)","v":{"$error":"#REF!"}}]
[]
[null,"K-Sommaire coûts projet"]
[null,null,null,"Coûts",null,null,null,{"$f":"IF(Data2!B56=FALSE,\"(remplissez l'onglet rapport détaillé des coûts, section D et si requis  section B)\",\"(remplissez l'onglet rapport détaillé des coûts, section D et si requis  section B)\")","v":"(remplissez l'onglet rapport détaillé des coûts, section D et si requis  section B)"},null,null,null,null,null,null,null,null,null,"Couts prévus",null,null,null,null,null,null,null,null,null,null,null,null,"Coûts réels",null,null,null,null,null,null,null,null,null,null,null,null,{"$f":"Data2!B56","v":false}]
[null,null,null,"Type de dépenses",null,null,null,null,null,null,null,null,null,null,null,null,null,"Interne",null,null,null,"Externe",null,null,null,null,"Total",null,null,null,"Interne",null,null,null,null,"Externe",null,null,null,"Total"]
[null,null,null,{"$f":"'3.1 Rapport détaillé des coûts'!A16","v":"A. Acquisition équipement/matériel"},null,null,null,null,null,null,null,null,null,null,null,null,null,{"$f":"'3.1 Rapport détaillé des coûts'!I28","v":0},null,null,null,{"$f":"'3.1 Rapport détaillé des coûts'!H28","v":0},null,null,null,null,{"$f":"R166+V166","v":0},null,null,null,0,null,null,null,null,0,null,null,null,{"$f":"AE166+AJ166","v":0}]
[null,null,null,{"$f":"'3.1 Rapport détaillé des coûts'!A30","v":"B. Acquisition/location de l'équipement de mesurage"},null,null,null,null,null,null,null,null,null,null,null,null,null,{"$f":"'3.1 Rapport détaillé des coûts'!I40","v":0},null,null,null,{"$f":"'3.1 Rapport détaillé des coûts'!H40","v":0},null,null,null,null,0,null,null,null,0,null,null,null,null,0,null,null,null,0]
[null,null,null,{"$f":"'3.1 Rapport détaillé des coûts'!A42","v":"C. Mesurage, quantification et vérification"},null,null,null,null,null,null,null,null,null,null,null,null,null,{"$f":"'3.1 Rapport détaillé des coûts'!I48","v":0},null,null,null,{"$f":"'3.1 Rapport détaillé des coûts'!H48","v":0},null,null,null,null,0,null,null,null,0,null,null,null,null,0,null,null,null,0]
[null,null,null,{"$f":"'3.1 Rapport détaillé des coûts'!A50","v":"D. Ingénierie ou services professionnels *"},null,null,null,null,null,null,null,null,null,null,null,null,null,{"$f":"'3.1 Rapport détaillé des coûts'!I56","v":0},null,null,null,{"$f":"'3.1 Rapport détaillé des coûts'!H56","v":0},null,null,null,null,0,null,null,null,0,null,null,null,null,0,null,null,null,0]
[null,null,null,{"$f":"'3.1 Rapport détaillé des coûts'!A58","v":"E. Installation et mise en fonction"},null,null,null,null,null,null,null,null,null,null,null,null,null,{"$f":"'3.1 Rapport détaillé des coûts'!I64","v":0},null,null,null,{"$f":"'3.1 Rapport détaillé des coûts'!H64","v":0},null,null,null,null,0,null,null,null,0,null,null,null,null,0,null,null,null,0]
[null,null,null,{"$f":"'3.1 Rapport détaillé des coûts'!A66","v":"F. Contingences"},null,null,null,null,null,null,null,null,null,null,null,null,null,{"$f":"'3.1 Rapport détaillé des coûts'!I71","v":0},null,null,null,{"$f":"'3.1 Rapport détaillé des coûts'!H71","v":0},null,null,null,null,0,null,null,null,0,null,null,null,null,0,null,null,null,0]
[null,null,null,"Total des coûts ",null,null,null,null,null,null,null,null,null,null,null,null,null,{"$f":"SUM(R166:U171)","v":0},null,null,null,{"$f":"SUM(V166:Z171)","v":0},null,null,null,null,{"$f":"SUM(AA166:AD171)","v":0},null,null,null,{"$f":"SUM(AE166:AI171)","v":0},null,null,null,null,{"$f":"SUM(AJ166:AM171)","v":0},null,null,null,{"$f":"SUM(AM166:AQ171)","v":0}]
[]
[null,"K-Activités",null,null,null,null,null,null,null,null,null,null,null,null,null,null,null,null,null,null,null,null,null,null,null,null,null,null,null,null,null,null,null,null,null,null,null,null,null,null,null,null,null,{"$f":"Data2!E56","v":false}]
[null,null,{"$f":"Data2!AD30","v":""},"Activités",null,null,null,{"$f":"IF(Data2!B115=FALSE,\"(remplir l'onglet rapport détaillé des coûts)\",\"\")","v":""},null,null,null,null,null,null,null,null,null,null,null,null,null,"Coûts ",null,null,null,null,null,null,null,null,null,null,null,null,null,"Aide demandée",null,null,null,null,null,null,null,{"$f":"Data2!F58","v":false}]
[null,null,{"$f":"Data2!F58","v":false},null,null,null,null,null,null,null,null,null,null,null,null,null,null,null,null,null,null,"Interne",null,null,null,null,"Externe",null,null,null,"Total"]
[null,null,{"$f":"IF(D177<>\"Choisir…\",INDEX(OFFSET(INDIRECT(Data2!AD$30),,-1,,),MATCH(D177,INDIRECT(Data2!AD$30),0)),\"\")","v":""},"Choisir…",null,null,null,null,null,null,null,null,null,null,null,null,null,null,null,null,null,0,null,null,null,null,0,null,null,null,{"$f":"V177+AA177","v":0},null,null,null,null,0]
[null,null,{"$f":"IF(D178<>\"Choisir…\",INDEX(OFFSET(INDIRECT(Data2!AD$30),,-1,,),MATCH(D178,INDIRECT(Data2!AD$30),0)),\"\")","v":""},"Choisir…",null,null,null,null,null,null,null,null,null,null,null,null,null,null,null,null,null,0,null,null,null,null,0,null,null,null,0,null,null,null,null,0]
[null,null,{"$f":"IF(D179<>\"Choisir…\",INDEX(OFFSET(INDIRECT(Data2!AD$30),,-1,,),MATCH(D179,INDIRECT(Data2!AD$30),0)),\"\")","v":""},"Choisir…",null,null,null,null,null,null,null,null,null,null,null,null,null,null,null,null,null,0,null,null,null,null,0,null,null,null,0,null,null,null,null,0]
[null,null,{"$f":"IF(D180<>\"Choisir…\",INDEX(OFFSET(INDIRECT(Data2!AD$30),,-1,,),MATCH(D180,INDIRECT(Data2!AD$30),0)),\"\")","v":""},"Choisir…",null,null,null,null,null,null,null,null,null,null,null,null,null,null,null,null,null,0,null,null,null,null,0,null,null,null,0,null,null,null,null,0]
[null,null,{"$f":"IF(D181<>\"Choisir…\",INDEX(OFFSET(INDIRECT(Data2!AD$30),,-1,,),MATCH(D181,INDIRECT(Data2!AD$30),0)),\"\")","v":""},"Choisir…",null,null,null,null,null,null,null,null,null,null,null,null,null,null,null,null,null,0,null,null,null,null,0,null,null,null,0,null,null,null,null,0]
[null,null,{"$f":"IF(D182<>\"Choisir…\",INDEX(OFFSET(INDIRECT(Data2!AD$30),,-1,,),MATCH(D182,INDIRECT(Data2!AD$30),0)),\"\")","v":""},"Choisir…",null,null,null,null,null,null,null,null,null,null,null,null,null,null,null,null,null,0,null,null,null,null,0,null,null,null,0,null,null,null,null,0]
[null,null,null,"Total des coûts ",null,null,null,null,null,null,null,null,null,null,null,null,null,null,null,null,null,{"$f":"SUM(V177:Z182)","v":0},null,null,null,null,{"$f":"SUM(AA177:AD182)","v":0},null,null,null,0,null,null,null,null,{"$f":"SUM(AJ177:AM182)","v":0}]
[]
[null,"L-Données financières"]
[null,null,null,"Montage financier",null,null,null,null,null,null,null,null,null,null,null,null,null,null,null,null,null,"Montant d'aide financière demandé (voir note)",null,null,null,null,null,null,null,null,null,null,null,null,null,null,null,null,null,0]
[null,null,"Code","Partenaires",null,null,null,"(précisez si nécessaire)",null,null,null,null,null,null,null,null,null,null,null,null,null,"Nature de la contribution",null,null,null,null,null,null,null,null,"Contribution ($)",null,null,null,null,null,null,null,null,"Contribution (%)"]
[null,null,{"$f":"IF(D188<>\"Choisir…\",INDEX(OFFSET(Fin_Autre,,-1,,),MATCH(D188,Fin_Autre,0)),\"\")","v":1},"TEQ",null,null,null,"Transition énergétique Québec",null,null,null,null,null,null,null,null,null,null,null,null,null,"Subvention",null,null,null,null,null,null,null,null,0,null,null,null,null,null,null,null,null,{"$f":"IF(AE188=0, ,AE188/AE$195)","v":0}]
[null,null,16,"Requérant",null,null,null,{"$f":"IF(H11=\"\",\"\",H11)","v":""},null,null,null,null,null,null,null,null,null,null,null,null,null,"Choisir…",null,null,null,null,null,null,null,null,0,null,null,null,null,null,null,null,null,0]
[null,null,"","Choisir…",null,null,null,null,null,null,null,null,null,null,null,null,null,null,null,null,null,"Choisir…",null,null,null,null,null,null,null,null,0,null,null,null,null,null,null,null,null,0]
[null,null,"","Choisir…",null,null,null,null,null,null,null,null,null,null,null,null,null,null,null,null,null,"Choisir…",null,null,null,null,null,null,null,null,0,null,null,null,null,null,null,null,null,0]
[null,null,"","Choisir…",null,null,null,null,null,null,null,null,null,null,null,null,null,null,null,null,null,"Choisir…",null,null,null,null,null,null,null,null,0,null,null,null,null,null,null,null,null,0]
[null,null,"","Choisir…",null,null,null,null,null,null,null,null,null,null,null,null,null,null,null,null,null,"Choisir…",null,null,null,null,null,null,null,null,0,null,null,null,null,null,null,null,null,0]
[null,null,"","Choisir…",null,null,null,null,null,null,null,null,null,null,null,null,null,null,null,null,null,"Choisir…",null,null,null,null,null,null,null,null,0,null,null,null,null,null,null,null,null,0]
[null,null,null,null,null,null,null,null,null,null,null,null,null,null,null,null,null,null,null,null,null,"Total des contributions  ",null,null,null,null,null,null,null,null,{"$f":"SUM(AE188:AM194)","v":0},null,null,null,null,null,null,null,null,{"$f":"SUM(AM188:AQ194)","v":0}]
[]
[null,"M-Signature"]
[null,null,null,"Signataire autorisé*",null,null,null,null,null,null,null,null,null,null,null,null,null,null,null,null,null,null,null,null,null,null,null,null,null,null,null,null,null,null,"Date"]
[null,null,null,"*Le signataire déclare qu'il est dûment autorisé à prendre des engagements au nom du requérant, qu'il a pris connaissance des exigences et conditions du programme pour lequel il demande une aide financière "]
[null,null,null,"  et qu'il reconnaît que les renseignements contenus dans ce formulaire sont exacts."]
[]
[]
[null,"Documents obligatoires à fournir (cochez ci-dessous)",null,null,null,null,null,null,null,null,null,null,null,null,null,null,null,null,null,null,null,null,null,"Documents facultatifs à fournir (cochez ci-dessous)"]
[]
[null,null,null,null,{"$f":"IF(1=1,\"\",\"Certificat de francisation (si plus de 50 employés)\")","v":""},null,null,null,null,null,null,null,null,null,null,null,null,null,null,null,null,null,null,null,null,"   Procuration",null,null,null,null,null,null,null,null,null,"   Plan d'affaires (pourrait être exigé)"]
[]
[null,null,null,null,{"$f":"IF(1=1,\"\",\"Attestation d'engagement à l'égalité à l'emploi (si plus de 100 employés)\")","v":""},null,null,null,null,null,null,null,null,null,null,null,null,null,null,null,null,null,null,null,null,"   Étude de faisabilité",null,null,null,null,null,null,null,null,null,"   Bilan de masse et d'énergie"]
[]
[null,null,null,null,"Estimation des coûts (onglet 3.1 Rapport détaillé des coûts)",null,null,null,null,null,null,null,null,null,null,null,null,null,null,null,null,null,null,null,null,"   Diagramme de procédés"]
[]
[null,null,null,null,{"$f":"IF(OR(Data2!A56=TRUE,Data2!C56=TRUE,Data2!D56=TRUE,Data2!G56=TRUE),\"Plan d'implantation (autres onglets du formulaire)\",IF(Data2!B56=TRUE,\"\",IF(OR(Data2!E56=TRUE,Data2!F56=TRUE),\"\",\"\")))","v":"Plan d'implantation (autres onglets du formulaire)"},null,null,null,null,null,null,null,null,null,null,null,null,null,null,null,null,null,null,null,null,"   États financiers vérifiés des deux dernières années (pourraient être exigés) "]
[]
[null,null,null,null,{"$f":"IF(OR(Data2!A56=TRUE,Data2!C56=TRUE,Data2!D56=TRUE,Data2!G56=TRUE),\"Plan de projet\",IF(Data2!B56=TRUE,\"\",IF(OR(Data2!E56=TRUE,Data2!F56=TRUE),\"\",\"\")))","v":"Plan de projet"},null,null,null,null,null,null,null,null,null,null,null,null,null,null,null,null,null,null,null,null,"   Tout autre document pertinent (précisez)"]
[]
[null,null,null,null,{"$f":"IF(OR(Data2!A56=TRUE,Data2!C56=TRUE,Data2!D56=TRUE,Data2!G56=TRUE),\"Plan de surveillance\",\"\")","v":"Plan de surveillance"}]
[]
[null,null,null,null,{"$f":"IF(Data2!A56=TRUE,\"Preuve de financement (si applicable)\",\"\")","v":""}]
[]
[null,null,null,null,{"$f":"IF(Data2!A56=TRUE,\"Curriculum vitæ des personnes et des organismes engagés\",\"\")","v":""}]
[]
[null,"Note  :",null,null,"Si aucune valeur n'est indiquée, l'aide financière sera évaluée en fonction des critères du programme. "]
[null,null,null,null,"Voir le Cadre normatif du programme pour plus de renseignements."]
[null,null,null,null,"une fois signé, imprimer chaque onglet en format pdf et transmettre au MERN :   exemplarite-Etat@mern.gouv.qc.ca"]
[null,null,null,null,"La signature doit être celle d'une personne en autorité habileté à signer une éventuelle entente de contribution.  Cette personne doit être inscrite au Registre des entreprises du Québec ou"]
[null,null,null,null,"être désignée par une résolution officielle de l'organisation, celle-ci doit alors accompagnée votre demande d’aide financière."]
[null,"Version:",null,null,{"$f":"Data2!A2","v":"FO_BaseRef_V2.3"},null,null,null,null,"2021-03-19"]

{"sheet":"1.1 Grille d'évaluation","index":1,"n_rows":49,"n_cols":14,"rows_kept":49,"cut":false,"hidden":false,"merged":[]}
[]
[null,null,null,null,null,null,null,null,null,null,null,null,null,"items du menu déroulant, ne pas effacer"]
[null,null,null,null,null,null,null,null,null,null,null,null,null,"important"]
[null,null,null,null,null,null,null,null,null,null,null,null,null,"modéré"]
[]
[null,null,"Projet d'économie d'énergie garantie (EEG)"]
[null,null,"Base de référence"]
[null,null,null,"La grille ci-dessous permet  d'évaluer l'ampleur du travail du"]
[null,null,"Grille d'évaluation du travail à réaliser pour constituer une base de référence","consultant externe pour qu'il constitue la base de référence."]
[]
[null,null,null,"L'obtention du renseignement nécessiste un effort qualifié de:"]
[null,null,null,"(choisir dans le menu, la qualification appropriée)"]
[null,null,"Liste des renseignements à recueillir pour constituer la base de référence :"]
[null,null,null,"Site 1","Site 2","Site 3","Site 4","Site 5","ajouter au besoin des sites",null,null,"Notes"]
[null,null,"indiquer le nom du site:"]
[null,1,"Estimation préliminaire du potentiel de réduction de la consommation d’énergie et des émissions de GES."]
[null,2,"Tarifs mensuels pour chaque forme d’énergie à utiliser lors d'un éventuel contrat avec une ESE embauchée pour réaliser le projet d'économie d'énergie garantie. Ces tarifs sont désignés comme étant des tarifs contractuels."]
[null,3,"Liste des compteurs pour chaque forme d’énergie, accompagnés des quantités et des coûts de consommation mensuelle d’énergie (normalisée au mois calendrier) qui y sont associées; les coûts sont établis en fonction des tarifs contractuels et serviront de référence pour calculer les économies de coûts d'énergie projetées par l'ESE."]
[null,4,"Description de l’état de vétusté des systèmes CVCA (résumé de quelques lignes)."]
[null,5,"Description de l’équilibrage du débit d’air des principaux systèmes de ventilation."]
[null,6,"Détails concernant le système de contrôles (description, schémas, séquences d’opération, captures d’écran, etc.)"]
[null,7,"Liste des membres de l'équipe d'exploitation (tâches, expériences et localisation) à qui l'ESE offrira de la formation."]
[null,8,"Mesures d’efficacité énergétique exigées ou travaux de maintien d’actifs obligatoires à inclure au projet d’efficacité énergétique; identifier la contribution financière de l'institution qui en découle, s'il y a lieu."]
[null,9,"Mesures à proscrire du projet d’efficacité énergétique."]
[null,10,"Consignes minimales à respecter par l'ESE, pour limiter la perturbation des activités de l'institution durant l'implantation des mesures d'efficacité énergétique."]
[null,11,"Consignes minimales à respecter par l'ESE, pour connaître la planification, la progression et l’achèvement des travaux, de manière à pouvoir fournir les approbations requises et à effectuer les suivis adéquats avec le personnel et les occupants."]
[null,12,"Factures mensuelles de consommation d’énergie des fournisseurs d’énergie des précédentes années (années représentatives)"]
[null,13,"Description des modes de chauffage et de climatisation pour les quatre saisons de l’année;"]
[null,14,"Liste des systèmes centraux de chauffage, de ventilation et de conditionnement d’air (CVCA) et leurs caractéristiques, telles que :"]
[null,null,"·  Description sommaire de sa fonction"]
[null,null,"·  Capacité de chauffage"]
[null,null,"·  Capacité de refroidissement"]
[null,null,"·  Capacité d'humidification"]
[null,null,"·  Puissance de la force motrice"]
[null,null,"·  Débit d’air total, au démarrage du système"]
[null,null,"·  Débit d’air frais, au démarrage du système"]
[null,null,"·  Horaires de fonctionnement"]
[null,null,"·  Zones desservies"]
[null,null,"·  Unités terminales"]
[null,15,"Systèmes d’éclairage et ses caractéristiques"]
[null,16,"Critères de sélection des équipements CVCA (exigences techniques), incluant les critères de durabilité et d'entretien, que devra respecter l'ESE dans le choix des équipements inclus dans son projet."]
[null,17,"Renseignements complémentaires (déjà produits) à fournir en annexe lorsque disponibles en format PDF (les formats papier pourront être consultés sur place) :"]
[null,null,"   ·  Liste des plans et les plans eux-mêmes"]
[null,null,"   ·  Liste des manuels d’opération et manuels d’opération eux-mêmes"]
[null,null,"   ·  Rapport de vétusté"]
[null,null,"   ·  Rapport d’équilibrage d’air des principaux systèmes de ventilation"]
[null,null,"   ·  Rapport de mesurage des débits d'eau"]
[null,null,"   ·  Rapport de présence d’amiante ou autres matières dangeureuses, si pertinent"]
[null,null,"   ·  Tout autre rapport pertinent"]

{"sheet":"Feuil1","index":2,"n_rows":0,"n_cols":0,"rows_kept":0,"cut":false,"hidden":true,"merged":[]}

{"sheet":"3.1 Rapport détaillé des coûts","index":3,"n_rows":79,"n_cols":27,"rows_kept":79,"cut":false,"hidden":false,"merged":[[2,21,2,23],[2,24,2,26],[74,7,74,8],[74,4,74,5],[73,4,73,5],[12,6,12,8],[13,3,13,5],[13,6,13,8],[73,7,73,8],[12,3,12,5],[15,0,15,18],[29,0,29,18],[6,1,6,2],[11,0,11,9],[13,15,13,17],[13,12,13,14],[6,11,6,15],[7,1,7,2],[8,1,8,2],[11,10,11,18],[49,0,49,18],[12,12,12,14],[12,15,12,17],[12,10,12,11],[13,10,13,11],[74,0,74,1],[41,0,41,18],[13,0,14,0],[13,1,14,1],[13,18,14,18],[74,10,74,11],[73,10,73,11],[13,9,14,9],[72,0,72,2],[65,0,65,18],[57,0,57,18]]}
[]
[]
[null,"Rapport détaillé des coûts",null,null,null,null,null,null,null,null,null,null,null,null,null,null,null,null,null,null,null,"Ref",null,null,"Proj"]
[null,null,null,null,null,null,null,null,null,null,null,null,null,null,null,null,null,null,null,null,null,"int","ext","tot","int","ext","tot"]
[null,null,null,null,null,null,null,null,null,null,null,null,null,null,null,null,null,null,null,null,{"$f":"A16","v":"A. Acquisition équipement/matériel"},{"$f":"F28","v":0},{"$f":"E28","v":0},{"$f":"V5+W5","v":0},{"$f":"I28","v":0},{"$f":"H28","v":0},{"$f":"Y5+Z5","v":0}]
[null,null,null,null,null,null,null,null,null,null,null,null,null,null,null,null,null,null,null,null,{"$f":"A30","v":"B. Acquisition/location de l'équipement de mesurage"},{"$f":"F40","v":0},{"$f":"E40","v":0},0,{"$f":"I40","v":0},{"$f":"H40","v":0},0]
["Nom du requérant :",{"$f":"IF('1. Demande'!H11=\"\",\"\",'1. Demande'!H11)","v":""},null,null,null,null,null,null,null,null," Personne-ressource  :",{"$f":"IF('2. Plan d''implantation'!AB8=\"\",\"\",'2. Plan d''implantation'!AB8)","v":" "},null,null,null,null,null,null,null,null,{"$f":"A42","v":"C. Mesurage, quantification et vérification"},{"$f":"F48","v":0},{"$f":"E48","v":0},0,{"$f":"I48","v":0},{"$f":"H48","v":0},0]
["Nº de l'entente : ",{"$f":"IF('2. Plan d''implantation'!C9=\"\",\"\",'2. Plan d''implantation'!C9)","v":""},null,null,null,null,null,null,null,null,null,null,null,null,null,null,null,null,null,null,{"$f":"A50","v":"D. Ingénierie ou services professionnels *"},{"$f":"F56","v":0},{"$f":"E56","v":0},0,{"$f":"I56","v":0},{"$f":"H56","v":0},0]
["Date du rapport : ",null,null,null,null,null,null,null,null,null,null,null,null,null,null,null,null,null,null,null,{"$f":"A58","v":"E. Installation et mise en fonction"},{"$f":"F64","v":0},{"$f":"E64","v":0},0,{"$f":"I64","v":0},{"$f":"H64","v":0},0]
[null,null,null,null,null,null,null,null,null,null,null,null,null,null,null,null,null,null,null,null,{"$f":"A66","v":"F. Contingences"},{"$f":"F71","v":0},{"$f":"E71","v":0},0,{"$f":"I71","v":0},{"$f":"H71","v":0},0]
[]
["ESTIMATION DES COÛTS",null,null,null,null,null,null,null,null,null,"SUIVI DES COÛTS "]
[1,2,3,4,null,null,5,null,null,6,7,null,8,null,null,9,null,null,10]
["Nom du fournisseur","Description des biens/services achetés","N° d'imputation","Scénario de référence Coûts estimés (si applicable)",null,null,"Coûts estimés Projet (A) ",null,null,"Coûts additionnels","Coûts réels (B)",null,"Bons de commande",null,null,"Facture",null,null,"Justification des écarts (B-A)"]
[null,null,"Comptable","N° de soumission\nou heures mo interne","Externes","Internes","N° de soumission\nou heures mo interne","Externes","Internes",null,"Externes","Internes","N°","Date ","Coûts (A)","N° facture","Date","Coûts (B)"]
["A. Acquisition équipement/matériel"]
[null,null,null,null,null,null,null,null,null,{"$f":"(H17+I17)-(E17+F17)","v":0}]
[null,null,null,null,null,null,null,null,null,{"$f":"(H18+I18)-(E18+F18)","v":0}]
[null,null,null,null,null,null,null,null,null,0]
[null,null,null,null,null,null,null,null,null,0]
[null,null,null,null,null,null,null,null,null,0]
[null,null,null,null,null,null,null,null,null,0]
[null,null,null,null,null,null,null,null,null,0]
[null,null,null,null,null,null,null,null,null,0]
[null,null,null,null,null,null,null,null,null,0]
[null,null,null,null,null,null,null,null,null,0]
[null,null,null,null,null,null,null,null,null,0]
["Sous-total",null,null,null,{"$f":"SUM(E17:E27)","v":0},{"$f":"SUM(F17:F27)","v":0},null,{"$f":"SUM(H17:H27)","v":0},{"$f":"SUM(I17:I27)","v":0},{"$f":"SUM(J17:J27)","v":0},{"$f":"SUM(K17:K27)","v":0},{"$f":"SUM(L17:L27)","v":0},null,null,{"$f":"SUM(O17:O27)","v":0},null,null,{"$f":"SUM(R17:R27)","v":0}]
[]
["B. Acquisition/location de l'équipement de mesurage"]
[null,null,null,null,null,null,null,null,null,{"$f":"(H31+I31)-(E31+F31)","v":0}]
[null,null,null,null,null,null,null,null,null,0]
[null,null,null,null,null,null,null,null,null,0]
[null,null,null,null,null,null,null,null,null,0]
[null,null,null,null,null,null,null,null,null,0]
[null,null,null,null,null,null,null,null,null,0]
[null,null,null,null,null,null,null,null,null,0]
[null,null,null,null,null,null,null,null,null,0]
[null,null,null,null,null,null,null,null,null,0]
["Sous-total",null,null,null,{"$f":"SUM(E31:E39)","v":0},{"$f":"SUM(F31:F39)","v":0},null,{"$f":"SUM(H31:H39)","v":0},{"$f":"SUM(I31:I39)","v":0},{"$f":"SUM(J31:J39)","v":0},{"$f":"SUM(K31:K39)","v":0},{"$f":"SUM(L31:L39)","v":0},null,null,{"$f":"SUM(O31:O39)","v":0},null,null,{"$f":"SUM(R31:R39)","v":0}]
[]
["C. Mesurage, quantification et vérification"]
[null,null,null,null,null,null,null,null,null,{"$f":"(H43+I43)-(E43+F43)","v":0}]
[null,null,null,null,null,null,null,null,null,{"$f":"(H44+I44)-(E44+F44)","v":0}]
[null,null,null,null,null,null,null,null,null,{"$f":"(H45+I45)-(E45+F45)","v":0}]
[null,null,null,null,null,null,null,null,null,{"$f":"(H46+I46)-(E46+F46)","v":0}]
[null,null,null,null,null,null,null,null,null,{"$f":"(H47+I47)-(E47+F47)","v":0}]
["Sous-total",null,null,null,{"$f":"SUM(E43:E47)","v":0},{"$f":"SUM(F43:F47)","v":0},null,{"$f":"SUM(H43:H47)","v":0},{"$f":"SUM(I43:I47)","v":0},{"$f":"SUM(J43:J47)","v":0},{"$f":"SUM(K43:K47)","v":0},{"$f":"SUM(L43:L47)","v":0},null,null,{"$f":"SUM(O43:O47)","v":0},null,null,{"$f":"SUM(R43:R47)","v":0}]
[]
["D. Ingénierie ou services professionnels *"]
[null,null,null,null,null,null,null,null,null,{"$f":"(H51+I51)-(E51+F51)","v":0}]
[null,null,null,null,null,null,null,null,null,{"$f":"(H52+I52)-(E52+F52)","v":0}]
[null,null,null,null,null,null,null,null,null,{"$f":"(H53+I53)-(E53+F53)","v":0}]
[null,null,null,null,null,null,null,null,null,{"$f":"(H54+I54)-(E54+F54)","v":0}]
[null,null,null,null,null,null,null,null,null,{"$f":"(H55+I55)-(E55+F55)","v":0}]
["Sous-total",null,null,null,{"$f":"SUM(E51:E55)","v":0},{"$f":"SUM(F51:F55)","v":0},null,{"$f":"SUM(H51:H55)","v":0},{"$f":"SUM(I51:I55)","v":0},{"$f":"SUM(J51:J55)","v":0},{"$f":"SUM(K51:K55)","v":0},{"$f":"SUM(L51:L55)","v":0},null,null,{"$f":"SUM(O51:O55)","v":0},null,null,{"$f":"SUM(R51:R55)","v":0}]
[]
["E. Installation et mise en fonction"]
[null,null,null,null,null,null,null,null,null,{"$f":"(H59+I59)-(E59+F59)","v":0}]
[null,null,null,null,null,null,null,null,null,{"$f":"(H60+I60)-(E60+F60)","v":0}]
[null,null,null,null,null,null,null,null,null,{"$f":"(H61+I61)-(E61+F61)","v":0}]
[null,null,null,null,null,null,null,null,null,{"$f":"(H62+I62)-(E62+F62)","v":0}]
[null,null,null,null,null,null,null,null,null,{"$f":"(H63+I63)-(E63+F63)","v":0}]
["Sous-total",null,null,null,{"$f":"SUM(E59:E63)","v":0},{"$f":"SUM(F59:F63)","v":0},null,{"$f":"SUM(H59:H63)","v":0},{"$f":"SUM(I59:I63)","v":0},{"$f":"SUM(J59:J63)","v":0},{"$f":"SUM(K59:K63)","v":0},{"$f":"SUM(L59:L63)","v":0},null,null,{"$f":"SUM(O59:O63)","v":0},null,null,{"$f":"SUM(R59:R63)","v":0}]
[]
["F. Contingences"]
[null,null,null,null,null,null,null,null,null,{"$f":"(H67+I67)-(E67+F67)","v":0}]
[null,null,null,null,null,null,null,null,null,{"$f":"(H68+I68)-(E68+F68)","v":0}]
[null,null,null,null,null,null,null,null,null,{"$f":"(H69+I69)-(E69+F69)","v":0}]
[null,null,null,null,null,null,null,null,null,{"$f":"(H70+I70)-(E70+F70)","v":0}]
["Sous-total",null,null,null,{"$f":"SUM(E67:E70)","v":0},{"$f":"SUM(F67:F70)","v":0},null,{"$f":"SUM(H67:H70)","v":0},{"$f":"SUM(I67:I70)","v":0},{"$f":"SUM(J67:J70)","v":0},{"$f":"SUM(K67:K70)","v":0},{"$f":"SUM(L67:L70)","v":0},null,null,{"$f":"SUM(O67:O70)","v":0},null,null,{"$f":"SUM(R67:R70)","v":0}]
[]
["TOTAL",null,null,null,{"$f":"SUM(E71,E64,E56,E48,E40,E28)","v":0},{"$f":"SUM(F71,F64,F56,F48,F40,F28)","v":0},null,{"$f":"SUM(H71,H64,H56,H48,H40,H28)","v":0},{"$f":"SUM(I71,I64,I56,I48,I40,I28)","v":0},{"$f":"SUM(J71,J64,J56,J48,J40,J28)","v":0},{"$f":"SUM(K71,K64,K56,K48,K40,K28)","v":0},{"$f":"SUM(L28,L40,L48,L56,L64,L71)","v":0}]
[null,null,null,null,"COÛTS ESTIMÉS RÉFÉRENCE",null,null,"COÛTS ESTIMÉS PROJET",null,null,"COÛTS RÉELS"]
["TOTAL DES COÛTS DU PROJET (Reportez ce montant sur le formulaire)",null,null,null,{"$f":"E73+F73","v":0},null,null,{"$f":"H73+I73","v":0},null,{"$f":"J73","v":0},{"$f":"SUM(K73,L73)","v":0}]
[]
[]
[]
["Note: si des coûts sont inscrits dans la colonne \"Interne\", utiliser le formulaire GABARIT DE DÉCLARATION – DÉPENSES INTERNES pour les ventiler."]

{"sheet":"Autres sites","index":4,"n_rows":44,"n_cols":12,"rows_kept":44,"cut":false,"hidden":false,"merged":[[10,3,10,4],[9,3,9,4],[8,3,8,4],[8,6,8,7]]}
[]
[]
[]
[null,null,null,"  Liste des sites (si applicable)"]
[]
[]
[]
[]
[null,"Nom du requérant :",null,null,null," Personne-ressource  :"]
[null,"Nº de l'entente : "]
[null,"Date : "]
[]
["*","NEQ","Code SCIAN (facultatif)","Type d'entreprise","Nom du site","Adresse","Municipalité","  Code postal",null,"Code_entreprise","Regr_Entreprise","36TJ"]
["36TJ","NEQ","Code SCIAN","Type entreprise","Nom site","Adresse","Municipalité","  Code postal","Entreprise","Code_entreprise","Regr_Entreprise","36TJ"]
[false,null,null,"Choisir…",null,null,null,null,{"$f":"IF(D15=\"Choisir…\",\"\",INDEX(OFFSET(Type_Entreprise,,1,,),MATCH(D15,Type_Entreprise,0)))","v":""},{"$f":"IF(D15=\"Choisir…\",\"\",INDEX(OFFSET(Type_Entreprise,,-1,,),MATCH(D15,Type_Entreprise,0)))","v":""},{"$f":"IF(D15=\"Choisir…\",\"\",INDEX(OFFSET(Type_Entreprise,,1,,),MATCH(D15,Type_Entreprise,0)))","v":""},{"$f":"A15","v":false}]
[false,null,null,"Choisir…",null,null,null,null,"","","",{"$f":"A16","v":false}]
[false,null,null,"Choisir…",null,null,null,null,"","","",false]
[false,null,null,"Choisir…",null,null,null,null,"","","",false]
[false,null,null,"Choisir…",null,null,null,null,"","","",false]
[false,null,null,"Choisir…",null,null,null,null,"","","",false]
[false,null,null,"Choisir…",null,null,null,null,"","","",false]
[false,null,null,"Choisir…",null,null,null,null,"","","",false]
[false,null,null,"Choisir…",null,null,null,null,"","","",false]
[false,null,null,"Choisir…",null,null,null,null,"","","",false]
[false,null,null,"Choisir…",null,null,null,null,"","","",false]
[false,null,null,"Choisir…",null,null,null,null,"","","",false]
[false,null,null,"Choisir…",null,null,null,null,"","","",false]
[false,null,null,"Choisir…",null,null,null,null,"","","",false]
[false,null,null,"Choisir…",null,null,null,null,"","","",false]
[false,null,null,"Choisir…",null,null,null,null,"","","",false]
[false,null,null,"Choisir…",null,null,null,null,"","","",false]
[false,null,null,"Choisir…",null,null,null,null,"","","",false]
[false,null,null,"Choisir…",null,null,null,null,"","","",false]
[false,null,null,"Choisir…",null,null,null,null,"","","",false]
[false,null,null,"Choisir…",null,null,null,null,"","","",false]
[false,null,null,"Choisir…",null,null,null,null,"","","",false]
[false,null,null,"Choisir…",null,null,null,null,"","","",false]
[false,null,null,"Choisir…",null,null,null,null,"","","",false]
[false,null,null,"Choisir…",null,null,null,null,"","","",false]
[false,null,null,"Choisir…",null,null,null,null,"","","",false]
[false,null,null,"Choisir…",null,null,null,null,"","","",false]
[false,null,null,"Choisir…",null,null,null,null,"","","",false]
[false,null,null,"Choisir…",null,null,null,null,"","","",false]
["* Consommation d'énergie thermique non électrique de plus de 36 TJ"]

{"sheet":"Data2","index":5,"n_rows":254,"n_cols":181,"rows_kept":254,"cut":false,"hidden":true,"merged":[[61,1,61,2],[61,3,61,4]]}
["Version","Inno","Analyse","Implantation","Conversion","Gestion","Connaissance","OPTER","InnoC","AnalyseC","ImplantationC","ConversionC","GestionC","ConnaissanceC","OPTERC","Anal_Etu","Anal_IP","Anal_IP_Prelim","Anal_Approv","Conv_Bio","Conv_Sol","Conv_ER","Conv_Conv","Gestion_Agri","Gestion_Ind","DEV_Conduite","DEV_Agri","DEV_Ind","OPTER_Arena","OPTER_Super","OPTER_Agro","Code_Req","ORGreq","ORGAdr","ORGVil","ORGCP","ORGStatLeg","ORGNEQ","ORGNbreEmplois","ORGRDrec","Code_Sign","SignAppel","SignNom","SignPrenom","SignSuffixe","SignFonc","SignEMail","SignEnt","SignAdr","SignVil","SignCP","SignNEQ","SignPhone","SignPoste","SignCell","Signcc","Signcorprinc","Code_Repadm","RepAdmAppel","RepAdmNom","RepAdmPrenom","RepAdmSuffixe","RepAdmFonc","RepAdmEMail","RepAdmEnt","RepAdmAdr","RepAdmVil","RepAdmCP","RepAdmNEQ","RepAdmPhone","RepAdmPoste","RepAdmCell","RepAdmcc","RepAdmcorprinc","Code_RepTech","RepTechAppel","RepTechNom","RepTechPrenom","RepTechSuffixe","RepTechFonc","RepTechEMail","RepTechEnt","RepTechAdr","RepTechVil","RepTechCP","RepTechNEQ","RepTechPhone","RepTechPoste","RepTechCell","RepTechOrdre","RepTechNoMbre","RepTechcc","RepTechcorprinc","Code_Consultant","ConsultAppel","ConsultNom","ConsultPrenom","ConsultSuffixe","ConsultFonc","ConsultEMail","ConsultEnt","ConsultAdr","ConsultVil","ConsultCP","ConsultNEQ","ConsultPhone","ConsultPoste","ConsultCell","ConsultOrdre","ConsultNoMbre","Consultcc","Consultcorprinc","SitePrinc","SiteAdr","SiteVil","SiteCP","SiteNEQ","SiteSCIAN","SiteTypeENT","Secteur","No_Projet_Sagir_Abrev","Volet","Section","Composante","SiteGJNel","SIte36TJ","Site36TJCode","NouveauExistant","DJChauffe","Superficie","UnitSuperficie","Production","UnitProd","ConsDateDeb","ConsDateFin","TitreProj","DateDebProj","DateFinProj","DateMER","ProjStratTrans","Engagement","Residentiel","Commercial","Institutionnel","Municipal","Transport","Industriel","Agricole","Autre","DomaineAutre","ProdER","Bioénergie","Eolienne","Geothermie","Hydrolienne","Hydrogene","Maremotrice","Solaire","AutreER","ERAutre","EEInno","Electricite","MazoutLeger","MazoutLourd","GazNaturel","Propane","Essence","Diesel","AutreEE","EEAutre","Montantdem","DateDemande","Cinterne_Prevu","Cexterne_Prevu","Ctotaux_Prevu","Cinterne_Reel","Cexterne_reel","Ctotaux_Reel","NbreMes","Recom","RecomC"]
["FO_BaseRef_V2.3",{"$f":"IF(A56=TRUE,\"1\",\"\")","v":""},{"$f":"IF(B56=TRUE,\"2\",\"\")","v":""},{"$f":"IF(C56=TRUE,\"3\",\"\")","v":"3"},{"$f":"IF(D56=TRUE,\"4\",\"\")","v":""},{"$f":"IF(E56=TRUE,\"5\",\"\")","v":""},{"$f":"IF(F56=TRUE,\"6\",\"\")","v":""},{"$f":"IF(G56=TRUE,\"7\",\"\")","v":""},{"$f":"A56","v":false},{"$f":"B56","v":false},true,false,false,false,false,{"$f":"B57","v":false},{"$f":"B58","v":false},{"$f":"B60","v":false},{"$f":"B59","v":false},{"$f":"D57","v":false},{"$f":"D60","v":false},{"$f":"D58","v":false},{"$f":"D59","v":false},{"$f":"E57","v":false},{"$f":"E58","v":false},{"$f":"F57","v":false},{"$f":"F58","v":false},{"$f":"F59","v":false},{"$f":"G57","v":false},{"$f":"G58","v":false},{"$f":"G59","v":false},10,{"$f":"IF('1. Demande'!H11=\"\",\"\",'1. Demande'!H11)","v":""},{"$f":"IF('1. Demande'!H13=\"\",\"\",'1. Demande'!H13)","v":""},{"$f":"IF('1. Demande'!H15=\"\",\"\",'1. Demande'!H15)","v":""},{"$f":"IF('1. Demande'!Z15=\"\",\"\",'1. Demande'!Z15)","v":""},{"$f":"IF('1. Demande'!AL11=\"\",\"\",'1. Demande'!AL11)","v":""},{"$f":"IF('1. Demande'!AL13=\"\",\"\",'1. Demande'!AL13)","v":""},{"$f":"IF('1. Demande'!AL15=\"\",\"\",'1. Demande'!AL15)","v":""},false,1,{"$f":"INDEX(OFFSET(Appel,,-1,,),MATCH('1. Demande'!H20,Appel,0))","v":0},{"$f":"IF('1. Demande'!M20=\"\",\"\",'1. Demande'!M20)","v":""},{"$f":"IF('1. Demande'!AC20=\"\",\"\",'1. Demande'!AC20)","v":""},{"$f":"IF('1. Demande'!AP20=\"\",\"\",'1. Demande'!AP20)","v":""},{"$f":"IF('1. Demande'!H22=\"\",\"\",'1. Demande'!H22)","v":""},{"$f":"IF('1. Demande'!AC22=\"\",\"\",'1. Demande'!AC22)","v":""},{"$f":"IF('1. Demande'!H24=\"\",\"\",'1. Demande'!H24)","v":""},{"$f":"IF('1. Demande'!H26=\"\",\"\",'1. Demande'!H26)","v":""},{"$f":"IF('1. Demande'!H28=\"\",\"\",'1. Demande'!H28)","v":""},{"$f":"IF('1. Demande'!Z28=\"\",\"\",'1. Demande'!Z28)","v":""},{"$f":"IF('1. Demande'!AI24=\"\",\"\",'1. Demande'!AI24)","v":""},{"$f":"IF('1. Demande'!AI26=\"\",\"\",'1. Demande'!AI26)","v":""},{"$f":"IF('1. Demande'!AQ26=\"\",\"\",'1. Demande'!AQ26)","v":""},{"$f":"IF('1. Demande'!AI28=\"\",\"\",'1. Demande'!AI28)","v":""},false,false,2,{"$f":"INDEX(OFFSET(Appel,,-1,,),MATCH('1. Demande'!H35,Appel,0))","v":0},{"$f":"IF('1. Demande'!M35=\"\",\"\",'1. Demande'!M35)","v":""},{"$f":"IF('1. Demande'!AC35=\"\",\"\",'1. Demande'!AC35)","v":""},{"$f":"IF('1. Demande'!AP35=\"\",\"\",'1. Demande'!AP35)","v":""},{"$f":"IF('1. Demande'!H37=\"\",\"\",'1. Demande'!H37)","v":""},{"$f":"IF('1. Demande'!AC37=\"\",\"\",'1. Demande'!AC37)","v":""},{"$f":"IF('1. Demande'!H39=\"\",\"\",'1. Demande'!H39)","v":""},{"$f":"IF('1. Demande'!H41=\"\",\"\",'1. Demande'!H41)","v":""},{"$f":"IF('1. Demande'!H43=\"\",\"\",'1. Demande'!H43)","v":""},{"$f":"IF('1. Demande'!Z43=\"\",\"\",'1. Demande'!Z43)","v":""},{"$f":"IF('1. Demande'!AI39=\"\",\"\",'1. Demande'!AI39)","v":""},{"$f":"IF('1. Demande'!AI41=\"\",\"\",'1. Demande'!AI41)","v":""},{"$f":"IF('1. Demande'!AQ41=\"\",\"\",'1. Demande'!AQ41)","v":""},{"$f":"IF('1. Demande'!AI43=\"\",\"\",'1. Demande'!AI43)","v":""},false,true,3,{"$f":"INDEX(OFFSET(Appel,,-1,,),MATCH('1. Demande'!H46,Appel,0))","v":0},{"$f":"IF('1. Demande'!M46=\"\",\"\",'1. Demande'!M46)","v":""},{"$f":"IF('1. Demande'!AC46=\"\",\"\",'1. Demande'!AC46)","v":""},{"$f":"IF('1. Demande'!AP46=\"\",\"\",'1. Demande'!AP46)","v":""},{"$f":"IF('1. Demande'!H48=\"\",\"\",'1. Demande'!H48)","v":""},{"$f":"IF('1. Demande'!AC48=\"\",\"\",'1. Demande'!AC48)","v":""},{"$f":"IF('1. Demande'!H50=\"\",\"\",'1. Demande'!H50)","v":""},{"$f":"IF('1. Demande'!H52=\"\",\"\",'1. Demande'!H52)","v":""},{"$f":"IF('1. Demande'!H54=\"\",\"\",'1. Demande'!H54)","v":""},{"$f":"IF('1. Demande'!Z54=\"\",\"\",'1. Demande'!Z54)","v":""},{"$f":"IF('1. Demande'!AI50=\"\",\"\",'1. Demande'!AI50)","v":""},{"$f":"IF('1. Demande'!AI52=\"\",\"\",'1. Demande'!AI52)","v":""},{"$f":"IF('1. Demande'!AQ52=\"\",\"\",'1. Demande'!AQ52)","v":""},{"$f":"IF('1. Demande'!AI54=\"\",\"\",'1. Demande'!AI54)","v":""},{"$f":"IF('1. Demande'!AE56=\"\",\"\",'1. Demande'!AE56)","v":"Choisir…"},{"$f":"IF('1. Demande'!AI56=\"\",\"\",'1. Demande'!AI56)","v":""},false,false,4,{"$f":"INDEX(OFFSET(Appel,,-1,,),MATCH('1. Demande'!H59,Appel,0))","v":0},{"$f":"IF('1. Demande'!M59=\"\",\"\",'1. Demande'!M59)","v":""},{"$f":"IF('1. Demande'!AC59=\"\",\"\",'1. Demande'!AC59)","v":""},{"$f":"IF('1. Demande'!AP59=\"\",\"\",'1. Demande'!AP59)","v":""},{"$f":"IF('1. Demande'!H61=\"\",\"\",'1. Demande'!H61)","v":""},{"$f":"IF('1. Demande'!AC61=\"\",\"\",'1. Demande'!AC61)","v":""},{"$f":"IF('1. Demande'!H63=\"\",\"\",'1. Demande'!H63)","v":""},{"$f":"IF('1. Demande'!H65=\"\",\"\",'1. Demande'!H65)","v":""},{"$f":"IF('1. Demande'!H67=\"\",\"\",'1. Demande'!H67)","v":""},{"$f":"IF('1. Demande'!Z67=\"\",\"\",'1. Demande'!Z67)","v":""},{"$f":"IF('1. Demande'!AI63=\"\",\"\",'1. Demande'!AI63)","v":""},{"$f":"IF('1. Demande'!AI65=\"\",\"\",'1. Demande'!AI65)","v":""},{"$f":"IF('1. Demande'!AQ65=\"\",\"\",'1. Demande'!AQ65)","v":""},{"$f":"IF('1. Demande'!AI67=\"\",\"\",'1. Demande'!AI67)","v":""},{"$f":"IF('1. Demande'!AE69=\"\",\"\",'1. Demande'!AE69)","v":"Choisir…"},{"$f":"IF('1. Demande'!AI69=\"\",\"\",'1. Demande'!AI69)","v":""},true,false,{"$f":"IF(F57=TRUE,IF('1. Demande'!H11=\"\",\"\",'1. Demande'!H11),IF('1. Demande'!H72=\"\",\"\",'1. Demande'!H72))","v":""},{"$f":"IF(F57=TRUE,IF('1. Demande'!H13=\"\",\"\",'1. Demande'!H13),IF('1. Demande'!H74=\"\",\"\",'1. Demande'!H74))","v":""},{"$f":"IF(F57=TRUE,IF('1. Demande'!H15=\"\",\"\",'1. Demande'!H15),IF('1. Demande'!H76=\"\",\"\",'1. Demande'!H76))","v":""},{"$f":"IF(F57=TRUE,IF('1. Demande'!Z15=\"\",\"\",'1. Demande'!Z15),IF('1. Demande'!Z76=\"\",\"\",'1. Demande'!Z76))","v":""},{"$f":"IF(F57=TRUE,IF('1. Demande'!AL13=\"\",\"\",'1. Demande'!AL13),IF('1. Demande'!AI72=\"\",\"\",'1. Demande'!AI72))","v":""},{"$f":"IF(F57=TRUE,484,IF('1. Demande'!AI74=\"\",\"\",'1. Demande'!AI74))","v":""},{"$f":"IF(F57=TRUE,10,INDEX(OFFSET(Type_EntrepriseData2,,-1,,),MATCH('1. Demande'!AI76,Type_EntrepriseData2,0)))","v":0},{"$f":"INDEX(OFFSET(Type_EntrepriseData2,,1,,),MATCH('1. Demande'!AI76,Type_EntrepriseData2,0))","v":0},{"$f":"IF(B61=TRUE,\"1154020\",DQ3)","v":0},{"$f":"IF(A56=TRUE,\"Innovation technologique\",IF(OR(B56=TRUE,E56=TRUE,F56=TRUE),\"Analyse\",\"Implantation\"))","v":"Implantation"},{"$f":"IF(FX2=\"8\",\"8\",IF(B2=\"1\",\"1\",IF(C2=\"2\",\"2\",IF(F2=\"5\",\"5\",IF(G2=\"6\",\"6\",IF(H2=\"7\",\"7\",IF(D2=\"3\",\"3\",IF(E2=\"4\",\"4\",\"\"))))))))","v":"3"},null,{"$f":"'1. Demande'!Z78","v":0},false,{"$f":"IF(DU2>36000,\"(+ de 36TJ)\",\"(- de 36TJ)\")","v":"(- de 36TJ)"},2,{"$f":"IF('1. Demande'!J91=\"\",\"\",'1. Demande'!J91)","v":5700},{"$f":"IF('1. Demande'!V91=\"\",\"\",'1. Demande'!V91*INDEX(OFFSET(Unite_Surface,,1,,),MATCH('1. Demande'!AC91,Unite_Surface,0)))","v":9.2903040000000006E-2},{"$f":"INDEX(OFFSET(Unite_Surface,,-1,,),MATCH('1. Demande'!AC91,Unite_Surface,0))","v":2},{"$f":"IF('1. Demande'!AJ91=\"\",\"\",'1. Demande'!AJ91)","v":""},{"$f":"IF('1. Demande'!AP91=\"\",\"\",'1. Demande'!AP91)","v":"kg"},{"$f":"IF('1. Demande'!AE82=\"\",\"\",'1. Demande'!AE82)","v":""},{"$f":"IF('1. Demande'!AN82=\"\",\"\",'1. Demande'!AN82)","v":""},{"$f":"IF('1. Demande'!J105=\"\",\"\",'1. Demande'!J105)","v":""},{"$f":"IF('1. Demande'!O107=\"\",\"\",'1. Demande'!O107)","v":""},{"$f":"IF('1. Demande'!AN107=\"\",\"\",'1. Demande'!AN107)","v":""},{"$f":"IF('1. Demande'!AB107=\"\",\"\",'1. Demande'!AB107)","v":""},{"$f":"IF(A56=TRUE,TRUE,FALSE)","v":false},{"$f":"IF('1. Demande'!AN111=0,0,'1. Demande'!AN111)","v":0},{"$f":"IF(EL3=TRUE,\"Résidentiel\",\"\")","v":""},{"$f":"IF(EM3=TRUE,\"Commercial\",\"\")","v":""},{"$f":"IF(EN3=TRUE,\"Institutionnel\",\"\")","v":""},{"$f":"IF(EO3=TRUE,\"Municipal\",\"\")","v":""},{"$f":"IF(EP3=TRUE,\"Transport\",\"\")","v":""},{"$f":"IF(EQ3=TRUE,\"Industriel\",\"\")","v":""},{"$f":"IF(ER3=TRUE,\"Agricole\",\"\")","v":""},{"$f":"IF(ES3=TRUE,ET2,\"\")","v":""},{"$f":"IF('1. Demande'!AM130=\"\",\"\",'1. Demande'!AM130)","v":""},false,{"$f":"IF(EV3=TRUE,\"Bioénergie\",\"\")","v":""},{"$f":"IF(EW3=TRUE,\"Éolienne\",\"\")","v":""},{"$f":"IF(EX3=TRUE,\"Géothermie\",\"\")","v":""},{"$f":"IF(EY3=TRUE,\"Hydrolienne\",\"\")","v":""},{"$f":"IF(EZ3=TRUE,\"Hydrogène\",\"\")","v":""},{"$f":"IF(FA3=TRUE,\"Marémotrice\",\"\")","v":""},{"$f":"IF(FB3=TRUE,\"Solaire\",\"\")","v":""},{"$f":"IF(FC3=TRUE,FD2,\"\")","v":""},{"$f":"IF('1. Demande'!AM134=\"\",\"\",'1. Demande'!AM134)","v":""},false,{"$f":"IF(FE3=TRUE,1,\"\")","v":""},{"$f":"IF(FF3=TRUE,3,\"\")","v":""},{"$f":"IF(FG3=TRUE,4,\"\")","v":""},{"$f":"IF(FH3=TRUE,2,\"\")","v":""},{"$f":"IF(FI3=TRUE,5,\"\")","v":""},{"$f":"IF(FJ3=TRUE,7,\"\")","v":""},{"$f":"IF(FK3=TRUE,6,\"\")","v":""},{"$f":"IF(FL3=TRUE,IF('1. Demande'!AM138=\"\",\"\",INDEX(OFFSET(Énergie,,-1,,),MATCH('1. Demande'!AM138,Énergie,0))),\"\")","v":""},{"$f":"IF('1. Demande'!AM138=\"\",\"\",INDEX(OFFSET(Énergie,,-1,,),MATCH('1. Demande'!AM138,Énergie,0)))","v":""},{"$f":"'1. Demande'!AN186","v":0},{"$f":"IF('1. Demande'!AJ198=\"\",\"\",'1. Demande'!AJ198)","v":""},{"$f":"B70","v":0},{"$f":"C70","v":0},{"$f":"FQ2+FR2","v":0},{"$f":"D70","v":0},{"$f":"E70","v":0},{"$f":"FU2+FT2","v":0},1,{"$f":"IF(B61=TRUE,\"8\",\"\")","v":""},{"$f":"B61","v":false}]
[null,null,null,null,null,null,null,null,null,null,null,null,null,null,null,null,null,null,null,null,null,null,null,null,null,null,null,null,null,null,null,null,null,null,null,null,null,null,null,null,null,null,null,null,null,null,null,null,null,null,null,null,null,null,null,null,null,null,null,null,null,null,null,null,null,null,null,null,null,null,null,null,null,null,null,null,null,null,null,null,null,null,null,null,null,null,null,null,null,null,null,null,null,null,null,null,null,null,null,null,null,null,null,null,null,null,null,null,null,null,null,null,null,null,null,null,null,null,null,null,{"$f":"IF($A$56=TRUE,\"1159400\",IF($E$56=TRUE,\"1151000\",IF($G$57=TRUE,\"1151210\",IF($F$57=TRUE,\"1157170\",IF($D$57=TRUE,\"1151240\",IF($D$60=TRUE,\"1151202\",INDEX(OFFSET(Type_EntrepriseData2,,2,,),MATCH('1. Demande'!$AI$76,Type_EntrepriseData2,0))))))))","v":0},null,null,null,null,null,null,null,null,null,null,null,null,null,null,null,null,null,null,false,null,false,false,false,false,false,false,false,false,null,null,false,false,false,false,false,false,false,false,null,false,false,false,false,false,false,false,null,false]
["Aide combine max",0.75,null,null,null,null,null,null,null,null,null,null,null,null,null,null,null,null,null,null,"CC","DescriptionCC",null,null,null,null,null,null,null,null,null,null,null,null,null,null,null,null,null,null,null,null,null,null,null,null,null,null,null,null,null,null,null,null,null,null,null,null,null,null,null,null,null,null,null,null,null,null,null,null,null,null,null,null,null,null,null,null,null,null,null,null,null,null,null,null,null,null,null,null,null,null,null,null,null,null,null,null,null,null,null,null,null,null,null,null,null,null,null,null,null,null,null,null,null,null,null,null,null,null,null,null,null,null,null,null,null,null,null,null,null,null,null,null,null,null,null,null,null,null,null,null,null,null,null,null,null,null,null,null,null,null,null,null,null,null,null,null,null,null,1,3,4,2,5,7,6]
[null,false,null,null,null,null,null,null,null,null,null,null,null,null,null,null,null,null,null,null,null,"Choisir…",null,null,null,null,null,null,null,null,null,null,null,null,null,null,null,null,null,null,null,null,null,null,null,null,null,null,null,null,null,null,null,null,null,null,null,null,null,null,null,null,null,null,null,null,null,null,null,null,null,null,null,null,null,null,null,null,null,null,null,null,null,null,null,null,null,null,null,null,null,null,null,null,null,null,null,null,null,null,null,null,null,null,null,null,null,null,null,null,null,null,null,null,null,null,null,null,null,null,null,null,null,null,null,null,null,null,null,null,null,null,null,null,null,null,null,null,"n'est plus utilisé"]
["Code appel","Appel",null,"Choisir…",0,"Choisir…",null,0,"Choisir…","C","Choisir…",0,"Choisir…",null,null,"BT",null,null,null,null,"20","Santé et Services sociaux","Commercial institutionnel","1151201","Gouvernement","Commercial institutionnel",null,null,null,null,null,null,null,null,null,null,null,null,null,null,null,null,null,null,null,null,null,null,null,null,null,null,null,null,null,null,null,null,null,null,null,null,null,null,null,null,null,null,null,null,null,null,null,null,null,null,null,null,null,null,null,null,null,null,null,null,null,null,null,null,null,null,null,null,null,null,null,null,null,null,null,null,null,null,null,null,null,null,null,null,null,null,null,null,null,null,null,null,null,null,null,null,null,null,null,null,null,null,null,null,null,null,null,null,null,null,null,null,"champs supprimé dans onglet 1. Demande"]
[null,"Choisir…",null,"OIQ",2,"Analyse","Analyses",1,"Énergie","I","Implanter",1,"Implantée",null,null,"HT",null,null,null,null,"30","Éducation (Centre de services scolaires)","Commercial institutionnel","1151210","Gouvernement (Optimisation réfrigération)","Commercial institutionnel"]
[1,"Madame",null,"OIFQ",5,"Gestion_d_énergie","Analyses",2,"Fugitive","N","Ne rien faire",2,"En cours d'implantation",null,null,null,null,null,null,null,30,"Enseignement supérieur","Agricole","1158180","Privé (Agriculture)","Agricole"]
[2,"Monsieur",null,"OAQ",3,"Eff_énergétique","Implantations",0,"Aucun","E","Étude supplémentaire requise",3,"Dans la prochaine année",null,null,null,null,null,null,null,60,"Société québécoise des infrastructures","Commercial institutionnel","1151201","Privé (Commercial)","Commercial institutionnel"]
[null,null,null,null,4,"Conversion","Implantations",null,null,null,null,4,"D'ici deux ans",null,null,null,null,null,null,null,70,"Société d'habitation du Québec et OMH","Commercial institutionnel","1151210","Privé (Optimisation réfrigération)","Commercial institutionnel"]
[null,null,null,null,7,"Émissions_fugitives","Implantations",null,null,null,null,5,"Ne sera pas implantée",null,null,null,null,null,null,null,80,"Autres organismes non budgétaires","Industriel","1158180","Privé (Industriel)","Industriel"]
[null,null,null,null,null,null,null,null,null,null,null,null,null,null,null,null,null,null,null,null,"30","Éducation (Optimisation réfrigération)","Industriel","1151210","Privé (Industriel optimisation réfrigération)","Industriel"]
[null,null,null,null,null,null,null,null,null,null,null,null,null,null,null,null,null,null,null,null,"00","Gouvernement","Commercial institutionnel","1151201","Santé","Commercial institutionnel"]
[null,null,null,null,null,null,null,null,null,null,null,null,null,null,null,null,null,null,null,null,"00","Gouvernement (Optimisation réfrigération)","Commercial institutionnel","1151210","Santé (Optimisation réfrigération)","Commercial institutionnel"]
[null,null,null,null,null,null,null,null,null,null,null,null,null,null,null,null,null,null,null,null,"10","Privé (Agriculture)","Commercial institutionnel","1151201","Éducation","Commercial institutionnel"]
[null,null,null,null,null,null,"Choisir…",null,null,null,null,null,null,null,null,null,null,null,null,null,"10","Privé (Commercial)","Commercial institutionnel","1151210","Éducation (Optimisation réfrigération)","Commercial institutionnel"]
[null,null,null,null,null,null,"Subvention",null,null,null,null,null,null,null,null,null,null,null,null,null,"10","Privé (Optimisation réfrigération)"]
[null,null,null,null,null,null,"Emprunt",null,null,null,null,null,null,null,null,null,null,null,null,null,"10","Privé (Industriel)"]
[null,null,null,null,null,null,"Prêt",null,null,null,null,null,null,null,null,null,null,null,null,null,"10","Privé (Industriel optimisation réfrigération)"]
[null,null,null,null,null,null,"Équité",null,null,null,null,null,null,null,null,null,null,null,null,null,"20","Santé (Optimisation réfrigération)"]
[null,null,null,null,null,null,null,null,null,null,null,null,null,null,null,null,null,null,null,null,"40","Municipal","Commercial institutionnel","1151201","Municipal","Commercial institutionnel"]
[null,null,null,null,null,null,null,null,null,null,null,null,null,null,null,null,null,null,null,null,"40","Municipal (Optimisation réfrigération)","Commercial institutionnel","1151210","Municipal (Optimisation réfrigération)","Commercial institutionnel"]
[null,null,null,null,null,null,null,null,null,null,null,null,null,null,null,null,null,null,null,null,"50","OSBL (Agriculture)","Agricole","1158180","OSBL (Agriculture)","Agricole"]
[null,null,null,null,null,null,null,null,null,null,null,null,null,null,null,null,null,null,null,null,"50","OSBL (Institutionnel)","Commercial institutionnel","1151201","OSBL (Institutionnel)","Commercial institutionnel"]
[null,null,null,null,null,null,null,null,null,null,null,null,null,null,null,null,null,null,null,null,"50","OSBL (Commercial)","Commercial institutionnel","1151201","OSBL (Commercial)","Commercial institutionnel"]
["Oui",true,null,null,null,null,null,null,null,null,null,null,null,null,null,null,null,null,null,null,"50","OSBL (Optimisation réfrigération)","Commercial institutionnel","1151210","OSBL (Optimisation réfrigération)","Commercial institutionnel"]
["Non",false,null,null,null,null,null,null,null,null,null,null,null,null,null,null,null,null,null,null,"50","OSBL (Industriel)","Industriel","1158180","OSBL (Industriel)","Industriel"]
[]
[null,"Choisir…"]
[1,"TEQ","Transition énergétique Québec",null,null,"Choisir…","CodeCAt","CodeMEE",null,null,null,null,null,null,null,null,null,null,null,null,null,null,null,null,null,null,null,null,null,{"$f":"IF(E57=TRUE,\"GESB\",IF(E58=TRUE,\"GESA\",IF(F56=TRUE,\"DEVB\",\"\")))","v":""}]
[2,"Hydro-Québec","Hydro-Québec",null,"511","Coûts liés à l'embauche d'une personne énergie",50,"50.1"]
[3,"Gaz Métro","Gaz Métro",null,"512","Formation ISO 50001",50,"50.2",null,null,null,null,null,null,null,null,null,null,null,null,null," Enseignement supérieur",null,null,"SQI"]
[4,"Fédéral…","Fédéral…",null,"513","Accompagnement, audits, certification",50,"50.3",null,null,null,null,null,null,null,null,null,null,null,null,null,"SHQ, OMH",null,null,"Autres organisme non-budgétaire"]
[5,"Investissement Québec","Investissement Québec",null,"514","Équipement de mesurage, sondes et programmation",50,"50.4"]
[6,"Banque/Caisse","Banque/Caisse"]
[7,"TDDC","Technologies du Développement Durables Canada"]
[8,"BDC","Banque de développement du Canada"]
[9,"CDE","Centre de développement économique"]
[10,"MAPAQ","Ministère Agriculture Pêcheries et Alimentation  du Québec"]
[11,"MELS","Ministère de l'Éducation des Loisir et des Sports"]
[12,"MFE","Ministère Finance et de l'Économie"]
[13,"MSSS","Ministére de la Santé et des Services Sociaux"]
[14,"MTQ","Ministère du Transport du Québec"]
[15,"Autre…"]
[16,"Requérant"]
[]
[0,"Choisir…",0,0,"Choisir…",0]
[1,"kg",1,1,"m²",1]
[2,"lbs",{"$f":"1/2.204624","v":0.45359208645102295},2,"pi²",9.2903040000000006E-2]
[]
[]
[null,false,null,false,false,false,false]
[null,false,null,false,false,false,false]
[null,false,null,false,null,false,false]
["Innovation","Analyse","Efficacité","Conversion","Gestion","Connaissances","OPTER",null,"1","Innovation","2","Analyse","3","Efficacité","4","Conversion","5","Gestion","6","Connaissances","7","Émissions Fugitives","Tonne min","Aide max"]
[false,false,true,false,false,false,false,null,"11","R&D (reconnu)","21","Étude","31","Implantation","41","Bioénergies","51","Gestion d'énergie","61","Écoconduite","71","Optimisation réfrigération"]
[null,false,null,false,false,false,false,0.15,"12","R&D (Autre)","222","Étude IP préliminaire",null,null,"42","Énergies émergentes","52","Agriculture","62","développement","72","Autres procédés"]
[null,false,null,false,false,false,false,0.15,"13","Démonstration","221","Étude IP",null,null,"42","Solaires"]
[null,false,null,false,null,false,false,0.1,"14","Mesurage","23","Approvisionnement",null,null,"43","Traditionnelles"]
[null,false,null,false,null,null,null,null,"15","Précommercialisation"]
[null,false,null,null,null,null,null,null,"16","Diffusion"]
[null,"Référence",null,"Projet"]
[null,"Interne","Externe","Interne","Externe"]
[{"$f":"'3.1 Rapport détaillé des coûts'!U5","v":"A. Acquisition équipement/matériel"},{"$f":"'3.1 Rapport détaillé des coûts'!V5","v":0},{"$f":"'3.1 Rapport détaillé des coûts'!W5","v":0},{"$f":"'3.1 Rapport détaillé des coûts'!Y5","v":0},{"$f":"'3.1 Rapport détaillé des coûts'!Z5","v":0}]
[{"$f":"'3.1 Rapport détaillé des coûts'!U6","v":"B. Acquisition/location de l'équipement de mesurage"},{"$f":"'3.1 Rapport détaillé des coûts'!V6","v":0},{"$f":"'3.1 Rapport détaillé des coûts'!W6","v":0},{"$f":"'3.1 Rapport détaillé des coûts'!Y6","v":0},{"$f":"'3.1 Rapport détaillé des coûts'!Z6","v":0}]
[{"$f":"'3.1 Rapport détaillé des coûts'!U7","v":"C. Mesurage, quantification et vérification"},{"$f":"'3.1 Rapport détaillé des coûts'!V7","v":0},{"$f":"'3.1 Rapport détaillé des coûts'!W7","v":0},{"$f":"'3.1 Rapport détaillé des coûts'!Y7","v":0},{"$f":"'3.1 Rapport détaillé des coûts'!Z7","v":0}]
[{"$f":"'3.1 Rapport détaillé des coûts'!U8","v":"D. Ingénierie ou services professionnels *"},{"$f":"'3.1 Rapport détaillé des coûts'!V8","v":0},{"$f":"'3.1 Rapport détaillé des coûts'!W8","v":0},{"$f":"'3.1 Rapport détaillé des coûts'!Y8","v":0},{"$f":"'3.1 Rapport détaillé des coûts'!Z8","v":0}]
[{"$f":"'3.1 Rapport détaillé des coûts'!U9","v":"E. Installation et mise en fonction"},{"$f":"'3.1 Rapport détaillé des coûts'!V9","v":0},{"$f":"'3.1 Rapport détaillé des coûts'!W9","v":0},{"$f":"'3.1 Rapport détaillé des coûts'!Y9","v":0},{"$f":"'3.1 Rapport détaillé des coûts'!Z9","v":0}]
[{"$f":"'3.1 Rapport détaillé des coûts'!U10","v":"F. Contingences"},{"$f":"'3.1 Rapport détaillé des coûts'!V10","v":0},{"$f":"'3.1 Rapport détaillé des coûts'!W10","v":0},{"$f":"'3.1 Rapport détaillé des coûts'!Y10","v":0},{"$f":"'3.1 Rapport détaillé des coûts'!Z10","v":0}]
["Total",{"$f":"SUM(B64:B69)","v":0},{"$f":"SUM(C64:C69)","v":0},{"$f":"SUM(D64:D69)","v":0},{"$f":"SUM(E64:E69)","v":0}]
[]
[]
[]
["Energie_SEQ","Energie_Forme","Energie_Unite","Energie_MJU","CO2equivNeutralite","Energie_kWhU","Energie_BtuU","Energie_Commentaire","Code_Etape","ABR","CO2","CH4","N2O","CO2equiv","Type_NRJ","CodeCompileMaz","PCGIECdef","PCGIECmin","PCGIECmax","FEGIECdef","FEGIECmin","FEGIECmax","%CO2Prod","CO2prod",null,"PRP_SEQ","PRP_GAZ",null,"PRP_FORMULE","PRP_PRP","Source donnees"]
[1,"Électricité","kWh",3.6,2.04,1,3413,"Annexe 13 du Rapport d'inventaire national du Canada 1990-2010 partie 3","02",null,2,2.0000000000000001E-4,1E-4,2.04,"E",0,"","","","","","",0,0,null,1,"Dioxyde de carbone (R-744)","kg","CO2",1,"Règlement sur la déclaration obligatoire de certaines émission de contaminants dans l'atmosphère, Loi sur la qualité de l'environnement, Q-2, a.2.2, 109.1 et 124.1"]
[2,"Gaz naturel","m³",37.89,1889.32,10.525,35921.944000000003,"Règlement sur la déclaration obligatoire de certaines émission de contaminants dans l'atmosphère, Loi sur la qualité de l'environnement, Q-2, a.2.2, 109.1 et 124.1\nUtilisation des données pour usages industriels, ciment, secteur manufacturier et secteurs ","03",null,1878,3.6999999999999998E-2,3.4000000000000002E-2,1889.32,"G",0,"33,6","32,55","35,28","56,1","54,3","58,3",0.1285,244.40789950000001,null,10,"HFC-134a","kg","CH2FCF3",1300,"Règlement sur la déclaration obligatoire de certaines émission de contaminants dans l'atmosphère, Loi sur la qualité de l'environnement, Q-2, a.2.2, 109.1 et 124.1"]
[3,"Mazout léger no 2","L",38.5,2734.7359999999999,10.69,36500.14,"Règlement sur la déclaration obligatoire de certaines émission de contaminants dans l'atmosphère, Loi sur la qualité de l'environnement, Q-2, a.2.2, 109.1 et 124.1\nUtilisation des données pour usages industriels.","04",null,2725,6.0000000000000001E-3,3.1E-2,2734.7359999999999,"MA2",1,"","","","","","",0.107,292.61675200000002,null,31,"HCFC-22 (R-22)","kg","CHClF2",1810,"Changes in atmospheric constituents and in radiative forcing (table 2.14 100-yr TAR)"]
[4,"Mazout lourd (nos 4, 5 et 6)","L",42.5,3146.36,11.805555555,40292.361109999998,"Règlement sur la déclaration obligatoire de certaines émission de contaminants dans l'atmosphère, Loi sur la qualité de l'environnement, Q-2, a.2.2, 109.1 et 124.1\nUtilisation des données pour usages industriels.","04",null,3124,0.12,6.4000000000000001E-2,3146.36,"MA6",1,"","","","","","",0.13700000000000001,431.05131999999998,null,47,"R-404A","kg","0,04(HFC-134a)+0,44(HFC-125)+0,52(HFC-143a)",3260,"Règlement sur la déclaration obligatoire de certaines émission de contaminants dans l'atmosphère, Loi sur la qualité de l'environnement, Q-2, a.2.2, 109.1 et 124.1"]
[5,"Propane","L",25.31,1543.9839999999999,7.03,23995.29,"Règlement sur la déclaration obligatoire de certaines émission de contaminants dans l'atmosphère, Loi sur la qualité de l'environnement, Q-2, a.2.2, 109.1 et 124.1","07",null,1510,2.4E-2,0.108,1543.9839999999999,"P",1,"25,542","24,192","28,188","63,1","61,6","65,6",0.188,290.26899200000003,null,50,"R-407A","kg","0,4(HFC-134a)+0,4(HFC-125)+0,2(HFC-32)",1770,"Règlement sur la déclaration obligatoire de certaines émission de contaminants dans l'atmosphère, Loi sur la qualité de l'environnement, Q-2, a.2.2, 109.1 et 124.1"]
[6,"Diesel","L",38.299999999999997,2789.7930000000001,10.64,36310.53,"Règlement sur la déclaration obligatoire de certaines émission de contaminants dans l'atmosphère, Loi sur la qualité de l'environnement, Q-2, a.2.2, 109.1 et 124.1","06",null,2663,0.13300000000000001,0.4,2789.7930000000001,"",1,"36,55","35,19","36,805","74,1","72,6","74,8",0.107,298.50785100000002,null,85,"R-507a","kg","0,5(HFC-125)+0,5(HFC-143a)",3300,"Règlement sur la déclaration obligatoire de certaines émission de contaminants dans l'atmosphère, Loi sur la qualité de l'environnement, Q-2, a.2.2, 109.1 et 124.1"]
[7,"Essence (automobile)","L",34.869999999999997,2361.92,9.69,33058.699999999997,"Règlement sur la déclaration obligatoire de certaines émission de contaminants dans l'atmosphère, Loi sur la qualité de l'environnement, Q-2, a.2.2, 109.1 et 124.1","05",null,2289,2.7,0.05,2361.1999999999998,"",1,"36,55","35,19","36,805","74,1","72,6","74,8",0.17,401.52640000000002,null,86,"Ammoniac (R-717)","kg","NH3",0,"Internation Institute of Ammonia Refrigeration  (IIAR) www.iiar.org"]
[8,"Essence (aviation)","L",33.520000000000003,2459.5,9.31,31778.82,"Règlement sur la déclaration obligatoire de certaines émission de contaminants dans l'atmosphère, Loi sur la qualité de l'environnement, Q-2, a.2.2, 109.1 et 124.1","05",null,2342,2.2000000000000002,0.23,2459.5,"",1,"","","","","","",0.17,418.11500000000001,null,92,"R-422D","kg","0,651(HFC-125)+0,315(HFC-134a)+0,034*(600a)",2292.2800000000002,"Règlement sur la déclaration obligatoire de certaines émission de contaminants dans l'atmosphère, Loi sur la qualité de l'environnement, Q-2, a.2.2, 109.1 et 124.1"]
[9,"Carburéacteur","L",37.4,2606.98,10.39,35457.279999999999,"Règlement sur la déclaration obligatoire de certaines émission de contaminants dans l'atmosphère, Loi sur la qualité de l'environnement, Q-2, a.2.2, 109.1 et 124.1","","",2534,0.08,0.23,2606.98,"",1,"31,453","30,175","31,808","70","67,5","73",9.2999999999999999E-2,242.44914,null,74,"Bromure de méthyle","kg","CH3Br",5,"Changes in atmospheric constituents and in radiative forcing (table 2.14 100-yr TAR)"]
[10,"Kérosène","L",37.68,2543.7359999999999,10.469443999999999,35722.730000000003,"Règlement sur la déclaration obligatoire de certaines émission de contaminants dans l'atmosphère, Loi sur la qualité de l'environnement, Q-2, a.2.2, 109.1 et 124.1","","",2534,6.0000000000000001E-3,3.1E-2,2543.7359999999999,"",1,"","","","","","",9.2999999999999999E-2,236.56744800000001,null,25,"CFC-11","kg","CCl3F",4750,"Changes in atmospheric constituents and in radiative forcing (table 2.14 100-yr TAR)"]
[11,"Bitume","L",44.46,1778.4,12.35,42150.55,"Règlement sur la déclaration obligatoire de certaines émission de contaminants dans l'atmosphère, Loi sur la qualité de l'environnement, Q-2, a.2.2, 109.1 et 124.1.  Facteur d’émission du guid des facteurs d’émissions de l’ADEME version 5.0.","","",1778.4,"","",1778.4,"",1,"40,2","33,5","41,2","80,7","73","89,9",0.13700000000000001,243.64080000000001,null,28,"CFC-113","kg","CCl2FCClF2",6130,"Changes in atmospheric constituents and in radiative forcing (table 2.14 100-yr TAR)"]
[12,"Gaz de distillation (du raffinage)","L",36.08,1756.88,10.02,34205.839999999997,"Règlement sur la déclaration obligatoire de certaines émission de contaminants dans l'atmosphère, Loi sur la qualité de l'environnement, Q-2, a.2.2, 109.1 et 124.1","","",1750,"",2.2200000000000001E-2,1756.88,"",1,"49,9","47,5","50,6","57,6","48,2","69",0.188,329.00112799999999,null,29,"CFC-114","kg","CClF2CClF2",10000,"Changes in atmospheric constituents and in radiative forcing (table 2.14 100-yr TAR)"]
[16,"Lignite","kg",15,1486.83,4.17,14220.83,"Règlement sur la déclaration obligatoire de certaines émission de contaminants dans l'atmosphère, Loi sur la qualité de l'environnement, Q-2, a.2.2, 109.1 et 124.1","","",1480,0.03,0.02,1486.83,"",1,"11,9","5,5","21,6","101","90,9","115",0.08,118.9464,null,30,"CFC-115","kg","CClF2CF3",7370,"Changes in atmospheric constituents and in radiative forcing (table 2.14 100-yr TAR)"]
[19,"Butane","L",28.44,1763.9839999999999,7.9,26962.7,"Règlement sur la déclaration obligatoire de certaines émission de contaminants dans l'atmosphère, Loi sur la qualité de l'environnement, Q-2, a.2.2, 109.1 et 124.1","","",1730,2.4E-2,0.108,1763.9839999999999,"",1,"","","","","","",0.188,331.62899199999998,null,26,"CFC-12","kg","CCl2F2",10900,"Changes in atmospheric constituents and in radiative forcing (table 2.14 100-yr TAR)"]
[20,"Éthane","L",17.22,976,4.78,16325.52,"Règlement sur la déclaration obligatoire de certaines émission de contaminants dans l'atmosphère, Loi sur la qualité de l'environnement, Q-2, a.2.2, 109.1 et 124.1","","",976,"","",976,"",1,"","","","","","",9.2999999999999999E-2,90.768000000000001,null,27,"CFC-13","kg","CClF3",14400,"Changes in atmospheric constituents and in radiative forcing (table 2.14 100-yr TAR)"]
[21,"Coke de charbon","kg",28.83,2486.83,8.0083333329999995,27332.44167,"Règlement sur la déclaration obligatoire de certaines émission de contaminants dans l'atmosphère, Loi sur la qualité de l'environnement, Q-2, a.2.2, 109.1 et 124.1.\nUtilisation des données CH4 et N2O pour le secteur industriel, centrales thermiques à vape","","",2480,0.03,0.02,2486.83,"",1,"28,2","25,1","30,2","107","95,7","119",0.08,198.94640000000001,null,38,"Halon 1301","kg","CBrF3",7140,"Changes in atmospheric constituents and in radiative forcing (table 2.14 100-yr TAR)"]
[22,"Coke de pétrole (raffinage)","kg",46.35,3836.7350000000001,12.88,43942.38,"Règlement sur la déclaration obligatoire de certaines émission de contaminants dans l'atmosphère, Loi sur la qualité de l'environnement, Q-2, a.2.2, 109.1 et 124.1","","",3826,0.12,2.6499999999999999E-2,3836.7350000000001,"",1,"32,5","29,7","41,9","97,5","82,9","115",0.08,306.93880000000001,null,83,"Halon-1211","kg","CBrClF2",1890,"Changes in atmospheric constituents and in radiative forcing (table 2.14 100-yr TAR)"]
[23,"Charbon de bois","kg",27.599910999999999,35.966000000000001,7.6666419000000001,26166.248,"Enlever","","",3190,0.57599999999999996,7.6999999999999999E-2,3231.9659999999999,"",1,"29,5","14,9","58","112","95","132",0,0,null,84,"Halon-2402","kg","CBrF2CBrF2",1640,"Changes in atmospheric constituents and in radiative forcing (table 2.14 100-yr TAR)"]
[26,"Liqueur usée de cuisson base sèche","kg",14.2,9.2309999999999999,3.94,13462.39,"Règlement sur la déclaration obligatoire de certaines émission de contaminants dans l'atmosphère, Loi sur la qualité de l'environnement, Q-2, a.2.2, 109.1 et 124.1","","",1304,4.1000000000000002E-2,2.7E-2,1313.23,"",2,"","","","85,3","80,7","110",0,0,null,32,"HCFC-123","kg","CHCl2CF3",77,"Changes in atmospheric constituents and in radiative forcing (table 2.14 100-yr TAR)"]
[29,"Bi-énergie chauffage électrique","kWh",3.6,"",1,3413,"","","","","","","","",0,"","","","","","",0,0,null,33,"HCFC-124","kg","CHClFCF3",609,"Changes in atmospheric constituents and in radiative forcing (table 2.14 100-yr TAR)"]
[30,"Autre","GJ",1000,0,277.77777700000001,948055.52,"","","","","","","","",0,"","","","","","",0,0,null,34,"HCFC-141b","kg","CH3CCl2F",725,"Changes in atmospheric constituents and in radiative forcing (table 2.14 100-yr TAR)"]
[31,"Vapeur","Lbs",1.0547902,0,0.29299730000000002,1000,"","","","","","","","",0,"","","","","","",0,0,null,35,"HCFC-142b","kg","CH3CClF2",2310,"Changes in atmospheric constituents and in radiative forcing (table 2.14 100-yr TAR)"]
[36,"Biomasse résiduelle","kg",14.77,35.966000000000001,4.0999999999999996,14002.74,"Règlement sur la déclaration obligatoire de certaines émission de contaminants dans l'atmosphère, Loi sur la qualité de l'environnement, Q-2, a.2.2, 109.1 et 124.1","",1,1799,0.57599999999999996,7.6999999999999999E-2,1834.97,"",2,"15,6","7,9","31","112","95","132",0,0,null,36,"HCFC-225ca","kg","CHCl2CF2CF3",122,"Changes in atmospheric constituents and in radiative forcing (table 2.14 100-yr TAR)"]
[59,"Écorces","kg",20,35.966000000000001,5.5555554999999996,18960.955555500001,"Forintek avec valeur de la biomasse pour les émissions",null,1,1799,0.57599999999999996,7.6999999999999999E-2,1834.97,null,2,null,null,null,null,null,null,0,0,null,37,"HCFC-225cb","kg","CHClFCF2CClF2",595,"Changes in atmospheric constituents and in radiative forcing (table 2.14 100-yr TAR)"]
[37,"Gaz de distillation (de valorisation)","m³",43.24,2146.88,12.01,40993.919999999998,"Règlement sur la déclaration obligatoire de certaines émission de contaminants dans l'atmosphère, Loi sur la qualité de l'environnement, Q-2, a.2.2, 109.1 et 124.1","","",2140,0,2.2200000000000001E-2,2146.88,"",1,"","","","57,6","48,2","69",0.188,329.00131599999997,null,24,"Hexafluorure de soufre","kg","SF6",23900,"Règlement sur la déclaration obligatoire de certaines émission de contaminants dans l'atmosphère, Loi sur la qualité de l'environnement, Q-2, a.2.2, 109.1 et 124.1"]
[39,"CRD","kg",16.72,714.94719999999995,4.644444,15851.488890000001,"note: rebus de construction","","",715.94719999999995,0,0,714.94719999999995,"",1,"","","","42,76","","",0,0,null,8,"HFC-125","kg","C2HF5",2800,"Règlement sur la déclaration obligatoire de certaines émission de contaminants dans l'atmosphère, Loi sur la qualité de l'environnement, Q-2, a.2.2, 109.1 et 124.1"]
[40,"Lubrifiants (huiles usées)","L",39.159999999999997,2422.36,10.877777777777776,37125.85555555555,"Règlement sur la déclaration obligatoire de certaines émission de contaminants dans l'atmosphère, Loi sur la qualité de l'environnement, Q-2, a.2.2, 109.1 et 124.1","","",2400,0.12,6.4000000000000001E-2,2422.36,"",1,"","","","","","",0,0,null,9,"HFC-134","kg","CHF2CHF2",1000,"Règlement sur la déclaration obligatoire de certaines émission de contaminants dans l'atmosphère, Loi sur la qualité de l'environnement, Q-2, a.2.2, 109.1 et 124.1"]
[41,"Mazout léger no 1","L",38.78,2652.7360000000003,10.772222222222222,36765.594444444447,"Règlement sur la déclaration obligatoire de certaines émission de contaminants dans l'atmosphère, Loi sur la qualité de l'environnement, Q-2, a.2.2, 109.1 et 124.1\nUtilisation des données pour autoconsommation","","",2643,6.0000000000000001E-3,3.1E-2,2652.7360000000003,"",1,"","","","","","",0.107,283.84275200000002,null,11,"HFC-143","kg","C2H3F3",300,"Règlement sur la déclaration obligatoire de certaines émission de contaminants dans l'atmosphère, Loi sur la qualité de l'environnement, Q-2, a.2.2, 109.1 et 124.1"]
[45,"Coke de pétrole (de valorisation)","L",40.57,3503.681,11.269444444444444,38462.613888888889,"Règlement sur la déclaration obligatoire de certaines émission de contaminants dans l'atmosphère, Loi sur la qualité de l'environnement, Q-2, a.2.2, 109.1 et 124.1","","",3494,0.12,2.3099999999999999E-2,3503.681,"",1,"","","","","","",0.08,280.29448000000002,null,12,"HFC-143a","kg","C2H3F3",3800,"Règlement sur la déclaration obligatoire de certaines émission de contaminants dans l'atmosphère, Loi sur la qualité de l'environnement, Q-2, a.2.2, 109.1 et 124.1"]
[46,"Éthanol (100%)","L",23.41,1519,6.5027777777777773,22193.980555555554,"Règlement sur la déclaration obligatoire de certaines émission de contaminants dans l'atmosphère, Loi sur la qualité de l'environnement, Q-2, a.2.2, 109.1 et 124.1","","",1519,0,0,1519,"",2,"","","","","","",0,0,null,13,"HFC-152a","kg","C2H4F2",140,"Règlement sur la déclaration obligatoire de certaines émission de contaminants dans l'atmosphère, Loi sur la qualité de l'environnement, Q-2, a.2.2, 109.1 et 124.1"]
[47,"Biodiésel","L",35.67,0,9.9083333333333332,33817.141666666663,"Règlement sur la déclaration obligatoire de certaines émission de contaminants dans l'atmosphère, Loi sur la qualité de l'environnement, Q-2, a.2.2, 109.1 et 124.1","","",2497,0,0,2497,"",2,"","","","","","",0,0,null,77,"HFC-161","kg","C2H5F",12,"Règlement sur la déclaration obligatoire de certaines émission de contaminants dans l'atmosphère, Loi sur la qualité de l'environnement, Q-2, a.2.2, 109.1 et 124.1"]
[48,"Gras animal fondu","L",34.840000000000003,0,9.6777777777777789,33030.255555555559,"Règlement sur la déclaration obligatoire de certaines émission de contaminants dans l'atmosphère, Loi sur la qualité de l'environnement, Q-2, a.2.2, 109.1 et 124.1","","",2348,0,0,2348,"",2,"","","","","","",0,0,null,14,"HFC-227ea","kg","C3HF7",2900,"Règlement sur la déclaration obligatoire de certaines émission de contaminants dans l'atmosphère, Loi sur la qualité de l'environnement, Q-2, a.2.2, 109.1 et 124.1"]
[49,"Huile végétale","L",33.44,0,9.2888888888888879,31702.977777777774,"Règlement sur la déclaration obligatoire de certaines émission de contaminants dans l'atmosphère, Loi sur la qualité de l'environnement, Q-2, a.2.2, 109.1 et 124.1","","",2585,0,0,2585,"",2,"","","","","","",0,0,null,4,"HFC-23","kg","CHF3",11700,"Règlement sur la déclaration obligatoire de certaines émission de contaminants dans l'atmosphère, Loi sur la qualité de l'environnement, Q-2, a.2.2, 109.1 et 124.1"]
[50,"Charbon bitumineux étranger","kg",29.82,2346.83,8.2833333333333332,28271.016666666666,"Règlement sur la déclaration obligatoire de certaines émission de contaminants dans l'atmosphère, Loi sur la qualité de l'environnement, Q-2, a.2.2, 109.1 et 124.1.\nUtilisation du charbon américain.\nUtilisation des données CH4 et N2O pour le secteur indus","","",2340,0.03,0.02,2346.83,"",1,"","","","","","",0.08,187.74639999999999,null,78,"HFC-236cb","kg","C3H2F6",1300,"Règlement sur la déclaration obligatoire de certaines émission de contaminants dans l'atmosphère, Loi sur la qualité de l'environnement, Q-2, a.2.2, 109.1 et 124.1"]
[51,"Matières résiduelles collectés par une municipalité","kg",11.57,21.642099999999999,3.213888888888889,10969.002777777778,"Règlement sur la déclaration obligatoire de certaines émission de contaminants dans l'atmosphère, Loi sur la qualité de l'environnement, Q-2, a.2.2, 109.1 et 124.1.z","","",990.39200000000005,0.34710000000000002,4.6280000000000002E-2,1012.034,"",2,"","","","","","",0,0,null,79,"HFC-236ea","kg","C3H2F6",1200,"Règlement sur la déclaration obligatoire de certaines émission de contaminants dans l'atmosphère, Loi sur la qualité de l'environnement, Q-2, a.2.2, 109.1 et 124.1"]
[52,"Tourbe","kg",9.3000000000000007,4.5198,2.5833333333333335,8816.9166666666679,"Règlement sur la déclaration obligatoire de certaines émission de contaminants dans l'atmosphère, Loi sur la qualité de l'environnement, Q-2, a.2.2, 109.1 et 124.1\n1 kg donne 11,57 MJ","",1,957.9,8.9999999999999993E-3,1.3950000000000001E-2,962.41980000000001,"",2,"","","","","","",0,0,null,15,"HFC-236fa","kg","C3H2F6",6300,"Règlement sur la déclaration obligatoire de certaines émission de contaminants dans l'atmosphère, Loi sur la qualité de l'environnement, Q-2, a.2.2, 109.1 et 124.1"]
[53,"Pneus","kg",31.18,2650,8.6611111111111114,29560.372222222224,"Règlement sur la déclaration obligatoire de certaines émission de contaminants dans l'atmosphère, Loi sur la qualité de l'environnement, Q-2, a.2.2, 109.1 et 124.1","","",2650,0,0,2650,"",1,"","","","","","",0,0,null,16,"HFC-245ca","kg","C3H3F5",560,"Règlement sur la déclaration obligatoire de certaines émission de contaminants dans l'atmosphère, Loi sur la qualité de l'environnement, Q-2, a.2.2, 109.1 et 124.1"]
[54,"Sous-produits agricoles (qui ne sont pas destinés à la consommation)","kg",9.59,0,2.6638888888888888,9091.8527777777781,"Règlement sur la déclaration obligatoire de certaines émission de contaminants dans l'atmosphère, Loi sur la qualité de l'environnement, Q-2, a.2.2, 109.1 et 124.1","",1,1074,0,0,1074,"",2,"","","","","","",0,0,null,80,"HFC-245fa","kg","C3H3F5",950,"Règlement sur la déclaration obligatoire de certaines émission de contaminants dans l'atmosphère, Loi sur la qualité de l'environnement, Q-2, a.2.2, 109.1 et 124.1"]
[55,"Sous-produits de la biomasse (résidus animaux et végétaux, excluant les résidus de bois et la liqueur de cuisson)","kg",30.03,0,8.4166666666666661,28726.083333333332,"Règlement sur la déclaration obligatoire de certaines émission de contaminants dans l'atmosphère, Loi sur la qualité de l'environnement, Q-2, a.2.2, 109.1 et 124.1","",1,3000,0,0,3000,"",2,"","","","","","",0,0,null,118,"HFC-245fa","kg","CHF 2CH 2CF 3",0,""]
[56,"Gaz de cokerie","m³",19.14,890.62700000000007,5.3166666666666664,18145.783333333333,"Règlement sur la déclaration obligatoire de certaines émission de contaminants dans l'atmosphère, Loi sur la qualité de l'environnement, Q-2, a.2.2, 109.1 et 124.1","","",879,3.6999999999999998E-2,3.5000000000000003E-2,890.62700000000007,"",1,"","","","","","",0.188,167.43787599999999,null,5,"HFC-32","kg","CH2F2",650,"Règlement sur la déclaration obligatoire de certaines émission de contaminants dans l'atmosphère, Loi sur la qualité de l'environnement, Q-2, a.2.2, 109.1 et 124.1"]
[57,"Biogaz (portion méthane)","m³",38.32,11.317,10.64,36361.42,"Règlement sur la déclaration obligatoire de certaines émission de contaminants dans l'atmosphère, Loi sur la qualité de l'environnement, Q-2, a.2.2, 109.1 et 124.1","",1,1878,3.6999999999999998E-2,3.4000000000000002E-2,1889.32,"",2,"","","","","","",0,0,null,119,"HFC-365mfc","kg","",0,""]
[58,"Gaz d'enfouissement (portion méthane)","m³",38.32,11.317,10.64,36361.42,"Règlement sur la déclaration obligatoire de certaines émission de contaminants dans l'atmosphère, Loi sur la qualité de l'environnement, Q-2, a.2.2, 109.1 et 124.1","",1,1878,3.6999999999999998E-2,3.4000000000000002E-2,1889.32,"",2,"","","","","","",0,0,null,81,"HFC-365mfc","kg","C4H5F5",890,"Règlement sur la déclaration obligatoire de certaines émission de contaminants dans l'atmosphère, Loi sur la qualité de l'environnement, Q-2, a.2.2, 109.1 et 124.1"]
[61,"Biocharbon","kg",27.6,35.966000000000001,7.67,16166.25,"Règlement sur la déclaration obligatoire de certaines émission de contaminants dans l'atmosphère, Loi sur la qualité de l'environnement, Q-2, a.2.2, 109.1 et 124.1","",1,3190,0.57599999999999996,7.6999999999999999E-2,3225.9659999999999,"",1,"","","","","","",0,0,null,6,"HFC-41","kg","CH3F",150,"Règlement sur la déclaration obligatoire de certaines émission de contaminants dans l'atmosphère, Loi sur la qualité de l'environnement, Q-2, a.2.2, 109.1 et 124.1"]
[null,null,null,null,null,null,null,null,null,null,null,null,null,null,null,null,null,null,null,null,null,null,null,null,null,7,"HFC-43-10mee","kg","C5H2F10",1300,"Règlement sur la déclaration obligatoire de certaines émission de contaminants dans l'atmosphère, Loi sur la qualité de l'environnement, Q-2, a.2.2, 109.1 et 124.1"]
[null,null,null,null,null,null,null,null,null,null,null,null,null,null,null,null,null,null,null,null,null,null,null,null,null,2,"Méthane (R-50)","kg","CH4",21,"Règlement sur la déclaration obligatoire de certaines émission de contaminants dans l'atmosphère, Loi sur la qualité de l'environnement, Q-2, a.2.2, 109.1 et 124.1"]
[null,null,null,null,null,null,null,null,null,null,null,null,null,null,null,null,null,null,null,null,null,null,null,null,null,120,"Méthylchloroforme","kg","CH3CCl3",0,""]
[null,null,null,null,null,null,null,null,null,null,null,null,null,null,null,null,null,null,null,null,null,null,null,null,null,3,"Oxyde nitreux (R-744a)","kg","N2O",310,"Règlement sur la déclaration obligatoire de certaines émission de contaminants dans l'atmosphère, Loi sur la qualité de l'environnement, Q-2, a.2.2, 109.1 et 124.1"]
[null,null,null,null,null,null,null,null,null,null,null,null,null,null,null,null,null,null,null,null,null,null,null,null,null,72,"Oxyfume 88/12","kg","0,914(HCFC-124)+0,086(ethylene oxyde)",7480,"Sterilant product. U.S. Clean Air Act regulations will ban the sale and use of most HCFC-based products like Oxyfume in the United States as of Dec. 31, 2014. This registered mark will not be manufactured after december 31, 2013,"]
[null,null,null,null,null,null,null,null,null,null,null,null,null,null,null,null,null,null,null,null,null,null,null,null,null,20,"Perfluorobutane (PFC-3-1-10)","kg","C4F10",7000,"Règlement sur la déclaration obligatoire de certaines émission de contaminants dans l'atmosphère, Loi sur la qualité de l'environnement, Q-2, a.2.2, 109.1 et 124.1"]
[null,null,null,null,null,null,null,null,null,null,null,null,null,null,null,null,null,null,null,null,null,null,null,null,null,21,"Perfluorocyclobutane (PFC-318)","kg","c-C4F8",8700,"Règlement sur la déclaration obligatoire de certaines émission de contaminants dans l'atmosphère, Loi sur la qualité de l'environnement, Q-2, a.2.2, 109.1 et 124.1"]
[null,null,null,null,null,null,null,null,null,null,null,null,null,null,null,null,null,null,null,null,null,null,null,null,null,18,"Perfluoroéthane (PFC-116)","kg","C2F6",9200,"Règlement sur la déclaration obligatoire de certaines émission de contaminants dans l'atmosphère, Loi sur la qualité de l'environnement, Q-2, a.2.2, 109.1 et 124.1"]
[null,null,null,null,null,null,null,null,null,null,null,null,null,null,null,null,null,null,null,null,null,null,null,null,null,23,"Perfluorohexane (PFC5-1-14)","kg","C6F14",7400,"Règlement sur la déclaration obligatoire de certaines émission de contaminants dans l'atmosphère, Loi sur la qualité de l'environnement, Q-2, a.2.2, 109.1 et 124.1"]
[null,null,null,null,null,null,null,null,null,null,null,null,null,null,null,null,null,null,null,null,null,null,null,null,null,17,"Perfluorométhane (PFC-14)","kg","CF4",6500,"Règlement sur la déclaration obligatoire de certaines émission de contaminants dans l'atmosphère, Loi sur la qualité de l'environnement, Q-2, a.2.2, 109.1 et 124.1"]
[null,null,null,null,null,null,null,null,null,null,null,null,null,null,null,null,null,null,null,null,null,null,null,null,null,22,"Perfluoropentane (PFC-4-1-12)","kg","C5F12",7500,"Règlement sur la déclaration obligatoire de certaines émission de contaminants dans l'atmosphère, Loi sur la qualité de l'environnement, Q-2, a.2.2, 109.1 et 124.1"]
[null,null,null,null,null,null,null,null,null,null,null,null,null,null,null,null,null,null,null,null,null,null,null,null,null,19,"Perfluoropropane (PFC-218)","kg","C3F8",7000,"Règlement sur la déclaration obligatoire de certaines émission de contaminants dans l'atmosphère, Loi sur la qualité de l'environnement, Q-2, a.2.2, 109.1 et 124.1"]
[null,null,null,null,null,null,null,null,null,null,null,null,null,null,null,null,null,null,null,null,null,null,null,null,null,95,"R-400","kg","0,5(CFC-12)+0,5(CFC-114)",10450,"Changes in atmospheric constituents and in radiative forcing (table 2.14 100-yr TAR)"]
[null,null,null,null,null,null,null,null,null,null,null,null,null,null,null,null,null,null,null,null,null,null,null,null,null,40,"R-401A","kg","0,53(HCFC-22)+0,34(HCFC-124)+0,13(HFC-152a)",1182.48,"Changes in atmospheric constituents and in radiative forcing (table 2.14 100-yr TAR)"]
[null,null,null,null,null,null,null,null,null,null,null,null,null,null,null,null,null,null,null,null,null,null,null,null,null,41,"R-401B","kg","0,61(HCFC-22)+0,28(HCFC-124)+0,11(HFC-152a)",1288.26,"Changes in atmospheric constituents and in radiative forcing (table 2.14 100-yr TAR)"]
["No_Projet_Sagir_Abrev","Section","Code_Activité","Activité","GrandConsom","Secteur","Coût_Interne","Coût_externe","Coût","Aide_demande","CatMEE","CodeMEE",null,null,null,null,null,null,null,null,null,null,null,null,null,42,"R-401C","kg","0,33(HCFC-22)+0,15(HFC-152a)+0,52(HCFC-124)",934.98,"Changes in atmospheric constituents and in radiative forcing (table 2.14 100-yr TAR) et Règlement sur la déclaration obligatoire de certaines émission de contaminants dans l'atmosphère, Loi sur la qualité de l'environnement, Q-2, a.2.2, 109.1 et 124.1"]
[{"$f":"DQ$2","v":0},{"$f":"IF(B61=TRUE,\"8\",\"2\")","v":"2"},{"$f":"IF(B61=TRUE,\"81\",IF(B57=TRUE,\"21\",IF(B58=TRUE,\"221\",IF(B59=TRUE,\"23\",\"222\"))))","v":"222"},{"$f":"IF(B61=TRUE,\"Recommissioning\",IF(B57=TRUE,\"Études\",IF(B58=TRUE,\"Études IP\",IF(B59=TRUE,\"Études approvisionnement\",\"Études IP préliminaires\"))))","v":"Études IP préliminaires"},{"$f":"DV2","v":false},{"$f":"IF(DP2=\"Agricole\",\"Agricole\",IF(DP2=\"Transport\",\"Transport\",\"Affaires\"))","v":"Affaires"},{"$f":"'1. Demande'!R172","v":0},{"$f":"'1. Demande'!V172","v":0},{"$f":"'1. Demande'!AA172","v":0},{"$f":"'1. Demande'!AN186","v":0},50,{"$f":"IF(B61=TRUE,\"50.20\",IF(B57=TRUE,\"50.8\",IF(B58=TRUE,\"50.9\",IF(B59=TRUE,\"50.10\",\"50.11\"))))","v":"50.11"},null,null,null,null,null,null,null,null,null,null,null,null,null,43,"R-402A","kg","0,6(HFC-125)+0,38(HCFC-22)+0,02(C3H8)",2826.68,"Changes in atmospheric constituents and in radiative forcing (table 2.14 100-yr TAR) et Règlement sur la déclaration obligatoire de certaines émission de contaminants dans l'atmosphère, Loi sur la qualité de l'environnement, Q-2, a.2.2, 109.1 et 124.1"]
[null,null,null,null,null,null,null,null,null,null,null,null,null,null,null,null,null,null,null,null,null,null,null,null,null,44,"R-402B","kg","0,38(HFC-125)+0,60(HCFC-22)+0,02(C3H8)",2446.88,"Changes in atmospheric constituents and in radiative forcing (table 2.14 100-yr TAR) et Règlement sur la déclaration obligatoire de certaines émission de contaminants dans l'atmosphère, Loi sur la qualité de l'environnement, Q-2, a.2.2, 109.1 et 124.1"]
[null,null,null,null,null,null,null,null,null,null,null,null,null,null,null,null,null,null,null,null,null,null,null,null,null,45,"R-403A","kg","0,05(C3H8)+0,75(HCFC-22)+0,2(C3F8)",2834.6990000000001,"Règlement sur la déclaration obligatoire de certaines émission de contaminants dans l'atmosphère, Loi sur la qualité de l'environnement, Q-2, a.2.2, 109.1 et 124.1"]
[null,null,null,null,null,null,null,null,null,null,null,null,null,null,null,null,null,null,null,null,null,null,null,null,null,46,"R-403B","kg","0,05(C3H8)+0,56(HCFC-22)+0,39(C3F8)",3820.799,"Règlement sur la déclaration obligatoire de certaines émission de contaminants dans l'atmosphère, Loi sur la qualité de l'environnement, Q-2, a.2.2, 109.1 et 124.1"]
[null,null,null,null,null,null,null,null,null,null,null,null,null,null,null,null,null,null,null,null,null,null,null,null,null,48,"R-405A","kg","0,45(22)+0,07(152a)+0,055(142b)+0,425(C318)",4648.8500000000004,"Changes in atmospheric constituents and in radiative forcing (table 2.14 100-yr TAR) et Règlement sur la déclaration obligatoire de certaines émission de contaminants dans l'atmosphère, Loi sur la qualité de l'environnement, Q-2, a.2.2, 109.1 et 124.1"]
[null,null,null,null,null,null,null,null,null,null,null,null,null,null,null,null,null,null,null,null,null,null,null,null,null,49,"R-406A","kg","0,55(HCFC-22)+,04(R-600a)+0,41(HCFC-142b)",2013.16,"Changes in atmospheric constituents and in radiative forcing (table 2.14 100-yr TAR) et Règlement sur la déclaration obligatoire de certaines émission de contaminants dans l'atmosphère, Loi sur la qualité de l'environnement, Q-2, a.2.2, 109.1 et 124.1"]
[null,null,null,null,null,null,null,null,null,null,null,null,null,null,null,null,null,null,null,null,null,null,null,null,null,51,"R-407B","kg","0,1(HFC-32)+0,7(HFC-125)+0,2(HFC-134a)",2285,"Règlement sur la déclaration obligatoire de certaines émission de contaminants dans l'atmosphère, Loi sur la qualité de l'environnement, Q-2, a.2.2, 109.1 et 124.1"]
[null,null,null,null,null,null,null,null,null,null,null,null,null,null,null,null,null,null,null,null,null,null,null,null,null,52,"R-407C","kg","0,23(HFC-32)+0,25(HFC-125)+0,52(HFC-134a)",1525.5,"Règlement sur la déclaration obligatoire de certaines émission de contaminants dans l'atmosphère, Loi sur la qualité de l'environnement, Q-2, a.2.2, 109.1 et 124.1"]
[null,null,null,null,null,null,null,null,null,null,null,null,null,null,null,null,null,null,null,null,null,null,null,null,null,96,"R-407D","kg","0,15(HFC-32)+0,15(HFC-125)+0,7(HFC-134a)",1427.5,"Règlement sur la déclaration obligatoire de certaines émission de contaminants dans l'atmosphère, Loi sur la qualité de l'environnement, Q-2, a.2.2, 109.1 et 124.1"]
[null,null,null,null,null,null,null,null,null,null,null,null,null,null,null,null,null,null,null,null,null,null,null,null,null,97,"R-407E","kg","0,25(HFC-32)+0,15(HFC-125)+0,6(HFC-134a)",1362.5,"Règlement sur la déclaration obligatoire de certaines émission de contaminants dans l'atmosphère, Loi sur la qualité de l'environnement, Q-2, a.2.2, 109.1 et 124.1"]
[null,null,null,null,null,null,null,null,null,null,null,null,null,null,null,null,null,null,null,null,null,null,null,null,null,53,"R-408A","kg","0,47(HCFC-22)+0,46(HFC-143a)+0,07(HFC-125)",2794.7,"Changes in atmospheric constituents and in radiative forcing (table 2.14 100-yr TAR) et Règlement sur la déclaration obligatoire de certaines émission de contaminants dans l'atmosphère, Loi sur la qualité de l'environnement, Q-2, a.2.2, 109.1 et 124.1"]
[null,null,null,null,null,null,null,null,null,null,null,null,null,null,null,null,null,null,null,null,null,null,null,null,null,54,"R-409A","kg","0,6(HCFC-22)+0,25(HCFC-124)+0,15(HCFC-142b)",1584.75,"Changes in atmospheric constituents and in radiative forcing (table 2.14 100-yr TAR)"]
[null,null,null,null,null,null,null,null,null,null,null,null,null,null,null,null,null,null,null,null,null,null,null,null,null,98,"R-409B","kg","0,65(HCFC-22)+0,25(HCFC-124)+0,1(HCFC-142b)",1559.75,"Changes in atmospheric constituents and in radiative forcing (table 2.14 100-yr TAR)"]
[null,null,null,null,null,null,null,null,null,null,null,null,null,null,null,null,null,null,null,null,null,null,null,null,null,55,"R-410A","kg","0,5(HFC-125)+0,5(HFC-32)",1725,"Règlement sur la déclaration obligatoire de certaines émission de contaminants dans l'atmosphère, Loi sur la qualité de l'environnement, Q-2, a.2.2, 109.1 et 124.1"]
[null,null,null,null,null,null,null,null,null,null,null,null,null,null,null,null,null,null,null,null,null,null,null,null,null,56,"R-410B","kg","0,45(HFC-125)+0,55(HFC-32)",1617.5,"Règlement sur la déclaration obligatoire de certaines émission de contaminants dans l'atmosphère, Loi sur la qualité de l'environnement, Q-2, a.2.2, 109.1 et 124.1"]
["No_Projet_Sagir_Abrev","Code_Org","Partenaire","Detail","Type_aide","Contribution","Pourcent",null,null,null,null,null,null,null,null,null,null,null,null,null,null,null,null,null,null,57,"R-411A","kg","0,015*(R-1270)+0,875(HFC-22)+,11(HFC-152a)",1623.52,"Règlement sur la déclaration obligatoire de certaines émission de contaminants dans l'atmosphère, Loi sur la qualité de l'environnement, Q-2, a.2.2, 109.1 et 124.1 (note additionnelle: le 1,5% de propylene (R1270) a été négligé dans le calcul)"]
[{"$f":"DQ$2","v":0},{"$f":"'1. Demande'!C188","v":1},{"$f":"'1. Demande'!D188","v":"TEQ"},{"$f":"IF('1. Demande'!H188=\"\",\"\",'1. Demande'!H188)","v":"Transition énergétique Québec"},{"$f":"'1. Demande'!V188","v":"Subvention"},{"$f":"'1. Demande'!AE188","v":0},{"$f":"'1. Demande'!AN188","v":0},null,null,null,null,null,null,null,null,null,null,null,null,null,null,null,null,null,null,58,"R-411B","kg","0,03*(R-1270)+0,94(HFC-22)+,03(HFC-152a)",1758.35,"Règlement sur la déclaration obligatoire de certaines émission de contaminants dans l'atmosphère, Loi sur la qualité de l'environnement, Q-2, a.2.2, 109.1 et 124.1 (note additionnelle: le 1,5% de propylene (R1270) a été négligé dans le calcul)"]
[0,{"$f":"'1. Demande'!C189","v":16},{"$f":"'1. Demande'!D189","v":"Requérant"},{"$f":"IF('1. Demande'!H189=\"\",\"\",'1. Demande'!H189)","v":""},{"$f":"'1. Demande'!V189","v":"Choisir…"},{"$f":"'1. Demande'!AE189","v":0},{"$f":"'1. Demande'!AN189","v":0},null,null,null,null,null,null,null,null,null,null,null,null,null,null,null,null,null,null,59,"R-412A","kg","0,7(HCFC-22)+0,05(PFC-218)+0,25(HCFC-142b)",2194.5,"Changes in atmospheric constituents and in radiative forcing (table 2.14 100-yr TAR) et Règlement sur la déclaration obligatoire de certaines émission de contaminants dans l'atmosphère, Loi sur la qualité de l'environnement, Q-2, a.2.2, 109.1 et 124.1"]
[0,{"$f":"'1. Demande'!C190","v":""},{"$f":"'1. Demande'!D190","v":"Choisir…"},{"$f":"IF('1. Demande'!H190=\"\",\"\",'1. Demande'!H190)","v":""},{"$f":"'1. Demande'!V190","v":"Choisir…"},{"$f":"'1. Demande'!AE190","v":0},{"$f":"'1. Demande'!AN190","v":0},null,null,null,null,null,null,null,null,null,null,null,null,null,null,null,null,null,null,60,"R-413A","kg","0,09(PFC-218)+0,88(HFC-134a)+0,03*(600a)",1826.92,"Règlement sur la déclaration obligatoire de certaines émission de contaminants dans l'atmosphère, Loi sur la qualité de l'environnement, Q-2, a.2.2, 109.1 et 124.1 (note additionnelle: PRP du butane utilisé pour le PRP de l'isobutane)"]
[0,{"$f":"'1. Demande'!C191","v":""},{"$f":"'1. Demande'!D191","v":"Choisir…"},{"$f":"IF('1. Demande'!H191=\"\",\"\",'1. Demande'!H191)","v":""},{"$f":"'1. Demande'!V191","v":"Choisir…"},{"$f":"'1. Demande'!AE191","v":0},{"$f":"'1. Demande'!AN191","v":0},null,null,null,null,null,null,null,null,null,null,null,null,null,null,null,null,null,null,61,"R-414A","kg","0,51(R-22)+0,285(HCFC-124)+,04*(600a)+0,165(142b)",1548.37,"Changes in atmospheric constituents and in radiative forcing (table 2.14 100-yr TAR) et Règlement sur la déclaration obligatoire de certaines émission de contaminants dans l'atmosphère, Loi sur la qualité de l'environnement, Q-2, a.2.2, 109.1 et 124.1"]
[0,{"$f":"'1. Demande'!C192","v":""},{"$f":"'1. Demande'!D192","v":"Choisir…"},{"$f":"IF('1. Demande'!H192=\"\",\"\",'1. Demande'!H192)","v":""},{"$f":"'1. Demande'!V192","v":"Choisir…"},{"$f":"'1. Demande'!AE192","v":0},{"$f":"'1. Demande'!AN192","v":0},null,null,null,null,null,null,null,null,null,null,null,null,null,null,null,null,null,null,62,"R-414B","kg","0,5(R-22)+0,39(HCFC-124)+,015*(600a)+0,095(142b)",1388.42,"Changes in atmospheric constituents and in radiative forcing (table 2.14 100-yr TAR) et Règlement sur la déclaration obligatoire de certaines émission de contaminants dans l'atmosphère, Loi sur la qualité de l'environnement, Q-2, a.2.2, 109.1 et 124.1"]
[0,{"$f":"'1. Demande'!C193","v":""},{"$f":"'1. Demande'!D193","v":"Choisir…"},{"$f":"IF('1. Demande'!H193=\"\",\"\",'1. Demande'!H193)","v":""},{"$f":"'1. Demande'!V193","v":"Choisir…"},{"$f":"'1. Demande'!AE193","v":0},{"$f":"'1. Demande'!AN193","v":0},null,null,null,null,null,null,null,null,null,null,null,null,null,null,null,null,null,null,99,"R-415A","kg","0,82(HFC-22)+0,18(HFC-152a)",1509.4,"Changes in atmospheric constituents and in radiative forcing (table 2.14 100-yr TAR) et Règlement sur la déclaration obligatoire de certaines émission de contaminants dans l'atmosphère, Loi sur la qualité de l'environnement, Q-2, a.2.2, 109.1 et 124.1"]
[null,{"$f":"'1. Demande'!C194","v":""},{"$f":"'1. Demande'!D194","v":"Choisir…"},{"$f":"IF('1. Demande'!H194=\"\",\"\",'1. Demande'!H194)","v":""},{"$f":"'1. Demande'!V194","v":"Choisir…"},{"$f":"'1. Demande'!AE194","v":0},{"$f":"'1. Demande'!AN194","v":0},null,null,null,null,null,null,null,null,null,null,null,null,null,null,null,null,null,null,100,"R-415B","kg","0,25(HFC-22)+0,75(HFC-152a)",557.5,"Changes in atmospheric constituents and in radiative forcing (table 2.14 100-yr TAR) et Règlement sur la déclaration obligatoire de certaines émission de contaminants dans l'atmosphère, Loi sur la qualité de l'environnement, Q-2, a.2.2, 109.1 et 124.1",""]
[null,null,null,null,null,null,null,null,null,null,null,null,null,null,null,null,null,null,null,null,null,null,null,null,null,101,"R-416A","kg","0,59(HFC-134a)+0,395(HCFC-124)+0,015(600)",1034.01,"Changes in atmospheric constituents and in radiative forcing (table 2.14 100-yr TAR) et Règlement sur la déclaration obligatoire de certaines émission de contaminants dans l'atmosphère, Loi sur la qualité de l'environnement, Q-2, a.2.2, 109.1 et 124.1"]
["No_Projet_Sagir_Abrev","Code_FrmNRJ","Énergie","Unité","Production","Quantité","Coût","GJ","GES (t)","$/GJ","GJ/production",null,null,null,null,null,null,null,null,null,null,null,null,null,null,115,"R-417A","kg","0,466(HFC-125)+0,5(HFC-134a)+0,034(600)",2014.78,"Règlement sur la déclaration obligatoire de certaines émission de contaminants dans l'atmosphère, Loi sur la qualité de l'environnement, Q-2, a.2.2, 109.1 et 124.1"]
[{"$f":"DQ$2","v":0},{"$f":"'1. Demande'!C84","v":{"$error":"#N/A"}},{"$f":"'1. Demande'!D84","v":0},{"$f":"'1. Demande'!J84","v":""},{"$f":"'1. Demande'!N84","v":0},{"$f":"'1. Demande'!R84","v":0},{"$f":"'1. Demande'!V84","v":0},{"$f":"'1. Demande'!AA84","v":0},{"$f":"'1. Demande'!AE84","v":0},{"$f":"'1. Demande'!AJ84","v":0},{"$f":"'1. Demande'!AN84","v":0},null,null,null,null,null,null,null,null,null,null,null,null,null,null,102,"R-418A","kg","0,015(propane)+0,96(HCFC-22)+0,025(HFC-152a)",1764.26,"Changes in atmospheric constituents and in radiative forcing (table 2.14 100-yr TAR) et Règlement sur la déclaration obligatoire de certaines émission de contaminants dans l'atmosphère, Loi sur la qualité de l'environnement, Q-2, a.2.2, 109.1 et 124.1"]
[0,{"$f":"'1. Demande'!C85","v":{"$error":"#N/A"}},{"$f":"'1. Demande'!D85","v":0},{"$f":"'1. Demande'!J85","v":""},{"$f":"'1. Demande'!N85","v":0},{"$f":"'1. Demande'!R85","v":0},{"$f":"'1. Demande'!V85","v":0},{"$f":"'1. Demande'!AA85","v":0},{"$f":"'1. Demande'!AE85","v":0},{"$f":"'1. Demande'!AJ85","v":0},{"$f":"'1. Demande'!AN85","v":0},null,null,null,null,null,null,null,null,null,null,null,null,null,null,103,"R-419A","kg","0,77(HFC-125)+0,19(HFC-134a)+0,04(ethane)",2442.04,"Règlement sur la déclaration obligatoire de certaines émission de contaminants dans l'atmosphère, Loi sur la qualité de l'environnement, Q-2, a.2.2, 109.1 et 124.1"]
[0,{"$f":"'1. Demande'!C86","v":{"$error":"#N/A"}},{"$f":"'1. Demande'!D86","v":0},{"$f":"'1. Demande'!J86","v":""},{"$f":"'1. Demande'!N86","v":0},{"$f":"'1. Demande'!R86","v":0},{"$f":"'1. Demande'!V86","v":0},{"$f":"'1. Demande'!AA86","v":0},{"$f":"'1. Demande'!AE86","v":0},{"$f":"'1. Demande'!AJ86","v":0},{"$f":"'1. Demande'!AN86","v":0},null,null,null,null,null,null,null,null,null,null,null,null,null,null,104,"R-420A","kg","0,88(HFC-134a)+0,12(HCFC-142b)",1421.2,"Changes in atmospheric constituents and in radiative forcing (table 2.14 100-yr TAR) et Règlement sur la déclaration obligatoire de certaines émission de contaminants dans l'atmosphère, Loi sur la qualité de l'environnement, Q-2, a.2.2, 109.1 et 124.1"]
[0,{"$f":"'1. Demande'!C87","v":{"$error":"#N/A"}},{"$f":"'1. Demande'!D87","v":0},{"$f":"'1. Demande'!J87","v":""},{"$f":"'1. Demande'!N87","v":0},{"$f":"'1. Demande'!R87","v":0},{"$f":"'1. Demande'!V87","v":0},{"$f":"'1. Demande'!AA87","v":0},{"$f":"'1. Demande'!AE87","v":0},{"$f":"'1. Demande'!AJ87","v":0},{"$f":"'1. Demande'!AN87","v":0},null,null,null,null,null,null,null,null,null,null,null,null,null,null,105,"R-421A","kg","0,58(HFC-125)+0,42(HFC-134a)",2170,"Règlement sur la déclaration obligatoire de certaines émission de contaminants dans l'atmosphère, Loi sur la qualité de l'environnement, Q-2, a.2.2, 109.1 et 124.1"]
[0,{"$f":"'1. Demande'!C88","v":{"$error":"#N/A"}},{"$f":"'1. Demande'!D88","v":0},{"$f":"'1. Demande'!J88","v":""},{"$f":"'1. Demande'!N88","v":0},{"$f":"'1. Demande'!R88","v":0},{"$f":"'1. Demande'!V88","v":0},{"$f":"'1. Demande'!AA88","v":0},{"$f":"'1. Demande'!AE88","v":0},{"$f":"'1. Demande'!AJ88","v":0},{"$f":"'1. Demande'!AN88","v":0},null,null,null,null,null,null,null,null,null,null,null,null,null,null,106,"R-421B","kg","0,85(HFC-125)+0,15(HFC-134a)",2575,"Règlement sur la déclaration obligatoire de certaines émission de contaminants dans l'atmosphère, Loi sur la qualité de l'environnement, Q-2, a.2.2, 109.1 et 124.1"]
[0,{"$f":"'1. Demande'!C89","v":{"$error":"#N/A"}},{"$f":"'1. Demande'!D89","v":0},{"$f":"'1. Demande'!J89","v":""},{"$f":"'1. Demande'!N89","v":0},{"$f":"'1. Demande'!R89","v":0},{"$f":"'1. Demande'!V89","v":0},{"$f":"'1. Demande'!AA89","v":0},{"$f":"'1. Demande'!AE89","v":0},{"$f":"'1. Demande'!AJ89","v":0},{"$f":"'1. Demande'!AN89","v":0},null,null,null,null,null,null,null,null,null,null,null,null,null,null,89,"R-422A","kg","0,851(HFC-125)+0,115(HFC-134a)+0,034*(600a)",2292.27,"Règlement sur la déclaration obligatoire de certaines émission de contaminants dans l'atmosphère, Loi sur la qualité de l'environnement, Q-2, a.2.2, 109.1 et 124.1"]
[null,null,null,null,null,null,null,null,null,null,null,null,null,null,null,null,null,null,null,null,null,null,null,null,null,90,"R-422B","kg","0,55(HFC-125)+0,42(HFC-134a)+0,03*(600a)",2138.91,"Règlement sur la déclaration obligatoire de certaines émission de contaminants dans l'atmosphère, Loi sur la qualité de l'environnement, Q-2, a.2.2, 109.1 et 124.1"]
["No_Projet_Sagir_Abrev","No","Type","Capacité_Actuel","Code_Refrig_Actuel","Ref_actuel","Formule_actuel","PRPActuel","Charge_Actuel","Code_unite_Actuel","Unite_actuel","Taux_Fuite","fuites_Actuel ","GES_actuel","Capacité_Prevu","Code_Refrig_Prevu","Ref_prevu","Formule_prevu","PRPprevu","Charge_prevu","Code_unite_prevu","Unite_prevu","fuites_prevu ","GES_prevu",null,91,"R-422C","kg","0,82(HFC-125)+0,15(HFC-134a)+0,03*(600a)",2543.92,"Règlement sur la déclaration obligatoire de certaines émission de contaminants dans l'atmosphère, Loi sur la qualité de l'environnement, Q-2, a.2.2, 109.1 et 124.1"]
[{"$f":"DQ$2","v":0},{"$f":"'1. Demande'!D96","v":1},{"$f":"IF('1. Demande'!E96=\"\",\"\",'1. Demande'!E96)","v":""},{"$f":"'1. Demande'!G96","v":0},{"$f":"IF(F167=\"\",0,INDEX(OFFSET(PRP,,-1,,),MATCH(F167,PRP,0)))","v":0},{"$f":"IF('1. Demande'!J96=\"\",\"\",'1. Demande'!J96)","v":""},{"$f":"IF(F167=\"\",\"\",INDEX(OFFSET(PRP,,2,,),MATCH(F167,PRP,0)))","v":""},{"$f":"'1. Demande'!P96","v":""},{"$f":"'1. Demande'!R96","v":0},{"$f":"INDEX(OFFSET(Unite,,-1,,),MATCH(K167,Unite,0))","v":0},{"$f":"'1. Demande'!U96","v":"Choisir…"},{"$f":"'1. Demande'!AA$93","v":0.15},{"$f":"'1. Demande'!AA$93*'1. Demande'!R96","v":0},{"$f":"'1. Demande'!X96","v":0},{"$f":"'1. Demande'!Z96","v":0},{"$f":"IF(Q167=\"\",0,INDEX(OFFSET(PRP,,-1,,),MATCH(Q167,PRP,0)))","v":0},{"$f":"IF('1. Demande'!AC96=\"\",\"\",'1. Demande'!AC96)","v":""},{"$f":"IF(Q167=\"\",\"\",INDEX(OFFSET(PRP,,2,,),MATCH(Q167,PRP,0)))","v":""},{"$f":"'1. Demande'!AI96","v":""},{"$f":"'1. Demande'!AK96","v":0},{"$f":"INDEX(OFFSET(Unite,,-1,,),MATCH(V167,Unite,0))","v":0},{"$f":"'1. Demande'!AN96","v":"Choisir…"},{"$f":"'1. Demande'!AA$93*'1. Demande'!AK96","v":0},{"$f":"'1. Demande'!AP96","v":0},null,107,"R-423A","kg","0,525(HFC-134a)+0,475(HFC-227ea)",2060,"Règlement sur la déclaration obligatoire de certaines émission de contaminants dans l'atmosphère, Loi sur la qualité de l'environnement, Q-2, a.2.2, 109.1 et 124.1"]
[0,{"$f":"'1. Demande'!D97","v":2},{"$f":"IF('1. Demande'!E97=\"\",\"\",'1. Demande'!E97)","v":""},{"$f":"'1. Demande'!G97","v":0},0,{"$f":"IF('1. Demande'!J97=\"\",\"\",'1. Demande'!J97)","v":""},null,{"$f":"'1. Demande'!P97","v":""},{"$f":"'1. Demande'!R97","v":0},0,{"$f":"'1. Demande'!U97","v":"Choisir…"},{"$f":"'1. Demande'!AA$93","v":0.15},{"$f":"'1. Demande'!AA$93*'1. Demande'!R97","v":0},{"$f":"'1. Demande'!X97","v":0},{"$f":"'1. Demande'!Z97","v":0},0,{"$f":"IF('1. Demande'!AC97=\"\",\"\",'1. Demande'!AC97)","v":""},"",{"$f":"'1. Demande'!AI97","v":""},{"$f":"'1. Demande'!AK97","v":0},0,{"$f":"'1. Demande'!AN97","v":"Choisir…"},{"$f":"'1. Demande'!AA$93*'1. Demande'!AK97","v":0},{"$f":"'1. Demande'!AP97","v":0},null,108,"R-424A","kg",",505(125)+,47(134a)+0,09(600a)+,01(600)+,006(601a)",2183.87,"Règlement sur la déclaration obligatoire de certaines émission de contaminants dans l'atmosphère, Loi sur la qualité de l'environnement, Q-2, a.2.2, 109.1 et 124.1 (note dditionnelle: Pentane (601) et isopentane (601a) sont négligés et Butane (600) et iso"]
[0,{"$f":"'1. Demande'!D98","v":3},{"$f":"IF('1. Demande'!E98=\"\",\"\",'1. Demande'!E98)","v":""},{"$f":"'1. Demande'!G98","v":0},0,{"$f":"IF('1. Demande'!J98=\"\",\"\",'1. Demande'!J98)","v":""},null,{"$f":"'1. Demande'!P98","v":""},{"$f":"'1. Demande'!R98","v":0},0,{"$f":"'1. Demande'!U98","v":"Choisir…"},{"$f":"'1. Demande'!AA$93","v":0.15},{"$f":"'1. Demande'!AA$93*'1. Demande'!R98","v":0},{"$f":"'1. Demande'!X98","v":0},{"$f":"'1. Demande'!Z98","v":0},0,{"$f":"IF('1. Demande'!AC98=\"\",\"\",'1. Demande'!AC98)","v":""},"",{"$f":"'1. Demande'!AI98","v":""},{"$f":"'1. Demande'!AK98","v":0},0,{"$f":"'1. Demande'!AN98","v":"Choisir…"},{"$f":"'1. Demande'!AA$93*'1. Demande'!AK98","v":0},{"$f":"'1. Demande'!AP98","v":0},null,109,"R-425A","kg","0,185(HFC-32)+0,695(HFC-134a)+0,12(HFC-227ea)",1371.75,"Règlement sur la déclaration obligatoire de certaines émission de contaminants dans l'atmosphère, Loi sur la qualité de l'environnement, Q-2, a.2.2, 109.1 et 124.1"]
[0,{"$f":"'1. Demande'!D99","v":4},{"$f":"IF('1. Demande'!E99=\"\",\"\",'1. Demande'!E99)","v":""},{"$f":"'1. Demande'!G99","v":0},0,{"$f":"IF('1. Demande'!J99=\"\",\"\",'1. Demande'!J99)","v":""},null,{"$f":"'1. Demande'!P99","v":""},{"$f":"'1. Demande'!R99","v":0},0,{"$f":"'1. Demande'!U99","v":"Choisir…"},{"$f":"'1. Demande'!AA$93","v":0.15},{"$f":"'1. Demande'!AA$93*'1. Demande'!R99","v":0},{"$f":"'1. Demande'!X99","v":0},{"$f":"'1. Demande'!Z99","v":0},0,{"$f":"IF('1. Demande'!AC99=\"\",\"\",'1. Demande'!AC99)","v":""},"",{"$f":"'1. Demande'!AI99","v":""},{"$f":"'1. Demande'!AK99","v":0},0,{"$f":"'1. Demande'!AN99","v":"Choisir…"},{"$f":"'1. Demande'!AA$93*'1. Demande'!AK99","v":0},{"$f":"'1. Demande'!AP99","v":0},null,110,"R-426A","kg","0,051(HFC-125)+0,93(134a)+0,013(600a)+0,006(601a)",1374.73,"Règlement sur la déclaration obligatoire de certaines émission de contaminants dans l'atmosphère, Loi sur la qualité de l'environnement, Q-2, a.2.2, 109.1 et 124.1"]
[0,{"$f":"'1. Demande'!D100","v":5},{"$f":"IF('1. Demande'!E100=\"\",\"\",'1. Demande'!E100)","v":""},{"$f":"'1. Demande'!G100","v":0},0,{"$f":"IF('1. Demande'!J100=\"\",\"\",'1. Demande'!J100)","v":""},null,{"$f":"'1. Demande'!P100","v":""},{"$f":"'1. Demande'!R100","v":0},0,{"$f":"'1. Demande'!U100","v":"Choisir…"},{"$f":"'1. Demande'!AA$93","v":0.15},{"$f":"'1. Demande'!AA$93*'1. Demande'!R100","v":0},{"$f":"'1. Demande'!X100","v":0},{"$f":"'1. Demande'!Z100","v":0},0,{"$f":"IF('1. Demande'!AC100=\"\",\"\",'1. Demande'!AC100)","v":""},"",{"$f":"'1. Demande'!AI100","v":""},{"$f":"'1. Demande'!AK100","v":0},0,{"$f":"'1. Demande'!AN100","v":"Choisir…"},{"$f":"'1. Demande'!AA$93*'1. Demande'!AK100","v":0},{"$f":"'1. Demande'!AP100","v":0},null,111,"R-427A","kg","0,15(HFC32)+,25(HFC125)+,1(HFC143a)+,5(HFC134a)",1827.5,"Règlement sur la déclaration obligatoire de certaines émission de contaminants dans l'atmosphère, Loi sur la qualité de l'environnement, Q-2, a.2.2, 109.1 et 124.1"]
[0,{"$f":"'1. Demande'!D101","v":6},{"$f":"IF('1. Demande'!E101=\"\",\"\",'1. Demande'!E101)","v":""},{"$f":"'1. Demande'!G101","v":0},0,{"$f":"IF('1. Demande'!J101=\"\",\"\",'1. Demande'!J101)","v":""},null,{"$f":"'1. Demande'!P101","v":""},{"$f":"'1. Demande'!R101","v":0},0,{"$f":"'1. Demande'!U101","v":"Choisir…"},{"$f":"'1. Demande'!AA$93","v":0.15},{"$f":"'1. Demande'!AA$93*'1. Demande'!R101","v":0},{"$f":"'1. Demande'!X101","v":0},{"$f":"'1. Demande'!Z101","v":0},0,{"$f":"IF('1. Demande'!AC101=\"\",\"\",'1. Demande'!AC101)","v":""},"",{"$f":"'1. Demande'!AI101","v":""},{"$f":"'1. Demande'!AK101","v":0},0,{"$f":"'1. Demande'!AN101","v":"Choisir…"},{"$f":"'1. Demande'!AA$93*'1. Demande'!AK101","v":0},{"$f":"'1. Demande'!AP101","v":0},null,112,"R-428A","kg",",775(HFC125)+,2(HFC143a)+,006(propane)+0,019(600a)",2972.78,"Règlement sur la déclaration obligatoire de certaines émission de contaminants dans l'atmosphère, Loi sur la qualité de l'environnement, Q-2, a.2.2, 109.1 et 124.1"]
[null,null,null,null,null,null,null,null,null,null,null,null,null,null,null,null,null,null,null,null,null,null,null,null,null,93,"R-438A","kg",",085(32)+,45(125)+,442(134a)+,017(600)+,006*(601a)",1930.42,"Règlement sur la déclaration obligatoire de certaines émission de contaminants dans l'atmosphère, Loi sur la qualité de l'environnement, Q-2, a.2.2, 109.1 et 124.1 (note additionnelle: PRP du butane utilisé pour le PRP de l'isobutane)"]
["No_Projet_Sagir_Abrev","Code_Volet","Code_composante","Activité","GrandConsom","Secteur","Coût_Interne","Coût_externe","Coût","Aide_demande","QTE","CatMEE","CodeMEE",null,null,null,null,null,null,null,null,null,null,null,null,63,"R-500","kg","0,735(CFC-12)+0,262(HFC-152a)",8048.18,"Changes in atmospheric constituents and in radiative forcing (table 2.14 100-yr TAR) et Règlement sur la déclaration obligatoire de certaines émission de contaminants dans l'atmosphère, Loi sur la qualité de l'environnement, Q-2, a.2.2, 109.1 et 124.1"]
[{"$f":"DQ$2","v":0},{"$f":"IF(E$56=TRUE,5,IF(F$56=TRUE,6,0))","v":0},{"$f":"'1. Demande'!C177","v":""},{"$f":"'1. Demande'!D177","v":"Choisir…"},false,{"$f":"IF(AND(DP$2=\"Agricole\",LEFT(C175,2)=\"52\"),\"Agricole\",\"Affaires\")","v":"Affaires"},{"$f":"'1. Demande'!V177","v":0},{"$f":"'1. Demande'!AA177","v":0},{"$f":"'1. Demande'!AE177","v":0},{"$f":"'1. Demande'!AJ177","v":0},{"$f":"'1. Demande'!R177","v":0},{"$f":"IF(D175<>\"Choisir…\",INDEX(OFFSET(INDIRECT(AD$30),,1,,),MATCH(D175,INDIRECT(AD$30),0)),\"\")","v":""},{"$f":"IF(D175<>\"Choisir…\",INDEX(OFFSET(INDIRECT(AD$30),,2,,),MATCH(D175,INDIRECT(AD$30),0)),\"\")","v":""},null,null,null,null,null,null,null,null,null,null,null,null,64,"R-501","kg","0,75(HCFC-22)+0,25(CFC-12)",4082.5,"Changes in atmospheric constituents and in radiative forcing (table 2.14 100-yr TAR) et Règlement sur la déclaration obligatoire de certaines émission de contaminants dans l'atmosphère, Loi sur la qualité de l'environnement, Q-2, a.2.2, 109.1 et 124.1"]
[0,0,{"$f":"'1. Demande'!C178","v":""},{"$f":"'1. Demande'!D178","v":"Choisir…"},false,"Affaires",{"$f":"'1. Demande'!V178","v":0},{"$f":"'1. Demande'!AA178","v":0},{"$f":"'1. Demande'!AE178","v":0},{"$f":"'1. Demande'!AJ178","v":0},{"$f":"'1. Demande'!R178","v":0},"","",null,null,null,null,null,null,null,null,null,null,null,null,65,"R-502","kg","0,488(HCFC-22)+0,512(CFC-115)",4656.72,"Changes in atmospheric constituents and in radiative forcing (table 2.14 100-yr TAR) et Règlement sur la déclaration obligatoire de certaines émission de contaminants dans l'atmosphère, Loi sur la qualité de l'environnement, Q-2, a.2.2, 109.1 et 124.1"]
[0,0,{"$f":"'1. Demande'!C179","v":""},{"$f":"'1. Demande'!D179","v":"Choisir…"},false,"Affaires",{"$f":"'1. Demande'!V179","v":0},{"$f":"'1. Demande'!AA179","v":0},{"$f":"'1. Demande'!AE179","v":0},{"$f":"'1. Demande'!AJ179","v":0},{"$f":"'1. Demande'!R179","v":0},"","",null,null,null,null,null,null,null,null,null,null,null,null,66,"R-503","kg","0,401(HFC-23)+0,599(CFC-13)",13317.3,"Changes in atmospheric constituents and in radiative forcing (table 2.14 100-yr TAR) et Règlement sur la déclaration obligatoire de certaines émission de contaminants dans l'atmosphère, Loi sur la qualité de l'environnement, Q-2, a.2.2, 109.1 et 124.1"]
[0,0,{"$f":"'1. Demande'!C180","v":""},{"$f":"'1. Demande'!D180","v":"Choisir…"},false,"Affaires",{"$f":"'1. Demande'!V180","v":0},{"$f":"'1. Demande'!AA180","v":0},{"$f":"'1. Demande'!AE180","v":0},{"$f":"'1. Demande'!AJ180","v":0},{"$f":"'1. Demande'!R180","v":0},"","",null,null,null,null,null,null,null,null,null,null,null,null,67,"R-504","kg","0,482(HFC-32)+0,518(CFC-115)",4130.96,"Changes in atmospheric constituents and in radiative forcing (table 2.14 100-yr TAR) et Règlement sur la déclaration obligatoire de certaines émission de contaminants dans l'atmosphère, Loi sur la qualité de l'environnement, Q-2, a.2.2, 109.1 et 124.1"]
[0,0,{"$f":"'1. Demande'!C181","v":""},{"$f":"'1. Demande'!D181","v":"Choisir…"},false,"Affaires",{"$f":"'1. Demande'!V181","v":0},{"$f":"'1. Demande'!AA181","v":0},{"$f":"'1. Demande'!AE181","v":0},{"$f":"'1. Demande'!AJ181","v":0},{"$f":"'1. Demande'!R181","v":0},"","",null,null,null,null,null,null,null,null,null,null,null,null,69,"R-508A","kg","0,39(HFC-23)+0,61(PFC-116)",10175,"Règlement sur la déclaration obligatoire de certaines émission de contaminants dans l'atmosphère, Loi sur la qualité de l'environnement, Q-2, a.2.2, 109.1 et 124.1"]
[0,0,{"$f":"'1. Demande'!C182","v":""},{"$f":"'1. Demande'!D182","v":"Choisir…"},false,"Affaires",{"$f":"'1. Demande'!V182","v":0},{"$f":"'1. Demande'!AA182","v":0},{"$f":"'1. Demande'!AE182","v":0},{"$f":"'1. Demande'!AJ182","v":0},{"$f":"'1. Demande'!R182","v":0},"","",null,null,null,null,null,null,null,null,null,null,null,null,70,"R-508B","kg","0,46(HFC-23)+0,54(PFC-116)",10350,"Règlement sur la déclaration obligatoire de certaines émission de contaminants dans l'atmosphère, Loi sur la qualité de l'environnement, Q-2, a.2.2, 109.1 et 124.1"]
[null,null,null,null,null,null,null,null,null,null,null,null,null,null,null,null,null,null,null,null,null,null,null,null,null,71,"R-509A","kg","0,44(HCFC-22)+0,56(PFC-218)",4716.3999999999996,"Règlement sur la déclaration obligatoire de certaines émission de contaminants dans l'atmosphère, Loi sur la qualité de l'environnement, Q-2, a.2.2, 109.1 et 124.1"]
[null,null,null,null,null,null,null,null,null,null,null,null,null,null,null,null,null,null,null,null,null,null,null,null,null,75,"Tétrachlorure de carbone","kg","CCl4",1400,"Changes in atmospheric constituents and in radiative forcing (table 2.14 100-yr TAR)"]
[null,null,null,null,null,null,null,null,null,null,null,null,null,null,null,null,null,null,null,null,null,null,null,null,null,76,"Trifluorure d'azote","kg","NF3",17200,"Règlement sur la déclaration obligatoire de certaines émission de contaminants dans l'atmosphère, Loi sur la qualité de l'environnement, Q-2, a.2.2, 109.1 et 124.1"]
[null,null,null,null,null,null,null,null,null,null,null,null,null,null,null,null,null,null,null,null,null,null,null,null,null,82,"Autre","kg","N/A",0,""]
[null,null,null,null,null,null,null,null,null,null,null,null,null,null,null,"der"]
[]
[]
[]
[]
[]
[]
[]
[null,null,null,null,null,null,"No_Projet_Sagir_Abrev","NEQ","Code SCIAN","Type entreprise","Nom site","Adresse","Municipalité","Code postal","Entreprise","Code_entreprise","Regr_Entreprise","Tjatteint"]
[null,null,null,null,null,null,{"$f":"DQ$2","v":0},{"$f":"IF('Autres sites'!B15=\"\",\"\",'Autres sites'!B15)","v":""},{"$f":"IF('Autres sites'!C15=\"\",\"\",'Autres sites'!C15)","v":""},{"$f":"IF('Autres sites'!D15=\"\",\"\",'Autres sites'!D15)","v":"Choisir…"},{"$f":"IF('Autres sites'!E15=\"\",\"\",'Autres sites'!E15)","v":""},{"$f":"IF('Autres sites'!F15=\"\",\"\",'Autres sites'!F15)","v":""},{"$f":"IF('Autres sites'!G15=\"\",\"\",'Autres sites'!G15)","v":""},{"$f":"IF('Autres sites'!H15=\"\",\"\",'Autres sites'!H15)","v":""},{"$f":"IF('Autres sites'!I15=\"\",\"\",'Autres sites'!I15)","v":""},{"$f":"IF('Autres sites'!J15=\"\",\"\",'Autres sites'!J15)","v":""},{"$f":"IF('Autres sites'!K15=\"\",\"\",'Autres sites'!K15)","v":""},{"$f":"IF('Autres sites'!L15=\"\",\"\",'Autres sites'!L15)","v":false}]
[null,null,null,null,null,null,0,{"$f":"IF('Autres sites'!B16=\"\",\"\",'Autres sites'!B16)","v":""},{"$f":"IF('Autres sites'!C16=\"\",\"\",'Autres sites'!C16)","v":""},{"$f":"IF('Autres sites'!D16=\"\",\"\",'Autres sites'!D16)","v":"Choisir…"},{"$f":"IF('Autres sites'!E16=\"\",\"\",'Autres sites'!E16)","v":""},{"$f":"IF('Autres sites'!F16=\"\",\"\",'Autres sites'!F16)","v":""},{"$f":"IF('Autres sites'!G16=\"\",\"\",'Autres sites'!G16)","v":""},{"$f":"IF('Autres sites'!H16=\"\",\"\",'Autres sites'!H16)","v":""},{"$f":"IF('Autres sites'!I16=\"\",\"\",'Autres sites'!I16)","v":""},{"$f":"IF('Autres sites'!J16=\"\",\"\",'Autres sites'!J16)","v":""},{"$f":"IF('Autres sites'!K16=\"\",\"\",'Autres sites'!K16)","v":""},{"$f":"IF('Autres sites'!L16=\"\",\"\",'Autres sites'!L16)","v":false}]
[null,null,null,null,null,null,0,{"$f":"IF('Autres sites'!B17=\"\",\"\",'Autres sites'!B17)","v":""},{"$f":"IF('Autres sites'!C17=\"\",\"\",'Autres sites'!C17)","v":""},{"$f":"IF('Autres sites'!D17=\"\",\"\",'Autres sites'!D17)","v":"Choisir…"},{"$f":"IF('Autres sites'!E17=\"\",\"\",'Autres sites'!E17)","v":""},{"$f":"IF('Autres sites'!F17=\"\",\"\",'Autres sites'!F17)","v":""},{"$f":"IF('Autres sites'!G17=\"\",\"\",'Autres sites'!G17)","v":""},{"$f":"IF('Autres sites'!H17=\"\",\"\",'Autres sites'!H17)","v":""},{"$f":"IF('Autres sites'!I17=\"\",\"\",'Autres sites'!I17)","v":""},{"$f":"IF('Autres sites'!J17=\"\",\"\",'Autres sites'!J17)","v":""},{"$f":"IF('Autres sites'!K17=\"\",\"\",'Autres sites'!K17)","v":""},{"$f":"IF('Autres sites'!L17=\"\",\"\",'Autres sites'!L17)","v":false}]
[null,null,null,null,null,null,0,{"$f":"IF('Autres sites'!B18=\"\",\"\",'Autres sites'!B18)","v":""},{"$f":"IF('Autres sites'!C18=\"\",\"\",'Autres sites'!C18)","v":""},{"$f":"IF('Autres sites'!D18=\"\",\"\",'Autres sites'!D18)","v":"Choisir…"},{"$f":"IF('Autres sites'!E18=\"\",\"\",'Autres sites'!E18)","v":""},{"$f":"IF('Autres sites'!F18=\"\",\"\",'Autres sites'!F18)","v":""},{"$f":"IF('Autres sites'!G18=\"\",\"\",'Autres sites'!G18)","v":""},{"$f":"IF('Autres sites'!H18=\"\",\"\",'Autres sites'!H18)","v":""},{"$f":"IF('Autres sites'!I18=\"\",\"\",'Autres sites'!I18)","v":""},{"$f":"IF('Autres sites'!J18=\"\",\"\",'Autres sites'!J18)","v":""},{"$f":"IF('Autres sites'!K18=\"\",\"\",'Autres sites'!K18)","v":""},{"$f":"IF('Autres sites'!L18=\"\",\"\",'Autres sites'!L18)","v":false}]
[null,null,null,null,null,null,0,{"$f":"IF('Autres sites'!B19=\"\",\"\",'Autres sites'!B19)","v":""},{"$f":"IF('Autres sites'!C19=\"\",\"\",'Autres sites'!C19)","v":""},{"$f":"IF('Autres sites'!D19=\"\",\"\",'Autres sites'!D19)","v":"Choisir…"},{"$f":"IF('Autres sites'!E19=\"\",\"\",'Autres sites'!E19)","v":""},{"$f":"IF('Autres sites'!F19=\"\",\"\",'Autres sites'!F19)","v":""},{"$f":"IF('Autres sites'!G19=\"\",\"\",'Autres sites'!G19)","v":""},{"$f":"IF('Autres sites'!H19=\"\",\"\",'Autres sites'!H19)","v":""},{"$f":"IF('Autres sites'!I19=\"\",\"\",'Autres sites'!I19)","v":""},{"$f":"IF('Autres sites'!J19=\"\",\"\",'Autres sites'!J19)","v":""},{"$f":"IF('Autres sites'!K19=\"\",\"\",'Autres sites'!K19)","v":""},{"$f":"IF('Autres sites'!L19=\"\",\"\",'Autres sites'!L19)","v":false}]
[null,null,null,null,null,null,0,{"$f":"IF('Autres sites'!B20=\"\",\"\",'Autres sites'!B20)","v":""},{"$f":"IF('Autres sites'!C20=\"\",\"\",'Autres sites'!C20)","v":""},{"$f":"IF('Autres sites'!D20=\"\",\"\",'Autres sites'!D20)","v":"Choisir…"},{"$f":"IF('Autres sites'!E20=\"\",\"\",'Autres sites'!E20)","v":""},{"$f":"IF('Autres sites'!F20=\"\",\"\",'Autres sites'!F20)","v":""},{"$f":"IF('Autres sites'!G20=\"\",\"\",'Autres sites'!G20)","v":""},{"$f":"IF('Autres sites'!H20=\"\",\"\",'Autres sites'!H20)","v":""},{"$f":"IF('Autres sites'!I20=\"\",\"\",'Autres sites'!I20)","v":""},{"$f":"IF('Autres sites'!J20=\"\",\"\",'Autres sites'!J20)","v":""},{"$f":"IF('Autres sites'!K20=\"\",\"\",'Autres sites'!K20)","v":""},{"$f":"IF('Autres sites'!L20=\"\",\"\",'Autres sites'!L20)","v":false}]
[null,null,null,null,null,null,0,{"$f":"IF('Autres sites'!B21=\"\",\"\",'Autres sites'!B21)","v":""},{"$f":"IF('Autres sites'!C21=\"\",\"\",'Autres sites'!C21)","v":""},{"$f":"IF('Autres sites'!D21=\"\",\"\",'Autres sites'!D21)","v":"Choisir…"},{"$f":"IF('Autres sites'!E21=\"\",\"\",'Autres sites'!E21)","v":""},{"$f":"IF('Autres sites'!F21=\"\",\"\",'Autres sites'!F21)","v":""},{"$f":"IF('Autres sites'!G21=\"\",\"\",'Autres sites'!G21)","v":""},{"$f":"IF('Autres sites'!H21=\"\",\"\",'Autres sites'!H21)","v":""},{"$f":"IF('Autres sites'!I21=\"\",\"\",'Autres sites'!I21)","v":""},{"$f":"IF('Autres sites'!J21=\"\",\"\",'Autres sites'!J21)","v":""},{"$f":"IF('Autres sites'!K21=\"\",\"\",'Autres sites'!K21)","v":""},{"$f":"IF('Autres sites'!L21=\"\",\"\",'Autres sites'!L21)","v":false}]
[null,null,null,null,null,null,0,{"$f":"IF('Autres sites'!B22=\"\",\"\",'Autres sites'!B22)","v":""},{"$f":"IF('Autres sites'!C22=\"\",\"\",'Autres sites'!C22)","v":""},{"$f":"IF('Autres sites'!D22=\"\",\"\",'Autres sites'!D22)","v":"Choisir…"},{"$f":"IF('Autres sites'!E22=\"\",\"\",'Autres sites'!E22)","v":""},{"$f":"IF('Autres sites'!F22=\"\",\"\",'Autres sites'!F22)","v":""},{"$f":"IF('Autres sites'!G22=\"\",\"\",'Autres sites'!G22)","v":""},{"$f":"IF('Autres sites'!H22=\"\",\"\",'Autres sites'!H22)","v":""},{"$f":"IF('Autres sites'!I22=\"\",\"\",'Autres sites'!I22)","v":""},{"$f":"IF('Autres sites'!J22=\"\",\"\",'Autres sites'!J22)","v":""},{"$f":"IF('Autres sites'!K22=\"\",\"\",'Autres sites'!K22)","v":""},{"$f":"IF('Autres sites'!L22=\"\",\"\",'Autres sites'!L22)","v":false}]
[null,null,null,null,null,null,0,{"$f":"IF('Autres sites'!B23=\"\",\"\",'Autres sites'!B23)","v":""},{"$f":"IF('Autres sites'!C23=\"\",\"\",'Autres sites'!C23)","v":""},{"$f":"IF('Autres sites'!D23=\"\",\"\",'Autres sites'!D23)","v":"Choisir…"},{"$f":"IF('Autres sites'!E23=\"\",\"\",'Autres sites'!E23)","v":""},{"$f":"IF('Autres sites'!F23=\"\",\"\",'Autres sites'!F23)","v":""},{"$f":"IF('Autres sites'!G23=\"\",\"\",'Autres sites'!G23)","v":""},{"$f":"IF('Autres sites'!H23=\"\",\"\",'Autres sites'!H23)","v":""},{"$f":"IF('Autres sites'!I23=\"\",\"\",'Autres sites'!I23)","v":""},{"$f":"IF('Autres sites'!J23=\"\",\"\",'Autres sites'!J23)","v":""},{"$f":"IF('Autres sites'!K23=\"\",\"\",'Autres sites'!K23)","v":""},{"$f":"IF('Autres sites'!L23=\"\",\"\",'Autres sites'!L23)","v":false}]
[null,null,null,null,null,null,0,{"$f":"IF('Autres sites'!B24=\"\",\"\",'Autres sites'!B24)","v":""},{"$f":"IF('Autres sites'!C24=\"\",\"\",'Autres sites'!C24)","v":""},{"$f":"IF('Autres sites'!D24=\"\",\"\",'Autres sites'!D24)","v":"Choisir…"},{"$f":"IF('Autres sites'!E24=\"\",\"\",'Autres sites'!E24)","v":""},{"$f":"IF('Autres sites'!F24=\"\",\"\",'Autres sites'!F24)","v":""},{"$f":"IF('Autres sites'!G24=\"\",\"\",'Autres sites'!G24)","v":""},{"$f":"IF('Autres sites'!H24=\"\",\"\",'Autres sites'!H24)","v":""},{"$f":"IF('Autres sites'!I24=\"\",\"\",'Autres sites'!I24)","v":""},{"$f":"IF('Autres sites'!J24=\"\",\"\",'Autres sites'!J24)","v":""},{"$f":"IF('Autres sites'!K24=\"\",\"\",'Autres sites'!K24)","v":""},{"$f":"IF('Autres sites'!L24=\"\",\"\",'Autres sites'!L24)","v":false}]
[null,null,null,null,null,null,0,{"$f":"IF('Autres sites'!B25=\"\",\"\",'Autres sites'!B25)","v":""},{"$f":"IF('Autres sites'!C25=\"\",\"\",'Autres sites'!C25)","v":""},{"$f":"IF('Autres sites'!D25=\"\",\"\",'Autres sites'!D25)","v":"Choisir…"},{"$f":"IF('Autres sites'!E25=\"\",\"\",'Autres sites'!E25)","v":""},{"$f":"IF('Autres sites'!F25=\"\",\"\",'Autres sites'!F25)","v":""},{"$f":"IF('Autres sites'!G25=\"\",\"\",'Autres sites'!G25)","v":""},{"$f":"IF('Autres sites'!H25=\"\",\"\",'Autres sites'!H25)","v":""},{"$f":"IF('Autres sites'!I25=\"\",\"\",'Autres sites'!I25)","v":""},{"$f":"IF('Autres sites'!J25=\"\",\"\",'Autres sites'!J25)","v":""},{"$f":"IF('Autres sites'!K25=\"\",\"\",'Autres sites'!K25)","v":""},{"$f":"IF('Autres sites'!L25=\"\",\"\",'Autres sites'!L25)","v":false}]
[null,null,null,null,null,null,0,{"$f":"IF('Autres sites'!B26=\"\",\"\",'Autres sites'!B26)","v":""},{"$f":"IF('Autres sites'!C26=\"\",\"\",'Autres sites'!C26)","v":""},{"$f":"IF('Autres sites'!D26=\"\",\"\",'Autres sites'!D26)","v":"Choisir…"},{"$f":"IF('Autres sites'!E26=\"\",\"\",'Autres sites'!E26)","v":""},{"$f":"IF('Autres sites'!F26=\"\",\"\",'Autres sites'!F26)","v":""},{"$f":"IF('Autres sites'!G26=\"\",\"\",'Autres sites'!G26)","v":""},{"$f":"IF('Autres sites'!H26=\"\",\"\",'Autres sites'!H26)","v":""},{"$f":"IF('Autres sites'!I26=\"\",\"\",'Autres sites'!I26)","v":""},{"$f":"IF('Autres sites'!J26=\"\",\"\",'Autres sites'!J26)","v":""},{"$f":"IF('Autres sites'!K26=\"\",\"\",'Autres sites'!K26)","v":""},{"$f":"IF('Autres sites'!L26=\"\",\"\",'Autres sites'!L26)","v":false}]
[null,null,null,null,null,null,0,{"$f":"IF('Autres sites'!B27=\"\",\"\",'Autres sites'!B27)","v":""},{"$f":"IF('Autres sites'!C27=\"\",\"\",'Autres sites'!C27)","v":""},{"$f":"IF('Autres sites'!D27=\"\",\"\",'Autres sites'!D27)","v":"Choisir…"},{"$f":"IF('Autres sites'!E27=\"\",\"\",'Autres sites'!E27)","v":""},{"$f":"IF('Autres sites'!F27=\"\",\"\",'Autres sites'!F27)","v":""},{"$f":"IF('Autres sites'!G27=\"\",\"\",'Autres sites'!G27)","v":""},{"$f":"IF('Autres sites'!H27=\"\",\"\",'Autres sites'!H27)","v":""},{"$f":"IF('Autres sites'!I27=\"\",\"\",'Autres sites'!I27)","v":""},{"$f":"IF('Autres sites'!J27=\"\",\"\",'Autres sites'!J27)","v":""},{"$f":"IF('Autres sites'!K27=\"\",\"\",'Autres sites'!K27)","v":""},{"$f":"IF('Autres sites'!L27=\"\",\"\",'Autres sites'!L27)","v":false}]
[null,null,null,null,null,null,0,{"$f":"IF('Autres sites'!B28=\"\",\"\",'Autres sites'!B28)","v":""},{"$f":"IF('Autres sites'!C28=\"\",\"\",'Autres sites'!C28)","v":""},{"$f":"IF('Autres sites'!D28=\"\",\"\",'Autres sites'!D28)","v":"Choisir…"},{"$f":"IF('Autres sites'!E28=\"\",\"\",'Autres sites'!E28)","v":""},{"$f":"IF('Autres sites'!F28=\"\",\"\",'Autres sites'!F28)","v":""},{"$f":"IF('Autres sites'!G28=\"\",\"\",'Autres sites'!G28)","v":""},{"$f":"IF('Autres sites'!H28=\"\",\"\",'Autres sites'!H28)","v":""},{"$f":"IF('Autres sites'!I28=\"\",\"\",'Autres sites'!I28)","v":""},{"$f":"IF('Autres sites'!J28=\"\",\"\",'Autres sites'!J28)","v":""},{"$f":"IF('Autres sites'!K28=\"\",\"\",'Autres sites'!K28)","v":""},{"$f":"IF('Autres sites'!L28=\"\",\"\",'Autres sites'!L28)","v":false}]
[null,null,null,null,null,null,0,{"$f":"IF('Autres sites'!B29=\"\",\"\",'Autres sites'!B29)","v":""},{"$f":"IF('Autres sites'!C29=\"\",\"\",'Autres sites'!C29)","v":""},{"$f":"IF('Autres sites'!D29=\"\",\"\",'Autres sites'!D29)","v":"Choisir…"},{"$f":"IF('Autres sites'!E29=\"\",\"\",'Autres sites'!E29)","v":""},{"$f":"IF('Autres sites'!F29=\"\",\"\",'Autres sites'!F29)","v":""},{"$f":"IF('Autres sites'!G29=\"\",\"\",'Autres sites'!G29)","v":""},{"$f":"IF('Autres sites'!H29=\"\",\"\",'Autres sites'!H29)","v":""},{"$f":"IF('Autres sites'!I29=\"\",\"\",'Autres sites'!I29)","v":""},{"$f":"IF('Autres sites'!J29=\"\",\"\",'Autres sites'!J29)","v":""},{"$f":"IF('Autres sites'!K29=\"\",\"\",'Autres sites'!K29)","v":""},{"$f":"IF('Autres sites'!L29=\"\",\"\",'Autres sites'!L29)","v":false}]
[null,null,null,null,null,null,0,{"$f":"IF('Autres sites'!B30=\"\",\"\",'Autres sites'!B30)","v":""},{"$f":"IF('Autres sites'!C30=\"\",\"\",'Autres sites'!C30)","v":""},{"$f":"IF('Autres sites'!D30=\"\",\"\",'Autres sites'!D30)","v":"Choisir…"},{"$f":"IF('Autres sites'!E30=\"\",\"\",'Autres sites'!E30)","v":""},{"$f":"IF('Autres sites'!F30=\"\",\"\",'Autres sites'!F30)","v":""},{"$f":"IF('Autres sites'!G30=\"\",\"\",'Autres sites'!G30)","v":""},{"$f":"IF('Autres sites'!H30=\"\",\"\",'Autres sites'!H30)","v":""},{"$f":"IF('Autres sites'!I30=\"\",\"\",'Autres sites'!I30)","v":""},{"$f":"IF('Autres sites'!J30=\"\",\"\",'Autres sites'!J30)","v":""},{"$f":"IF('Autres sites'!K30=\"\",\"\",'Autres sites'!K30)","v":""},{"$f":"IF('Autres sites'!L30=\"\",\"\",'Autres sites'!L30)","v":false}]
[null,null,null,null,null,null,0,{"$f":"IF('Autres sites'!B31=\"\",\"\",'Autres sites'!B31)","v":""},{"$f":"IF('Autres sites'!C31=\"\",\"\",'Autres sites'!C31)","v":""},{"$f":"IF('Autres sites'!D31=\"\",\"\",'Autres sites'!D31)","v":"Choisir…"},{"$f":"IF('Autres sites'!E31=\"\",\"\",'Autres sites'!E31)","v":""},{"$f":"IF('Autres sites'!F31=\"\",\"\",'Autres sites'!F31)","v":""},{"$f":"IF('Autres sites'!G31=\"\",\"\",'Autres sites'!G31)","v":""},{"$f":"IF('Autres sites'!H31=\"\",\"\",'Autres sites'!H31)","v":""},{"$f":"IF('Autres sites'!I31=\"\",\"\",'Autres sites'!I31)","v":""},{"$f":"IF('Autres sites'!J31=\"\",\"\",'Autres sites'!J31)","v":""},{"$f":"IF('Autres sites'!K31=\"\",\"\",'Autres sites'!K31)","v":""},{"$f":"IF('Autres sites'!L31=\"\",\"\",'Autres sites'!L31)","v":false}]
[null,null,null,null,null,null,0,{"$f":"IF('Autres sites'!B32=\"\",\"\",'Autres sites'!B32)","v":""},{"$f":"IF('Autres sites'!C32=\"\",\"\",'Autres sites'!C32)","v":""},{"$f":"IF('Autres sites'!D32=\"\",\"\",'Autres sites'!D32)","v":"Choisir…"},{"$f":"IF('Autres sites'!E32=\"\",\"\",'Autres sites'!E32)","v":""},{"$f":"IF('Autres sites'!F32=\"\",\"\",'Autres sites'!F32)","v":""},{"$f":"IF('Autres sites'!G32=\"\",\"\",'Autres sites'!G32)","v":""},{"$f":"IF('Autres sites'!H32=\"\",\"\",'Autres sites'!H32)","v":""},{"$f":"IF('Autres sites'!I32=\"\",\"\",'Autres sites'!I32)","v":""},{"$f":"IF('Autres sites'!J32=\"\",\"\",'Autres sites'!J32)","v":""},{"$f":"IF('Autres sites'!K32=\"\",\"\",'Autres sites'!K32)","v":""},{"$f":"IF('Autres sites'!L32=\"\",\"\",'Autres sites'!L32)","v":false}]
[null,null,null,null,null,null,0,{"$f":"IF('Autres sites'!B33=\"\",\"\",'Autres sites'!B33)","v":""},{"$f":"IF('Autres sites'!C33=\"\",\"\",'Autres sites'!C33)","v":""},{"$f":"IF('Autres sites'!D33=\"\",\"\",'Autres sites'!D33)","v":"Choisir…"},{"$f":"IF('Autres sites'!E33=\"\",\"\",'Autres sites'!E33)","v":""},{"$f":"IF('Autres sites'!F33=\"\",\"\",'Autres sites'!F33)","v":""},{"$f":"IF('Autres sites'!G33=\"\",\"\",'Autres sites'!G33)","v":""},{"$f":"IF('Autres sites'!H33=\"\",\"\",'Autres sites'!H33)","v":""},{"$f":"IF('Autres sites'!I33=\"\",\"\",'Autres sites'!I33)","v":""},{"$f":"IF('Autres sites'!J33=\"\",\"\",'Autres sites'!J33)","v":""},{"$f":"IF('Autres sites'!K33=\"\",\"\",'Autres sites'!K33)","v":""},{"$f":"IF('Autres sites'!L33=\"\",\"\",'Autres sites'!L33)","v":false}]
[null,null,null,null,null,null,0,{"$f":"IF('Autres sites'!B34=\"\",\"\",'Autres sites'!B34)","v":""},{"$f":"IF('Autres sites'!C34=\"\",\"\",'Autres sites'!C34)","v":""},{"$f":"IF('Autres sites'!D34=\"\",\"\",'Autres sites'!D34)","v":"Choisir…"},{"$f":"IF('Autres sites'!E34=\"\",\"\",'Autres sites'!E34)","v":""},{"$f":"IF('Autres sites'!F34=\"\",\"\",'Autres sites'!F34)","v":""},{"$f":"IF('Autres sites'!G34=\"\",\"\",'Autres sites'!G34)","v":""},{"$f":"IF('Autres sites'!H34=\"\",\"\",'Autres sites'!H34)","v":""},{"$f":"IF('Autres sites'!I34=\"\",\"\",'Autres sites'!I34)","v":""},{"$f":"IF('Autres sites'!J34=\"\",\"\",'Autres sites'!J34)","v":""},{"$f":"IF('Autres sites'!K34=\"\",\"\",'Autres sites'!K34)","v":""},{"$f":"IF('Autres sites'!L34=\"\",\"\",'Autres sites'!L34)","v":false}]
[null,null,null,null,null,null,0,{"$f":"IF('Autres sites'!B35=\"\",\"\",'Autres sites'!B35)","v":""},{"$f":"IF('Autres sites'!C35=\"\",\"\",'Autres sites'!C35)","v":""},{"$f":"IF('Autres sites'!D35=\"\",\"\",'Autres sites'!D35)","v":"Choisir…"},{"$f":"IF('Autres sites'!E35=\"\",\"\",'Autres sites'!E35)","v":""},{"$f":"IF('Autres sites'!F35=\"\",\"\",'Autres sites'!F35)","v":""},{"$f":"IF('Autres sites'!G35=\"\",\"\",'Autres sites'!G35)","v":""},{"$f":"IF('Autres sites'!H35=\"\",\"\",'Autres sites'!H35)","v":""},{"$f":"IF('Autres sites'!I35=\"\",\"\",'Autres sites'!I35)","v":""},{"$f":"IF('Autres sites'!J35=\"\",\"\",'Autres sites'!J35)","v":""},{"$f":"IF('Autres sites'!K35=\"\",\"\",'Autres sites'!K35)","v":""},{"$f":"IF('Autres sites'!L35=\"\",\"\",'Autres sites'!L35)","v":false}]
[null,null,null,null,null,null,0,{"$f":"IF('Autres sites'!B36=\"\",\"\",'Autres sites'!B36)","v":""},{"$f":"IF('Autres sites'!C36=\"\",\"\",'Autres sites'!C36)","v":""},{"$f":"IF('Autres sites'!D36=\"\",\"\",'Autres sites'!D36)","v":"Choisir…"},{"$f":"IF('Autres sites'!E36=\"\",\"\",'Autres sites'!E36)","v":""},{"$f":"IF('Autres sites'!F36=\"\",\"\",'Autres sites'!F36)","v":""},{"$f":"IF('Autres sites'!G36=\"\",\"\",'Autres sites'!G36)","v":""},{"$f":"IF('Autres sites'!H36=\"\",\"\",'Autres sites'!H36)","v":""},{"$f":"IF('Autres sites'!I36=\"\",\"\",'Autres sites'!I36)","v":""},{"$f":"IF('Autres sites'!J36=\"\",\"\",'Autres sites'!J36)","v":""},{"$f":"IF('Autres sites'!K36=\"\",\"\",'Autres sites'!K36)","v":""},{"$f":"IF('Autres sites'!L36=\"\",\"\",'Autres sites'!L36)","v":false}]
[null,null,null,null,null,null,0,{"$f":"IF('Autres sites'!B37=\"\",\"\",'Autres sites'!B37)","v":""},{"$f":"IF('Autres sites'!C37=\"\",\"\",'Autres sites'!C37)","v":""},{"$f":"IF('Autres sites'!D37=\"\",\"\",'Autres sites'!D37)","v":"Choisir…"},{"$f":"IF('Autres sites'!E37=\"\",\"\",'Autres sites'!E37)","v":""},{"$f":"IF('Autres sites'!F37=\"\",\"\",'Autres sites'!F37)","v":""},{"$f":"IF('Autres sites'!G37=\"\",\"\",'Autres sites'!G37)","v":""},{"$f":"IF('Autres sites'!H37=\"\",\"\",'Autres sites'!H37)","v":""},{"$f":"IF('Autres sites'!I37=\"\",\"\",'Autres sites'!I37)","v":""},{"$f":"IF('Autres sites'!J37=\"\",\"\",'Autres sites'!J37)","v":""},{"$f":"IF('Autres sites'!K37=\"\",\"\",'Autres sites'!K37)","v":""},{"$f":"IF('Autres sites'!L37=\"\",\"\",'Autres sites'!L37)","v":false}]
[null,null,null,null,null,null,0,{"$f":"IF('Autres sites'!B38=\"\",\"\",'Autres sites'!B38)","v":""},{"$f":"IF('Autres sites'!C38=\"\",\"\",'Autres sites'!C38)","v":""},{"$f":"IF('Autres sites'!D38=\"\",\"\",'Autres sites'!D38)","v":"Choisir…"},{"$f":"IF('Autres sites'!E38=\"\",\"\",'Autres sites'!E38)","v":""},{"$f":"IF('Autres sites'!F38=\"\",\"\",'Autres sites'!F38)","v":""},{"$f":"IF('Autres sites'!G38=\"\",\"\",'Autres sites'!G38)","v":""},{"$f":"IF('Autres sites'!H38=\"\",\"\",'Autres sites'!H38)","v":""},{"$f":"IF('Autres sites'!I38=\"\",\"\",'Autres sites'!I38)","v":""},{"$f":"IF('Autres sites'!J38=\"\",\"\",'Autres sites'!J38)","v":""},{"$f":"IF('Autres sites'!K38=\"\",\"\",'Autres sites'!K38)","v":""},{"$f":"IF('Autres sites'!L38=\"\",\"\",'Autres sites'!L38)","v":false}]
[null,null,null,null,null,null,0,{"$f":"IF('Autres sites'!B39=\"\",\"\",'Autres sites'!B39)","v":""},{"$f":"IF('Autres sites'!C39=\"\",\"\",'Autres sites'!C39)","v":""},{"$f":"IF('Autres sites'!D39=\"\",\"\",'Autres sites'!D39)","v":"Choisir…"},{"$f":"IF('Autres sites'!E39=\"\",\"\",'Autres sites'!E39)","v":""},{"$f":"IF('Autres sites'!F39=\"\",\"\",'Autres sites'!F39)","v":""},{"$f":"IF('Autres sites'!G39=\"\",\"\",'Autres sites'!G39)","v":""},{"$f":"IF('Autres sites'!H39=\"\",\"\",'Autres sites'!H39)","v":""},{"$f":"IF('Autres sites'!I39=\"\",\"\",'Autres sites'!I39)","v":""},{"$f":"IF('Autres sites'!J39=\"\",\"\",'Autres sites'!J39)","v":""},{"$f":"IF('Autres sites'!K39=\"\",\"\",'Autres sites'!K39)","v":""},{"$f":"IF('Autres sites'!L39=\"\",\"\",'Autres sites'!L39)","v":false}]
[null,null,null,null,null,null,0,{"$f":"IF('Autres sites'!B40=\"\",\"\",'Autres sites'!B40)","v":""},{"$f":"IF('Autres sites'!C40=\"\",\"\",'Autres sites'!C40)","v":""},{"$f":"IF('Autres sites'!D40=\"\",\"\",'Autres sites'!D40)","v":"Choisir…"},{"$f":"IF('Autres sites'!E40=\"\",\"\",'Autres sites'!E40)","v":""},{"$f":"IF('Autres sites'!F40=\"\",\"\",'Autres sites'!F40)","v":""},{"$f":"IF('Autres sites'!G40=\"\",\"\",'Autres sites'!G40)","v":""},{"$f":"IF('Autres sites'!H40=\"\",\"\",'Autres sites'!H40)","v":""},{"$f":"IF('Autres sites'!I40=\"\",\"\",'Autres sites'!I40)","v":""},{"$f":"IF('Autres sites'!J40=\"\",\"\",'Autres sites'!J40)","v":""},{"$f":"IF('Autres sites'!K40=\"\",\"\",'Autres sites'!K40)","v":""},{"$f":"IF('Autres sites'!L40=\"\",\"\",'Autres sites'!L40)","v":false}]
[null,null,null,null,null,null,0,{"$f":"IF('Autres sites'!B41=\"\",\"\",'Autres sites'!B41)","v":""},{"$f":"IF('Autres sites'!C41=\"\",\"\",'Autres sites'!C41)","v":""},{"$f":"IF('Autres sites'!D41=\"\",\"\",'Autres sites'!D41)","v":"Choisir…"},{"$f":"IF('Autres sites'!E41=\"\",\"\",'Autres sites'!E41)","v":""},{"$f":"IF('Autres sites'!F41=\"\",\"\",'Autres sites'!F41)","v":""},{"$f":"IF('Autres sites'!G41=\"\",\"\",'Autres sites'!G41)","v":""},{"$f":"IF('Autres sites'!H41=\"\",\"\",'Autres sites'!H41)","v":""},{"$f":"IF('Autres sites'!I41=\"\",\"\",'Autres sites'!I41)","v":""},{"$f":"IF('Autres sites'!J41=\"\",\"\",'Autres sites'!J41)","v":""},{"$f":"IF('Autres sites'!K41=\"\",\"\",'Autres sites'!K41)","v":""},{"$f":"IF('Autres sites'!L41=\"\",\"\",'Autres sites'!L41)","v":false},null,null,null,null,null,null,null,null,null,null,null,null,5]
[null,null,null,null,null,null,0,{"$f":"IF('Autres sites'!B42=\"\",\"\",'Autres sites'!B42)","v":""},{"$f":"IF('Autres sites'!C42=\"\",\"\",'Autres sites'!C42)","v":""},{"$f":"IF('Autres sites'!D42=\"\",\"\",'Autres sites'!D42)","v":"Choisir…"},{"$f":"IF('Autres sites'!E42=\"\",\"\",'Autres sites'!E42)","v":""},{"$f":"IF('Autres sites'!F42=\"\",\"\",'Autres sites'!F42)","v":""},{"$f":"IF('Autres sites'!G42=\"\",\"\",'Autres sites'!G42)","v":""},{"$f":"IF('Autres sites'!H42=\"\",\"\",'Autres sites'!H42)","v":""},{"$f":"IF('Autres sites'!I42=\"\",\"\",'Autres sites'!I42)","v":""},{"$f":"IF('Autres sites'!J42=\"\",\"\",'Autres sites'!J42)","v":""},{"$f":"IF('Autres sites'!K42=\"\",\"\",'Autres sites'!K42)","v":""},{"$f":"IF('Autres sites'!L42=\"\",\"\",'Autres sites'!L42)","v":false},null,null,null,null,null,null,null,null,null,null,null,null,0.25]
[null,null,null,null,null,null,0,{"$f":"IF('Autres sites'!B43=\"\",\"\",'Autres sites'!B43)","v":""},{"$f":"IF('Autres sites'!C43=\"\",\"\",'Autres sites'!C43)","v":""},{"$f":"IF('Autres sites'!D43=\"\",\"\",'Autres sites'!D43)","v":"Choisir…"},{"$f":"IF('Autres sites'!E43=\"\",\"\",'Autres sites'!E43)","v":""},{"$f":"IF('Autres sites'!F43=\"\",\"\",'Autres sites'!F43)","v":""},{"$f":"IF('Autres sites'!G43=\"\",\"\",'Autres sites'!G43)","v":""},{"$f":"IF('Autres sites'!H43=\"\",\"\",'Autres sites'!H43)","v":""},{"$f":"IF('Autres sites'!I43=\"\",\"\",'Autres sites'!I43)","v":""},{"$f":"IF('Autres sites'!J43=\"\",\"\",'Autres sites'!J43)","v":""},{"$f":"IF('Autres sites'!K43=\"\",\"\",'Autres sites'!K43)","v":""},{"$f":"IF('Autres sites'!L43=\"\",\"\",'Autres sites'!L43)","v":false},null,null,null,null,null,null,null,null,null,null,null,null,0.1]
[null,null,null,null,null,null,null,null,null,null,null,null,null,null,null,null,null,null,null,null,null,null,null,null,null,null,null,36403,"litre/an",null,0.55000000000000004,"taux participation",null,38.68,2789.7930000000001]
[]
[]
[]
[]
[]
[]
[]
[]
[]
[]
[]
[]
[]
[]
[]
[]
[]
[]
[]
[]
[]
[]
[]
[]
["No_Projet_Sagir_Abrev","Type_Depense","Cint","Cext","Ctot","CintProj","CextProj","CtotProj"]
[{"$f":"DQ$2","v":0},{"$f":"'1. Demande'!D166","v":"A. Acquisition équipement/matériel"},{"$f":"'1. Demande'!R166","v":0},{"$f":"'1. Demande'!V166","v":0},{"$f":"'1. Demande'!AA166","v":0},{"$f":"'1. Demande'!AE166","v":0},{"$f":"'1. Demande'!AJ166","v":0},{"$f":"'1. Demande'!AN166","v":0}]
[0,{"$f":"'1. Demande'!D167","v":"B. Acquisition/location de l'équipement de mesurage"},{"$f":"'1. Demande'!R167","v":0},{"$f":"'1. Demande'!V167","v":0},{"$f":"'1. Demande'!AA167","v":0},{"$f":"'1. Demande'!AE167","v":0},{"$f":"'1. Demande'!AJ167","v":0},{"$f":"'1. Demande'!AN167","v":0}]
[0,{"$f":"'1. Demande'!D168","v":"C. Mesurage, quantification et vérification"},{"$f":"'1. Demande'!R168","v":0},{"$f":"'1. Demande'!V168","v":0},{"$f":"'1. Demande'!AA168","v":0},{"$f":"'1. Demande'!AE168","v":0},{"$f":"'1. Demande'!AJ168","v":0},{"$f":"'1. Demande'!AN168","v":0}]
[0,{"$f":"'1. Demande'!D169","v":"D. Ingénierie ou services professionnels *"},{"$f":"'1. Demande'!R169","v":0},{"$f":"'1. Demande'!V169","v":0},{"$f":"'1. Demande'!AA169","v":0},{"$f":"'1. Demande'!AE169","v":0},{"$f":"'1. Demande'!AJ169","v":0},{"$f":"'1. Demande'!AN169","v":0}]
[0,{"$f":"'1. Demande'!D170","v":"E. Installation et mise en fonction"},{"$f":"'1. Demande'!R170","v":0},{"$f":"'1. Demande'!V170","v":0},{"$f":"'1. Demande'!AA170","v":0},{"$f":"'1. Demande'!AE170","v":0},{"$f":"'1. Demande'!AJ170","v":0},{"$f":"'1. Demande'!AN170","v":0}]
[0,{"$f":"'1. Demande'!D171","v":"F. Contingences"},{"$f":"'1. Demande'!R171","v":0},{"$f":"'1. Demande'!V171","v":0},{"$f":"'1. Demande'!AA171","v":0},{"$f":"'1. Demande'!AE171","v":0},{"$f":"'1. Demande'!AJ171","v":0},{"$f":"'1. Demande'!AN171","v":0}]

{"sheet":"EntenteType","index":6,"n_rows":74,"n_cols":4,"rows_kept":74,"cut":false,"hidden":true,"merged":[]}
[]
[null,"Entente type Base de référence Vf.docx"]
[]
[null,"https://burovirtuel.sharepoint.com/teams/TEQ-Exemplaritdeltat/Shared%20Documents/Projet%20EEGarantie/Base%20de%20r%C3%A9f%C3%A9rence/Entente%20type%20Base%20de%20r%C3%A9f%C3%A9rence%20Vf.docx?web=1"]
[]
[]
[null,"Champs Entente type","Formulaire, Data2","Formulaire, Data2"]
[null,null,"champs apparaît si identique","inscrire champs, si semblable, équivalent"]
[]
[]
[1,"No_COntrat",{"$f":"HLOOKUP(B11,Data2!Exportation,1,FALSE)","v":{"$error":"#N/A"}}]
[2,"REQUÉRANT",{"$f":"HLOOKUP(B12,Data2!Exportation,1,FALSE)","v":{"$error":"#N/A"}},"ORGreq"]
[3,"SignAdress",{"$f":"HLOOKUP(B13,Data2!Exportation,1,FALSE)","v":{"$error":"#N/A"}},"ORGAdr"]
[4,"SignVille",{"$f":"HLOOKUP(B14,Data2!Exportation,1,FALSE)","v":{"$error":"#N/A"}},"ORGVil"]
[5,"SignCP",{"$f":"HLOOKUP(B15,Data2!Exportation,1,FALSE)","v":"SignCP"},"ORGCP"]
[6,"Signom",{"$f":"HLOOKUP(B16,Data2!Exportation,1,FALSE)","v":{"$error":"#N/A"}},"SignNom"]
[7,"SignTitremin",{"$f":"HLOOKUP(B17,Data2!Exportation,1,FALSE)","v":{"$error":"#N/A"}},"SignFonc"]
[8,"Fem",{"$f":"HLOOKUP(B18,Data2!Exportation,1,FALSE)","v":{"$error":"#N/A"}}]
[9,"Fem2",{"$f":"HLOOKUP(B19,Data2!Exportation,1,FALSE)","v":{"$error":"#N/A"}}]
[10,"TEQnom",{"$f":"HLOOKUP(B20,Data2!Exportation,1,FALSE)","v":{"$error":"#N/A"}}]
[11,"TEQSignAutoTitreMin",{"$f":"HLOOKUP(B21,Data2!Exportation,1,FALSE)","v":{"$error":"#N/A"}}]
[12,"Date_DemandeTxt",{"$f":"HLOOKUP(B22,Data2!Exportation,1,FALSE)","v":{"$error":"#N/A"}}]
[13,"MOntantsub",{"$f":"HLOOKUP(B23,Data2!Exportation,1,FALSE)","v":{"$error":"#N/A"}}]
[14,"MOntantmax",{"$f":"HLOOKUP(B24,Data2!Exportation,1,FALSE)","v":{"$error":"#N/A"}}]
[15,"Montantadmtxt",{"$f":"HLOOKUP(B25,Data2!Exportation,1,FALSE)","v":{"$error":"#N/A"}}]
[16,"DAteVersionCN",{"$f":"HLOOKUP(B26,Data2!Exportation,1,FALSE)","v":{"$error":"#N/A"}}]
[17,"Paiement1",{"$f":"HLOOKUP(B27,Data2!Exportation,1,FALSE)","v":{"$error":"#N/A"}}]
[18,"Paiement2",{"$f":"HLOOKUP(B28,Data2!Exportation,1,FALSE)","v":{"$error":"#N/A"}}]
[19,"TEQSignAutoTitreAbrev",{"$f":"HLOOKUP(B29,Data2!Exportation,1,FALSE)","v":{"$error":"#N/A"}}]
[20,"TEQSignAuto",{"$f":"HLOOKUP(B30,Data2!Exportation,1,FALSE)","v":{"$error":"#N/A"}}]
[21,"TEQSignAutoTitreMin",{"$f":"HLOOKUP(B31,Data2!Exportation,1,FALSE)","v":{"$error":"#N/A"}}]
[22,"TEQSignAutoArt",{"$f":"HLOOKUP(B32,Data2!Exportation,1,FALSE)","v":{"$error":"#N/A"}}]
[23,"TEQSignAtrCi",{"$f":"HLOOKUP(B33,Data2!Exportation,1,FALSE)","v":{"$error":"#N/A"}}]
[24,"TEQChargAppelmin",{"$f":"HLOOKUP(B34,Data2!Exportation,1,FALSE)","v":{"$error":"#N/A"}}]
[25,"TEQChargPrenom",{"$f":"HLOOKUP(B35,Data2!Exportation,1,FALSE)","v":{"$error":"#N/A"}}]
[26,"TEQCHargNom",{"$f":"HLOOKUP(B36,Data2!Exportation,1,FALSE)","v":{"$error":"#N/A"}}]
[27,"TEQChargfem",{"$f":"HLOOKUP(B37,Data2!Exportation,1,FALSE)","v":{"$error":"#N/A"}}]
[28,"TEQCHargTitremin",{"$f":"HLOOKUP(B38,Data2!Exportation,1,FALSE)","v":{"$error":"#N/A"}}]
[29,"SignAppelmin",{"$f":"HLOOKUP(B39,Data2!Exportation,1,FALSE)","v":{"$error":"#N/A"}}]
[30,"SignPrénom",{"$f":"HLOOKUP(B40,Data2!Exportation,1,FALSE)","v":{"$error":"#N/A"}},"SignPrenom"]
[31,"Signnom",{"$f":"HLOOKUP(B41,Data2!Exportation,1,FALSE)","v":"SignNom"}]
[32,"SignTitremin",{"$f":"HLOOKUP(B42,Data2!Exportation,1,FALSE)","v":{"$error":"#N/A"}},"SignFonc"]
[33,"FEM3",{"$f":"HLOOKUP(B43,Data2!Exportation,1,FALSE)","v":{"$error":"#N/A"}}]
[34,"RepAppelmin",{"$f":"HLOOKUP(B44,Data2!Exportation,1,FALSE)","v":{"$error":"#N/A"}}]
[35,"Prénom",{"$f":"HLOOKUP(B45,Data2!Exportation,1,FALSE)","v":{"$error":"#N/A"}},"RepAdmPrenom"]
[36,"Nom",{"$f":"HLOOKUP(B46,Data2!Exportation,1,FALSE)","v":{"$error":"#N/A"}},"RepAdmNom"]
[37,"TitreRepmin",{"$f":"HLOOKUP(B47,Data2!Exportation,1,FALSE)","v":{"$error":"#N/A"}},"RepAdmFonc"]
[38,"TEQChargPrenom",{"$f":"HLOOKUP(B48,Data2!Exportation,1,FALSE)","v":{"$error":"#N/A"}}]
[39,"TEQCHargNom",{"$f":"HLOOKUP(B49,Data2!Exportation,1,FALSE)","v":{"$error":"#N/A"}}]
[40,"TEQCHargTitremin",{"$f":"HLOOKUP(B50,Data2!Exportation,1,FALSE)","v":{"$error":"#N/A"}}]
[41,"Extensioncharge",{"$f":"HLOOKUP(B51,Data2!Exportation,1,FALSE)","v":{"$error":"#N/A"}}]
[42,"CourrielCharg",{"$f":"HLOOKUP(B52,Data2!Exportation,1,FALSE)","v":{"$error":"#N/A"}}]
[43,"Appel_Appel",{"$f":"HLOOKUP(B53,Data2!Exportation,1,FALSE)","v":{"$error":"#N/A"}}]
[44,"Prénom",{"$f":"HLOOKUP(B54,Data2!Exportation,1,FALSE)","v":{"$error":"#N/A"}},"RepAdmPrenom"]
[45,"Nom",{"$f":"HLOOKUP(B55,Data2!Exportation,1,FALSE)","v":{"$error":"#N/A"}},"RepAdmNom"]
[46,"Titre",{"$f":"HLOOKUP(B56,Data2!Exportation,1,FALSE)","v":{"$error":"#N/A"}},"RepAdmFonc"]
[47,"Entreprise_Contact",{"$f":"HLOOKUP(B57,Data2!Exportation,1,FALSE)","v":{"$error":"#N/A"}},"RepAdmEnt"]
[48,"Adresse_Contact",{"$f":"HLOOKUP(B58,Data2!Exportation,1,FALSE)","v":{"$error":"#N/A"}},"RepAdmAdr"]
[49,"Ville_Contact",{"$f":"HLOOKUP(B59,Data2!Exportation,1,FALSE)","v":{"$error":"#N/A"}},"RepAdmVil"]
[50,"Province",{"$f":"HLOOKUP(B60,Data2!Exportation,1,FALSE)","v":{"$error":"#N/A"}}]
[51,"CP_Contact",{"$f":"HLOOKUP(B61,Data2!Exportation,1,FALSE)","v":{"$error":"#N/A"}},"RepAdmCP"]
[52,"Tel_Contact",{"$f":"HLOOKUP(B62,Data2!Exportation,1,FALSE)","v":{"$error":"#N/A"}},"RepAdmPhone"]
[53,"Poste_tel",{"$f":"HLOOKUP(B63,Data2!Exportation,1,FALSE)","v":{"$error":"#N/A"}},"RepAdmPoste"]
[54,"Fax_Contact",{"$f":"HLOOKUP(B64,Data2!Exportation,1,FALSE)","v":{"$error":"#N/A"}}]
[55,"Courriel_Contact",{"$f":"HLOOKUP(B65,Data2!Exportation,1,FALSE)","v":{"$error":"#N/A"}},"RepAdmEMail"]
[56,"DAtedebcontrattxt",{"$f":"HLOOKUP(B66,Data2!Exportation,1,FALSE)","v":{"$error":"#N/A"}}]
[57,"Datefinprojet",{"$f":"HLOOKUP(B67,Data2!Exportation,1,FALSE)","v":{"$error":"#N/A"}}]
[58,"Datefincontrattxt",{"$f":"HLOOKUP(B68,Data2!Exportation,1,FALSE)","v":{"$error":"#N/A"}}]
[59,"SignVille",{"$f":"HLOOKUP(B69,Data2!Exportation,1,FALSE)","v":{"$error":"#N/A"}},"SignVil"]
[60,"SignNom",{"$f":"HLOOKUP(B70,Data2!Exportation,1,FALSE)","v":"SignNom"}]
[61,"SignTitre",{"$f":"HLOOKUP(B71,Data2!Exportation,1,FALSE)","v":{"$error":"#N/A"}},"SignFonc"]
[62,"requerant",{"$f":"HLOOKUP(B72,Data2!Exportation,1,FALSE)","v":{"$error":"#N/A"}},"ORGreq"]
[63,"TEQSignAuto",{"$f":"HLOOKUP(B73,Data2!Exportation,1,FALSE)","v":{"$error":"#N/A"}}]
[64,"TEQSignAutoTitre",{"$f":"HLOOKUP(B74,Data2!Exportation,1,FALSE)","v":{"$error":"#N/A"}}]

{"sheet":"2. Plan d'implantation","index":7,"n_rows":58,"n_cols":44,"rows_kept":58,"cut":false,"hidden":true,"merged":[[7,27,7,31],[8,27,8,28],[11,4,13,4],[11,3,13,3],[12,9,13,9],[12,14,13,14],[12,13,13,13],[12,6,13,6],[11,22,11,23],[11,11,11,15],[11,30,13,30],[12,12,13,12],[11,24,13,24],[7,2,7,6],[8,2,8,3],[11,2,13,2],[10,28,10,31],[11,16,11,19],[11,31,13,31],[11,27,13,27],[11,29,13,29],[11,25,13,25],[11,28,13,28],[12,22,13,22],[11,20,11,21],[12,19,13,19],[12,20,13,20],[12,21,13,21],[11,26,13,26],[12,23,13,23],[12,15,13,15],[12,16,12,18],[12,11,13,11],[11,0,13,0],[11,1,13,1],[12,5,13,5],[12,8,13,8],[11,5,11,10],[12,7,13,7],[12,10,13,10]]}
[]
[]
[]
[]
["Plan d'implantation des mesures "]
[]
[]
[null,"Nom du requérant :",{"$f":"IF('1. Demande'!H11=\"\",\"\",'1. Demande'!H11)","v":""},null,null,null,null,null,null,null,null,null,null,null,null,null,null,null,null,null,null,null,null,null,null,null," Personne-ressource  :    ",{"$f":"CONCATENATE(IF('1. Demande'!M35=\"\",\"\",'1. Demande'!M35),\" \",IF('1. Demande'!AC35=\"\",\"\",'1. Demande'!AC35))","v":" "}]
[null,"Nº de l'entente : ",null,null,null,null,null,null,null,null,null,null,null,null,null,null,null,null,null,null,null,null,null,null,null,null,"Date du plan :    "]
[]
["Tableau sommaire du plan d'implantation",null,null,null,null,null,null,null,null,null,null,null,null,null,null,null,null,null,null,null,null,null,null,null,null,null,null,null,"Plan d'action et suivi par le requérant"]
["Mesure n° (1)","Description","Volet","Composante","Type\nd'émission","Consommation de référence",null,null,null,null,null,"Potentiel de réduction",null,null,null,null,"Investissement",null,null,null,"Aide potentielle\n(si applicable)",null,"PRI (4)",null,"Engagement \n(maximum 10 ans)(5)","Durée de vie","Recommandation (6)","Remarques","Action (7)","Année de réalisation prévue","Aide financière demandée au BEIE","Année de réalisation réelle"]
[null,null,null,null,null,"Forme d'énergie ou PRP (2)","Unité","Teneur\nHumidité\n%","Quantité/an","Quantité/unité de prod. (3)","Unité prod.","Quantité/an","Prix unitaire","$/an","GJ/an","GES (t/an)","Sans aide ($)",null,null,"Avec aide ($)","($)","Source de l'aide","Sans aide (an)","Avec aide (an)"]
[null,null,null,null,null,null,null,null,null,null,null,null,null,null,null,null,"Coûts\ninternes","Coûts\nexternes","Coûts\ntotaux"]
["No_Mesure","Description","Volet","Composante","Type_Emission","NRJ/PRP","UNITE","TH","QteRef","Cons_Spec","UNiteProd","QteProj","Coutunit","CoutNRJ","GJ","GES","Cint","Cext","Ctot","Iaa","S","Aideref","PRIsa","PRIaa","Engagement","Vie","Recommandation (6)","Remarques","Action (7)","Anprev","AidedemR","Anreel","Aidedem","Code_Volet","Code_composante","Type_Emisison","Code_NRJ/PRP","GesAmont","Code_Fin_Autre","Code_recom","Code_Action","GrandConsom","Secteur","No_Projet_Sagir_Abrev"]
[null,null,"Choisir…",null,"Choisir…",null,{"$f":"IF(F16=\"\",\"\",IF(OR($E16=\"choisir…\",$E16=\"Aucun\"),\"\",INDEX(OFFSET(INDIRECT($E16),,1),MATCH($F16,INDIRECT($E16),0))))","v":""},null,null,null,null,null,null,null,{"$f":"IF(L16=\"\",\"\",IF(OR(E16<>\"Énergie\",F16=\"\"),0,INDEX(OFFSET(INDIRECT($E16),,2),MATCH($F16,INDIRECT($E16),0)))*L16/1000*IF(AND(E16=\"Énergie\",F16<>\"\"),IF(AND(INDEX(OFFSET(Énergie,,8,,),MATCH(F16,Énergie,0))=1,H16<>\"\"),IF(H16=1,0,1-1.1676*H16),IF(AND(INDEX(OFFSET(Énergie,,8,,),MATCH(F16,Énergie,0))=2,H16<>\"\"),1-H16,1)),1))","v":""},{"$f":"IF(L16=\"\",\"\",IF(OR($E16=\"choisir…\",$E16=\"Aucun\",F16=\"\"),0,INDEX(OFFSET(INDIRECT(IF($E16=\"fugitive\",\"PRP\",E16)),,3),MATCH($F16,INDIRECT(IF($E16=\"fugitive\",\"PRP\",E16)),0)))*L16/1000000*IF($E16=\"fugitive\",1000,1)*IF(AND(E16=\"Énergie\",F16<>\"\"),IF(AND(INDEX(OFFSET(Énergie,,8,,),MATCH(F16,Énergie,0))=1,H16<>\"\"),IF(H16=1,0,1-1.1676*H16),IF(AND(INDEX(OFFSET(Énergie,,8,,),MATCH(F16,Énergie,0))=2,H16<>\"\"),1-H16,1)),1))","v":""},0,0,0,null,null,"Choisir…",null,null,null,null,"Choisir…",null,"Choisir…",null,"Non",null,{"$f":"INDEX(OFFSET(Aide_dem,,1,,),MATCH(AE16,Aide_dem,0))","v":false},{"$f":"IF(C16<>\"Choisir…\",INDEX(OFFSET(Volet,,-1,,),MATCH(C16,Volet,0)),\"\")","v":""},{"$f":"IF(D16<>\"\",INDEX(OFFSET(INDIRECT(C16),,-1,,),MATCH(D16,INDIRECT(C16),0)),\"\")","v":""},{"$f":"IF(E16<>\"Choisir…\",INDEX(OFFSET(Type_emission,,-1,,),MATCH(E16,Type_emission,0)),\"\")","v":""},{"$f":"IF(F16=\"\",\"\",INDEX(OFFSET(IF(E16=\"Énergie\",Énergie,IF(E16=\"Fugitive\",PRP,\"\")),,-1,,),MATCH(F16,IF(E16=\"Énergie\",Énergie,IF(E16=\"Fugitive\",PRP,\"\")),0)))","v":""},{"$f":"IF(AND(E16=\"Énergie\",F16<>\"\"),INDEX(OFFSET(Énergie,,22,,),MATCH(F16,Énergie,0)),0)*L16","v":0},{"$f":"IF(V16<>\"Choisir…\",INDEX(OFFSET(Fin_Autre,,-1,,),MATCH(V16,Fin_Autre,0)),\"\")","v":""},{"$f":"IF(AA16<>\"Choisir…\",INDEX(OFFSET(Recom,,-1,,),MATCH(AA16,Recom,0)),\"\")","v":""},{"$f":"IF(AC16<>\"Choisir…\",INDEX(OFFSET(Action,,-1,,),MATCH(AC16,Action,0)),\"\")","v":""},{"$f":"CHOOSE(AH16,FALSE,Data!DV$2,Data!DV$2,Data!DV$2,FALSE,FALSE,Data!DV$2)","v":{"$error":"#VALUE!"}},{"$f":"CHOOSE(AH16,\"Affaires\",IF(Data!DP$2=\"agricole\",\"Agricole\",\"Affaires\"),IF(Data!DP$2=\"Agricole\",\"Industriel\",Data!DP$2),IF(Data!DP$2=\"Agricole\",\"Industriel\",Data!DP$2),IF(Data!DP$2=\"Agricole\",\"Agricole\",\"Affaires\"),IF(Data!DP$2=\"Transport\",\"Transport\",\"Affaires\"),IF(Data!DP$2=\"Agricole\",\"Industriel\",Data!DP$2))","v":{"$error":"#VALUE!"}},{"$f":"IF(C16=\"Gestion\",\"1151000\",IF(AND(C16=\"Émissions_Fugitives\",D16=\"Optimisation réfrigération\"),\"1151210\",IF(AND(C16=\"Conversion\",D16=\"Bioénergies\"),\"1151240\",IF(AND(C16=\"Conversion\",D16=\"Solaires\"),\"1151202\",INDEX(OFFSET(Type_Entreprise,,2,,),MATCH('1. Demande'!AI$76,Type_Entreprise,0))))))","v":0}]
[null,null,"Choisir…",null,"Choisir…",null,"",null,null,null,null,null,null,null,"","",0,0,0,null,null,"Choisir…",null,null,null,null,"Choisir…",null,"Choisir…",null,"Non",null,false,{"$f":"IF(C17<>\"Choisir…\",INDEX(OFFSET(Volet,,-1,,),MATCH(C17,Volet,0)),\"\")","v":""},{"$f":"IF(D17<>\"\",INDEX(OFFSET(INDIRECT(C17),,-1,,),MATCH(D17,INDIRECT(C17),0)),\"\")","v":""},"","",0,"","","",{"$f":"CHOOSE(AH17,FALSE,Data!DV$2,Data!DV$2,Data!DV$2,FALSE,FALSE,Data!DV$2)","v":{"$error":"#VALUE!"}},{"$f":"CHOOSE(AH17,\"Affaires\",IF(Data!DP$2=\"agricole\",\"Agricole\",\"Affaires\"),IF(Data!DP$2=\"Agricole\",\"Industriel\",Data!DP$2),IF(Data!DP$2=\"Agricole\",\"Industriel\",Data!DP$2),IF(Data!DP$2=\"Agricole\",\"Agricole\",\"Affaires\"),IF(Data!DP$2=\"Transport\",\"Transport\",\"Affaires\"),IF(Data!DP$2=\"Agricole\",\"Industriel\",Data!DP$2))","v":{"$error":"#VALUE!"}},{"$f":"IF(C17=\"Gestion\",\"1151000\",IF(AND(C17=\"Émissions_Fugitives\",D17=\"Optimisation réfrigération\"),\"1151210\",IF(AND(C17=\"Conversion\",D17=\"Bioénergies\"),\"1151240\",IF(AND(C17=\"Conversion\",D17=\"Solaires\"),\"1151202\",INDEX(OFFSET(Type_Entreprise,,2,,),MATCH('1. Demande'!AI$76,Type_Entreprise,0))))))","v":0}]
[null,null,"Choisir…",null,"Choisir…",null,"",null,null,null,null,null,null,null,"","",0,0,0,null,null,"Choisir…",null,null,null,null,"Choisir…",null,"Choisir…",null,"Non",null,false,"","","","",0,"","","",{"$f":"CHOOSE(AH18,FALSE,Data!DV$2,Data!DV$2,Data!DV$2,FALSE,FALSE,Data!DV$2)","v":{"$error":"#VALUE!"}},{"$f":"CHOOSE(AH18,\"Affaires\",IF(Data!DP$2=\"agricole\",\"Agricole\",\"Affaires\"),IF(Data!DP$2=\"Agricole\",\"Industriel\",Data!DP$2),IF(Data!DP$2=\"Agricole\",\"Industriel\",Data!DP$2),IF(Data!DP$2=\"Agricole\",\"Agricole\",\"Affaires\"),IF(Data!DP$2=\"Transport\",\"Transport\",\"Affaires\"),IF(Data!DP$2=\"Agricole\",\"Industriel\",Data!DP$2))","v":{"$error":"#VALUE!"}},{"$f":"IF(C18=\"Gestion\",\"1151000\",IF(AND(C18=\"Émissions_Fugitives\",D18=\"Optimisation réfrigération\"),\"1151210\",IF(AND(C18=\"Conversion\",D18=\"Bioénergies\"),\"1151240\",IF(AND(C18=\"Conversion\",D18=\"Solaires\"),\"1151202\",INDEX(OFFSET(Type_Entreprise,,2,,),MATCH('1. Demande'!AI$76,Type_Entreprise,0))))))","v":0}]
[null,null,"Choisir…",null,"Choisir…",null,"",null,null,null,null,null,null,null,"","",0,0,0,null,null,"Choisir…",null,null,null,null,"Choisir…",null,"Choisir…",null,"Non",null,false,"","","","",0,"","","",{"$f":"CHOOSE(AH19,FALSE,Data!DV$2,Data!DV$2,Data!DV$2,FALSE,FALSE,Data!DV$2)","v":{"$error":"#VALUE!"}},{"$f":"CHOOSE(AH19,\"Affaires\",IF(Data!DP$2=\"agricole\",\"Agricole\",\"Affaires\"),IF(Data!DP$2=\"Agricole\",\"Industriel\",Data!DP$2),IF(Data!DP$2=\"Agricole\",\"Industriel\",Data!DP$2),IF(Data!DP$2=\"Agricole\",\"Agricole\",\"Affaires\"),IF(Data!DP$2=\"Transport\",\"Transport\",\"Affaires\"),IF(Data!DP$2=\"Agricole\",\"Industriel\",Data!DP$2))","v":{"$error":"#VALUE!"}},{"$f":"IF(C19=\"Gestion\",\"1151000\",IF(AND(C19=\"Émissions_Fugitives\",D19=\"Optimisation réfrigération\"),\"1151210\",IF(AND(C19=\"Conversion\",D19=\"Bioénergies\"),\"1151240\",IF(AND(C19=\"Conversion\",D19=\"Solaires\"),\"1151202\",INDEX(OFFSET(Type_Entreprise,,2,,),MATCH('1. Demande'!AI$76,Type_Entreprise,0))))))","v":0}]
[null,null,"Choisir…",null,"Choisir…",null,"",null,null,null,null,null,null,null,"","",0,0,0,null,null,"Choisir…",null,null,null,null,"Choisir…",null,"Choisir…",null,"Non",null,false,"","","","",0,"","","",{"$f":"CHOOSE(AH20,FALSE,Data!DV$2,Data!DV$2,Data!DV$2,FALSE,FALSE,Data!DV$2)","v":{"$error":"#VALUE!"}},{"$f":"CHOOSE(AH20,\"Affaires\",IF(Data!DP$2=\"agricole\",\"Agricole\",\"Affaires\"),IF(Data!DP$2=\"Agricole\",\"Industriel\",Data!DP$2),IF(Data!DP$2=\"Agricole\",\"Industriel\",Data!DP$2),IF(Data!DP$2=\"Agricole\",\"Agricole\",\"Affaires\"),IF(Data!DP$2=\"Transport\",\"Transport\",\"Affaires\"),IF(Data!DP$2=\"Agricole\",\"Industriel\",Data!DP$2))","v":{"$error":"#VALUE!"}},{"$f":"IF(C20=\"Gestion\",\"1151000\",IF(AND(C20=\"Émissions_Fugitives\",D20=\"Optimisation réfrigération\"),\"1151210\",IF(AND(C20=\"Conversion\",D20=\"Bioénergies\"),\"1151240\",IF(AND(C20=\"Conversion\",D20=\"Solaires\"),\"1151202\",INDEX(OFFSET(Type_Entreprise,,2,,),MATCH('1. Demande'!AI$76,Type_Entreprise,0))))))","v":0}]
[null,null,"Choisir…",null,"Choisir…",null,"",null,null,null,null,null,null,null,"","",0,0,0,null,null,"Choisir…",null,null,null,null,"Choisir…",null,"Choisir…",null,"Non",null,false,"","","","",0,"","","",{"$f":"CHOOSE(AH21,FALSE,Data!DV$2,Data!DV$2,Data!DV$2,FALSE,FALSE,Data!DV$2)","v":{"$error":"#VALUE!"}},{"$f":"CHOOSE(AH21,\"Affaires\",IF(Data!DP$2=\"agricole\",\"Agricole\",\"Affaires\"),IF(Data!DP$2=\"Agricole\",\"Industriel\",Data!DP$2),IF(Data!DP$2=\"Agricole\",\"Industriel\",Data!DP$2),IF(Data!DP$2=\"Agricole\",\"Agricole\",\"Affaires\"),IF(Data!DP$2=\"Transport\",\"Transport\",\"Affaires\"),IF(Data!DP$2=\"Agricole\",\"Industriel\",Data!DP$2))","v":{"$error":"#VALUE!"}},{"$f":"IF(C21=\"Gestion\",\"1151000\",IF(AND(C21=\"Émissions_Fugitives\",D21=\"Optimisation réfrigération\"),\"1151210\",IF(AND(C21=\"Conversion\",D21=\"Bioénergies\"),\"1151240\",IF(AND(C21=\"Conversion\",D21=\"Solaires\"),\"1151202\",INDEX(OFFSET(Type_Entreprise,,2,,),MATCH('1. Demande'!AI$76,Type_Entreprise,0))))))","v":0}]
[null,null,"Choisir…",null,"Choisir…",null,"",null,null,null,null,null,null,null,"","",0,0,0,null,null,"Choisir…",null,null,null,null,"Choisir…",null,"Choisir…",null,"Non",null,false,"","","","",0,"","","",{"$f":"CHOOSE(AH22,FALSE,Data!DV$2,Data!DV$2,Data!DV$2,FALSE,FALSE,Data!DV$2)","v":{"$error":"#VALUE!"}},{"$f":"CHOOSE(AH22,\"Affaires\",IF(Data!DP$2=\"agricole\",\"Agricole\",\"Affaires\"),IF(Data!DP$2=\"Agricole\",\"Industriel\",Data!DP$2),IF(Data!DP$2=\"Agricole\",\"Industriel\",Data!DP$2),IF(Data!DP$2=\"Agricole\",\"Agricole\",\"Affaires\"),IF(Data!DP$2=\"Transport\",\"Transport\",\"Affaires\"),IF(Data!DP$2=\"Agricole\",\"Industriel\",Data!DP$2))","v":{"$error":"#VALUE!"}},{"$f":"IF(C22=\"Gestion\",\"1151000\",IF(AND(C22=\"Émissions_Fugitives\",D22=\"Optimisation réfrigération\"),\"1151210\",IF(AND(C22=\"Conversion\",D22=\"Bioénergies\"),\"1151240\",IF(AND(C22=\"Conversion\",D22=\"Solaires\"),\"1151202\",INDEX(OFFSET(Type_Entreprise,,2,,),MATCH('1. Demande'!AI$76,Type_Entreprise,0))))))","v":0}]
[null,null,"Choisir…",null,"Choisir…",null,"",null,null,null,null,null,null,null,"","",0,0,0,null,null,"Choisir…",null,null,null,null,"Choisir…",null,"Choisir…",null,"Non",null,false,"","","","",0,"","","",{"$f":"CHOOSE(AH23,FALSE,Data!DV$2,Data!DV$2,Data!DV$2,FALSE,FALSE,Data!DV$2)","v":{"$error":"#VALUE!"}},{"$f":"CHOOSE(AH23,\"Affaires\",IF(Data!DP$2=\"agricole\",\"Agricole\",\"Affaires\"),IF(Data!DP$2=\"Agricole\",\"Industriel\",Data!DP$2),IF(Data!DP$2=\"Agricole\",\"Industriel\",Data!DP$2),IF(Data!DP$2=\"Agricole\",\"Agricole\",\"Affaires\"),IF(Data!DP$2=\"Transport\",\"Transport\",\"Affaires\"),IF(Data!DP$2=\"Agricole\",\"Industriel\",Data!DP$2))","v":{"$error":"#VALUE!"}},{"$f":"IF(C23=\"Gestion\",\"1151000\",IF(AND(C23=\"Émissions_Fugitives\",D23=\"Optimisation réfrigération\"),\"1151210\",IF(AND(C23=\"Conversion\",D23=\"Bioénergies\"),\"1151240\",IF(AND(C23=\"Conversion\",D23=\"Solaires\"),\"1151202\",INDEX(OFFSET(Type_Entreprise,,2,,),MATCH('1. Demande'!AI$76,Type_Entreprise,0))))))","v":0}]
[null,null,"Choisir…",null,"Choisir…",null,"",null,null,null,null,null,null,null,"","",0,0,0,null,null,"Choisir…",null,null,null,null,"Choisir…",null,"Choisir…",null,"Non",null,false,"","","","",0,"","","",{"$f":"CHOOSE(AH24,FALSE,Data!DV$2,Data!DV$2,Data!DV$2,FALSE,FALSE,Data!DV$2)","v":{"$error":"#VALUE!"}},{"$f":"CHOOSE(AH24,\"Affaires\",IF(Data!DP$2=\"agricole\",\"Agricole\",\"Affaires\"),IF(Data!DP$2=\"Agricole\",\"Industriel\",Data!DP$2),IF(Data!DP$2=\"Agricole\",\"Industriel\",Data!DP$2),IF(Data!DP$2=\"Agricole\",\"Agricole\",\"Affaires\"),IF(Data!DP$2=\"Transport\",\"Transport\",\"Affaires\"),IF(Data!DP$2=\"Agricole\",\"Industriel\",Data!DP$2))","v":{"$error":"#VALUE!"}},{"$f":"IF(C24=\"Gestion\",\"1151000\",IF(AND(C24=\"Émissions_Fugitives\",D24=\"Optimisation réfrigération\"),\"1151210\",IF(AND(C24=\"Conversion\",D24=\"Bioénergies\"),\"1151240\",IF(AND(C24=\"Conversion\",D24=\"Solaires\"),\"1151202\",INDEX(OFFSET(Type_Entreprise,,2,,),MATCH('1. Demande'!AI$76,Type_Entreprise,0))))))","v":0}]
[null,null,"Choisir…",null,"Choisir…",null,"",null,null,null,null,null,null,null,"","",0,0,0,null,null,"Choisir…",null,null,null,null,"Choisir…",null,"Choisir…",null,"Non",null,false,"","","","",0,"","","",{"$f":"CHOOSE(AH25,FALSE,Data!DV$2,Data!DV$2,Data!DV$2,FALSE,FALSE,Data!DV$2)","v":{"$error":"#VALUE!"}},{"$f":"CHOOSE(AH25,\"Affaires\",IF(Data!DP$2=\"agricole\",\"Agricole\",\"Affaires\"),IF(Data!DP$2=\"Agricole\",\"Industriel\",Data!DP$2),IF(Data!DP$2=\"Agricole\",\"Industriel\",Data!DP$2),IF(Data!DP$2=\"Agricole\",\"Agricole\",\"Affaires\"),IF(Data!DP$2=\"Transport\",\"Transport\",\"Affaires\"),IF(Data!DP$2=\"Agricole\",\"Industriel\",Data!DP$2))","v":{"$error":"#VALUE!"}},{"$f":"IF(C25=\"Gestion\",\"1151000\",IF(AND(C25=\"Émissions_Fugitives\",D25=\"Optimisation réfrigération\"),\"1151210\",IF(AND(C25=\"Conversion\",D25=\"Bioénergies\"),\"1151240\",IF(AND(C25=\"Conversion\",D25=\"Solaires\"),\"1151202\",INDEX(OFFSET(Type_Entreprise,,2,,),MATCH('1. Demande'!AI$76,Type_Entreprise,0))))))","v":0}]
[null,null,"Choisir…",null,"Choisir…",null,"",null,null,null,null,null,null,null,"","",0,0,0,null,null,"Choisir…",null,null,null,null,"Choisir…",null,"Choisir…",null,"Non",null,false,"","","","",0,"","","",{"$f":"CHOOSE(AH26,FALSE,Data!DV$2,Data!DV$2,Data!DV$2,FALSE,FALSE,Data!DV$2)","v":{"$error":"#VALUE!"}},{"$f":"CHOOSE(AH26,\"Affaires\",IF(Data!DP$2=\"agricole\",\"Agricole\",\"Affaires\"),IF(Data!DP$2=\"Agricole\",\"Industriel\",Data!DP$2),IF(Data!DP$2=\"Agricole\",\"Industriel\",Data!DP$2),IF(Data!DP$2=\"Agricole\",\"Agricole\",\"Affaires\"),IF(Data!DP$2=\"Transport\",\"Transport\",\"Affaires\"),IF(Data!DP$2=\"Agricole\",\"Industriel\",Data!DP$2))","v":{"$error":"#VALUE!"}},{"$f":"IF(C26=\"Gestion\",\"1151000\",IF(AND(C26=\"Émissions_Fugitives\",D26=\"Optimisation réfrigération\"),\"1151210\",IF(AND(C26=\"Conversion\",D26=\"Bioénergies\"),\"1151240\",IF(AND(C26=\"Conversion\",D26=\"Solaires\"),\"1151202\",INDEX(OFFSET(Type_Entreprise,,2,,),MATCH('1. Demande'!AI$76,Type_Entreprise,0))))))","v":0}]
[null,null,"Choisir…",null,"Choisir…",null,"",null,null,null,null,null,null,null,"","",0,0,0,null,null,"Choisir…",null,null,null,null,"Choisir…",null,"Choisir…",null,"Non",null,false,"","","","",0,"","","",{"$f":"CHOOSE(AH27,FALSE,Data!DV$2,Data!DV$2,Data!DV$2,FALSE,FALSE,Data!DV$2)","v":{"$error":"#VALUE!"}},{"$f":"CHOOSE(AH27,\"Affaires\",IF(Data!DP$2=\"agricole\",\"Agricole\",\"Affaires\"),IF(Data!DP$2=\"Agricole\",\"Industriel\",Data!DP$2),IF(Data!DP$2=\"Agricole\",\"Industriel\",Data!DP$2),IF(Data!DP$2=\"Agricole\",\"Agricole\",\"Affaires\"),IF(Data!DP$2=\"Transport\",\"Transport\",\"Affaires\"),IF(Data!DP$2=\"Agricole\",\"Industriel\",Data!DP$2))","v":{"$error":"#VALUE!"}},{"$f":"IF(C27=\"Gestion\",\"1151000\",IF(AND(C27=\"Émissions_Fugitives\",D27=\"Optimisation réfrigération\"),\"1151210\",IF(AND(C27=\"Conversion\",D27=\"Bioénergies\"),\"1151240\",IF(AND(C27=\"Conversion\",D27=\"Solaires\"),\"1151202\",INDEX(OFFSET(Type_Entreprise,,2,,),MATCH('1. Demande'!AI$76,Type_Entreprise,0))))))","v":0}]
[null,null,"Choisir…",null,"Choisir…",null,"",null,null,null,null,null,null,null,"","",0,0,0,null,null,"Choisir…",null,null,null,null,"Choisir…",null,"Choisir…",null,"Non",null,false,"","","","",0,"","","",{"$f":"CHOOSE(AH28,FALSE,Data!DV$2,Data!DV$2,Data!DV$2,FALSE,FALSE,Data!DV$2)","v":{"$error":"#VALUE!"}},{"$f":"CHOOSE(AH28,\"Affaires\",IF(Data!DP$2=\"agricole\",\"Agricole\",\"Affaires\"),IF(Data!DP$2=\"Agricole\",\"Industriel\",Data!DP$2),IF(Data!DP$2=\"Agricole\",\"Industriel\",Data!DP$2),IF(Data!DP$2=\"Agricole\",\"Agricole\",\"Affaires\"),IF(Data!DP$2=\"Transport\",\"Transport\",\"Affaires\"),IF(Data!DP$2=\"Agricole\",\"Industriel\",Data!DP$2))","v":{"$error":"#VALUE!"}},{"$f":"IF(C28=\"Gestion\",\"1151000\",IF(AND(C28=\"Émissions_Fugitives\",D28=\"Optimisation réfrigération\"),\"1151210\",IF(AND(C28=\"Conversion\",D28=\"Bioénergies\"),\"1151240\",IF(AND(C28=\"Conversion\",D28=\"Solaires\"),\"1151202\",INDEX(OFFSET(Type_Entreprise,,2,,),MATCH('1. Demande'!AI$76,Type_Entreprise,0))))))","v":0}]
[null,null,"Choisir…",null,"Choisir…",null,"",null,null,null,null,null,null,null,"","",0,0,0,null,null,"Choisir…",null,null,null,null,"Choisir…",null,"Choisir…",null,"Non",null,false,"","","","",0,"","","",{"$f":"CHOOSE(AH29,FALSE,Data!DV$2,Data!DV$2,Data!DV$2,FALSE,FALSE,Data!DV$2)","v":{"$error":"#VALUE!"}},{"$f":"CHOOSE(AH29,\"Affaires\",IF(Data!DP$2=\"agricole\",\"Agricole\",\"Affaires\"),IF(Data!DP$2=\"Agricole\",\"Industriel\",Data!DP$2),IF(Data!DP$2=\"Agricole\",\"Industriel\",Data!DP$2),IF(Data!DP$2=\"Agricole\",\"Agricole\",\"Affaires\"),IF(Data!DP$2=\"Transport\",\"Transport\",\"Affaires\"),IF(Data!DP$2=\"Agricole\",\"Industriel\",Data!DP$2))","v":{"$error":"#VALUE!"}},{"$f":"IF(C29=\"Gestion\",\"1151000\",IF(AND(C29=\"Émissions_Fugitives\",D29=\"Optimisation réfrigération\"),\"1151210\",IF(AND(C29=\"Conversion\",D29=\"Bioénergies\"),\"1151240\",IF(AND(C29=\"Conversion\",D29=\"Solaires\"),\"1151202\",INDEX(OFFSET(Type_Entreprise,,2,,),MATCH('1. Demande'!AI$76,Type_Entreprise,0))))))","v":0}]
[null,null,"Choisir…",null,"Choisir…",null,"",null,null,null,null,null,null,null,"","",0,0,0,null,null,"Choisir…",null,null,null,null,"Choisir…",null,"Choisir…",null,"Non",null,false,"","","","",0,"","","",{"$f":"CHOOSE(AH30,FALSE,Data!DV$2,Data!DV$2,Data!DV$2,FALSE,FALSE,Data!DV$2)","v":{"$error":"#VALUE!"}},{"$f":"CHOOSE(AH30,\"Affaires\",IF(Data!DP$2=\"agricole\",\"Agricole\",\"Affaires\"),IF(Data!DP$2=\"Agricole\",\"Industriel\",Data!DP$2),IF(Data!DP$2=\"Agricole\",\"Industriel\",Data!DP$2),IF(Data!DP$2=\"Agricole\",\"Agricole\",\"Affaires\"),IF(Data!DP$2=\"Transport\",\"Transport\",\"Affaires\"),IF(Data!DP$2=\"Agricole\",\"Industriel\",Data!DP$2))","v":{"$error":"#VALUE!"}},{"$f":"IF(C30=\"Gestion\",\"1151000\",IF(AND(C30=\"Émissions_Fugitives\",D30=\"Optimisation réfrigération\"),\"1151210\",IF(AND(C30=\"Conversion\",D30=\"Bioénergies\"),\"1151240\",IF(AND(C30=\"Conversion\",D30=\"Solaires\"),\"1151202\",INDEX(OFFSET(Type_Entreprise,,2,,),MATCH('1. Demande'!AI$76,Type_Entreprise,0))))))","v":0}]
[null,null,"Choisir…",null,"Choisir…",null,"",null,null,null,null,null,null,null,"","",0,0,0,null,null,"Choisir…",null,null,null,null,"Choisir…",null,"Choisir…",null,"Non",null,false,"","","","",0,"","","",{"$f":"CHOOSE(AH31,FALSE,Data!DV$2,Data!DV$2,Data!DV$2,FALSE,FALSE,Data!DV$2)","v":{"$error":"#VALUE!"}},{"$f":"CHOOSE(AH31,\"Affaires\",IF(Data!DP$2=\"agricole\",\"Agricole\",\"Affaires\"),IF(Data!DP$2=\"Agricole\",\"Industriel\",Data!DP$2),IF(Data!DP$2=\"Agricole\",\"Industriel\",Data!DP$2),IF(Data!DP$2=\"Agricole\",\"Agricole\",\"Affaires\"),IF(Data!DP$2=\"Transport\",\"Transport\",\"Affaires\"),IF(Data!DP$2=\"Agricole\",\"Industriel\",Data!DP$2))","v":{"$error":"#VALUE!"}},{"$f":"IF(C31=\"Gestion\",\"1151000\",IF(AND(C31=\"Émissions_Fugitives\",D31=\"Optimisation réfrigération\"),\"1151210\",IF(AND(C31=\"Conversion\",D31=\"Bioénergies\"),\"1151240\",IF(AND(C31=\"Conversion\",D31=\"Solaires\"),\"1151202\",INDEX(OFFSET(Type_Entreprise,,2,,),MATCH('1. Demande'!AI$76,Type_Entreprise,0))))))","v":0}]
[null,null,"Choisir…",null,"Choisir…",null,"",null,null,null,null,null,null,null,"","",0,0,0,null,null,"Choisir…",null,null,null,null,"Choisir…",null,"Choisir…",null,"Non",null,false,"","","","",0,"","","",{"$f":"CHOOSE(AH32,FALSE,Data!DV$2,Data!DV$2,Data!DV$2,FALSE,FALSE,Data!DV$2)","v":{"$error":"#VALUE!"}},{"$f":"CHOOSE(AH32,\"Affaires\",IF(Data!DP$2=\"agricole\",\"Agricole\",\"Affaires\"),IF(Data!DP$2=\"Agricole\",\"Industriel\",Data!DP$2),IF(Data!DP$2=\"Agricole\",\"Industriel\",Data!DP$2),IF(Data!DP$2=\"Agricole\",\"Agricole\",\"Affaires\"),IF(Data!DP$2=\"Transport\",\"Transport\",\"Affaires\"),IF(Data!DP$2=\"Agricole\",\"Industriel\",Data!DP$2))","v":{"$error":"#VALUE!"}},{"$f":"IF(C32=\"Gestion\",\"1151000\",IF(AND(C32=\"Émissions_Fugitives\",D32=\"Optimisation réfrigération\"),\"1151210\",IF(AND(C32=\"Conversion\",D32=\"Bioénergies\"),\"1151240\",IF(AND(C32=\"Conversion\",D32=\"Solaires\"),\"1151202\",INDEX(OFFSET(Type_Entreprise,,2,,),MATCH('1. Demande'!AI$76,Type_Entreprise,0))))))","v":0}]
[null,null,"Choisir…",null,"Choisir…",null,"",null,null,null,null,null,null,null,"","",0,0,0,null,null,"Choisir…",null,null,null,null,"Choisir…",null,"Choisir…",null,"Non",null,false,"","","","",0,"","","",{"$f":"CHOOSE(AH33,FALSE,Data!DV$2,Data!DV$2,Data!DV$2,FALSE,FALSE,Data!DV$2)","v":{"$error":"#VALUE!"}},{"$f":"CHOOSE(AH33,\"Affaires\",IF(Data!DP$2=\"agricole\",\"Agricole\",\"Affaires\"),IF(Data!DP$2=\"Agricole\",\"Industriel\",Data!DP$2),IF(Data!DP$2=\"Agricole\",\"Industriel\",Data!DP$2),IF(Data!DP$2=\"Agricole\",\"Agricole\",\"Affaires\"),IF(Data!DP$2=\"Transport\",\"Transport\",\"Affaires\"),IF(Data!DP$2=\"Agricole\",\"Industriel\",Data!DP$2))","v":{"$error":"#VALUE!"}},{"$f":"IF(C33=\"Gestion\",\"1151000\",IF(AND(C33=\"Émissions_Fugitives\",D33=\"Optimisation réfrigération\"),\"1151210\",IF(AND(C33=\"Conversion\",D33=\"Bioénergies\"),\"1151240\",IF(AND(C33=\"Conversion\",D33=\"Solaires\"),\"1151202\",INDEX(OFFSET(Type_Entreprise,,2,,),MATCH('1. Demande'!AI$76,Type_Entreprise,0))))))","v":0}]
[null,null,"Choisir…",null,"Choisir…",null,"",null,null,null,null,null,null,null,"","",0,0,0,null,null,"Choisir…",null,null,null,null,"Choisir…",null,"Choisir…",null,"Non",null,false,"","","","",0,"","","",{"$f":"CHOOSE(AH34,FALSE,Data!DV$2,Data!DV$2,Data!DV$2,FALSE,FALSE,Data!DV$2)","v":{"$error":"#VALUE!"}},{"$f":"CHOOSE(AH34,\"Affaires\",IF(Data!DP$2=\"agricole\",\"Agricole\",\"Affaires\"),IF(Data!DP$2=\"Agricole\",\"Industriel\",Data!DP$2),IF(Data!DP$2=\"Agricole\",\"Industriel\",Data!DP$2),IF(Data!DP$2=\"Agricole\",\"Agricole\",\"Affaires\"),IF(Data!DP$2=\"Transport\",\"Transport\",\"Affaires\"),IF(Data!DP$2=\"Agricole\",\"Industriel\",Data!DP$2))","v":{"$error":"#VALUE!"}},{"$f":"IF(C34=\"Gestion\",\"1151000\",IF(AND(C34=\"Émissions_Fugitives\",D34=\"Optimisation réfrigération\"),\"1151210\",IF(AND(C34=\"Conversion\",D34=\"Bioénergies\"),\"1151240\",IF(AND(C34=\"Conversion\",D34=\"Solaires\"),\"1151202\",INDEX(OFFSET(Type_Entreprise,,2,,),MATCH('1. Demande'!AI$76,Type_Entreprise,0))))))","v":0}]
[null,null,"Choisir…",null,"Choisir…",null,"",null,null,null,null,null,null,null,"","",0,0,0,null,null,"Choisir…",null,null,null,null,"Choisir…",null,"Choisir…",null,"Non",null,false,"","","","",0,"","","",{"$f":"CHOOSE(AH35,FALSE,Data!DV$2,Data!DV$2,Data!DV$2,FALSE,FALSE,Data!DV$2)","v":{"$error":"#VALUE!"}},{"$f":"CHOOSE(AH35,\"Affaires\",IF(Data!DP$2=\"agricole\",\"Agricole\",\"Affaires\"),IF(Data!DP$2=\"Agricole\",\"Industriel\",Data!DP$2),IF(Data!DP$2=\"Agricole\",\"Industriel\",Data!DP$2),IF(Data!DP$2=\"Agricole\",\"Agricole\",\"Affaires\"),IF(Data!DP$2=\"Transport\",\"Transport\",\"Affaires\"),IF(Data!DP$2=\"Agricole\",\"Industriel\",Data!DP$2))","v":{"$error":"#VALUE!"}},{"$f":"IF(C35=\"Gestion\",\"1151000\",IF(AND(C35=\"Émissions_Fugitives\",D35=\"Optimisation réfrigération\"),\"1151210\",IF(AND(C35=\"Conversion\",D35=\"Bioénergies\"),\"1151240\",IF(AND(C35=\"Conversion\",D35=\"Solaires\"),\"1151202\",INDEX(OFFSET(Type_Entreprise,,2,,),MATCH('1. Demande'!AI$76,Type_Entreprise,0))))))","v":0}]
[null,null,"Choisir…",null,"Choisir…",null,"",null,null,null,null,null,null,null,"","",0,0,0,null,null,"Choisir…",null,null,null,null,"Choisir…",null,"Choisir…",null,"Non",null,false,"","","","",0,"","","",{"$f":"CHOOSE(AH36,FALSE,Data!DV$2,Data!DV$2,Data!DV$2,FALSE,FALSE,Data!DV$2)","v":{"$error":"#VALUE!"}},{"$f":"CHOOSE(AH36,\"Affaires\",IF(Data!DP$2=\"agricole\",\"Agricole\",\"Affaires\"),IF(Data!DP$2=\"Agricole\",\"Industriel\",Data!DP$2),IF(Data!DP$2=\"Agricole\",\"Industriel\",Data!DP$2),IF(Data!DP$2=\"Agricole\",\"Agricole\",\"Affaires\"),IF(Data!DP$2=\"Transport\",\"Transport\",\"Affaires\"),IF(Data!DP$2=\"Agricole\",\"Industriel\",Data!DP$2))","v":{"$error":"#VALUE!"}},{"$f":"IF(C36=\"Gestion\",\"1151000\",IF(AND(C36=\"Émissions_Fugitives\",D36=\"Optimisation réfrigération\"),\"1151210\",IF(AND(C36=\"Conversion\",D36=\"Bioénergies\"),\"1151240\",IF(AND(C36=\"Conversion\",D36=\"Solaires\"),\"1151202\",INDEX(OFFSET(Type_Entreprise,,2,,),MATCH('1. Demande'!AI$76,Type_Entreprise,0))))))","v":0}]
[null,null,"Choisir…",null,"Choisir…",null,"",null,null,null,null,null,null,null,"","",0,0,0,null,null,"Choisir…",null,null,null,null,"Choisir…",null,"Choisir…",null,"Non",null,false,"","","","",0,"","","",{"$f":"CHOOSE(AH37,FALSE,Data!DV$2,Data!DV$2,Data!DV$2,FALSE,FALSE,Data!DV$2)","v":{"$error":"#VALUE!"}},{"$f":"CHOOSE(AH37,\"Affaires\",IF(Data!DP$2=\"agricole\",\"Agricole\",\"Affaires\"),IF(Data!DP$2=\"Agricole\",\"Industriel\",Data!DP$2),IF(Data!DP$2=\"Agricole\",\"Industriel\",Data!DP$2),IF(Data!DP$2=\"Agricole\",\"Agricole\",\"Affaires\"),IF(Data!DP$2=\"Transport\",\"Transport\",\"Affaires\"),IF(Data!DP$2=\"Agricole\",\"Industriel\",Data!DP$2))","v":{"$error":"#VALUE!"}},{"$f":"IF(C37=\"Gestion\",\"1151000\",IF(AND(C37=\"Émissions_Fugitives\",D37=\"Optimisation réfrigération\"),\"1151210\",IF(AND(C37=\"Conversion\",D37=\"Bioénergies\"),\"1151240\",IF(AND(C37=\"Conversion\",D37=\"Solaires\"),\"1151202\",INDEX(OFFSET(Type_Entreprise,,2,,),MATCH('1. Demande'!AI$76,Type_Entreprise,0))))))","v":0}]
[null,null,"Choisir…",null,"Choisir…",null,"",null,null,null,null,null,null,null,"","",0,0,0,null,null,"Choisir…",null,null,null,null,"Choisir…",null,"Choisir…",null,"Non",null,false,"","","","",0,"","","",{"$f":"CHOOSE(AH38,FALSE,Data!DV$2,Data!DV$2,Data!DV$2,FALSE,FALSE,Data!DV$2)","v":{"$error":"#VALUE!"}},{"$f":"CHOOSE(AH38,\"Affaires\",IF(Data!DP$2=\"agricole\",\"Agricole\",\"Affaires\"),IF(Data!DP$2=\"Agricole\",\"Industriel\",Data!DP$2),IF(Data!DP$2=\"Agricole\",\"Industriel\",Data!DP$2),IF(Data!DP$2=\"Agricole\",\"Agricole\",\"Affaires\"),IF(Data!DP$2=\"Transport\",\"Transport\",\"Affaires\"),IF(Data!DP$2=\"Agricole\",\"Industriel\",Data!DP$2))","v":{"$error":"#VALUE!"}},{"$f":"IF(C38=\"Gestion\",\"1151000\",IF(AND(C38=\"Émissions_Fugitives\",D38=\"Optimisation réfrigération\"),\"1151210\",IF(AND(C38=\"Conversion\",D38=\"Bioénergies\"),\"1151240\",IF(AND(C38=\"Conversion\",D38=\"Solaires\"),\"1151202\",INDEX(OFFSET(Type_Entreprise,,2,,),MATCH('1. Demande'!AI$76,Type_Entreprise,0))))))","v":0}]
[null,null,"Choisir…",null,"Choisir…",null,"",null,null,null,null,null,null,null,"","",0,0,0,null,null,"Choisir…",null,null,null,null,"Choisir…",null,"Choisir…",null,"Non",null,false,"","","","",0,"","","",{"$f":"CHOOSE(AH39,FALSE,Data!DV$2,Data!DV$2,Data!DV$2,FALSE,FALSE,Data!DV$2)","v":{"$error":"#VALUE!"}},{"$f":"CHOOSE(AH39,\"Affaires\",IF(Data!DP$2=\"agricole\",\"Agricole\",\"Affaires\"),IF(Data!DP$2=\"Agricole\",\"Industriel\",Data!DP$2),IF(Data!DP$2=\"Agricole\",\"Industriel\",Data!DP$2),IF(Data!DP$2=\"Agricole\",\"Agricole\",\"Affaires\"),IF(Data!DP$2=\"Transport\",\"Transport\",\"Affaires\"),IF(Data!DP$2=\"Agricole\",\"Industriel\",Data!DP$2))","v":{"$error":"#VALUE!"}},{"$f":"IF(C39=\"Gestion\",\"1151000\",IF(AND(C39=\"Émissions_Fugitives\",D39=\"Optimisation réfrigération\"),\"1151210\",IF(AND(C39=\"Conversion\",D39=\"Bioénergies\"),\"1151240\",IF(AND(C39=\"Conversion\",D39=\"Solaires\"),\"1151202\",INDEX(OFFSET(Type_Entreprise,,2,,),MATCH('1. Demande'!AI$76,Type_Entreprise,0))))))","v":0}]
[null,null,"Choisir…",null,"Choisir…",null,"",null,null,null,null,null,null,null,"","",0,0,0,null,null,"Choisir…",null,null,null,null,"Choisir…",null,"Choisir…",null,"Non",null,false,"","","","",0,"","","",{"$f":"CHOOSE(AH40,FALSE,Data!DV$2,Data!DV$2,Data!DV$2,FALSE,FALSE,Data!DV$2)","v":{"$error":"#VALUE!"}},{"$f":"CHOOSE(AH40,\"Affaires\",IF(Data!DP$2=\"agricole\",\"Agricole\",\"Affaires\"),IF(Data!DP$2=\"Agricole\",\"Industriel\",Data!DP$2),IF(Data!DP$2=\"Agricole\",\"Industriel\",Data!DP$2),IF(Data!DP$2=\"Agricole\",\"Agricole\",\"Affaires\"),IF(Data!DP$2=\"Transport\",\"Transport\",\"Affaires\"),IF(Data!DP$2=\"Agricole\",\"Industriel\",Data!DP$2))","v":{"$error":"#VALUE!"}},{"$f":"IF(C40=\"Gestion\",\"1151000\",IF(AND(C40=\"Émissions_Fugitives\",D40=\"Optimisation réfrigération\"),\"1151210\",IF(AND(C40=\"Conversion\",D40=\"Bioénergies\"),\"1151240\",IF(AND(C40=\"Conversion\",D40=\"Solaires\"),\"1151202\",INDEX(OFFSET(Type_Entreprise,,2,,),MATCH('1. Demande'!AI$76,Type_Entreprise,0))))))","v":0}]
[null,null,"Choisir…",null,"Choisir…",null,"",null,null,null,null,null,null,null,"","",0,0,0,null,null,"Choisir…",null,null,null,null,"Choisir…",null,"Choisir…",null,"Non",null,false,"","","","",0,"","","",{"$f":"CHOOSE(AH41,FALSE,Data!DV$2,Data!DV$2,Data!DV$2,FALSE,FALSE,Data!DV$2)","v":{"$error":"#VALUE!"}},{"$f":"CHOOSE(AH41,\"Affaires\",IF(Data!DP$2=\"agricole\",\"Agricole\",\"Affaires\"),IF(Data!DP$2=\"Agricole\",\"Industriel\",Data!DP$2),IF(Data!DP$2=\"Agricole\",\"Industriel\",Data!DP$2),IF(Data!DP$2=\"Agricole\",\"Agricole\",\"Affaires\"),IF(Data!DP$2=\"Transport\",\"Transport\",\"Affaires\"),IF(Data!DP$2=\"Agricole\",\"Industriel\",Data!DP$2))","v":{"$error":"#VALUE!"}},{"$f":"IF(C41=\"Gestion\",\"1151000\",IF(AND(C41=\"Émissions_Fugitives\",D41=\"Optimisation réfrigération\"),\"1151210\",IF(AND(C41=\"Conversion\",D41=\"Bioénergies\"),\"1151240\",IF(AND(C41=\"Conversion\",D41=\"Solaires\"),\"1151202\",INDEX(OFFSET(Type_Entreprise,,2,,),MATCH('1. Demande'!AI$76,Type_Entreprise,0))))))","v":0}]
[null,null,"Choisir…",null,"Choisir…",null,"",null,null,null,null,null,null,null,"","",0,0,0,null,null,"Choisir…",null,null,null,null,"Choisir…",null,"Choisir…",null,"Non",null,false,"","","","",0,"","","",{"$f":"CHOOSE(AH42,FALSE,Data!DV$2,Data!DV$2,Data!DV$2,FALSE,FALSE,Data!DV$2)","v":{"$error":"#VALUE!"}},{"$f":"CHOOSE(AH42,\"Affaires\",IF(Data!DP$2=\"agricole\",\"Agricole\",\"Affaires\"),IF(Data!DP$2=\"Agricole\",\"Industriel\",Data!DP$2),IF(Data!DP$2=\"Agricole\",\"Industriel\",Data!DP$2),IF(Data!DP$2=\"Agricole\",\"Agricole\",\"Affaires\"),IF(Data!DP$2=\"Transport\",\"Transport\",\"Affaires\"),IF(Data!DP$2=\"Agricole\",\"Industriel\",Data!DP$2))","v":{"$error":"#VALUE!"}},{"$f":"IF(C42=\"Gestion\",\"1151000\",IF(AND(C42=\"Émissions_Fugitives\",D42=\"Optimisation réfrigération\"),\"1151210\",IF(AND(C42=\"Conversion\",D42=\"Bioénergies\"),\"1151240\",IF(AND(C42=\"Conversion\",D42=\"Solaires\"),\"1151202\",INDEX(OFFSET(Type_Entreprise,,2,,),MATCH('1. Demande'!AI$76,Type_Entreprise,0))))))","v":0}]
[null,null,"Choisir…",null,"Choisir…",null,"",null,null,null,null,null,null,null,"","",0,0,0,null,null,"Choisir…",null,null,null,null,"Choisir…",null,"Choisir…",null,"Non",null,false,"","","","",0,"","","",{"$f":"CHOOSE(AH43,FALSE,Data!DV$2,Data!DV$2,Data!DV$2,FALSE,FALSE,Data!DV$2)","v":{"$error":"#VALUE!"}},{"$f":"CHOOSE(AH43,\"Affaires\",IF(Data!DP$2=\"agricole\",\"Agricole\",\"Affaires\"),IF(Data!DP$2=\"Agricole\",\"Industriel\",Data!DP$2),IF(Data!DP$2=\"Agricole\",\"Industriel\",Data!DP$2),IF(Data!DP$2=\"Agricole\",\"Agricole\",\"Affaires\"),IF(Data!DP$2=\"Transport\",\"Transport\",\"Affaires\"),IF(Data!DP$2=\"Agricole\",\"Industriel\",Data!DP$2))","v":{"$error":"#VALUE!"}},{"$f":"IF(C43=\"Gestion\",\"1151000\",IF(AND(C43=\"Émissions_Fugitives\",D43=\"Optimisation réfrigération\"),\"1151210\",IF(AND(C43=\"Conversion\",D43=\"Bioénergies\"),\"1151240\",IF(AND(C43=\"Conversion\",D43=\"Solaires\"),\"1151202\",INDEX(OFFSET(Type_Entreprise,,2,,),MATCH('1. Demande'!AI$76,Type_Entreprise,0))))))","v":0}]
[null,null,"Choisir…",null,"Choisir…",null,"",null,null,null,null,null,null,null,"","",0,0,0,null,null,"Choisir…",null,null,null,null,"Choisir…",null,"Choisir…",null,"Non",null,false,"","","","",0,"","","",{"$f":"CHOOSE(AH44,FALSE,Data!DV$2,Data!DV$2,Data!DV$2,FALSE,FALSE,Data!DV$2)","v":{"$error":"#VALUE!"}},{"$f":"CHOOSE(AH44,\"Affaires\",IF(Data!DP$2=\"agricole\",\"Agricole\",\"Affaires\"),IF(Data!DP$2=\"Agricole\",\"Industriel\",Data!DP$2),IF(Data!DP$2=\"Agricole\",\"Industriel\",Data!DP$2),IF(Data!DP$2=\"Agricole\",\"Agricole\",\"Affaires\"),IF(Data!DP$2=\"Transport\",\"Transport\",\"Affaires\"),IF(Data!DP$2=\"Agricole\",\"Industriel\",Data!DP$2))","v":{"$error":"#VALUE!"}},{"$f":"IF(C44=\"Gestion\",\"1151000\",IF(AND(C44=\"Émissions_Fugitives\",D44=\"Optimisation réfrigération\"),\"1151210\",IF(AND(C44=\"Conversion\",D44=\"Bioénergies\"),\"1151240\",IF(AND(C44=\"Conversion\",D44=\"Solaires\"),\"1151202\",INDEX(OFFSET(Type_Entreprise,,2,,),MATCH('1. Demande'!AI$76,Type_Entreprise,0))))))","v":0}]
[null,null,"Choisir…",null,"Choisir…",null,"",null,null,null,null,null,null,null,"","",0,0,0,null,null,"Choisir…",null,null,null,null,"Choisir…",null,"Choisir…",null,"Non",null,false,"","","","",0,"","","",{"$f":"CHOOSE(AH45,FALSE,Data!DV$2,Data!DV$2,Data!DV$2,FALSE,FALSE,Data!DV$2)","v":{"$error":"#VALUE!"}},{"$f":"CHOOSE(AH45,\"Affaires\",IF(Data!DP$2=\"agricole\",\"Agricole\",\"Affaires\"),IF(Data!DP$2=\"Agricole\",\"Industriel\",Data!DP$2),IF(Data!DP$2=\"Agricole\",\"Industriel\",Data!DP$2),IF(Data!DP$2=\"Agricole\",\"Agricole\",\"Affaires\"),IF(Data!DP$2=\"Transport\",\"Transport\",\"Affaires\"),IF(Data!DP$2=\"Agricole\",\"Industriel\",Data!DP$2))","v":{"$error":"#VALUE!"}},{"$f":"IF(C45=\"Gestion\",\"1151000\",IF(AND(C45=\"Émissions_Fugitives\",D45=\"Optimisation réfrigération\"),\"1151210\",IF(AND(C45=\"Conversion\",D45=\"Bioénergies\"),\"1151240\",IF(AND(C45=\"Conversion\",D45=\"Solaires\"),\"1151202\",INDEX(OFFSET(Type_Entreprise,,2,,),MATCH('1. Demande'!AI$76,Type_Entreprise,0))))))","v":0}]
[null,null,"Choisir…",null,"Choisir…",null,"",null,null,null,null,null,null,null,"","",0,0,0,null,null,"Choisir…",null,null,null,null,"Choisir…",null,"Choisir…",null,"Non",null,false,"","","","",0,"","","",{"$f":"CHOOSE(AH46,FALSE,Data!DV$2,Data!DV$2,Data!DV$2,FALSE,FALSE,Data!DV$2)","v":{"$error":"#VALUE!"}},{"$f":"CHOOSE(AH46,\"Affaires\",IF(Data!DP$2=\"agricole\",\"Agricole\",\"Affaires\"),IF(Data!DP$2=\"Agricole\",\"Industriel\",Data!DP$2),IF(Data!DP$2=\"Agricole\",\"Industriel\",Data!DP$2),IF(Data!DP$2=\"Agricole\",\"Agricole\",\"Affaires\"),IF(Data!DP$2=\"Transport\",\"Transport\",\"Affaires\"),IF(Data!DP$2=\"Agricole\",\"Industriel\",Data!DP$2))","v":{"$error":"#VALUE!"}},{"$f":"IF(C46=\"Gestion\",\"1151000\",IF(AND(C46=\"Émissions_Fugitives\",D46=\"Optimisation réfrigération\"),\"1151210\",IF(AND(C46=\"Conversion\",D46=\"Bioénergies\"),\"1151240\",IF(AND(C46=\"Conversion\",D46=\"Solaires\"),\"1151202\",INDEX(OFFSET(Type_Entreprise,,2,,),MATCH('1. Demande'!AI$76,Type_Entreprise,0))))))","v":0}]
[null,null,"Choisir…",null,"Choisir…",null,"",null,null,null,null,null,null,null,"","",0,0,0,null,null,"Choisir…",null,null,null,null,"Choisir…",null,"Choisir…",null,"Non",null,false,"","","","",0,"","","",{"$f":"CHOOSE(AH47,FALSE,Data!DV$2,Data!DV$2,Data!DV$2,FALSE,FALSE,Data!DV$2)","v":{"$error":"#VALUE!"}},{"$f":"CHOOSE(AH47,\"Affaires\",IF(Data!DP$2=\"agricole\",\"Agricole\",\"Affaires\"),IF(Data!DP$2=\"Agricole\",\"Industriel\",Data!DP$2),IF(Data!DP$2=\"Agricole\",\"Industriel\",Data!DP$2),IF(Data!DP$2=\"Agricole\",\"Agricole\",\"Affaires\"),IF(Data!DP$2=\"Transport\",\"Transport\",\"Affaires\"),IF(Data!DP$2=\"Agricole\",\"Industriel\",Data!DP$2))","v":{"$error":"#VALUE!"}},{"$f":"IF(C47=\"Gestion\",\"1151000\",IF(AND(C47=\"Émissions_Fugitives\",D47=\"Optimisation réfrigération\"),\"1151210\",IF(AND(C47=\"Conversion\",D47=\"Bioénergies\"),\"1151240\",IF(AND(C47=\"Conversion\",D47=\"Solaires\"),\"1151202\",INDEX(OFFSET(Type_Entreprise,,2,,),MATCH('1. Demande'!AI$76,Type_Entreprise,0))))))","v":0}]
[null,null,"Choisir…",null,"Choisir…",null,"",null,null,null,null,null,null,null,"","",0,0,0,null,null,"Choisir…",null,null,null,null,"Choisir…",null,"Choisir…",null,"Non",null,false,"","","","",0,"","","",{"$f":"CHOOSE(AH48,FALSE,Data!DV$2,Data!DV$2,Data!DV$2,FALSE,FALSE,Data!DV$2)","v":{"$error":"#VALUE!"}},{"$f":"CHOOSE(AH48,\"Affaires\",IF(Data!DP$2=\"agricole\",\"Agricole\",\"Affaires\"),IF(Data!DP$2=\"Agricole\",\"Industriel\",Data!DP$2),IF(Data!DP$2=\"Agricole\",\"Industriel\",Data!DP$2),IF(Data!DP$2=\"Agricole\",\"Agricole\",\"Affaires\"),IF(Data!DP$2=\"Transport\",\"Transport\",\"Affaires\"),IF(Data!DP$2=\"Agricole\",\"Industriel\",Data!DP$2))","v":{"$error":"#VALUE!"}},{"$f":"IF(C48=\"Gestion\",\"1151000\",IF(AND(C48=\"Émissions_Fugitives\",D48=\"Optimisation réfrigération\"),\"1151210\",IF(AND(C48=\"Conversion\",D48=\"Bioénergies\"),\"1151240\",IF(AND(C48=\"Conversion\",D48=\"Solaires\"),\"1151202\",INDEX(OFFSET(Type_Entreprise,,2,,),MATCH('1. Demande'!AI$76,Type_Entreprise,0))))))","v":0}]
[null,null,"Choisir…",null,"Choisir…",null,"",null,null,null,null,null,null,null,"","",0,0,0,null,null,"Choisir…",null,null,null,null,"Choisir…",null,"Choisir…",null,"Non",null,false,"","","","",0,"","","",{"$f":"CHOOSE(AH49,FALSE,Data!DV$2,Data!DV$2,Data!DV$2,FALSE,FALSE,Data!DV$2)","v":{"$error":"#VALUE!"}},{"$f":"CHOOSE(AH49,\"Affaires\",IF(Data!DP$2=\"agricole\",\"Agricole\",\"Affaires\"),IF(Data!DP$2=\"Agricole\",\"Industriel\",Data!DP$2),IF(Data!DP$2=\"Agricole\",\"Industriel\",Data!DP$2),IF(Data!DP$2=\"Agricole\",\"Agricole\",\"Affaires\"),IF(Data!DP$2=\"Transport\",\"Transport\",\"Affaires\"),IF(Data!DP$2=\"Agricole\",\"Industriel\",Data!DP$2))","v":{"$error":"#VALUE!"}},{"$f":"IF(C49=\"Gestion\",\"1151000\",IF(AND(C49=\"Émissions_Fugitives\",D49=\"Optimisation réfrigération\"),\"1151210\",IF(AND(C49=\"Conversion\",D49=\"Bioénergies\"),\"1151240\",IF(AND(C49=\"Conversion\",D49=\"Solaires\"),\"1151202\",INDEX(OFFSET(Type_Entreprise,,2,,),MATCH('1. Demande'!AI$76,Type_Entreprise,0))))))","v":0}]
[null,null,"Total",null,null,null,null,null,null,null,null,null,null,{"$f":"SUM(N16:N49)","v":0},0,0,0,0,0,0,0]
[]
["(1) Si, pour une même mesure, il y a des réductions ou des augmentations de la consommation énergétique ou que la mesure implique différentes  formes d'énergie, celles-ci doivent être présentées sur des lignes différentes.",null,null,null,null,null,null,null,null,null,null,null,null,null,null,null,null,"(6) Recommandation",null,null,null,"(7) Action",null,null,null,null,null,null,null,null,null,"    Voir le Guide détaillé du requérant pour plus de détails"]
["(2) Formes d'énergie et unités énergétiques :",null,null,null,null,null,null,null,null,null,null,null,null,null,null,null,null,"      I-Implanter",null,null,null,"     1- Implantée"]
["(3) Si applicable, spécifiez l'unité de production",null,null,null,null,null,null,null,null,null,null,null,null,null,null,null,null,"     N-Ne rien faire",null,null,null,"     2- En cours d'implantation"]
["(4) La PRI est définie comme étant le rapport : ",null,null,null,null,null,null,null,null,null,null,null,null,null,null,null,null,"     E-Étude supplémentaire requise",null,null,null,"     3- Dans la prochaine année"]
["      Coûts du projet/économies nettes liées à la consommation énergétique (différence entre réductions et augmentations)",null,null,null,null,null,null,null,null,null,null,null,null,null,null,null,null,null,null,null,null,"     4- D'ici deux ans"]
["      Se référer au Guide détaillé du requérant pour d'autres détails",null,null,null,null,null,null,null,null,null,null,null,null,null,null,null,null,null,null,null,null,"     5- Ne sera pas implantée"]
["(5) Pour le volet conversion seulement"]

{"sheet":"4. Résultats plan implantation","index":8,"n_rows":59,"n_cols":40,"rows_kept":59,"cut":false,"hidden":true,"merged":[[7,2,7,7],[11,24,13,24],[8,2,8,3],[12,5,13,5],[12,6,13,6],[11,4,13,4],[12,16,12,18],[11,29,11,30],[11,2,13,2],[11,3,13,3],[11,5,11,10],[12,8,13,8],[11,11,11,15],[12,12,13,12],[12,14,13,14],[12,21,13,21],[12,27,13,27],[7,26,7,30],[8,26,8,27],[12,23,13,23],[12,19,13,19],[12,20,13,20],[10,27,10,30],[11,26,13,26],[12,22,13,22],[11,16,11,19],[12,29,13,29],[12,30,13,30],[11,20,11,21],[11,22,11,23],[11,27,11,28],[12,28,13,28],[11,25,13,25],[11,0,13,0],[12,9,13,9],[12,15,13,15],[12,7,13,7],[11,1,13,1],[12,13,13,13],[12,10,13,10],[12,11,13,11]]}
[]
[]
[]
[]
[]
[]
[]
[null,"Nom du requérant :",{"$f":"IF('2. Plan d''implantation'!C8=\"\",\"\",'2. Plan d''implantation'!C8)","v":""},null,null,null,null,null,null,null,null,null,null,null,null,null,null,null,null,null,null,null,null,null,null," Personne-ressource  :    ",{"$f":"IF('2. Plan d''implantation'!AB8=\"\",\"\",'2. Plan d''implantation'!AB8)","v":" "}]
[null,"Nº de l'entente : ",{"$f":"IF('2. Plan d''implantation'!C9=\"\",\"\",'2. Plan d''implantation'!C9)","v":""},null,null,null,null,null,null,null,null,null,null,null,null,null,null,null,null,null,null,null,null,null,null,"Date du plan :    "]
[]
[null,null,"Tableau sommaire des résultats",null,null,null,null,null,null,null,null,null,null,null,null,null,null,null,null,null,null,null,null,null,null,null,null,"Plan d'action et suivi par le requérant",null,null,null,true,true]
["Mesure n° (1)","Description","Volet","Composante","Type\nd'émission","Consommation de référence",null,null,null,null,null,"Potentiel de réduction",null,null,null,null,"Investissement",null,null,null,"Aide potentielle\n(si applicable)",null,"PRI (4)",null,"Engagement \n(maximum 10 ans)(5)","Durée de vie","Remarques","Objectif du projet",null,"Écart par rapport à l'objectif (+/-)"]
[null,null,null,null,null,"Forme d'énergie ou PRP (2)","Unité","Teneur\nHumidité\n%","Quantité/an","Quantité/unité de prod. (3)","unité prod.","Quantité/an","Prix unitaire","$/an","GJ/an","GES (t/an)","Sans aide ($)",null,null,"Avec aide ($)","($)","Source de l'aide","Sans aide (an)","Avec aide (an)",null,null,null,"Quantité/an","GES (t)","Quantité/an","%"]
[null,null,null,null,null,null,null,null,null,null,null,null,null,null,null,null,"Coûts\ninternes","Coûts\nexternes","Coûts\ntotaux"]
["No_Mesure","Description","Volet","Composante","Type_Emission","NRJ/PRP","UNITE","TH","QteRef","Cons_Spec","UNiteProd","QteProj","Coutunit","CoutNRJ","GJ","GES","Cint","Cext","Ctot","Iaa","S","Aideref","PRIsa","PRIaa","Engagement","Vie","Remarques","QteObj","GESObj","EcartQteObj","PourcentEcartObj","Code_Volet","Code_composante","Type_Emisison","Code_NRJ/PRP","GesAmont","Code_Fin_Autre","GrandConsom","Secteur","No_Projet_Sagir_Abrev"]
[null,null,"Choisir…",null,"Choisir…",null,{"$f":"IF(F16=\"\",\"\",IF(OR($E16=\"choisir…\",$E16=\"Aucun\"),\"\",INDEX(OFFSET(INDIRECT($E16),,1),MATCH($F16,INDIRECT($E16),0))))","v":""},null,null,null,null,null,null,null,{"$f":"IF(L16=\"\",\"\",IF(OR(E16<>\"Énergie\",F16=\"\"),0,INDEX(OFFSET(INDIRECT($E16),,2),MATCH($F16,INDIRECT($E16),0)))*L16/1000*IF(AND(E16=\"Énergie\",F16<>\"\"),IF(AND(INDEX(OFFSET(Énergie,,8,,),MATCH(F16,Énergie,0))=1,H16<>\"\"),IF(H16=1,0,1-1.1676*H16),IF(AND(INDEX(OFFSET(Énergie,,8,,),MATCH(F16,Énergie,0))=2,H16<>\"\"),1-H16,1)),1))","v":""},{"$f":"IF(L16=\"\",\"\",IF(OR($E16=\"choisir…\",$E16=\"Aucun\",F16=\"\"),0,INDEX(OFFSET(INDIRECT(IF($E16=\"fugitive\",\"PRP\",E16)),,3),MATCH($F16,INDIRECT(IF($E16=\"fugitive\",\"PRP\",E16)),0)))*L16/1000000*IF($E16=\"Fugitive\",1000,1)*IF(AND(E16=\"Énergie\",F16<>\"\"),IF(AND(INDEX(OFFSET(Énergie,,8,,),MATCH(F16,Énergie,0))=1,H16<>\"\"),IF(H16=1,0,1-1.1676*H16),IF(AND(INDEX(OFFSET(Énergie,,8,,),MATCH(F16,Énergie,0))=2,H16<>\"\"),1-H16,1)),1))","v":""},0,0,0,null,null,"Choisir…",null,null,null,null,null,null,{"$f":"IF(AB16=\"\",\"\",IF(OR($E16=\"choisir…\",$E16=\"Aucun\"),0,INDEX(OFFSET(INDIRECT($E16),,3),MATCH($F16,INDIRECT($E16),0)))*AB16/1000000)","v":""},{"$f":"IF(AB16=\"\",\"\",L16-AB16)","v":""},{"$f":"IF(AB16=\"\",\"\",AD16/AB16)","v":""},{"$f":"IF(C16<>\"Choisir…\",INDEX(OFFSET(Volet,,-1,,),MATCH(C16,Volet,0)),\"\")","v":""},{"$f":"IF(C16<>\"Choisir…\",INDEX(OFFSET(INDIRECT(C16),,-1,,),MATCH(D16,INDIRECT(C16),0)),\"\")","v":""},{"$f":"IF(E16<>\"Choisir…\",INDEX(OFFSET(Type_emission,,-1,,),MATCH(E16,Type_emission,0)),\"\")","v":""},{"$f":"IF(F16=\"\",\"\",INDEX(OFFSET(IF(E16=\"Énergie\",Énergie,IF(E16=\"Fugitive\",PRP,\"\")),,-1,,),MATCH(F16,IF(E16=\"Énergie\",Énergie,IF(E16=\"Fugitive\",PRP,\"\")),0)))","v":""},{"$f":"IF(AND(E16=\"Énergie\",F16<>\"\"),INDEX(OFFSET(Énergie,,22,,),MATCH(F16,Énergie,0)),0)*L16","v":0},{"$f":"IF(V16<>\"Choisir…\",INDEX(OFFSET(Fin_Autre,,-1,,),MATCH(V16,Fin_Autre,0)),\"\")","v":""},{"$f":"CHOOSE(AF16,FALSE,Data!DV$2,IF(Data!DP$2=\"Transport\",FALSE,Data!DV$2),IF(Data!DP$2=\"Transport\",FALSE,Data!DV$2),FALSE,FALSE,Data!DV$2)","v":{"$error":"#VALUE!"}},{"$f":"CHOOSE(AF16,\"Affaires\",IF(Data!DP$2=\"agricole\",\"Agricole\",\"Affaires\"),IF(Data!DP$2=\"Agricole\",\"Industriel\",Data!DP$2),IF(Data!DP$2=\"Agricole\",\"Industriel\",Data!DP$2),IF(Data!DP$2=\"Agricole\",\"Agricole\",\"Affaires\"),IF(Data!DP$2=\"Transport\",\"Transport\",\"Affaires\"),IF(Data!DP$2=\"Agricole\",\"Industriel\",Data!DP$2))","v":{"$error":"#VALUE!"}},{"$f":"IF(C16=\"Innovation\",\"1159400\",IF(C16=\"Gestion\",\"1151000\",IF(C16=\"OPTER\",\"1151210\",IF(AND(C16=\"Connaissances\",D16=\"Écoconduite\"),\"1157170\",IF(AND(C16=\"Conversion\",D16=\"Bioénergies\"),\"1151240\",IF(AND(C16=\"Conversion\",D16=\"Solaires\"),\"1151202\",INDEX(OFFSET(Type_Entreprise,,2,,),MATCH('1. Demande'!AI$76,Type_Entreprise,0))))))))","v":0}]
[null,null,"Choisir…",null,"Choisir…",null,"",null,null,null,null,null,null,null,"","",0,0,0,null,null,"Choisir…",null,null,null,null,null,null,"",{"$f":"IF(AB17=\"\",\"\",AB17-L17)","v":""},{"$f":"IF(AB17=\"\",\"\",AD17/AB17)","v":""},"",{"$f":"IF(C17<>\"Choisir…\",INDEX(OFFSET(INDIRECT(C17),,-1,,),MATCH(D17,INDIRECT(C17),0)),\"\")","v":""},"","",0,"",{"$f":"CHOOSE(AF17,FALSE,Data!DV$2,IF(Data!DP$2=\"Transport\",FALSE,Data!DV$2),IF(Data!DP$2=\"Transport\",FALSE,Data!DV$2),FALSE,FALSE,Data!DV$2)","v":{"$error":"#VALUE!"}},{"$f":"CHOOSE(AF17,\"Affaires\",IF(Data!DP$2=\"agricole\",\"Agricole\",\"Affaires\"),IF(Data!DP$2=\"Agricole\",\"Industriel\",Data!DP$2),IF(Data!DP$2=\"Agricole\",\"Industriel\",Data!DP$2),IF(Data!DP$2=\"Agricole\",\"Agricole\",\"Affaires\"),IF(Data!DP$2=\"Transport\",\"Transport\",\"Affaires\"),IF(Data!DP$2=\"Agricole\",\"Industriel\",Data!DP$2))","v":{"$error":"#VALUE!"}},{"$f":"IF(C17=\"Innovation\",\"1159400\",IF(C17=\"Gestion\",\"1151000\",IF(C17=\"OPTER\",\"1151210\",IF(AND(C17=\"Connaissances\",D17=\"Écoconduite\"),\"1157170\",IF(AND(C17=\"Conversion\",D17=\"Bioénergies\"),\"1151240\",IF(AND(C17=\"Conversion\",D17=\"Solaires\"),\"1151202\",INDEX(OFFSET(Type_Entreprise,,2,,),MATCH('1. Demande'!AI$76,Type_Entreprise,0))))))))","v":0}]
[null,null,"Choisir…",null,"Choisir…",null,"",null,null,null,null,null,null,null,"","",0,0,0,null,null,"Choisir…",null,null,null,null,null,null,"","","","","","","",0,"",{"$f":"CHOOSE(AF18,FALSE,Data!DV$2,IF(Data!DP$2=\"Transport\",FALSE,Data!DV$2),IF(Data!DP$2=\"Transport\",FALSE,Data!DV$2),FALSE,FALSE,Data!DV$2)","v":{"$error":"#VALUE!"}},{"$f":"CHOOSE(AF18,\"Affaires\",IF(Data!DP$2=\"agricole\",\"Agricole\",\"Affaires\"),IF(Data!DP$2=\"Agricole\",\"Industriel\",Data!DP$2),IF(Data!DP$2=\"Agricole\",\"Industriel\",Data!DP$2),IF(Data!DP$2=\"Agricole\",\"Agricole\",\"Affaires\"),IF(Data!DP$2=\"Transport\",\"Transport\",\"Affaires\"),IF(Data!DP$2=\"Agricole\",\"Industriel\",Data!DP$2))","v":{"$error":"#VALUE!"}},{"$f":"IF(C18=\"Innovation\",\"1159400\",IF(C18=\"Gestion\",\"1151000\",IF(C18=\"OPTER\",\"1151210\",IF(AND(C18=\"Connaissances\",D18=\"Écoconduite\"),\"1157170\",IF(AND(C18=\"Conversion\",D18=\"Bioénergies\"),\"1151240\",IF(AND(C18=\"Conversion\",D18=\"Solaires\"),\"1151202\",INDEX(OFFSET(Type_Entreprise,,2,,),MATCH('1. Demande'!AI$76,Type_Entreprise,0))))))))","v":0}]
[null,null,"Choisir…",null,"Choisir…",null,"",null,null,null,null,null,null,null,"","",0,0,0,null,null,"Choisir…",null,null,null,null,null,null,"","","","","","","",0,"",{"$f":"CHOOSE(AF19,FALSE,Data!DV$2,IF(Data!DP$2=\"Transport\",FALSE,Data!DV$2),IF(Data!DP$2=\"Transport\",FALSE,Data!DV$2),FALSE,FALSE,Data!DV$2)","v":{"$error":"#VALUE!"}},{"$f":"CHOOSE(AF19,\"Affaires\",IF(Data!DP$2=\"agricole\",\"Agricole\",\"Affaires\"),IF(Data!DP$2=\"Agricole\",\"Industriel\",Data!DP$2),IF(Data!DP$2=\"Agricole\",\"Industriel\",Data!DP$2),IF(Data!DP$2=\"Agricole\",\"Agricole\",\"Affaires\"),IF(Data!DP$2=\"Transport\",\"Transport\",\"Affaires\"),IF(Data!DP$2=\"Agricole\",\"Industriel\",Data!DP$2))","v":{"$error":"#VALUE!"}},{"$f":"IF(C19=\"Innovation\",\"1159400\",IF(C19=\"Gestion\",\"1151000\",IF(C19=\"OPTER\",\"1151210\",IF(AND(C19=\"Connaissances\",D19=\"Écoconduite\"),\"1157170\",IF(AND(C19=\"Conversion\",D19=\"Bioénergies\"),\"1151240\",IF(AND(C19=\"Conversion\",D19=\"Solaires\"),\"1151202\",INDEX(OFFSET(Type_Entreprise,,2,,),MATCH('1. Demande'!AI$76,Type_Entreprise,0))))))))","v":0}]
[null,null,"Choisir…",null,"Choisir…",null,"",null,null,null,null,null,null,null,"","",0,0,0,null,null,"Choisir…",null,null,null,null,null,null,"","","","","","","",0,"",{"$f":"CHOOSE(AF20,FALSE,Data!DV$2,IF(Data!DP$2=\"Transport\",FALSE,Data!DV$2),IF(Data!DP$2=\"Transport\",FALSE,Data!DV$2),FALSE,FALSE,Data!DV$2)","v":{"$error":"#VALUE!"}},{"$f":"CHOOSE(AF20,\"Affaires\",IF(Data!DP$2=\"agricole\",\"Agricole\",\"Affaires\"),IF(Data!DP$2=\"Agricole\",\"Industriel\",Data!DP$2),IF(Data!DP$2=\"Agricole\",\"Industriel\",Data!DP$2),IF(Data!DP$2=\"Agricole\",\"Agricole\",\"Affaires\"),IF(Data!DP$2=\"Transport\",\"Transport\",\"Affaires\"),IF(Data!DP$2=\"Agricole\",\"Industriel\",Data!DP$2))","v":{"$error":"#VALUE!"}},{"$f":"IF(C20=\"Innovation\",\"1159400\",IF(C20=\"Gestion\",\"1151000\",IF(C20=\"OPTER\",\"1151210\",IF(AND(C20=\"Connaissances\",D20=\"Écoconduite\"),\"1157170\",IF(AND(C20=\"Conversion\",D20=\"Bioénergies\"),\"1151240\",IF(AND(C20=\"Conversion\",D20=\"Solaires\"),\"1151202\",INDEX(OFFSET(Type_Entreprise,,2,,),MATCH('1. Demande'!AI$76,Type_Entreprise,0))))))))","v":0}]
[null,null,"Choisir…",null,"Choisir…",null,"",null,null,null,null,null,null,null,"","",0,0,0,null,null,"Choisir…",null,null,null,null,null,null,"","","","","","","",0,"",{"$f":"CHOOSE(AF21,FALSE,Data!DV$2,IF(Data!DP$2=\"Transport\",FALSE,Data!DV$2),IF(Data!DP$2=\"Transport\",FALSE,Data!DV$2),FALSE,FALSE,Data!DV$2)","v":{"$error":"#VALUE!"}},{"$f":"CHOOSE(AF21,\"Affaires\",IF(Data!DP$2=\"agricole\",\"Agricole\",\"Affaires\"),IF(Data!DP$2=\"Agricole\",\"Industriel\",Data!DP$2),IF(Data!DP$2=\"Agricole\",\"Industriel\",Data!DP$2),IF(Data!DP$2=\"Agricole\",\"Agricole\",\"Affaires\"),IF(Data!DP$2=\"Transport\",\"Transport\",\"Affaires\"),IF(Data!DP$2=\"Agricole\",\"Industriel\",Data!DP$2))","v":{"$error":"#VALUE!"}},{"$f":"IF(C21=\"Innovation\",\"1159400\",IF(C21=\"Gestion\",\"1151000\",IF(C21=\"OPTER\",\"1151210\",IF(AND(C21=\"Connaissances\",D21=\"Écoconduite\"),\"1157170\",IF(AND(C21=\"Conversion\",D21=\"Bioénergies\"),\"1151240\",IF(AND(C21=\"Conversion\",D21=\"Solaires\"),\"1151202\",INDEX(OFFSET(Type_Entreprise,,2,,),MATCH('1. Demande'!AI$76,Type_Entreprise,0))))))))","v":0}]
[null,null,"Choisir…",null,"Choisir…",null,"",null,null,null,null,null,null,null,"","",0,0,0,null,null,"Choisir…",null,null,null,null,null,null,"","","","","","","",0,"",{"$f":"CHOOSE(AF22,FALSE,Data!DV$2,IF(Data!DP$2=\"Transport\",FALSE,Data!DV$2),IF(Data!DP$2=\"Transport\",FALSE,Data!DV$2),FALSE,FALSE,Data!DV$2)","v":{"$error":"#VALUE!"}},{"$f":"CHOOSE(AF22,\"Affaires\",IF(Data!DP$2=\"agricole\",\"Agricole\",\"Affaires\"),IF(Data!DP$2=\"Agricole\",\"Industriel\",Data!DP$2),IF(Data!DP$2=\"Agricole\",\"Industriel\",Data!DP$2),IF(Data!DP$2=\"Agricole\",\"Agricole\",\"Affaires\"),IF(Data!DP$2=\"Transport\",\"Transport\",\"Affaires\"),IF(Data!DP$2=\"Agricole\",\"Industriel\",Data!DP$2))","v":{"$error":"#VALUE!"}},{"$f":"IF(C22=\"Innovation\",\"1159400\",IF(C22=\"Gestion\",\"1151000\",IF(C22=\"OPTER\",\"1151210\",IF(AND(C22=\"Connaissances\",D22=\"Écoconduite\"),\"1157170\",IF(AND(C22=\"Conversion\",D22=\"Bioénergies\"),\"1151240\",IF(AND(C22=\"Conversion\",D22=\"Solaires\"),\"1151202\",INDEX(OFFSET(Type_Entreprise,,2,,),MATCH('1. Demande'!AI$76,Type_Entreprise,0))))))))","v":0}]
[null,null,"Choisir…",null,"Choisir…",null,"",null,null,null,null,null,null,null,"","",0,0,0,null,null,"Choisir…",null,null,null,null,null,null,"","","","","","","",0,"",{"$f":"CHOOSE(AF23,FALSE,Data!DV$2,IF(Data!DP$2=\"Transport\",FALSE,Data!DV$2),IF(Data!DP$2=\"Transport\",FALSE,Data!DV$2),FALSE,FALSE,Data!DV$2)","v":{"$error":"#VALUE!"}},{"$f":"CHOOSE(AF23,\"Affaires\",IF(Data!DP$2=\"agricole\",\"Agricole\",\"Affaires\"),IF(Data!DP$2=\"Agricole\",\"Industriel\",Data!DP$2),IF(Data!DP$2=\"Agricole\",\"Industriel\",Data!DP$2),IF(Data!DP$2=\"Agricole\",\"Agricole\",\"Affaires\"),IF(Data!DP$2=\"Transport\",\"Transport\",\"Affaires\"),IF(Data!DP$2=\"Agricole\",\"Industriel\",Data!DP$2))","v":{"$error":"#VALUE!"}},{"$f":"IF(C23=\"Innovation\",\"1159400\",IF(C23=\"Gestion\",\"1151000\",IF(C23=\"OPTER\",\"1151210\",IF(AND(C23=\"Connaissances\",D23=\"Écoconduite\"),\"1157170\",IF(AND(C23=\"Conversion\",D23=\"Bioénergies\"),\"1151240\",IF(AND(C23=\"Conversion\",D23=\"Solaires\"),\"1151202\",INDEX(OFFSET(Type_Entreprise,,2,,),MATCH('1. Demande'!AI$76,Type_Entreprise,0))))))))","v":0}]
[null,null,"Choisir…",null,"Choisir…",null,"",null,null,null,null,null,null,null,"","",0,0,0,null,null,"Choisir…",null,null,null,null,null,null,"","","","","","","",0,"",{"$f":"CHOOSE(AF24,FALSE,Data!DV$2,IF(Data!DP$2=\"Transport\",FALSE,Data!DV$2),IF(Data!DP$2=\"Transport\",FALSE,Data!DV$2),FALSE,FALSE,Data!DV$2)","v":{"$error":"#VALUE!"}},{"$f":"CHOOSE(AF24,\"Affaires\",IF(Data!DP$2=\"agricole\",\"Agricole\",\"Affaires\"),IF(Data!DP$2=\"Agricole\",\"Industriel\",Data!DP$2),IF(Data!DP$2=\"Agricole\",\"Industriel\",Data!DP$2),IF(Data!DP$2=\"Agricole\",\"Agricole\",\"Affaires\"),IF(Data!DP$2=\"Transport\",\"Transport\",\"Affaires\"),IF(Data!DP$2=\"Agricole\",\"Industriel\",Data!DP$2))","v":{"$error":"#VALUE!"}},{"$f":"IF(C24=\"Innovation\",\"1159400\",IF(C24=\"Gestion\",\"1151000\",IF(C24=\"OPTER\",\"1151210\",IF(AND(C24=\"Connaissances\",D24=\"Écoconduite\"),\"1157170\",IF(AND(C24=\"Conversion\",D24=\"Bioénergies\"),\"1151240\",IF(AND(C24=\"Conversion\",D24=\"Solaires\"),\"1151202\",INDEX(OFFSET(Type_Entreprise,,2,,),MATCH('1. Demande'!AI$76,Type_Entreprise,0))))))))","v":0}]
[null,null,"Choisir…",null,"Choisir…",null,"",null,null,null,null,null,null,null,"","",0,0,0,null,null,"Choisir…",null,null,null,null,null,null,"","","","","","","",0,"",{"$f":"CHOOSE(AF25,FALSE,Data!DV$2,IF(Data!DP$2=\"Transport\",FALSE,Data!DV$2),IF(Data!DP$2=\"Transport\",FALSE,Data!DV$2),FALSE,FALSE,Data!DV$2)","v":{"$error":"#VALUE!"}},{"$f":"CHOOSE(AF25,\"Affaires\",IF(Data!DP$2=\"agricole\",\"Agricole\",\"Affaires\"),IF(Data!DP$2=\"Agricole\",\"Industriel\",Data!DP$2),IF(Data!DP$2=\"Agricole\",\"Industriel\",Data!DP$2),IF(Data!DP$2=\"Agricole\",\"Agricole\",\"Affaires\"),IF(Data!DP$2=\"Transport\",\"Transport\",\"Affaires\"),IF(Data!DP$2=\"Agricole\",\"Industriel\",Data!DP$2))","v":{"$error":"#VALUE!"}},{"$f":"IF(C25=\"Innovation\",\"1159400\",IF(C25=\"Gestion\",\"1151000\",IF(C25=\"OPTER\",\"1151210\",IF(AND(C25=\"Connaissances\",D25=\"Écoconduite\"),\"1157170\",IF(AND(C25=\"Conversion\",D25=\"Bioénergies\"),\"1151240\",IF(AND(C25=\"Conversion\",D25=\"Solaires\"),\"1151202\",INDEX(OFFSET(Type_Entreprise,,2,,),MATCH('1. Demande'!AI$76,Type_Entreprise,0))))))))","v":0}]
[null,null,"Choisir…",null,"Choisir…",null,"",null,null,null,null,null,null,null,"","",0,0,0,null,null,"Choisir…",null,null,null,null,null,null,"","","","","","","",0,"",{"$f":"CHOOSE(AF26,FALSE,Data!DV$2,IF(Data!DP$2=\"Transport\",FALSE,Data!DV$2),IF(Data!DP$2=\"Transport\",FALSE,Data!DV$2),FALSE,FALSE,Data!DV$2)","v":{"$error":"#VALUE!"}},{"$f":"CHOOSE(AF26,\"Affaires\",IF(Data!DP$2=\"agricole\",\"Agricole\",\"Affaires\"),IF(Data!DP$2=\"Agricole\",\"Industriel\",Data!DP$2),IF(Data!DP$2=\"Agricole\",\"Industriel\",Data!DP$2),IF(Data!DP$2=\"Agricole\",\"Agricole\",\"Affaires\"),IF(Data!DP$2=\"Transport\",\"Transport\",\"Affaires\"),IF(Data!DP$2=\"Agricole\",\"Industriel\",Data!DP$2))","v":{"$error":"#VALUE!"}},{"$f":"IF(C26=\"Innovation\",\"1159400\",IF(C26=\"Gestion\",\"1151000\",IF(C26=\"OPTER\",\"1151210\",IF(AND(C26=\"Connaissances\",D26=\"Écoconduite\"),\"1157170\",IF(AND(C26=\"Conversion\",D26=\"Bioénergies\"),\"1151240\",IF(AND(C26=\"Conversion\",D26=\"Solaires\"),\"1151202\",INDEX(OFFSET(Type_Entreprise,,2,,),MATCH('1. Demande'!AI$76,Type_Entreprise,0))))))))","v":0}]
[null,null,"Choisir…",null,"Choisir…",null,"",null,null,null,null,null,null,null,"","",0,0,0,null,null,"Choisir…",null,null,null,null,null,null,"","","","","","","",0,"",{"$f":"CHOOSE(AF27,FALSE,Data!DV$2,IF(Data!DP$2=\"Transport\",FALSE,Data!DV$2),IF(Data!DP$2=\"Transport\",FALSE,Data!DV$2),FALSE,FALSE,Data!DV$2)","v":{"$error":"#VALUE!"}},{"$f":"CHOOSE(AF27,\"Affaires\",IF(Data!DP$2=\"agricole\",\"Agricole\",\"Affaires\"),IF(Data!DP$2=\"Agricole\",\"Industriel\",Data!DP$2),IF(Data!DP$2=\"Agricole\",\"Industriel\",Data!DP$2),IF(Data!DP$2=\"Agricole\",\"Agricole\",\"Affaires\"),IF(Data!DP$2=\"Transport\",\"Transport\",\"Affaires\"),IF(Data!DP$2=\"Agricole\",\"Industriel\",Data!DP$2))","v":{"$error":"#VALUE!"}},{"$f":"IF(C27=\"Innovation\",\"1159400\",IF(C27=\"Gestion\",\"1151000\",IF(C27=\"OPTER\",\"1151210\",IF(AND(C27=\"Connaissances\",D27=\"Écoconduite\"),\"1157170\",IF(AND(C27=\"Conversion\",D27=\"Bioénergies\"),\"1151240\",IF(AND(C27=\"Conversion\",D27=\"Solaires\"),\"1151202\",INDEX(OFFSET(Type_Entreprise,,2,,),MATCH('1. Demande'!AI$76,Type_Entreprise,0))))))))","v":0}]
[null,null,"Choisir…",null,"Choisir…",null,"",null,null,null,null,null,null,null,"","",0,0,0,null,null,"Choisir…",null,null,null,null,null,null,"","","","","","","",0,"",{"$f":"CHOOSE(AF28,FALSE,Data!DV$2,IF(Data!DP$2=\"Transport\",FALSE,Data!DV$2),IF(Data!DP$2=\"Transport\",FALSE,Data!DV$2),FALSE,FALSE,Data!DV$2)","v":{"$error":"#VALUE!"}},{"$f":"CHOOSE(AF28,\"Affaires\",IF(Data!DP$2=\"agricole\",\"Agricole\",\"Affaires\"),IF(Data!DP$2=\"Agricole\",\"Industriel\",Data!DP$2),IF(Data!DP$2=\"Agricole\",\"Industriel\",Data!DP$2),IF(Data!DP$2=\"Agricole\",\"Agricole\",\"Affaires\"),IF(Data!DP$2=\"Transport\",\"Transport\",\"Affaires\"),IF(Data!DP$2=\"Agricole\",\"Industriel\",Data!DP$2))","v":{"$error":"#VALUE!"}},{"$f":"IF(C28=\"Innovation\",\"1159400\",IF(C28=\"Gestion\",\"1151000\",IF(C28=\"OPTER\",\"1151210\",IF(AND(C28=\"Connaissances\",D28=\"Écoconduite\"),\"1157170\",IF(AND(C28=\"Conversion\",D28=\"Bioénergies\"),\"1151240\",IF(AND(C28=\"Conversion\",D28=\"Solaires\"),\"1151202\",INDEX(OFFSET(Type_Entreprise,,2,,),MATCH('1. Demande'!AI$76,Type_Entreprise,0))))))))","v":0}]
[null,null,"Choisir…",null,"Choisir…",null,"",null,null,null,null,null,null,null,"","",0,0,0,null,null,"Choisir…",null,null,null,null,null,null,"","","","","","","",0,"",{"$f":"CHOOSE(AF29,FALSE,Data!DV$2,IF(Data!DP$2=\"Transport\",FALSE,Data!DV$2),IF(Data!DP$2=\"Transport\",FALSE,Data!DV$2),FALSE,FALSE,Data!DV$2)","v":{"$error":"#VALUE!"}},{"$f":"CHOOSE(AF29,\"Affaires\",IF(Data!DP$2=\"agricole\",\"Agricole\",\"Affaires\"),IF(Data!DP$2=\"Agricole\",\"Industriel\",Data!DP$2),IF(Data!DP$2=\"Agricole\",\"Industriel\",Data!DP$2),IF(Data!DP$2=\"Agricole\",\"Agricole\",\"Affaires\"),IF(Data!DP$2=\"Transport\",\"Transport\",\"Affaires\"),IF(Data!DP$2=\"Agricole\",\"Industriel\",Data!DP$2))","v":{"$error":"#VALUE!"}},{"$f":"IF(C29=\"Innovation\",\"1159400\",IF(C29=\"Gestion\",\"1151000\",IF(C29=\"OPTER\",\"1151210\",IF(AND(C29=\"Connaissances\",D29=\"Écoconduite\"),\"1157170\",IF(AND(C29=\"Conversion\",D29=\"Bioénergies\"),\"1151240\",IF(AND(C29=\"Conversion\",D29=\"Solaires\"),\"1151202\",INDEX(OFFSET(Type_Entreprise,,2,,),MATCH('1. Demande'!AI$76,Type_Entreprise,0))))))))","v":0}]
[null,null,"Choisir…",null,"Choisir…",null,"",null,null,null,null,null,null,null,"","",0,0,0,null,null,"Choisir…",null,null,null,null,null,null,"","","","","","","",0,"",{"$f":"CHOOSE(AF30,FALSE,Data!DV$2,IF(Data!DP$2=\"Transport\",FALSE,Data!DV$2),IF(Data!DP$2=\"Transport\",FALSE,Data!DV$2),FALSE,FALSE,Data!DV$2)","v":{"$error":"#VALUE!"}},{"$f":"CHOOSE(AF30,\"Affaires\",IF(Data!DP$2=\"agricole\",\"Agricole\",\"Affaires\"),IF(Data!DP$2=\"Agricole\",\"Industriel\",Data!DP$2),IF(Data!DP$2=\"Agricole\",\"Industriel\",Data!DP$2),IF(Data!DP$2=\"Agricole\",\"Agricole\",\"Affaires\"),IF(Data!DP$2=\"Transport\",\"Transport\",\"Affaires\"),IF(Data!DP$2=\"Agricole\",\"Industriel\",Data!DP$2))","v":{"$error":"#VALUE!"}},{"$f":"IF(C30=\"Innovation\",\"1159400\",IF(C30=\"Gestion\",\"1151000\",IF(C30=\"OPTER\",\"1151210\",IF(AND(C30=\"Connaissances\",D30=\"Écoconduite\"),\"1157170\",IF(AND(C30=\"Conversion\",D30=\"Bioénergies\"),\"1151240\",IF(AND(C30=\"Conversion\",D30=\"Solaires\"),\"1151202\",INDEX(OFFSET(Type_Entreprise,,2,,),MATCH('1. Demande'!AI$76,Type_Entreprise,0))))))))","v":0}]
[null,null,"Choisir…",null,"Choisir…",null,"",null,null,null,null,null,null,null,"","",0,0,0,null,null,"Choisir…",null,null,null,null,null,null,"","","","","","","",0,"",{"$f":"CHOOSE(AF31,FALSE,Data!DV$2,IF(Data!DP$2=\"Transport\",FALSE,Data!DV$2),IF(Data!DP$2=\"Transport\",FALSE,Data!DV$2),FALSE,FALSE,Data!DV$2)","v":{"$error":"#VALUE!"}},{"$f":"CHOOSE(AF31,\"Affaires\",IF(Data!DP$2=\"agricole\",\"Agricole\",\"Affaires\"),IF(Data!DP$2=\"Agricole\",\"Industriel\",Data!DP$2),IF(Data!DP$2=\"Agricole\",\"Industriel\",Data!DP$2),IF(Data!DP$2=\"Agricole\",\"Agricole\",\"Affaires\"),IF(Data!DP$2=\"Transport\",\"Transport\",\"Affaires\"),IF(Data!DP$2=\"Agricole\",\"Industriel\",Data!DP$2))","v":{"$error":"#VALUE!"}},{"$f":"IF(C31=\"Innovation\",\"1159400\",IF(C31=\"Gestion\",\"1151000\",IF(C31=\"OPTER\",\"1151210\",IF(AND(C31=\"Connaissances\",D31=\"Écoconduite\"),\"1157170\",IF(AND(C31=\"Conversion\",D31=\"Bioénergies\"),\"1151240\",IF(AND(C31=\"Conversion\",D31=\"Solaires\"),\"1151202\",INDEX(OFFSET(Type_Entreprise,,2,,),MATCH('1. Demande'!AI$76,Type_Entreprise,0))))))))","v":0}]
[null,null,"Choisir…",null,"Choisir…",null,"",null,null,null,null,null,null,null,"","",0,0,0,null,null,"Choisir…",null,null,null,null,null,null,"","","","","","","",0,"",{"$f":"CHOOSE(AF32,FALSE,Data!DV$2,IF(Data!DP$2=\"Transport\",FALSE,Data!DV$2),IF(Data!DP$2=\"Transport\",FALSE,Data!DV$2),FALSE,FALSE,Data!DV$2)","v":{"$error":"#VALUE!"}},{"$f":"CHOOSE(AF32,\"Affaires\",IF(Data!DP$2=\"agricole\",\"Agricole\",\"Affaires\"),IF(Data!DP$2=\"Agricole\",\"Industriel\",Data!DP$2),IF(Data!DP$2=\"Agricole\",\"Industriel\",Data!DP$2),IF(Data!DP$2=\"Agricole\",\"Agricole\",\"Affaires\"),IF(Data!DP$2=\"Transport\",\"Transport\",\"Affaires\"),IF(Data!DP$2=\"Agricole\",\"Industriel\",Data!DP$2))","v":{"$error":"#VALUE!"}},{"$f":"IF(C32=\"Innovation\",\"1159400\",IF(C32=\"Gestion\",\"1151000\",IF(C32=\"OPTER\",\"1151210\",IF(AND(C32=\"Connaissances\",D32=\"Écoconduite\"),\"1157170\",IF(AND(C32=\"Conversion\",D32=\"Bioénergies\"),\"1151240\",IF(AND(C32=\"Conversion\",D32=\"Solaires\"),\"1151202\",INDEX(OFFSET(Type_Entreprise,,2,,),MATCH('1. Demande'!AI$76,Type_Entreprise,0))))))))","v":0}]
[null,null,"Choisir…",null,"Choisir…",null,"",null,null,null,null,null,null,null,"","",0,0,0,null,null,"Choisir…",null,null,null,null,null,null,"","","","","","","",0,"",{"$f":"CHOOSE(AF33,FALSE,Data!DV$2,IF(Data!DP$2=\"Transport\",FALSE,Data!DV$2),IF(Data!DP$2=\"Transport\",FALSE,Data!DV$2),FALSE,FALSE,Data!DV$2)","v":{"$error":"#VALUE!"}},{"$f":"CHOOSE(AF33,\"Affaires\",IF(Data!DP$2=\"agricole\",\"Agricole\",\"Affaires\"),IF(Data!DP$2=\"Agricole\",\"Industriel\",Data!DP$2),IF(Data!DP$2=\"Agricole\",\"Industriel\",Data!DP$2),IF(Data!DP$2=\"Agricole\",\"Agricole\",\"Affaires\"),IF(Data!DP$2=\"Transport\",\"Transport\",\"Affaires\"),IF(Data!DP$2=\"Agricole\",\"Industriel\",Data!DP$2))","v":{"$error":"#VALUE!"}},{"$f":"IF(C33=\"Innovation\",\"1159400\",IF(C33=\"Gestion\",\"1151000\",IF(C33=\"OPTER\",\"1151210\",IF(AND(C33=\"Connaissances\",D33=\"Écoconduite\"),\"1157170\",IF(AND(C33=\"Conversion\",D33=\"Bioénergies\"),\"1151240\",IF(AND(C33=\"Conversion\",D33=\"Solaires\"),\"1151202\",INDEX(OFFSET(Type_Entreprise,,2,,),MATCH('1. Demande'!AI$76,Type_Entreprise,0))))))))","v":0}]
[null,null,"Choisir…",null,"Choisir…",null,"",null,null,null,null,null,null,null,"","",0,0,0,null,null,"Choisir…",null,null,null,null,null,null,"","","","","","","",0,"",{"$f":"CHOOSE(AF34,FALSE,Data!DV$2,IF(Data!DP$2=\"Transport\",FALSE,Data!DV$2),IF(Data!DP$2=\"Transport\",FALSE,Data!DV$2),FALSE,FALSE,Data!DV$2)","v":{"$error":"#VALUE!"}},{"$f":"CHOOSE(AF34,\"Affaires\",IF(Data!DP$2=\"agricole\",\"Agricole\",\"Affaires\"),IF(Data!DP$2=\"Agricole\",\"Industriel\",Data!DP$2),IF(Data!DP$2=\"Agricole\",\"Industriel\",Data!DP$2),IF(Data!DP$2=\"Agricole\",\"Agricole\",\"Affaires\"),IF(Data!DP$2=\"Transport\",\"Transport\",\"Affaires\"),IF(Data!DP$2=\"Agricole\",\"Industriel\",Data!DP$2))","v":{"$error":"#VALUE!"}},{"$f":"IF(C34=\"Innovation\",\"1159400\",IF(C34=\"Gestion\",\"1151000\",IF(C34=\"OPTER\",\"1151210\",IF(AND(C34=\"Connaissances\",D34=\"Écoconduite\"),\"1157170\",IF(AND(C34=\"Conversion\",D34=\"Bioénergies\"),\"1151240\",IF(AND(C34=\"Conversion\",D34=\"Solaires\"),\"1151202\",INDEX(OFFSET(Type_Entreprise,,2,,),MATCH('1. Demande'!AI$76,Type_Entreprise,0))))))))","v":0}]
[null,null,"Choisir…",null,"Choisir…",null,"",null,null,null,null,null,null,null,"","",0,0,0,null,null,"Choisir…",null,null,null,null,null,null,"","","","","","","",0,"",{"$f":"CHOOSE(AF35,FALSE,Data!DV$2,IF(Data!DP$2=\"Transport\",FALSE,Data!DV$2),IF(Data!DP$2=\"Transport\",FALSE,Data!DV$2),FALSE,FALSE,Data!DV$2)","v":{"$error":"#VALUE!"}},{"$f":"CHOOSE(AF35,\"Affaires\",IF(Data!DP$2=\"agricole\",\"Agricole\",\"Affaires\"),IF(Data!DP$2=\"Agricole\",\"Industriel\",Data!DP$2),IF(Data!DP$2=\"Agricole\",\"Industriel\",Data!DP$2),IF(Data!DP$2=\"Agricole\",\"Agricole\",\"Affaires\"),IF(Data!DP$2=\"Transport\",\"Transport\",\"Affaires\"),IF(Data!DP$2=\"Agricole\",\"Industriel\",Data!DP$2))","v":{"$error":"#VALUE!"}},{"$f":"IF(C35=\"Innovation\",\"1159400\",IF(C35=\"Gestion\",\"1151000\",IF(C35=\"OPTER\",\"1151210\",IF(AND(C35=\"Connaissances\",D35=\"Écoconduite\"),\"1157170\",IF(AND(C35=\"Conversion\",D35=\"Bioénergies\"),\"1151240\",IF(AND(C35=\"Conversion\",D35=\"Solaires\"),\"1151202\",INDEX(OFFSET(Type_Entreprise,,2,,),MATCH('1. Demande'!AI$76,Type_Entreprise,0))))))))","v":0}]
[null,null,"Choisir…",null,"Choisir…",null,"",null,null,null,null,null,null,null,"","",0,0,0,null,null,"Choisir…",null,null,null,null,null,null,"","","","","","","",0,"",{"$f":"CHOOSE(AF36,FALSE,Data!DV$2,IF(Data!DP$2=\"Transport\",FALSE,Data!DV$2),IF(Data!DP$2=\"Transport\",FALSE,Data!DV$2),FALSE,FALSE,Data!DV$2)","v":{"$error":"#VALUE!"}},{"$f":"CHOOSE(AF36,\"Affaires\",IF(Data!DP$2=\"agricole\",\"Agricole\",\"Affaires\"),IF(Data!DP$2=\"Agricole\",\"Industriel\",Data!DP$2),IF(Data!DP$2=\"Agricole\",\"Industriel\",Data!DP$2),IF(Data!DP$2=\"Agricole\",\"Agricole\",\"Affaires\"),IF(Data!DP$2=\"Transport\",\"Transport\",\"Affaires\"),IF(Data!DP$2=\"Agricole\",\"Industriel\",Data!DP$2))","v":{"$error":"#VALUE!"}},{"$f":"IF(C36=\"Innovation\",\"1159400\",IF(C36=\"Gestion\",\"1151000\",IF(C36=\"OPTER\",\"1151210\",IF(AND(C36=\"Connaissances\",D36=\"Écoconduite\"),\"1157170\",IF(AND(C36=\"Conversion\",D36=\"Bioénergies\"),\"1151240\",IF(AND(C36=\"Conversion\",D36=\"Solaires\"),\"1151202\",INDEX(OFFSET(Type_Entreprise,,2,,),MATCH('1. Demande'!AI$76,Type_Entreprise,0))))))))","v":0}]
[null,null,"Choisir…",null,"Choisir…",null,"",null,null,null,null,null,null,null,"","",0,0,0,null,null,"Choisir…",null,null,null,null,null,null,"","","","","","","",0,"",{"$f":"CHOOSE(AF37,FALSE,Data!DV$2,IF(Data!DP$2=\"Transport\",FALSE,Data!DV$2),IF(Data!DP$2=\"Transport\",FALSE,Data!DV$2),FALSE,FALSE,Data!DV$2)","v":{"$error":"#VALUE!"}},{"$f":"CHOOSE(AF37,\"Affaires\",IF(Data!DP$2=\"agricole\",\"Agricole\",\"Affaires\"),IF(Data!DP$2=\"Agricole\",\"Industriel\",Data!DP$2),IF(Data!DP$2=\"Agricole\",\"Industriel\",Data!DP$2),IF(Data!DP$2=\"Agricole\",\"Agricole\",\"Affaires\"),IF(Data!DP$2=\"Transport\",\"Transport\",\"Affaires\"),IF(Data!DP$2=\"Agricole\",\"Industriel\",Data!DP$2))","v":{"$error":"#VALUE!"}},{"$f":"IF(C37=\"Innovation\",\"1159400\",IF(C37=\"Gestion\",\"1151000\",IF(C37=\"OPTER\",\"1151210\",IF(AND(C37=\"Connaissances\",D37=\"Écoconduite\"),\"1157170\",IF(AND(C37=\"Conversion\",D37=\"Bioénergies\"),\"1151240\",IF(AND(C37=\"Conversion\",D37=\"Solaires\"),\"1151202\",INDEX(OFFSET(Type_Entreprise,,2,,),MATCH('1. Demande'!AI$76,Type_Entreprise,0))))))))","v":0}]
[null,null,"Choisir…",null,"Choisir…",null,"",null,null,null,null,null,null,null,"","",0,0,0,null,null,"Choisir…",null,null,null,null,null,null,"","","","","","","",0,"",{"$f":"CHOOSE(AF38,FALSE,Data!DV$2,IF(Data!DP$2=\"Transport\",FALSE,Data!DV$2),IF(Data!DP$2=\"Transport\",FALSE,Data!DV$2),FALSE,FALSE,Data!DV$2)","v":{"$error":"#VALUE!"}},{"$f":"CHOOSE(AF38,\"Affaires\",IF(Data!DP$2=\"agricole\",\"Agricole\",\"Affaires\"),IF(Data!DP$2=\"Agricole\",\"Industriel\",Data!DP$2),IF(Data!DP$2=\"Agricole\",\"Industriel\",Data!DP$2),IF(Data!DP$2=\"Agricole\",\"Agricole\",\"Affaires\"),IF(Data!DP$2=\"Transport\",\"Transport\",\"Affaires\"),IF(Data!DP$2=\"Agricole\",\"Industriel\",Data!DP$2))","v":{"$error":"#VALUE!"}},{"$f":"IF(C38=\"Innovation\",\"1159400\",IF(C38=\"Gestion\",\"1151000\",IF(C38=\"OPTER\",\"1151210\",IF(AND(C38=\"Connaissances\",D38=\"Écoconduite\"),\"1157170\",IF(AND(C38=\"Conversion\",D38=\"Bioénergies\"),\"1151240\",IF(AND(C38=\"Conversion\",D38=\"Solaires\"),\"1151202\",INDEX(OFFSET(Type_Entreprise,,2,,),MATCH('1. Demande'!AI$76,Type_Entreprise,0))))))))","v":0}]
[null,null,"Choisir…",null,"Choisir…",null,"",null,null,null,null,null,null,null,"","",0,0,0,null,null,"Choisir…",null,null,null,null,null,null,"","","","","","","",0,"",{"$f":"CHOOSE(AF39,FALSE,Data!DV$2,IF(Data!DP$2=\"Transport\",FALSE,Data!DV$2),IF(Data!DP$2=\"Transport\",FALSE,Data!DV$2),FALSE,FALSE,Data!DV$2)","v":{"$error":"#VALUE!"}},{"$f":"CHOOSE(AF39,\"Affaires\",IF(Data!DP$2=\"agricole\",\"Agricole\",\"Affaires\"),IF(Data!DP$2=\"Agricole\",\"Industriel\",Data!DP$2),IF(Data!DP$2=\"Agricole\",\"Industriel\",Data!DP$2),IF(Data!DP$2=\"Agricole\",\"Agricole\",\"Affaires\"),IF(Data!DP$2=\"Transport\",\"Transport\",\"Affaires\"),IF(Data!DP$2=\"Agricole\",\"Industriel\",Data!DP$2))","v":{"$error":"#VALUE!"}},{"$f":"IF(C39=\"Innovation\",\"1159400\",IF(C39=\"Gestion\",\"1151000\",IF(C39=\"OPTER\",\"1151210\",IF(AND(C39=\"Connaissances\",D39=\"Écoconduite\"),\"1157170\",IF(AND(C39=\"Conversion\",D39=\"Bioénergies\"),\"1151240\",IF(AND(C39=\"Conversion\",D39=\"Solaires\"),\"1151202\",INDEX(OFFSET(Type_Entreprise,,2,,),MATCH('1. Demande'!AI$76,Type_Entreprise,0))))))))","v":0}]
[null,null,"Choisir…",null,"Choisir…",null,"",null,null,null,null,null,null,null,"","",0,0,0,null,null,"Choisir…",null,null,null,null,null,null,"","","","","","","",0,"",{"$f":"CHOOSE(AF40,FALSE,Data!DV$2,IF(Data!DP$2=\"Transport\",FALSE,Data!DV$2),IF(Data!DP$2=\"Transport\",FALSE,Data!DV$2),FALSE,FALSE,Data!DV$2)","v":{"$error":"#VALUE!"}},{"$f":"CHOOSE(AF40,\"Affaires\",IF(Data!DP$2=\"agricole\",\"Agricole\",\"Affaires\"),IF(Data!DP$2=\"Agricole\",\"Industriel\",Data!DP$2),IF(Data!DP$2=\"Agricole\",\"Industriel\",Data!DP$2),IF(Data!DP$2=\"Agricole\",\"Agricole\",\"Affaires\"),IF(Data!DP$2=\"Transport\",\"Transport\",\"Affaires\"),IF(Data!DP$2=\"Agricole\",\"Industriel\",Data!DP$2))","v":{"$error":"#VALUE!"}},{"$f":"IF(C40=\"Innovation\",\"1159400\",IF(C40=\"Gestion\",\"1151000\",IF(C40=\"OPTER\",\"1151210\",IF(AND(C40=\"Connaissances\",D40=\"Écoconduite\"),\"1157170\",IF(AND(C40=\"Conversion\",D40=\"Bioénergies\"),\"1151240\",IF(AND(C40=\"Conversion\",D40=\"Solaires\"),\"1151202\",INDEX(OFFSET(Type_Entreprise,,2,,),MATCH('1. Demande'!AI$76,Type_Entreprise,0))))))))","v":0}]
[null,null,"Choisir…",null,"Choisir…",null,"",null,null,null,null,null,null,null,"","",0,0,0,null,null,"Choisir…",null,null,null,null,null,null,"","","","","","","",0,"",{"$f":"CHOOSE(AF41,FALSE,Data!DV$2,IF(Data!DP$2=\"Transport\",FALSE,Data!DV$2),IF(Data!DP$2=\"Transport\",FALSE,Data!DV$2),FALSE,FALSE,Data!DV$2)","v":{"$error":"#VALUE!"}},{"$f":"CHOOSE(AF41,\"Affaires\",IF(Data!DP$2=\"agricole\",\"Agricole\",\"Affaires\"),IF(Data!DP$2=\"Agricole\",\"Industriel\",Data!DP$2),IF(Data!DP$2=\"Agricole\",\"Industriel\",Data!DP$2),IF(Data!DP$2=\"Agricole\",\"Agricole\",\"Affaires\"),IF(Data!DP$2=\"Transport\",\"Transport\",\"Affaires\"),IF(Data!DP$2=\"Agricole\",\"Industriel\",Data!DP$2))","v":{"$error":"#VALUE!"}},{"$f":"IF(C41=\"Innovation\",\"1159400\",IF(C41=\"Gestion\",\"1151000\",IF(C41=\"OPTER\",\"1151210\",IF(AND(C41=\"Connaissances\",D41=\"Écoconduite\"),\"1157170\",IF(AND(C41=\"Conversion\",D41=\"Bioénergies\"),\"1151240\",IF(AND(C41=\"Conversion\",D41=\"Solaires\"),\"1151202\",INDEX(OFFSET(Type_Entreprise,,2,,),MATCH('1. Demande'!AI$76,Type_Entreprise,0))))))))","v":0}]
[null,null,"Choisir…",null,"Choisir…",null,"",null,null,null,null,null,null,null,"","",0,0,0,null,null,"Choisir…",null,null,null,null,null,null,"","","","","","","",0,"",{"$f":"CHOOSE(AF42,FALSE,Data!DV$2,IF(Data!DP$2=\"Transport\",FALSE,Data!DV$2),IF(Data!DP$2=\"Transport\",FALSE,Data!DV$2),FALSE,FALSE,Data!DV$2)","v":{"$error":"#VALUE!"}},{"$f":"CHOOSE(AF42,\"Affaires\",IF(Data!DP$2=\"agricole\",\"Agricole\",\"Affaires\"),IF(Data!DP$2=\"Agricole\",\"Industriel\",Data!DP$2),IF(Data!DP$2=\"Agricole\",\"Industriel\",Data!DP$2),IF(Data!DP$2=\"Agricole\",\"Agricole\",\"Affaires\"),IF(Data!DP$2=\"Transport\",\"Transport\",\"Affaires\"),IF(Data!DP$2=\"Agricole\",\"Industriel\",Data!DP$2))","v":{"$error":"#VALUE!"}},{"$f":"IF(C42=\"Innovation\",\"1159400\",IF(C42=\"Gestion\",\"1151000\",IF(C42=\"OPTER\",\"1151210\",IF(AND(C42=\"Connaissances\",D42=\"Écoconduite\"),\"1157170\",IF(AND(C42=\"Conversion\",D42=\"Bioénergies\"),\"1151240\",IF(AND(C42=\"Conversion\",D42=\"Solaires\"),\"1151202\",INDEX(OFFSET(Type_Entreprise,,2,,),MATCH('1. Demande'!AI$76,Type_Entreprise,0))))))))","v":0}]
[null,null,"Choisir…",null,"Choisir…",null,"",null,null,null,null,null,null,null,"","",0,0,0,null,null,"Choisir…",null,null,null,null,null,null,"","","","","","","",0,"",{"$f":"CHOOSE(AF43,FALSE,Data!DV$2,IF(Data!DP$2=\"Transport\",FALSE,Data!DV$2),IF(Data!DP$2=\"Transport\",FALSE,Data!DV$2),FALSE,FALSE,Data!DV$2)","v":{"$error":"#VALUE!"}},{"$f":"CHOOSE(AF43,\"Affaires\",IF(Data!DP$2=\"agricole\",\"Agricole\",\"Affaires\"),IF(Data!DP$2=\"Agricole\",\"Industriel\",Data!DP$2),IF(Data!DP$2=\"Agricole\",\"Industriel\",Data!DP$2),IF(Data!DP$2=\"Agricole\",\"Agricole\",\"Affaires\"),IF(Data!DP$2=\"Transport\",\"Transport\",\"Affaires\"),IF(Data!DP$2=\"Agricole\",\"Industriel\",Data!DP$2))","v":{"$error":"#VALUE!"}},{"$f":"IF(C43=\"Innovation\",\"1159400\",IF(C43=\"Gestion\",\"1151000\",IF(C43=\"OPTER\",\"1151210\",IF(AND(C43=\"Connaissances\",D43=\"Écoconduite\"),\"1157170\",IF(AND(C43=\"Conversion\",D43=\"Bioénergies\"),\"1151240\",IF(AND(C43=\"Conversion\",D43=\"Solaires\"),\"1151202\",INDEX(OFFSET(Type_Entreprise,,2,,),MATCH('1. Demande'!AI$76,Type_Entreprise,0))))))))","v":0}]
[null,null,"Choisir…",null,"Choisir…",null,"",null,null,null,null,null,null,null,"","",0,0,0,null,null,"Choisir…",null,null,null,null,null,null,"","","","","","","",0,"",{"$f":"CHOOSE(AF44,FALSE,Data!DV$2,IF(Data!DP$2=\"Transport\",FALSE,Data!DV$2),IF(Data!DP$2=\"Transport\",FALSE,Data!DV$2),FALSE,FALSE,Data!DV$2)","v":{"$error":"#VALUE!"}},{"$f":"CHOOSE(AF44,\"Affaires\",IF(Data!DP$2=\"agricole\",\"Agricole\",\"Affaires\"),IF(Data!DP$2=\"Agricole\",\"Industriel\",Data!DP$2),IF(Data!DP$2=\"Agricole\",\"Industriel\",Data!DP$2),IF(Data!DP$2=\"Agricole\",\"Agricole\",\"Affaires\"),IF(Data!DP$2=\"Transport\",\"Transport\",\"Affaires\"),IF(Data!DP$2=\"Agricole\",\"Industriel\",Data!DP$2))","v":{"$error":"#VALUE!"}},{"$f":"IF(C44=\"Innovation\",\"1159400\",IF(C44=\"Gestion\",\"1151000\",IF(C44=\"OPTER\",\"1151210\",IF(AND(C44=\"Connaissances\",D44=\"Écoconduite\"),\"1157170\",IF(AND(C44=\"Conversion\",D44=\"Bioénergies\"),\"1151240\",IF(AND(C44=\"Conversion\",D44=\"Solaires\"),\"1151202\",INDEX(OFFSET(Type_Entreprise,,2,,),MATCH('1. Demande'!AI$76,Type_Entreprise,0))))))))","v":0}]
[null,null,"Choisir…",null,"Choisir…",null,"",null,null,null,null,null,null,null,"","",0,0,0,null,null,"Choisir…",null,null,null,null,null,null,"","","","","","","",0,"",{"$f":"CHOOSE(AF45,FALSE,Data!DV$2,IF(Data!DP$2=\"Transport\",FALSE,Data!DV$2),IF(Data!DP$2=\"Transport\",FALSE,Data!DV$2),FALSE,FALSE,Data!DV$2)","v":{"$error":"#VALUE!"}},{"$f":"CHOOSE(AF45,\"Affaires\",IF(Data!DP$2=\"agricole\",\"Agricole\",\"Affaires\"),IF(Data!DP$2=\"Agricole\",\"Industriel\",Data!DP$2),IF(Data!DP$2=\"Agricole\",\"Industriel\",Data!DP$2),IF(Data!DP$2=\"Agricole\",\"Agricole\",\"Affaires\"),IF(Data!DP$2=\"Transport\",\"Transport\",\"Affaires\"),IF(Data!DP$2=\"Agricole\",\"Industriel\",Data!DP$2))","v":{"$error":"#VALUE!"}},{"$f":"IF(C45=\"Innovation\",\"1159400\",IF(C45=\"Gestion\",\"1151000\",IF(C45=\"OPTER\",\"1151210\",IF(AND(C45=\"Connaissances\",D45=\"Écoconduite\"),\"1157170\",IF(AND(C45=\"Conversion\",D45=\"Bioénergies\"),\"1151240\",IF(AND(C45=\"Conversion\",D45=\"Solaires\"),\"1151202\",INDEX(OFFSET(Type_Entreprise,,2,,),MATCH('1. Demande'!AI$76,Type_Entreprise,0))))))))","v":0}]
[null,null,"Choisir…",null,"Choisir…",null,"",null,null,null,null,null,null,null,"","",0,0,0,null,null,"Choisir…",null,null,null,null,null,null,"","","","","","","",0,"",{"$f":"CHOOSE(AF46,FALSE,Data!DV$2,IF(Data!DP$2=\"Transport\",FALSE,Data!DV$2),IF(Data!DP$2=\"Transport\",FALSE,Data!DV$2),FALSE,FALSE,Data!DV$2)","v":{"$error":"#VALUE!"}},{"$f":"CHOOSE(AF46,\"Affaires\",IF(Data!DP$2=\"agricole\",\"Agricole\",\"Affaires\"),IF(Data!DP$2=\"Agricole\",\"Industriel\",Data!DP$2),IF(Data!DP$2=\"Agricole\",\"Industriel\",Data!DP$2),IF(Data!DP$2=\"Agricole\",\"Agricole\",\"Affaires\"),IF(Data!DP$2=\"Transport\",\"Transport\",\"Affaires\"),IF(Data!DP$2=\"Agricole\",\"Industriel\",Data!DP$2))","v":{"$error":"#VALUE!"}},{"$f":"IF(C46=\"Innovation\",\"1159400\",IF(C46=\"Gestion\",\"1151000\",IF(C46=\"OPTER\",\"1151210\",IF(AND(C46=\"Connaissances\",D46=\"Écoconduite\"),\"1157170\",IF(AND(C46=\"Conversion\",D46=\"Bioénergies\"),\"1151240\",IF(AND(C46=\"Conversion\",D46=\"Solaires\"),\"1151202\",INDEX(OFFSET(Type_Entreprise,,2,,),MATCH('1. Demande'!AI$76,Type_Entreprise,0))))))))","v":0}]
[null,null,"Choisir…",null,"Choisir…",null,"",null,null,null,null,null,null,null,"","",0,0,0,null,null,"Choisir…",null,null,null,null,null,null,"","","","","","","",0,"",{"$f":"CHOOSE(AF47,FALSE,Data!DV$2,IF(Data!DP$2=\"Transport\",FALSE,Data!DV$2),IF(Data!DP$2=\"Transport\",FALSE,Data!DV$2),FALSE,FALSE,Data!DV$2)","v":{"$error":"#VALUE!"}},{"$f":"CHOOSE(AF47,\"Affaires\",IF(Data!DP$2=\"agricole\",\"Agricole\",\"Affaires\"),IF(Data!DP$2=\"Agricole\",\"Industriel\",Data!DP$2),IF(Data!DP$2=\"Agricole\",\"Industriel\",Data!DP$2),IF(Data!DP$2=\"Agricole\",\"Agricole\",\"Affaires\"),IF(Data!DP$2=\"Transport\",\"Transport\",\"Affaires\"),IF(Data!DP$2=\"Agricole\",\"Industriel\",Data!DP$2))","v":{"$error":"#VALUE!"}},{"$f":"IF(C47=\"Innovation\",\"1159400\",IF(C47=\"Gestion\",\"1151000\",IF(C47=\"OPTER\",\"1151210\",IF(AND(C47=\"Connaissances\",D47=\"Écoconduite\"),\"1157170\",IF(AND(C47=\"Conversion\",D47=\"Bioénergies\"),\"1151240\",IF(AND(C47=\"Conversion\",D47=\"Solaires\"),\"1151202\",INDEX(OFFSET(Type_Entreprise,,2,,),MATCH('1. Demande'!AI$76,Type_Entreprise,0))))))))","v":0}]
[null,null,"Choisir…",null,"Choisir…",null,"",null,null,null,null,null,null,null,"","",0,0,0,null,null,"Choisir…",null,null,null,null,null,null,"","","","","","","",0,"",{"$f":"CHOOSE(AF48,FALSE,Data!DV$2,IF(Data!DP$2=\"Transport\",FALSE,Data!DV$2),IF(Data!DP$2=\"Transport\",FALSE,Data!DV$2),FALSE,FALSE,Data!DV$2)","v":{"$error":"#VALUE!"}},{"$f":"CHOOSE(AF48,\"Affaires\",IF(Data!DP$2=\"agricole\",\"Agricole\",\"Affaires\"),IF(Data!DP$2=\"Agricole\",\"Industriel\",Data!DP$2),IF(Data!DP$2=\"Agricole\",\"Industriel\",Data!DP$2),IF(Data!DP$2=\"Agricole\",\"Agricole\",\"Affaires\"),IF(Data!DP$2=\"Transport\",\"Transport\",\"Affaires\"),IF(Data!DP$2=\"Agricole\",\"Industriel\",Data!DP$2))","v":{"$error":"#VALUE!"}},{"$f":"IF(C48=\"Innovation\",\"1159400\",IF(C48=\"Gestion\",\"1151000\",IF(C48=\"OPTER\",\"1151210\",IF(AND(C48=\"Connaissances\",D48=\"Écoconduite\"),\"1157170\",IF(AND(C48=\"Conversion\",D48=\"Bioénergies\"),\"1151240\",IF(AND(C48=\"Conversion\",D48=\"Solaires\"),\"1151202\",INDEX(OFFSET(Type_Entreprise,,2,,),MATCH('1. Demande'!AI$76,Type_Entreprise,0))))))))","v":0}]
[null,null,"Choisir…",null,"Choisir…",null,"",null,null,null,null,null,null,null,"","",0,0,0,null,null,"Choisir…",null,null,null,null,null,null,"","","","","","","",0,"",{"$f":"CHOOSE(AF49,FALSE,Data!DV$2,IF(Data!DP$2=\"Transport\",FALSE,Data!DV$2),IF(Data!DP$2=\"Transport\",FALSE,Data!DV$2),FALSE,FALSE,Data!DV$2)","v":{"$error":"#VALUE!"}},{"$f":"CHOOSE(AF49,\"Affaires\",IF(Data!DP$2=\"agricole\",\"Agricole\",\"Affaires\"),IF(Data!DP$2=\"Agricole\",\"Industriel\",Data!DP$2),IF(Data!DP$2=\"Agricole\",\"Industriel\",Data!DP$2),IF(Data!DP$2=\"Agricole\",\"Agricole\",\"Affaires\"),IF(Data!DP$2=\"Transport\",\"Transport\",\"Affaires\"),IF(Data!DP$2=\"Agricole\",\"Industriel\",Data!DP$2))","v":{"$error":"#VALUE!"}},{"$f":"IF(C49=\"Innovation\",\"1159400\",IF(C49=\"Gestion\",\"1151000\",IF(C49=\"OPTER\",\"1151210\",IF(AND(C49=\"Connaissances\",D49=\"Écoconduite\"),\"1157170\",IF(AND(C49=\"Conversion\",D49=\"Bioénergies\"),\"1151240\",IF(AND(C49=\"Conversion\",D49=\"Solaires\"),\"1151202\",INDEX(OFFSET(Type_Entreprise,,2,,),MATCH('1. Demande'!AI$76,Type_Entreprise,0))))))))","v":0}]
[null,null,"Total",null,null,null,null,null,null,null,null,null,null,{"$f":"SUM(N16:N49)","v":0},0,0,0,0,0,0,0]
[]
["(1) Si, pour une même mesure, il y a des réductions ou des augmentations de la consommation énergétique ou que la mesure implique différentes  formes d'énergie, celles-ci doivent être présentées sur des lignes différentes."]
["(2) Formes d'énergie ou composante :"]
["(3) Si applicable, spécifiez l'unité de production"]
["(4) La PRI est définie comme étant le rapport : "]
["      Coûts du projet/économies nettes liées à la consommation énergétique (différence entre réductions et augmentations)"]
["      Se référer au Guide détaillé du requérant pour d'autres détails"]
["(5) Pour les conversions seulement"]
["    Voir le Guide détaillé du requérant pour plus de détails"]

{"sheet":"Data","index":9,"n_rows":254,"n_cols":181,"rows_kept":254,"cut":false,"hidden":true,"merged":[[61,1,61,2],[61,3,61,4]]}
["Version","Inno","Analyse","Implantation","Conversion","Gestion","Connaissance","OPTER","InnoC","AnalyseC","ImplantationC","ConversionC","GestionC","ConnaissanceC","OPTERC","Anal_Etu","Anal_IP","Anal_IP_Prelim","Anal_Approv","Conv_Bio","Conv_Sol","Conv_ER","Conv_Conv","Gestion_Agri","Gestion_Ind","DEV_Conduite","DEV_Agri","DEV_Ind","OPTER_Arena","OPTER_Super","OPTER_Agro","Code_Req","ORGreq","ORGAdr","ORGVil","ORGCP","ORGStatLeg","ORGNEQ","ORGNbreEmplois","ORGRDrec","Code_Sign","SignAppel","SignNom","SignPrenom","SignSuffixe","SignFonc","SignEMail","SignEnt","SignAdr","SignVil","SignCP","SignNEQ","SignPhone","SignPoste","SignCell","Signcc","Signcorprinc","Code_Repadm","RepAdmAppel","RepAdmNom","RepAdmPrenom","RepAdmSuffixe","RepAdmFonc","RepAdmEMail","RepAdmEnt","RepAdmAdr","RepAdmVil","RepAdmCP","RepAdmNEQ","RepAdmPhone","RepAdmPoste","RepAdmCell","RepAdmcc","RepAdmcorprinc","Code_RepTech","RepTechAppel","RepTechNom","RepTechPrenom","RepTechSuffixe","RepTechFonc","RepTechEMail","RepTechEnt","RepTechAdr","RepTechVil","RepTechCP","RepTechNEQ","RepTechPhone","RepTechPoste","RepTechCell","RepTechOrdre","RepTechNoMbre","RepTechcc","RepTechcorprinc","Code_Consultant","ConsultAppel","ConsultNom","ConsultPrenom","ConsultSuffixe","ConsultFonc","ConsultEMail","ConsultEnt","ConsultAdr","ConsultVil","ConsultCP","ConsultNEQ","ConsultPhone","ConsultPoste","ConsultCell","ConsultOrdre","ConsultNoMbre","Consultcc","Consultcorprinc","SitePrinc","SiteAdr","SiteVil","SiteCP","SiteNEQ","SiteSCIAN","SiteTypeENT","Secteur","No_Projet_Sagir_Abrev","Volet","Section","Composante","SiteGJNel","SIte36TJ","Site36TJCode","NouveauExistant","DJChauffe","Superficie","UnitSuperficie","Production","UnitProd","ConsDateDeb","ConsDateFin","TitreProj","DateDebProj","DateFinProj","DateMER","ProjStratTrans","Engagement","Residentiel","Commercial","Institutionnel","Municipal","Transport","Industriel","Agricole","Autre","DomaineAutre","ProdER","Bioénergie","Eolienne","Geothermie","Hydrolienne","Hydrogene","Maremotrice","Solaire","AutreER","ERAutre","EEInno","Electricite","MazoutLeger","MazoutLourd","GazNaturel","Propane","Essence","Diesel","AutreEE","EEAutre","Montantdem","DateDemande","Cinterne_Prevu","Cexterne_Prevu","Ctotaux_Prevu","Cinterne_Reel","Cexterne_reel","Ctotaux_Reel","NbreMes","Recom","RecomC"]
["FO_ECOPERF_V1",{"$f":"IF(A56=TRUE,\"1\",\"\")","v":""},{"$f":"IF(B56=TRUE,\"2\",\"\")","v":"2"},{"$f":"IF(C56=TRUE,\"3\",\"\")","v":""},{"$f":"IF(D56=TRUE,\"4\",\"\")","v":""},{"$f":"IF(E56=TRUE,\"5\",\"\")","v":""},{"$f":"IF(F56=TRUE,\"6\",\"\")","v":""},{"$f":"IF(G56=TRUE,\"7\",\"\")","v":""},{"$f":"A56","v":false},{"$f":"B56","v":true},false,false,false,false,false,{"$f":"B57","v":false},{"$f":"B58","v":false},{"$f":"B60","v":false},{"$f":"B59","v":false},{"$f":"D57","v":false},{"$f":"D60","v":false},{"$f":"D58","v":false},{"$f":"D59","v":false},{"$f":"E57","v":false},{"$f":"E58","v":false},{"$f":"F57","v":false},{"$f":"F58","v":false},{"$f":"F59","v":false},{"$f":"G57","v":false},{"$f":"G58","v":false},{"$f":"G59","v":false},10,{"$f":"IF('1. Demande'!H11=\"\",\"\",'1. Demande'!H11)","v":""},{"$f":"IF('1. Demande'!H13=\"\",\"\",'1. Demande'!H13)","v":""},{"$f":"IF('1. Demande'!H15=\"\",\"\",'1. Demande'!H15)","v":""},{"$f":"IF('1. Demande'!Z15=\"\",\"\",'1. Demande'!Z15)","v":""},{"$f":"IF('1. Demande'!AL11=\"\",\"\",'1. Demande'!AL11)","v":""},{"$f":"IF('1. Demande'!AL13=\"\",\"\",'1. Demande'!AL13)","v":""},{"$f":"IF('1. Demande'!AL15=\"\",\"\",'1. Demande'!AL15)","v":""},false,1,{"$f":"INDEX(OFFSET(Appel,,-1,,),MATCH('1. Demande'!H20,Appel,0))","v":0},{"$f":"IF('1. Demande'!M20=\"\",\"\",'1. Demande'!M20)","v":""},{"$f":"IF('1. Demande'!AC20=\"\",\"\",'1. Demande'!AC20)","v":""},{"$f":"IF('1. Demande'!AP20=\"\",\"\",'1. Demande'!AP20)","v":""},{"$f":"IF('1. Demande'!H22=\"\",\"\",'1. Demande'!H22)","v":""},{"$f":"IF('1. Demande'!AC22=\"\",\"\",'1. Demande'!AC22)","v":""},{"$f":"IF('1. Demande'!H24=\"\",\"\",'1. Demande'!H24)","v":""},{"$f":"IF('1. Demande'!H26=\"\",\"\",'1. Demande'!H26)","v":""},{"$f":"IF('1. Demande'!H28=\"\",\"\",'1. Demande'!H28)","v":""},{"$f":"IF('1. Demande'!Z28=\"\",\"\",'1. Demande'!Z28)","v":""},{"$f":"IF('1. Demande'!AI24=\"\",\"\",'1. Demande'!AI24)","v":""},{"$f":"IF('1. Demande'!AI26=\"\",\"\",'1. Demande'!AI26)","v":""},{"$f":"IF('1. Demande'!AQ26=\"\",\"\",'1. Demande'!AQ26)","v":""},{"$f":"IF('1. Demande'!AI28=\"\",\"\",'1. Demande'!AI28)","v":""},false,false,2,{"$f":"INDEX(OFFSET(Appel,,-1,,),MATCH('1. Demande'!H35,Appel,0))","v":0},{"$f":"IF('1. Demande'!M35=\"\",\"\",'1. Demande'!M35)","v":""},{"$f":"IF('1. Demande'!AC35=\"\",\"\",'1. Demande'!AC35)","v":""},{"$f":"IF('1. Demande'!AP35=\"\",\"\",'1. Demande'!AP35)","v":""},{"$f":"IF('1. Demande'!H37=\"\",\"\",'1. Demande'!H37)","v":""},{"$f":"IF('1. Demande'!AC37=\"\",\"\",'1. Demande'!AC37)","v":""},{"$f":"IF('1. Demande'!H39=\"\",\"\",'1. Demande'!H39)","v":""},{"$f":"IF('1. Demande'!H41=\"\",\"\",'1. Demande'!H41)","v":""},{"$f":"IF('1. Demande'!H43=\"\",\"\",'1. Demande'!H43)","v":""},{"$f":"IF('1. Demande'!Z43=\"\",\"\",'1. Demande'!Z43)","v":""},{"$f":"IF('1. Demande'!AI39=\"\",\"\",'1. Demande'!AI39)","v":""},{"$f":"IF('1. Demande'!AI41=\"\",\"\",'1. Demande'!AI41)","v":""},{"$f":"IF('1. Demande'!AQ41=\"\",\"\",'1. Demande'!AQ41)","v":""},{"$f":"IF('1. Demande'!AI43=\"\",\"\",'1. Demande'!AI43)","v":""},false,true,3,{"$f":"INDEX(OFFSET(Appel,,-1,,),MATCH('1. Demande'!H46,Appel,0))","v":0},{"$f":"IF('1. Demande'!M46=\"\",\"\",'1. Demande'!M46)","v":""},{"$f":"IF('1. Demande'!AC46=\"\",\"\",'1. Demande'!AC46)","v":""},{"$f":"IF('1. Demande'!AP46=\"\",\"\",'1. Demande'!AP46)","v":""},{"$f":"IF('1. Demande'!H48=\"\",\"\",'1. Demande'!H48)","v":""},{"$f":"IF('1. Demande'!AC48=\"\",\"\",'1. Demande'!AC48)","v":""},{"$f":"IF('1. Demande'!H50=\"\",\"\",'1. Demande'!H50)","v":""},{"$f":"IF('1. Demande'!H52=\"\",\"\",'1. Demande'!H52)","v":""},{"$f":"IF('1. Demande'!H54=\"\",\"\",'1. Demande'!H54)","v":""},{"$f":"IF('1. Demande'!Z54=\"\",\"\",'1. Demande'!Z54)","v":""},{"$f":"IF('1. Demande'!AI50=\"\",\"\",'1. Demande'!AI50)","v":""},{"$f":"IF('1. Demande'!AI52=\"\",\"\",'1. Demande'!AI52)","v":""},{"$f":"IF('1. Demande'!AQ52=\"\",\"\",'1. Demande'!AQ52)","v":""},{"$f":"IF('1. Demande'!AI54=\"\",\"\",'1. Demande'!AI54)","v":""},{"$f":"IF('1. Demande'!AE56=\"\",\"\",'1. Demande'!AE56)","v":"Choisir…"},{"$f":"IF('1. Demande'!AI56=\"\",\"\",'1. Demande'!AI56)","v":""},false,false,4,{"$f":"INDEX(OFFSET(Appel,,-1,,),MATCH('1. Demande'!H59,Appel,0))","v":0},{"$f":"IF('1. Demande'!M59=\"\",\"\",'1. Demande'!M59)","v":""},{"$f":"IF('1. Demande'!AC59=\"\",\"\",'1. Demande'!AC59)","v":""},{"$f":"IF('1. Demande'!AP59=\"\",\"\",'1. Demande'!AP59)","v":""},{"$f":"IF('1. Demande'!H61=\"\",\"\",'1. Demande'!H61)","v":""},{"$f":"IF('1. Demande'!AC61=\"\",\"\",'1. Demande'!AC61)","v":""},{"$f":"IF('1. Demande'!H63=\"\",\"\",'1. Demande'!H63)","v":""},{"$f":"IF('1. Demande'!H65=\"\",\"\",'1. Demande'!H65)","v":""},{"$f":"IF('1. Demande'!H67=\"\",\"\",'1. Demande'!H67)","v":""},{"$f":"IF('1. Demande'!Z67=\"\",\"\",'1. Demande'!Z67)","v":""},{"$f":"IF('1. Demande'!AI63=\"\",\"\",'1. Demande'!AI63)","v":""},{"$f":"IF('1. Demande'!AI65=\"\",\"\",'1. Demande'!AI65)","v":""},{"$f":"IF('1. Demande'!AQ65=\"\",\"\",'1. Demande'!AQ65)","v":""},{"$f":"IF('1. Demande'!AI67=\"\",\"\",'1. Demande'!AI67)","v":""},{"$f":"IF('1. Demande'!AE69=\"\",\"\",'1. Demande'!AE69)","v":"Choisir…"},{"$f":"IF('1. Demande'!AI69=\"\",\"\",'1. Demande'!AI69)","v":""},false,false,{"$f":"IF(F57=TRUE,IF('1. Demande'!H11=\"\",\"\",'1. Demande'!H11),IF('1. Demande'!H72=\"\",\"\",'1. Demande'!H72))","v":""},{"$f":"IF(F57=TRUE,IF('1. Demande'!H13=\"\",\"\",'1. Demande'!H13),IF('1. Demande'!H74=\"\",\"\",'1. Demande'!H74))","v":""},{"$f":"IF(F57=TRUE,IF('1. Demande'!H15=\"\",\"\",'1. Demande'!H15),IF('1. Demande'!H76=\"\",\"\",'1. Demande'!H76))","v":""},{"$f":"IF(F57=TRUE,IF('1. Demande'!Z15=\"\",\"\",'1. Demande'!Z15),IF('1. Demande'!Z76=\"\",\"\",'1. Demande'!Z76))","v":""},{"$f":"IF(F57=TRUE,IF('1. Demande'!AL13=\"\",\"\",'1. Demande'!AL13),IF('1. Demande'!AI72=\"\",\"\",'1. Demande'!AI72))","v":""},{"$f":"IF(F57=TRUE,484,IF('1. Demande'!AI74=\"\",\"\",'1. Demande'!AI74))","v":""},{"$f":"IF(F57=TRUE,10,INDEX(OFFSET(Type_Entreprise,,-1,,),MATCH('1. Demande'!AI76,Type_Entreprise,0)))","v":0},{"$f":"INDEX(OFFSET(Type_Entreprise,,1,,),MATCH('1. Demande'!AI76,Type_Entreprise,0))","v":0},{"$f":"IF(B61=TRUE,\"1154020\",DQ3)","v":0},{"$f":"IF(A56=TRUE,\"Innovation technologique\",IF(OR(B56=TRUE,E56=TRUE,F56=TRUE),\"Analyse\",\"Implantation\"))","v":"Analyse"},{"$f":"IF(FX2=\"8\",\"8\",IF(B2=\"1\",\"1\",IF(C2=\"2\",\"2\",IF(F2=\"5\",\"5\",IF(G2=\"6\",\"6\",IF(H2=\"7\",\"7\",IF(D2=\"3\",\"3\",IF(E2=\"4\",\"4\",\"\"))))))))","v":"2"},null,{"$f":"'1. Demande'!Z78","v":0},false,{"$f":"IF(DU2>36000,\"(+ de 36TJ)\",\"(- de 36TJ)\")","v":"(- de 36TJ)"},2,{"$f":"IF('1. Demande'!J91=\"\",\"\",'1. Demande'!J91)","v":5700},{"$f":"IF('1. Demande'!V91=\"\",\"\",'1. Demande'!V91*INDEX(OFFSET(Unite_Surface,,1,,),MATCH('1. Demande'!AC91,Unite_Surface,0)))","v":9.2903040000000006E-2},{"$f":"INDEX(OFFSET(Unite_Surface,,-1,,),MATCH('1. Demande'!AC91,Unite_Surface,0))","v":2},{"$f":"IF('1. Demande'!AJ91=\"\",\"\",'1. Demande'!AJ91)","v":""},{"$f":"IF('1. Demande'!AP91=\"\",\"\",'1. Demande'!AP91)","v":"kg"},{"$f":"IF('1. Demande'!AE82=\"\",\"\",'1. Demande'!AE82)","v":""},{"$f":"IF('1. Demande'!AN82=\"\",\"\",'1. Demande'!AN82)","v":""},{"$f":"IF('1. Demande'!H105=\"\",\"\",'1. Demande'!H105)","v":""},{"$f":"IF('1. Demande'!O107=\"\",\"\",'1. Demande'!O107)","v":""},{"$f":"IF('1. Demande'!AN107=\"\",\"\",'1. Demande'!AN107)","v":""},{"$f":"IF('1. Demande'!AB107=\"\",\"\",'1. Demande'!AB107)","v":""},{"$f":"IF(A56=TRUE,TRUE,FALSE)","v":false},{"$f":"IF('1. Demande'!AN111=0,0,'1. Demande'!AN111)","v":0},{"$f":"IF(EL3=TRUE,\"Résidentiel\",\"\")","v":""},{"$f":"IF(EM3=TRUE,\"Commercial\",\"\")","v":""},{"$f":"IF(EN3=TRUE,\"Institutionnel\",\"\")","v":""},{"$f":"IF(EO3=TRUE,\"Municipal\",\"\")","v":""},{"$f":"IF(EP3=TRUE,\"Transport\",\"\")","v":""},{"$f":"IF(EQ3=TRUE,\"Industriel\",\"\")","v":""},{"$f":"IF(ER3=TRUE,\"Agricole\",\"\")","v":""},{"$f":"IF(ES3=TRUE,ET2,\"\")","v":""},{"$f":"IF('1. Demande'!AM130=\"\",\"\",'1. Demande'!AM130)","v":""},false,{"$f":"IF(EV3=TRUE,\"Bioénergie\",\"\")","v":""},{"$f":"IF(EW3=TRUE,\"Éolienne\",\"\")","v":""},{"$f":"IF(EX3=TRUE,\"Géothermie\",\"\")","v":""},{"$f":"IF(EY3=TRUE,\"Hydrolienne\",\"\")","v":""},{"$f":"IF(EZ3=TRUE,\"Hydrogène\",\"\")","v":""},{"$f":"IF(FA3=TRUE,\"Marémotrice\",\"\")","v":""},{"$f":"IF(FB3=TRUE,\"Solaire\",\"\")","v":""},{"$f":"IF(FC3=TRUE,FD2,\"\")","v":""},{"$f":"IF('1. Demande'!AM134=\"\",\"\",'1. Demande'!AM134)","v":""},false,{"$f":"IF(FE3=TRUE,1,\"\")","v":""},{"$f":"IF(FF3=TRUE,3,\"\")","v":""},{"$f":"IF(FG3=TRUE,4,\"\")","v":""},{"$f":"IF(FH3=TRUE,2,\"\")","v":""},{"$f":"IF(FI3=TRUE,5,\"\")","v":""},{"$f":"IF(FJ3=TRUE,7,\"\")","v":""},{"$f":"IF(FK3=TRUE,6,\"\")","v":""},{"$f":"IF(FL3=TRUE,IF('1. Demande'!AM138=\"\",\"\",INDEX(OFFSET(Énergie,,-1,,),MATCH('1. Demande'!AM138,Énergie,0))),\"\")","v":""},{"$f":"IF('1. Demande'!AM138=\"\",\"\",INDEX(OFFSET(Énergie,,-1,,),MATCH('1. Demande'!AM138,Énergie,0)))","v":""},{"$f":"'1. Demande'!AN186","v":0},{"$f":"IF('1. Demande'!AJ198=\"\",\"\",'1. Demande'!AJ198)","v":""},{"$f":"B70","v":0},{"$f":"C70","v":0},{"$f":"FQ2+FR2","v":0},{"$f":"D70","v":0},{"$f":"E70","v":0},{"$f":"FU2+FT2","v":0},1,{"$f":"IF(B61=TRUE,\"8\",\"\")","v":""},{"$f":"B61","v":false}]
[null,null,null,null,null,null,null,null,null,null,null,null,null,null,null,null,null,null,null,null,null,null,null,null,null,null,null,null,null,null,null,null,null,null,null,null,null,null,null,null,null,null,null,null,null,null,null,null,null,null,null,null,null,null,null,null,null,null,null,null,null,null,null,null,null,null,null,null,null,null,null,null,null,null,null,null,null,null,null,null,null,null,null,null,null,null,null,null,null,null,null,null,null,null,null,null,null,null,null,null,null,null,null,null,null,null,null,null,null,null,null,null,null,null,null,null,null,null,null,null,{"$f":"IF($A$56=TRUE,\"1159400\",IF($E$56=TRUE,\"1151000\",IF($G$57=TRUE,\"1151210\",IF($F$57=TRUE,\"1157170\",IF($D$57=TRUE,\"1151240\",IF($D$60=TRUE,\"1151202\",INDEX(OFFSET(Type_Entreprise,,2,,),MATCH('1. Demande'!$AI$76,Type_Entreprise,0))))))))","v":0},null,null,null,null,null,null,null,null,null,null,null,null,null,null,null,null,null,null,false,null,false,false,false,false,false,false,false,false,null,null,false,false,false,false,false,false,false,false,null,false,false,false,false,false,false,false,null,false]
["Aide combine max",0.75,null,null,null,null,null,null,null,null,null,null,null,null,null,null,null,null,null,null,"CC","DescriptionCC",null,null,null,null,null,null,null,null,null,null,null,null,null,null,null,null,null,null,null,null,null,null,null,null,null,null,null,null,null,null,null,null,null,null,null,null,null,null,null,null,null,null,null,null,null,null,null,null,null,null,null,null,null,null,null,null,null,null,null,null,null,null,null,null,null,null,null,null,null,null,null,null,null,null,null,null,null,null,null,null,null,null,null,null,null,null,null,null,null,null,null,null,null,null,null,null,null,null,null,null,null,null,null,null,null,null,null,null,null,null,null,null,null,null,null,null,null,null,null,null,null,null,null,null,null,null,null,null,null,null,null,null,null,null,null,null,null,null,1,3,4,2,5,7,6]
[null,false,null,null,null,null,null,null,null,null,null,null,null,null,null,null,null,null,null,null,null,"Choisir…"]
["Code appel","Appel",null,"Choisir…",0,"Choisir…",null,0,"Choisir…","C","Choisir…",0,"Choisir…",null,null,"BT",null,null,null,null,"00","Gouvernement","Commercial institutionnel","1151201"]
[null,"Choisir…",null,"OIQ",2,"Analyse","Analyses",1,"Énergie","I","Implanter",1,"Implantée",null,null,"HT",null,null,null,null,"00","Gouvernement (Optimisation réfrigération)","Commercial institutionnel","1151210"]
[1,"Madame",null,"OIFQ",5,"Gestion_d_énergie","Analyses",2,"Fugitive","N","Ne rien faire",2,"En cours d'implantation",null,null,null,null,null,null,null,"10","Privé (Agriculture)","Agricole","1158180"]
[2,"Monsieur",null,"OAQ",3,"Eff_énergétique","Implantations",0,"Aucun","E","Étude supplémentaire requise",3,"Dans la prochaine année",null,null,null,null,null,null,null,"10","Privé (Commercial)","Commercial institutionnel","1151201"]
[null,null,null,null,4,"Conversion","Implantations",null,null,null,null,4,"D'ici deux ans",null,null,null,null,null,null,null,"10","Privé (Optimisation réfrigération)","Commercial institutionnel","1151210"]
[null,null,null,null,7,"Émissions_fugitives","Implantations",null,null,null,null,5,"Ne sera pas implantée",null,null,null,null,null,null,null,"10","Privé (Industriel)","Industriel","1158180"]
[null,null,null,null,null,null,null,null,null,null,null,null,null,null,null,null,null,null,null,null,"10","Privé (Industriel optimisation réfrigération)","Industriel","1151210"]
[null,null,null,null,null,null,null,null,null,null,null,null,null,null,null,null,null,null,null,null,"20","Santé","Commercial institutionnel","1151201"]
[null,null,null,null,null,null,null,null,null,null,null,null,null,null,null,null,null,null,null,null,"20","Santé (Optimisation réfrigération)","Commercial institutionnel","1151210"]
[null,null,null,null,null,null,null,null,null,null,null,null,null,null,null,null,null,null,null,null,"30","Éducation","Commercial institutionnel","1151201"]
[null,null,null,null,null,null,"Choisir…",null,null,null,null,null,null,null,null,null,null,null,null,null,"30","Éducation (Optimisation réfrigération)","Commercial institutionnel","1151210"]
[null,null,null,null,null,null,"Subvention",null,null,null,null,null,null,null,null,null,null,null,null,null,"40","Municipal","Commercial institutionnel","1151201"]
[null,null,null,null,null,null,"Emprunt",null,null,null,null,null,null,null,null,null,null,null,null,null,"40","Municipal (Optimisation réfrigération)","Commercial institutionnel","1151210"]
[null,null,null,null,null,null,"Prêt",null,null,null,null,null,null,null,null,null,null,null,null,null,"50","OSBL (Agriculture)","Agricole","1158180"]
[null,null,null,null,null,null,"Équité",null,null,null,null,null,null,null,null,null,null,null,null,null,"50","OSBL (Institutionnel)","Commercial institutionnel","1151201"]
[null,null,null,null,null,null,null,null,null,null,null,null,null,null,null,null,null,null,null,null,"50","OSBL (Commercial)","Commercial institutionnel","1151201"]
[null,null,null,null,null,null,null,null,null,null,null,null,null,null,null,null,null,null,null,null,"50","OSBL (Optimisation réfrigération)","Commercial institutionnel","1151210"]
[null,null,null,null,null,null,null,null,null,null,null,null,null,null,null,null,null,null,null,null,"50","OSBL (Industriel)","Industriel","1158180"]
[]
[]
["Oui",true]
["Non",false]
[]
[null,"Choisir…"]
[1,"TEQ","Transition énergétique Québec",null,null,"Choisir…","CodeCAt","CodeMEE",null,null,null,null,null,null,null,null,null,null,null,null,null,null,null,null,null,null,null,null,null,{"$f":"IF(E57=TRUE,\"GESB\",IF(E58=TRUE,\"GESA\",IF(F56=TRUE,\"DEVB\",\"\")))","v":""}]
[2,"Hydro-Québec","Hydro-Québec",null,"511","Coûts liés à l'embauche d'une personne énergie",50,"50.1"]
[3,"Gaz Métro","Gaz Métro",null,"512","Formation ISO 50001",50,"50.2"]
[4,"Fédéral…","Fédéral…",null,"513","Accompagnement, audits, certification",50,"50.3"]
[5,"Investissement Québec","Investissement Québec",null,"514","Équipement de mesurage, sondes et programmation",50,"50.4"]
[6,"Banque/Caisse","Banque/Caisse"]
[7,"TDDC","Technologies du Développement Durables Canada"]
[8,"BDC","Banque de développement du Canada"]
[9,"CDE","Centre de développement économique"]
[10,"MAPAQ","Ministère Agriculture Pêcheries et Alimentation  du Québec"]
[11,"MELS","Ministère de l'Éducation des Loisir et des Sports"]
[12,"MFE","Ministère Finance et de l'Économie"]
[13,"MSSS","Ministére de la sSanté et des Services Sociaux"]
[14,"MTQ","Ministère duTransport du Québec"]
[15,"Autre…"]
[16,"Requérant"]
[]
[0,"Choisir…",0,0,"Choisir…",0]
[1,"kg",1,1,"m²",1]
[2,"lbs",{"$f":"1/2.204624","v":0.45359208645102295},2,"pi²",9.2903040000000006E-2]
[]
[]
[null,false,null,false,false,false,false]
[null,false,null,false,false,false,false]
[null,false,null,false,null,false,false]
["Innovation","Analyse","Efficacité","Conversion","Gestion","Connaissances","OPTER",null,"1","Innovation","2","Analyse","3","Efficacité","4","Conversion","5","Gestion","6","Connaissances","7","Émissions Fugitives","Tonne min","Aide max"]
[false,true,false,false,false,false,false,null,"11","R&D (reconnu)","21","Étude","31","Implantation","41","Bioénergies","51","Gestion d'énergie","61","Écoconduite","71","Optimisation réfrigération"]
[null,false,null,false,false,false,false,0.15,"12","R&D (Autre)","222","Étude IP préliminaire",null,null,"42","Énergies émergentes","52","Agriculture","62","développement","72","Autres procédés"]
[null,false,null,false,false,false,false,0.15,"13","Démonstration","221","Étude IP",null,null,"42","Solaires"]
[null,false,null,false,null,false,false,0.1,"14","Mesurage","23","Approvisionnement",null,null,"43","Traditionnelles"]
[null,false,null,false,null,null,null,null,"15","Précommercialisation"]
[null,false,null,null,null,null,null,null,"16","Diffusion"]
[null,"Référence",null,"Projet"]
[null,"Interne","Externe","Interne","Externe"]
[{"$f":"'3.1 Rapport détaillé des coûts'!U5","v":"A. Acquisition équipement/matériel"},{"$f":"'3.1 Rapport détaillé des coûts'!V5","v":0},{"$f":"'3.1 Rapport détaillé des coûts'!W5","v":0},{"$f":"'3.1 Rapport détaillé des coûts'!Y5","v":0},{"$f":"'3.1 Rapport détaillé des coûts'!Z5","v":0}]
[{"$f":"'3.1 Rapport détaillé des coûts'!U6","v":"B. Acquisition/location de l'équipement de mesurage"},{"$f":"'3.1 Rapport détaillé des coûts'!V6","v":0},{"$f":"'3.1 Rapport détaillé des coûts'!W6","v":0},{"$f":"'3.1 Rapport détaillé des coûts'!Y6","v":0},{"$f":"'3.1 Rapport détaillé des coûts'!Z6","v":0}]
[{"$f":"'3.1 Rapport détaillé des coûts'!U7","v":"C. Mesurage, quantification et vérification"},{"$f":"'3.1 Rapport détaillé des coûts'!V7","v":0},{"$f":"'3.1 Rapport détaillé des coûts'!W7","v":0},{"$f":"'3.1 Rapport détaillé des coûts'!Y7","v":0},{"$f":"'3.1 Rapport détaillé des coûts'!Z7","v":0}]
[{"$f":"'3.1 Rapport détaillé des coûts'!U8","v":"D. Ingénierie ou services professionnels *"},{"$f":"'3.1 Rapport détaillé des coûts'!V8","v":0},{"$f":"'3.1 Rapport détaillé des coûts'!W8","v":0},{"$f":"'3.1 Rapport détaillé des coûts'!Y8","v":0},{"$f":"'3.1 Rapport détaillé des coûts'!Z8","v":0}]
[{"$f":"'3.1 Rapport détaillé des coûts'!U9","v":"E. Installation et mise en fonction"},{"$f":"'3.1 Rapport détaillé des coûts'!V9","v":0},{"$f":"'3.1 Rapport détaillé des coûts'!W9","v":0},{"$f":"'3.1 Rapport détaillé des coûts'!Y9","v":0},{"$f":"'3.1 Rapport détaillé des coûts'!Z9","v":0}]
[{"$f":"'3.1 Rapport détaillé des coûts'!U10","v":"F. Contingences"},{"$f":"'3.1 Rapport détaillé des coûts'!V10","v":0},{"$f":"'3.1 Rapport détaillé des coûts'!W10","v":0},{"$f":"'3.1 Rapport détaillé des coûts'!Y10","v":0},{"$f":"'3.1 Rapport détaillé des coûts'!Z10","v":0}]
["Total",{"$f":"SUM(B64:B69)","v":0},{"$f":"SUM(C64:C69)","v":0},{"$f":"SUM(D64:D69)","v":0},{"$f":"SUM(E64:E69)","v":0}]
[]
[]
[]
["Energie_SEQ","Energie_Forme","Energie_Unite","Energie_MJU","CO2equivNeutralite","Energie_kWhU","Energie_BtuU","Energie_Commentaire","Code_Etape","ABR","CO2","CH4","N2O","CO2equiv","Type_NRJ","CodeCompileMaz","PCGIECdef","PCGIECmin","PCGIECmax","FEGIECdef","FEGIECmin","FEGIECmax","%CO2Prod","CO2prod",null,"PRP_SEQ","PRP_GAZ",null,"PRP_FORMULE","PRP_PRP","Source donnees"]
[1,"Électricité","kWh",3.6,2.04,1,3413,"Annexe 13 du Rapport d'inventaire national du Canada 1990-2010 partie 3","02",null,2,2.0000000000000001E-4,1E-4,2.04,"E",0,"","","","","","",0,0,null,1,"Dioxyde de carbone (R-744)","kg","CO2",1,"Règlement sur la déclaration obligatoire de certaines émission de contaminants dans l'atmosphère, Loi sur la qualité de l'environnement, Q-2, a.2.2, 109.1 et 124.1"]
[2,"Gaz naturel","m³",37.89,1889.32,10.525,35921.944000000003,"Règlement sur la déclaration obligatoire de certaines émission de contaminants dans l'atmosphère, Loi sur la qualité de l'environnement, Q-2, a.2.2, 109.1 et 124.1\nUtilisation des données pour usages industriels, ciment, secteur manufacturier et secteurs ","03",null,1878,3.6999999999999998E-2,3.4000000000000002E-2,1889.32,"G",0,"33,6","32,55","35,28","56,1","54,3","58,3",0.1285,244.40789950000001,null,10,"HFC-134a","kg","CH2FCF3",1300,"Règlement sur la déclaration obligatoire de certaines émission de contaminants dans l'atmosphère, Loi sur la qualité de l'environnement, Q-2, a.2.2, 109.1 et 124.1"]
[3,"Mazout léger no 2","L",38.5,2734.7359999999999,10.69,36500.14,"Règlement sur la déclaration obligatoire de certaines émission de contaminants dans l'atmosphère, Loi sur la qualité de l'environnement, Q-2, a.2.2, 109.1 et 124.1\nUtilisation des données pour usages industriels.","04",null,2725,6.0000000000000001E-3,3.1E-2,2734.7359999999999,"MA2",1,"","","","","","",0.107,292.61675200000002,null,31,"HCFC-22 (R-22)","kg","CHClF2",1810,"Changes in atmospheric constituents and in radiative forcing (table 2.14 100-yr TAR)"]
[4,"Mazout lourd (nos 4, 5 et 6)","L",42.5,3146.36,11.805555555,40292.361109999998,"Règlement sur la déclaration obligatoire de certaines émission de contaminants dans l'atmosphère, Loi sur la qualité de l'environnement, Q-2, a.2.2, 109.1 et 124.1\nUtilisation des données pour usages industriels.","04",null,3124,0.12,6.4000000000000001E-2,3146.36,"MA6",1,"","","","","","",0.13700000000000001,431.05131999999998,null,47,"R-404A","kg","0,04(HFC-134a)+0,44(HFC-125)+0,52(HFC-143a)",3260,"Règlement sur la déclaration obligatoire de certaines émission de contaminants dans l'atmosphère, Loi sur la qualité de l'environnement, Q-2, a.2.2, 109.1 et 124.1"]
[5,"Propane","L",25.31,1543.9839999999999,7.03,23995.29,"Règlement sur la déclaration obligatoire de certaines émission de contaminants dans l'atmosphère, Loi sur la qualité de l'environnement, Q-2, a.2.2, 109.1 et 124.1","07",null,1510,2.4E-2,0.108,1543.9839999999999,"P",1,"25,542","24,192","28,188","63,1","61,6","65,6",0.188,290.26899200000003,null,50,"R-407A","kg","0,4(HFC-134a)+0,4(HFC-125)+0,2(HFC-32)",1770,"Règlement sur la déclaration obligatoire de certaines émission de contaminants dans l'atmosphère, Loi sur la qualité de l'environnement, Q-2, a.2.2, 109.1 et 124.1"]
[6,"Diesel","L",38.299999999999997,2789.7930000000001,10.64,36310.53,"Règlement sur la déclaration obligatoire de certaines émission de contaminants dans l'atmosphère, Loi sur la qualité de l'environnement, Q-2, a.2.2, 109.1 et 124.1","06",null,2663,0.13300000000000001,0.4,2789.7930000000001,"",1,"36,55","35,19","36,805","74,1","72,6","74,8",0.107,298.50785100000002,null,85,"R-507a","kg","0,5(HFC-125)+0,5(HFC-143a)",3300,"Règlement sur la déclaration obligatoire de certaines émission de contaminants dans l'atmosphère, Loi sur la qualité de l'environnement, Q-2, a.2.2, 109.1 et 124.1"]
[7,"Essence (automobile)","L",34.869999999999997,2361.92,9.69,33058.699999999997,"Règlement sur la déclaration obligatoire de certaines émission de contaminants dans l'atmosphère, Loi sur la qualité de l'environnement, Q-2, a.2.2, 109.1 et 124.1","05",null,2289,2.7,0.05,2361.1999999999998,"",1,"36,55","35,19","36,805","74,1","72,6","74,8",0.17,401.52640000000002,null,86,"Ammoniac (R-717)","kg","NH3",0,"Internation Institute of Ammonia Refrigeration  (IIAR) www.iiar.org"]
[8,"Essence (aviation)","L",33.520000000000003,2459.5,9.31,31778.82,"Règlement sur la déclaration obligatoire de certaines émission de contaminants dans l'atmosphère, Loi sur la qualité de l'environnement, Q-2, a.2.2, 109.1 et 124.1","05",null,2342,2.2000000000000002,0.23,2459.5,"",1,"","","","","","",0.17,418.11500000000001,null,92,"R-422D","kg","0,651(HFC-125)+0,315(HFC-134a)+0,034*(600a)",2292.2800000000002,"Règlement sur la déclaration obligatoire de certaines émission de contaminants dans l'atmosphère, Loi sur la qualité de l'environnement, Q-2, a.2.2, 109.1 et 124.1"]
[9,"Carburéacteur","L",37.4,2606.98,10.39,35457.279999999999,"Règlement sur la déclaration obligatoire de certaines émission de contaminants dans l'atmosphère, Loi sur la qualité de l'environnement, Q-2, a.2.2, 109.1 et 124.1","","",2534,0.08,0.23,2606.98,"",1,"31,453","30,175","31,808","70","67,5","73",9.2999999999999999E-2,242.44914,null,74,"Bromure de méthyle","kg","CH3Br",5,"Changes in atmospheric constituents and in radiative forcing (table 2.14 100-yr TAR)"]
[10,"Kérosène","L",37.68,2543.7359999999999,10.469443999999999,35722.730000000003,"Règlement sur la déclaration obligatoire de certaines émission de contaminants dans l'atmosphère, Loi sur la qualité de l'environnement, Q-2, a.2.2, 109.1 et 124.1","","",2534,6.0000000000000001E-3,3.1E-2,2543.7359999999999,"",1,"","","","","","",9.2999999999999999E-2,236.56744800000001,null,25,"CFC-11","kg","CCl3F",4750,"Changes in atmospheric constituents and in radiative forcing (table 2.14 100-yr TAR)"]
[11,"Bitume","L",44.46,1778.4,12.35,42150.55,"Règlement sur la déclaration obligatoire de certaines émission de contaminants dans l'atmosphère, Loi sur la qualité de l'environnement, Q-2, a.2.2, 109.1 et 124.1.  Facteur d’émission du guid des facteurs d’émissions de l’ADEME version 5.0.","","",1778.4,"","",1778.4,"",1,"40,2","33,5","41,2","80,7","73","89,9",0.13700000000000001,243.64080000000001,null,28,"CFC-113","kg","CCl2FCClF2",6130,"Changes in atmospheric constituents and in radiative forcing (table 2.14 100-yr TAR)"]
[12,"Gaz de distillation (du raffinage)","L",36.08,1756.88,10.02,34205.839999999997,"Règlement sur la déclaration obligatoire de certaines émission de contaminants dans l'atmosphère, Loi sur la qualité de l'environnement, Q-2, a.2.2, 109.1 et 124.1","","",1750,"",2.2200000000000001E-2,1756.88,"",1,"49,9","47,5","50,6","57,6","48,2","69",0.188,329.00112799999999,null,29,"CFC-114","kg","CClF2CClF2",10000,"Changes in atmospheric constituents and in radiative forcing (table 2.14 100-yr TAR)"]
[16,"Lignite","kg",15,1486.83,4.17,14220.83,"Règlement sur la déclaration obligatoire de certaines émission de contaminants dans l'atmosphère, Loi sur la qualité de l'environnement, Q-2, a.2.2, 109.1 et 124.1","","",1480,0.03,0.02,1486.83,"",1,"11,9","5,5","21,6","101","90,9","115",0.08,118.9464,null,30,"CFC-115","kg","CClF2CF3",7370,"Changes in atmospheric constituents and in radiative forcing (table 2.14 100-yr TAR)"]
[19,"Butane","L",28.44,1763.9839999999999,7.9,26962.7,"Règlement sur la déclaration obligatoire de certaines émission de contaminants dans l'atmosphère, Loi sur la qualité de l'environnement, Q-2, a.2.2, 109.1 et 124.1","","",1730,2.4E-2,0.108,1763.9839999999999,"",1,"","","","","","",0.188,331.62899199999998,null,26,"CFC-12","kg","CCl2F2",10900,"Changes in atmospheric constituents and in radiative forcing (table 2.14 100-yr TAR)"]
[20,"Éthane","L",17.22,976,4.78,16325.52,"Règlement sur la déclaration obligatoire de certaines émission de contaminants dans l'atmosphère, Loi sur la qualité de l'environnement, Q-2, a.2.2, 109.1 et 124.1","","",976,"","",976,"",1,"","","","","","",9.2999999999999999E-2,90.768000000000001,null,27,"CFC-13","kg","CClF3",14400,"Changes in atmospheric constituents and in radiative forcing (table 2.14 100-yr TAR)"]
[21,"Coke de charbon","kg",28.83,2486.83,8.0083333329999995,27332.44167,"Règlement sur la déclaration obligatoire de certaines émission de contaminants dans l'atmosphère, Loi sur la qualité de l'environnement, Q-2, a.2.2, 109.1 et 124.1.\nUtilisation des données CH4 et N2O pour le secteur industriel, centrales thermiques à vape","","",2480,0.03,0.02,2486.83,"",1,"28,2","25,1","30,2","107","95,7","119",0.08,198.94640000000001,null,38,"Halon 1301","kg","CBrF3",7140,"Changes in atmospheric constituents and in radiative forcing (table 2.14 100-yr TAR)"]
[22,"Coke de pétrole (raffinage)","kg",46.35,3836.7350000000001,12.88,43942.38,"Règlement sur la déclaration obligatoire de certaines émission de contaminants dans l'atmosphère, Loi sur la qualité de l'environnement, Q-2, a.2.2, 109.1 et 124.1","","",3826,0.12,2.6499999999999999E-2,3836.7350000000001,"",1,"32,5","29,7","41,9","97,5","82,9","115",0.08,306.93880000000001,null,83,"Halon-1211","kg","CBrClF2",1890,"Changes in atmospheric constituents and in radiative forcing (table 2.14 100-yr TAR)"]
[23,"Charbon de bois","kg",27.599910999999999,35.966000000000001,7.6666419000000001,26166.248,"Enlever","","",3190,0.57599999999999996,7.6999999999999999E-2,3231.9659999999999,"",1,"29,5","14,9","58","112","95","132",0,0,null,84,"Halon-2402","kg","CBrF2CBrF2",1640,"Changes in atmospheric constituents and in radiative forcing (table 2.14 100-yr TAR)"]
[26,"Liqueur usée de cuisson base sèche","kg",14.2,9.2309999999999999,3.94,13462.39,"Règlement sur la déclaration obligatoire de certaines émission de contaminants dans l'atmosphère, Loi sur la qualité de l'environnement, Q-2, a.2.2, 109.1 et 124.1","","",1304,4.1000000000000002E-2,2.7E-2,1313.23,"",2,"","","","85,3","80,7","110",0,0,null,32,"HCFC-123","kg","CHCl2CF3",77,"Changes in atmospheric constituents and in radiative forcing (table 2.14 100-yr TAR)"]
[29,"Bi-énergie chauffage électrique","kWh",3.6,"",1,3413,"","","","","","","","",0,"","","","","","",0,0,null,33,"HCFC-124","kg","CHClFCF3",609,"Changes in atmospheric constituents and in radiative forcing (table 2.14 100-yr TAR)"]
[30,"Autre","GJ",1000,0,277.77777700000001,948055.52,"","","","","","","","",0,"","","","","","",0,0,null,34,"HCFC-141b","kg","CH3CCl2F",725,"Changes in atmospheric constituents and in radiative forcing (table 2.14 100-yr TAR)"]
[31,"Vapeur","Lbs",1.0547902,0,0.29299730000000002,1000,"","","","","","","","",0,"","","","","","",0,0,null,35,"HCFC-142b","kg","CH3CClF2",2310,"Changes in atmospheric constituents and in radiative forcing (table 2.14 100-yr TAR)"]
[36,"Biomasse résiduelle","kg",14.77,35.966000000000001,4.0999999999999996,14002.74,"Règlement sur la déclaration obligatoire de certaines émission de contaminants dans l'atmosphère, Loi sur la qualité de l'environnement, Q-2, a.2.2, 109.1 et 124.1","",1,1799,0.57599999999999996,7.6999999999999999E-2,1834.97,"",2,"15,6","7,9","31","112","95","132",0,0,null,36,"HCFC-225ca","kg","CHCl2CF2CF3",122,"Changes in atmospheric constituents and in radiative forcing (table 2.14 100-yr TAR)"]
[59,"Écorces","kg",20,35.966000000000001,5.5555554999999996,18960.955555500001,"Forintek avec valeur de la biomasse pour les émissions",null,1,1799,0.57599999999999996,7.6999999999999999E-2,1834.97,null,2,null,null,null,null,null,null,0,0,null,37,"HCFC-225cb","kg","CHClFCF2CClF2",595,"Changes in atmospheric constituents and in radiative forcing (table 2.14 100-yr TAR)"]
[37,"Gaz de distillation (de valorisation)","m³",43.24,2146.88,12.01,40993.919999999998,"Règlement sur la déclaration obligatoire de certaines émission de contaminants dans l'atmosphère, Loi sur la qualité de l'environnement, Q-2, a.2.2, 109.1 et 124.1","","",2140,0,2.2200000000000001E-2,2146.88,"",1,"","","","57,6","48,2","69",0.188,329.00131599999997,null,24,"Hexafluorure de soufre","kg","SF6",23900,"Règlement sur la déclaration obligatoire de certaines émission de contaminants dans l'atmosphère, Loi sur la qualité de l'environnement, Q-2, a.2.2, 109.1 et 124.1"]
[39,"CRD","kg",16.72,714.94719999999995,4.644444,15851.488890000001,"note: rebus de construction","","",715.94719999999995,0,0,714.94719999999995,"",1,"","","","42,76","","",0,0,null,8,"HFC-125","kg","C2HF5",2800,"Règlement sur la déclaration obligatoire de certaines émission de contaminants dans l'atmosphère, Loi sur la qualité de l'environnement, Q-2, a.2.2, 109.1 et 124.1"]
[40,"Lubrifiants (huiles usées)","L",39.159999999999997,2422.36,10.877777777777776,37125.85555555555,"Règlement sur la déclaration obligatoire de certaines émission de contaminants dans l'atmosphère, Loi sur la qualité de l'environnement, Q-2, a.2.2, 109.1 et 124.1","","",2400,0.12,6.4000000000000001E-2,2422.36,"",1,"","","","","","",0,0,null,9,"HFC-134","kg","CHF2CHF2",1000,"Règlement sur la déclaration obligatoire de certaines émission de contaminants dans l'atmosphère, Loi sur la qualité de l'environnement, Q-2, a.2.2, 109.1 et 124.1"]
[41,"Mazout léger no 1","L",38.78,2652.7360000000003,10.772222222222222,36765.594444444447,"Règlement sur la déclaration obligatoire de certaines émission de contaminants dans l'atmosphère, Loi sur la qualité de l'environnement, Q-2, a.2.2, 109.1 et 124.1\nUtilisation des données pour autoconsommation","","",2643,6.0000000000000001E-3,3.1E-2,2652.7360000000003,"",1,"","","","","","",0.107,283.84275200000002,null,11,"HFC-143","kg","C2H3F3",300,"Règlement sur la déclaration obligatoire de certaines émission de contaminants dans l'atmosphère, Loi sur la qualité de l'environnement, Q-2, a.2.2, 109.1 et 124.1"]
[45,"Coke de pétrole (de valorisation)","L",40.57,3503.681,11.269444444444444,38462.613888888889,"Règlement sur la déclaration obligatoire de certaines émission de contaminants dans l'atmosphère, Loi sur la qualité de l'environnement, Q-2, a.2.2, 109.1 et 124.1","","",3494,0.12,2.3099999999999999E-2,3503.681,"",1,"","","","","","",0.08,280.29448000000002,null,12,"HFC-143a","kg","C2H3F3",3800,"Règlement sur la déclaration obligatoire de certaines émission de contaminants dans l'atmosphère, Loi sur la qualité de l'environnement, Q-2, a.2.2, 109.1 et 124.1"]
[46,"Éthanol (100%)","L",23.41,1519,6.5027777777777773,22193.980555555554,"Règlement sur la déclaration obligatoire de certaines émission de contaminants dans l'atmosphère, Loi sur la qualité de l'environnement, Q-2, a.2.2, 109.1 et 124.1","","",1519,0,0,1519,"",2,"","","","","","",0,0,null,13,"HFC-152a","kg","C2H4F2",140,"Règlement sur la déclaration obligatoire de certaines émission de contaminants dans l'atmosphère, Loi sur la qualité de l'environnement, Q-2, a.2.2, 109.1 et 124.1"]
[47,"Biodiésel","L",35.67,0,9.9083333333333332,33817.141666666663,"Règlement sur la déclaration obligatoire de certaines émission de contaminants dans l'atmosphère, Loi sur la qualité de l'environnement, Q-2, a.2.2, 109.1 et 124.1","","",2497,0,0,2497,"",2,"","","","","","",0,0,null,77,"HFC-161","kg","C2H5F",12,"Règlement sur la déclaration obligatoire de certaines émission de contaminants dans l'atmosphère, Loi sur la qualité de l'environnement, Q-2, a.2.2, 109.1 et 124.1"]
[48,"Gras animal fondu","L",34.840000000000003,0,9.6777777777777789,33030.255555555559,"Règlement sur la déclaration obligatoire de certaines émission de contaminants dans l'atmosphère, Loi sur la qualité de l'environnement, Q-2, a.2.2, 109.1 et 124.1","","",2348,0,0,2348,"",2,"","","","","","",0,0,null,14,"HFC-227ea","kg","C3HF7",2900,"Règlement sur la déclaration obligatoire de certaines émission de contaminants dans l'atmosphère, Loi sur la qualité de l'environnement, Q-2, a.2.2, 109.1 et 124.1"]
[49,"Huile végétale","L",33.44,0,9.2888888888888879,31702.977777777774,"Règlement sur la déclaration obligatoire de certaines émission de contaminants dans l'atmosphère, Loi sur la qualité de l'environnement, Q-2, a.2.2, 109.1 et 124.1","","",2585,0,0,2585,"",2,"","","","","","",0,0,null,4,"HFC-23","kg","CHF3",11700,"Règlement sur la déclaration obligatoire de certaines émission de contaminants dans l'atmosphère, Loi sur la qualité de l'environnement, Q-2, a.2.2, 109.1 et 124.1"]
[50,"Charbon bitumineux étranger","kg",29.82,2346.83,8.2833333333333332,28271.016666666666,"Règlement sur la déclaration obligatoire de certaines émission de contaminants dans l'atmosphère, Loi sur la qualité de l'environnement, Q-2, a.2.2, 109.1 et 124.1.\nUtilisation du charbon américain.\nUtilisation des données CH4 et N2O pour le secteur indus","","",2340,0.03,0.02,2346.83,"",1,"","","","","","",0.08,187.74639999999999,null,78,"HFC-236cb","kg","C3H2F6",1300,"Règlement sur la déclaration obligatoire de certaines émission de contaminants dans l'atmosphère, Loi sur la qualité de l'environnement, Q-2, a.2.2, 109.1 et 124.1"]
[51,"Matières résiduelles collectés par une municipalité","kg",11.57,21.642099999999999,3.213888888888889,10969.002777777778,"Règlement sur la déclaration obligatoire de certaines émission de contaminants dans l'atmosphère, Loi sur la qualité de l'environnement, Q-2, a.2.2, 109.1 et 124.1.z","","",990.39200000000005,0.34710000000000002,4.6280000000000002E-2,1012.034,"",2,"","","","","","",0,0,null,79,"HFC-236ea","kg","C3H2F6",1200,"Règlement sur la déclaration obligatoire de certaines émission de contaminants dans l'atmosphère, Loi sur la qualité de l'environnement, Q-2, a.2.2, 109.1 et 124.1"]
[52,"Tourbe","kg",9.3000000000000007,4.5198,2.5833333333333335,8816.9166666666679,"Règlement sur la déclaration obligatoire de certaines émission de contaminants dans l'atmosphère, Loi sur la qualité de l'environnement, Q-2, a.2.2, 109.1 et 124.1\n1 kg donne 11,57 MJ","",1,957.9,8.9999999999999993E-3,1.3950000000000001E-2,962.41980000000001,"",2,"","","","","","",0,0,null,15,"HFC-236fa","kg","C3H2F6",6300,"Règlement sur la déclaration obligatoire de certaines émission de contaminants dans l'atmosphère, Loi sur la qualité de l'environnement, Q-2, a.2.2, 109.1 et 124.1"]
[53,"Pneus","kg",31.18,2650,8.6611111111111114,29560.372222222224,"Règlement sur la déclaration obligatoire de certaines émission de contaminants dans l'atmosphère, Loi sur la qualité de l'environnement, Q-2, a.2.2, 109.1 et 124.1","","",2650,0,0,2650,"",1,"","","","","","",0,0,null,16,"HFC-245ca","kg","C3H3F5",560,"Règlement sur la déclaration obligatoire de certaines émission de contaminants dans l'atmosphère, Loi sur la qualité de l'environnement, Q-2, a.2.2, 109.1 et 124.1"]
[54,"Sous-produits agricoles (qui ne sont pas destinés à la consommation)","kg",9.59,0,2.6638888888888888,9091.8527777777781,"Règlement sur la déclaration obligatoire de certaines émission de contaminants dans l'atmosphère, Loi sur la qualité de l'environnement, Q-2, a.2.2, 109.1 et 124.1","",1,1074,0,0,1074,"",2,"","","","","","",0,0,null,80,"HFC-245fa","kg","C3H3F5",950,"Règlement sur la déclaration obligatoire de certaines émission de contaminants dans l'atmosphère, Loi sur la qualité de l'environnement, Q-2, a.2.2, 109.1 et 124.1"]
[55,"Sous-produits de la biomasse (résidus animaux et végétaux, excluant les résidus de bois et la liqueur de cuisson)","kg",30.03,0,8.4166666666666661,28726.083333333332,"Règlement sur la déclaration obligatoire de certaines émission de contaminants dans l'atmosphère, Loi sur la qualité de l'environnement, Q-2, a.2.2, 109.1 et 124.1","",1,3000,0,0,3000,"",2,"","","","","","",0,0,null,118,"HFC-245fa","kg","CHF 2CH 2CF 3",0,""]
[56,"Gaz de cokerie","m³",19.14,890.62700000000007,5.3166666666666664,18145.783333333333,"Règlement sur la déclaration obligatoire de certaines émission de contaminants dans l'atmosphère, Loi sur la qualité de l'environnement, Q-2, a.2.2, 109.1 et 124.1","","",879,3.6999999999999998E-2,3.5000000000000003E-2,890.62700000000007,"",1,"","","","","","",0.188,167.43787599999999,null,5,"HFC-32","kg","CH2F2",650,"Règlement sur la déclaration obligatoire de certaines émission de contaminants dans l'atmosphère, Loi sur la qualité de l'environnement, Q-2, a.2.2, 109.1 et 124.1"]
[57,"Biogaz (portion méthane)","m³",38.32,11.317,10.64,36361.42,"Règlement sur la déclaration obligatoire de certaines émission de contaminants dans l'atmosphère, Loi sur la qualité de l'environnement, Q-2, a.2.2, 109.1 et 124.1","",1,1878,3.6999999999999998E-2,3.4000000000000002E-2,1889.32,"",2,"","","","","","",0,0,null,119,"HFC-365mfc","kg","",0,""]
[58,"Gaz d'enfouissement (portion méthane)","m³",38.32,11.317,10.64,36361.42,"Règlement sur la déclaration obligatoire de certaines émission de contaminants dans l'atmosphère, Loi sur la qualité de l'environnement, Q-2, a.2.2, 109.1 et 124.1","",1,1878,3.6999999999999998E-2,3.4000000000000002E-2,1889.32,"",2,"","","","","","",0,0,null,81,"HFC-365mfc","kg","C4H5F5",890,"Règlement sur la déclaration obligatoire de certaines émission de contaminants dans l'atmosphère, Loi sur la qualité de l'environnement, Q-2, a.2.2, 109.1 et 124.1"]
[61,"Biocharbon","kg",27.6,35.966000000000001,7.67,16166.25,"Règlement sur la déclaration obligatoire de certaines émission de contaminants dans l'atmosphère, Loi sur la qualité de l'environnement, Q-2, a.2.2, 109.1 et 124.1","",1,3190,0.57599999999999996,7.6999999999999999E-2,3225.9659999999999,"",1,"","","","","","",0,0,null,6,"HFC-41","kg","CH3F",150,"Règlement sur la déclaration obligatoire de certaines émission de contaminants dans l'atmosphère, Loi sur la qualité de l'environnement, Q-2, a.2.2, 109.1 et 124.1"]
[null,null,null,null,null,null,null,null,null,null,null,null,null,null,null,null,null,null,null,null,null,null,null,null,null,7,"HFC-43-10mee","kg","C5H2F10",1300,"Règlement sur la déclaration obligatoire de certaines émission de contaminants dans l'atmosphère, Loi sur la qualité de l'environnement, Q-2, a.2.2, 109.1 et 124.1"]
[null,null,null,null,null,null,null,null,null,null,null,null,null,null,null,null,null,null,null,null,null,null,null,null,null,2,"Méthane (R-50)","kg","CH4",21,"Règlement sur la déclaration obligatoire de certaines émission de contaminants dans l'atmosphère, Loi sur la qualité de l'environnement, Q-2, a.2.2, 109.1 et 124.1"]
[null,null,null,null,null,null,null,null,null,null,null,null,null,null,null,null,null,null,null,null,null,null,null,null,null,120,"Méthylchloroforme","kg","CH3CCl3",0,""]
[null,null,null,null,null,null,null,null,null,null,null,null,null,null,null,null,null,null,null,null,null,null,null,null,null,3,"Oxyde nitreux (R-744a)","kg","N2O",310,"Règlement sur la déclaration obligatoire de certaines émission de contaminants dans l'atmosphère, Loi sur la qualité de l'environnement, Q-2, a.2.2, 109.1 et 124.1"]
[null,null,null,null,null,null,null,null,null,null,null,null,null,null,null,null,null,null,null,null,null,null,null,null,null,72,"Oxyfume 88/12","kg","0,914(HCFC-124)+0,086(ethylene oxyde)",7480,"Sterilant product. U.S. Clean Air Act regulations will ban the sale and use of most HCFC-based products like Oxyfume in the United States as of Dec. 31, 2014. This registered mark will not be manufactured after december 31, 2013,"]
[null,null,null,null,null,null,null,null,null,null,null,null,null,null,null,null,null,null,null,null,null,null,null,null,null,20,"Perfluorobutane (PFC-3-1-10)","kg","C4F10",7000,"Règlement sur la déclaration obligatoire de certaines émission de contaminants dans l'atmosphère, Loi sur la qualité de l'environnement, Q-2, a.2.2, 109.1 et 124.1"]
[null,null,null,null,null,null,null,null,null,null,null,null,null,null,null,null,null,null,null,null,null,null,null,null,null,21,"Perfluorocyclobutane (PFC-318)","kg","c-C4F8",8700,"Règlement sur la déclaration obligatoire de certaines émission de contaminants dans l'atmosphère, Loi sur la qualité de l'environnement, Q-2, a.2.2, 109.1 et 124.1"]
[null,null,null,null,null,null,null,null,null,null,null,null,null,null,null,null,null,null,null,null,null,null,null,null,null,18,"Perfluoroéthane (PFC-116)","kg","C2F6",9200,"Règlement sur la déclaration obligatoire de certaines émission de contaminants dans l'atmosphère, Loi sur la qualité de l'environnement, Q-2, a.2.2, 109.1 et 124.1"]
[null,null,null,null,null,null,null,null,null,null,null,null,null,null,null,null,null,null,null,null,null,null,null,null,null,23,"Perfluorohexane (PFC5-1-14)","kg","C6F14",7400,"Règlement sur la déclaration obligatoire de certaines émission de contaminants dans l'atmosphère, Loi sur la qualité de l'environnement, Q-2, a.2.2, 109.1 et 124.1"]
[null,null,null,null,null,null,null,null,null,null,null,null,null,null,null,null,null,null,null,null,null,null,null,null,null,17,"Perfluorométhane (PFC-14)","kg","CF4",6500,"Règlement sur la déclaration obligatoire de certaines émission de contaminants dans l'atmosphère, Loi sur la qualité de l'environnement, Q-2, a.2.2, 109.1 et 124.1"]
[null,null,null,null,null,null,null,null,null,null,null,null,null,null,null,null,null,null,null,null,null,null,null,null,null,22,"Perfluoropentane (PFC-4-1-12)","kg","C5F12",7500,"Règlement sur la déclaration obligatoire de certaines émission de contaminants dans l'atmosphère, Loi sur la qualité de l'environnement, Q-2, a.2.2, 109.1 et 124.1"]
[null,null,null,null,null,null,null,null,null,null,null,null,null,null,null,null,null,null,null,null,null,null,null,null,null,19,"Perfluoropropane (PFC-218)","kg","C3F8",7000,"Règlement sur la déclaration obligatoire de certaines émission de contaminants dans l'atmosphère, Loi sur la qualité de l'environnement, Q-2, a.2.2, 109.1 et 124.1"]
[null,null,null,null,null,null,null,null,null,null,null,null,null,null,null,null,null,null,null,null,null,null,null,null,null,95,"R-400","kg","0,5(CFC-12)+0,5(CFC-114)",10450,"Changes in atmospheric constituents and in radiative forcing (table 2.14 100-yr TAR)"]
[null,null,null,null,null,null,null,null,null,null,null,null,null,null,null,null,null,null,null,null,null,null,null,null,null,40,"R-401A","kg","0,53(HCFC-22)+0,34(HCFC-124)+0,13(HFC-152a)",1182.48,"Changes in atmospheric constituents and in radiative forcing (table 2.14 100-yr TAR)"]
[null,null,null,null,null,null,null,null,null,null,null,null,null,null,null,null,null,null,null,null,null,null,null,null,null,41,"R-401B","kg","0,61(HCFC-22)+0,28(HCFC-124)+0,11(HFC-152a)",1288.26,"Changes in atmospheric constituents and in radiative forcing (table 2.14 100-yr TAR)"]
["No_Projet_Sagir_Abrev","Section","Code_Activité","Activité","GrandConsom","Secteur","Coût_Interne","Coût_externe","Coût","Aide_demande","CatMEE","CodeMEE",null,null,null,null,null,null,null,null,null,null,null,null,null,42,"R-401C","kg","0,33(HCFC-22)+0,15(HFC-152a)+0,52(HCFC-124)",934.98,"Changes in atmospheric constituents and in radiative forcing (table 2.14 100-yr TAR) et Règlement sur la déclaration obligatoire de certaines émission de contaminants dans l'atmosphère, Loi sur la qualité de l'environnement, Q-2, a.2.2, 109.1 et 124.1"]
[{"$f":"DQ$2","v":0},{"$f":"IF(B61=TRUE,\"8\",\"2\")","v":"2"},{"$f":"IF(B61=TRUE,\"81\",IF(B57=TRUE,\"21\",IF(B58=TRUE,\"221\",IF(B59=TRUE,\"23\",\"222\"))))","v":"222"},{"$f":"IF(B61=TRUE,\"Recommissioning\",IF(B57=TRUE,\"Études\",IF(B58=TRUE,\"Études IP\",IF(B59=TRUE,\"Études approvisionnement\",\"Études IP préliminaires\"))))","v":"Études IP préliminaires"},{"$f":"DV2","v":false},{"$f":"IF(DP2=\"Agricole\",\"Agricole\",IF(DP2=\"Transport\",\"Transport\",\"Affaires\"))","v":"Affaires"},{"$f":"'1. Demande'!R172","v":0},{"$f":"'1. Demande'!V172","v":0},{"$f":"'1. Demande'!AA172","v":0},{"$f":"'1. Demande'!AN186","v":0},50,{"$f":"IF(B61=TRUE,\"50.20\",IF(B57=TRUE,\"50.8\",IF(B58=TRUE,\"50.9\",IF(B59=TRUE,\"50.10\",\"50.11\"))))","v":"50.11"},null,null,null,null,null,null,null,null,null,null,null,null,null,43,"R-402A","kg","0,6(HFC-125)+0,38(HCFC-22)+0,02(C3H8)",2826.68,"Changes in atmospheric constituents and in radiative forcing (table 2.14 100-yr TAR) et Règlement sur la déclaration obligatoire de certaines émission de contaminants dans l'atmosphère, Loi sur la qualité de l'environnement, Q-2, a.2.2, 109.1 et 124.1"]
[null,null,null,null,null,null,null,null,null,null,null,null,null,null,null,null,null,null,null,null,null,null,null,null,null,44,"R-402B","kg","0,38(HFC-125)+0,60(HCFC-22)+0,02(C3H8)",2446.88,"Changes in atmospheric constituents and in radiative forcing (table 2.14 100-yr TAR) et Règlement sur la déclaration obligatoire de certaines émission de contaminants dans l'atmosphère, Loi sur la qualité de l'environnement, Q-2, a.2.2, 109.1 et 124.1"]
[null,null,null,null,null,null,null,null,null,null,null,null,null,null,null,null,null,null,null,null,null,null,null,null,null,45,"R-403A","kg","0,05(C3H8)+0,75(HCFC-22)+0,2(C3F8)",2834.6990000000001,"Règlement sur la déclaration obligatoire de certaines émission de contaminants dans l'atmosphère, Loi sur la qualité de l'environnement, Q-2, a.2.2, 109.1 et 124.1"]
[null,null,null,null,null,null,null,null,null,null,null,null,null,null,null,null,null,null,null,null,null,null,null,null,null,46,"R-403B","kg","0,05(C3H8)+0,56(HCFC-22)+0,39(C3F8)",3820.799,"Règlement sur la déclaration obligatoire de certaines émission de contaminants dans l'atmosphère, Loi sur la qualité de l'environnement, Q-2, a.2.2, 109.1 et 124.1"]
[null,null,null,null,null,null,null,null,null,null,null,null,null,null,null,null,null,null,null,null,null,null,null,null,null,48,"R-405A","kg","0,45(22)+0,07(152a)+0,055(142b)+0,425(C318)",4648.8500000000004,"Changes in atmospheric constituents and in radiative forcing (table 2.14 100-yr TAR) et Règlement sur la déclaration obligatoire de certaines émission de contaminants dans l'atmosphère, Loi sur la qualité de l'environnement, Q-2, a.2.2, 109.1 et 124.1"]
[null,null,null,null,null,null,null,null,null,null,null,null,null,null,null,null,null,null,null,null,null,null,null,null,null,49,"R-406A","kg","0,55(HCFC-22)+,04(R-600a)+0,41(HCFC-142b)",2013.16,"Changes in atmospheric constituents and in radiative forcing (table 2.14 100-yr TAR) et Règlement sur la déclaration obligatoire de certaines émission de contaminants dans l'atmosphère, Loi sur la qualité de l'environnement, Q-2, a.2.2, 109.1 et 124.1"]
[null,null,null,null,null,null,null,null,null,null,null,null,null,null,null,null,null,null,null,null,null,null,null,null,null,51,"R-407B","kg","0,1(HFC-32)+0,7(HFC-125)+0,2(HFC-134a)",2285,"Règlement sur la déclaration obligatoire de certaines émission de contaminants dans l'atmosphère, Loi sur la qualité de l'environnement, Q-2, a.2.2, 109.1 et 124.1"]
[null,null,null,null,null,null,null,null,null,null,null,null,null,null,null,null,null,null,null,null,null,null,null,null,null,52,"R-407C","kg","0,23(HFC-32)+0,25(HFC-125)+0,52(HFC-134a)",1525.5,"Règlement sur la déclaration obligatoire de certaines émission de contaminants dans l'atmosphère, Loi sur la qualité de l'environnement, Q-2, a.2.2, 109.1 et 124.1"]
[null,null,null,null,null,null,null,null,null,null,null,null,null,null,null,null,null,null,null,null,null,null,null,null,null,96,"R-407D","kg","0,15(HFC-32)+0,15(HFC-125)+0,7(HFC-134a)",1427.5,"Règlement sur la déclaration obligatoire de certaines émission de contaminants dans l'atmosphère, Loi sur la qualité de l'environnement, Q-2, a.2.2, 109.1 et 124.1"]
[null,null,null,null,null,null,null,null,null,null,null,null,null,null,null,null,null,null,null,null,null,null,null,null,null,97,"R-407E","kg","0,25(HFC-32)+0,15(HFC-125)+0,6(HFC-134a)",1362.5,"Règlement sur la déclaration obligatoire de certaines émission de contaminants dans l'atmosphère, Loi sur la qualité de l'environnement, Q-2, a.2.2, 109.1 et 124.1"]
[null,null,null,null,null,null,null,null,null,null,null,null,null,null,null,null,null,null,null,null,null,null,null,null,null,53,"R-408A","kg","0,47(HCFC-22)+0,46(HFC-143a)+0,07(HFC-125)",2794.7,"Changes in atmospheric constituents and in radiative forcing (table 2.14 100-yr TAR) et Règlement sur la déclaration obligatoire de certaines émission de contaminants dans l'atmosphère, Loi sur la qualité de l'environnement, Q-2, a.2.2, 109.1 et 124.1"]
[null,null,null,null,null,null,null,null,null,null,null,null,null,null,null,null,null,null,null,null,null,null,null,null,null,54,"R-409A","kg","0,6(HCFC-22)+0,25(HCFC-124)+0,15(HCFC-142b)",1584.75,"Changes in atmospheric constituents and in radiative forcing (table 2.14 100-yr TAR)"]
[null,null,null,null,null,null,null,null,null,null,null,null,null,null,null,null,null,null,null,null,null,null,null,null,null,98,"R-409B","kg","0,65(HCFC-22)+0,25(HCFC-124)+0,1(HCFC-142b)",1559.75,"Changes in atmospheric constituents and in radiative forcing (table 2.14 100-yr TAR)"]
[null,null,null,null,null,null,null,null,null,null,null,null,null,null,null,null,null,null,null,null,null,null,null,null,null,55,"R-410A","kg","0,5(HFC-125)+0,5(HFC-32)",1725,"Règlement sur la déclaration obligatoire de certaines émission de contaminants dans l'atmosphère, Loi sur la qualité de l'environnement, Q-2, a.2.2, 109.1 et 124.1"]
[null,null,null,null,null,null,null,null,null,null,null,null,null,null,null,null,null,null,null,null,null,null,null,null,null,56,"R-410B","kg","0,45(HFC-125)+0,55(HFC-32)",1617.5,"Règlement sur la déclaration obligatoire de certaines émission de contaminants dans l'atmosphère, Loi sur la qualité de l'environnement, Q-2, a.2.2, 109.1 et 124.1"]
["No_Projet_Sagir_Abrev","Code_Org","Partenaire","Detail","Type_aide","Contribution","Pourcent",null,null,null,null,null,null,null,null,null,null,null,null,null,null,null,null,null,null,57,"R-411A","kg","0,015*(R-1270)+0,875(HFC-22)+,11(HFC-152a)",1623.52,"Règlement sur la déclaration obligatoire de certaines émission de contaminants dans l'atmosphère, Loi sur la qualité de l'environnement, Q-2, a.2.2, 109.1 et 124.1 (note additionnelle: le 1,5% de propylene (R1270) a été négligé dans le calcul)"]
[{"$f":"DQ$2","v":0},{"$f":"'1. Demande'!C188","v":1},{"$f":"'1. Demande'!D188","v":"TEQ"},{"$f":"IF('1. Demande'!H188=\"\",\"\",'1. Demande'!H188)","v":"Transition énergétique Québec"},{"$f":"'1. Demande'!V188","v":"Subvention"},{"$f":"'1. Demande'!AE188","v":0},{"$f":"'1. Demande'!AN188","v":0},null,null,null,null,null,null,null,null,null,null,null,null,null,null,null,null,null,null,58,"R-411B","kg","0,03*(R-1270)+0,94(HFC-22)+,03(HFC-152a)",1758.35,"Règlement sur la déclaration obligatoire de certaines émission de contaminants dans l'atmosphère, Loi sur la qualité de l'environnement, Q-2, a.2.2, 109.1 et 124.1 (note additionnelle: le 1,5% de propylene (R1270) a été négligé dans le calcul)"]
[0,{"$f":"'1. Demande'!C189","v":16},{"$f":"'1. Demande'!D189","v":"Requérant"},{"$f":"IF('1. Demande'!H189=\"\",\"\",'1. Demande'!H189)","v":""},{"$f":"'1. Demande'!V189","v":"Choisir…"},{"$f":"'1. Demande'!AE189","v":0},{"$f":"'1. Demande'!AN189","v":0},null,null,null,null,null,null,null,null,null,null,null,null,null,null,null,null,null,null,59,"R-412A","kg","0,7(HCFC-22)+0,05(PFC-218)+0,25(HCFC-142b)",2194.5,"Changes in atmospheric constituents and in radiative forcing (table 2.14 100-yr TAR) et Règlement sur la déclaration obligatoire de certaines émission de contaminants dans l'atmosphère, Loi sur la qualité de l'environnement, Q-2, a.2.2, 109.1 et 124.1"]
[0,{"$f":"'1. Demande'!C190","v":""},{"$f":"'1. Demande'!D190","v":"Choisir…"},{"$f":"IF('1. Demande'!H190=\"\",\"\",'1. Demande'!H190)","v":""},{"$f":"'1. Demande'!V190","v":"Choisir…"},{"$f":"'1. Demande'!AE190","v":0},{"$f":"'1. Demande'!AN190","v":0},null,null,null,null,null,null,null,null,null,null,null,null,null,null,null,null,null,null,60,"R-413A","kg","0,09(PFC-218)+0,88(HFC-134a)+0,03*(600a)",1826.92,"Règlement sur la déclaration obligatoire de certaines émission de contaminants dans l'atmosphère, Loi sur la qualité de l'environnement, Q-2, a.2.2, 109.1 et 124.1 (note additionnelle: PRP du butane utilisé pour le PRP de l'isobutane)"]
[0,{"$f":"'1. Demande'!C191","v":""},{"$f":"'1. Demande'!D191","v":"Choisir…"},{"$f":"IF('1. Demande'!H191=\"\",\"\",'1. Demande'!H191)","v":""},{"$f":"'1. Demande'!V191","v":"Choisir…"},{"$f":"'1. Demande'!AE191","v":0},{"$f":"'1. Demande'!AN191","v":0},null,null,null,null,null,null,null,null,null,null,null,null,null,null,null,null,null,null,61,"R-414A","kg","0,51(R-22)+0,285(HCFC-124)+,04*(600a)+0,165(142b)",1548.37,"Changes in atmospheric constituents and in radiative forcing (table 2.14 100-yr TAR) et Règlement sur la déclaration obligatoire de certaines émission de contaminants dans l'atmosphère, Loi sur la qualité de l'environnement, Q-2, a.2.2, 109.1 et 124.1"]
[0,{"$f":"'1. Demande'!C192","v":""},{"$f":"'1. Demande'!D192","v":"Choisir…"},{"$f":"IF('1. Demande'!H192=\"\",\"\",'1. Demande'!H192)","v":""},{"$f":"'1. Demande'!V192","v":"Choisir…"},{"$f":"'1. Demande'!AE192","v":0},{"$f":"'1. Demande'!AN192","v":0},null,null,null,null,null,null,null,null,null,null,null,null,null,null,null,null,null,null,62,"R-414B","kg","0,5(R-22)+0,39(HCFC-124)+,015*(600a)+0,095(142b)",1388.42,"Changes in atmospheric constituents and in radiative forcing (table 2.14 100-yr TAR) et Règlement sur la déclaration obligatoire de certaines émission de contaminants dans l'atmosphère, Loi sur la qualité de l'environnement, Q-2, a.2.2, 109.1 et 124.1"]
[0,{"$f":"'1. Demande'!C193","v":""},{"$f":"'1. Demande'!D193","v":"Choisir…"},{"$f":"IF('1. Demande'!H193=\"\",\"\",'1. Demande'!H193)","v":""},{"$f":"'1. Demande'!V193","v":"Choisir…"},{"$f":"'1. Demande'!AE193","v":0},{"$f":"'1. Demande'!AN193","v":0},null,null,null,null,null,null,null,null,null,null,null,null,null,null,null,null,null,null,99,"R-415A","kg","0,82(HFC-22)+0,18(HFC-152a)",1509.4,"Changes in atmospheric constituents and in radiative forcing (table 2.14 100-yr TAR) et Règlement sur la déclaration obligatoire de certaines émission de contaminants dans l'atmosphère, Loi sur la qualité de l'environnement, Q-2, a.2.2, 109.1 et 124.1"]
[null,{"$f":"'1. Demande'!C194","v":""},{"$f":"'1. Demande'!D194","v":"Choisir…"},{"$f":"IF('1. Demande'!H194=\"\",\"\",'1. Demande'!H194)","v":""},{"$f":"'1. Demande'!V194","v":"Choisir…"},{"$f":"'1. Demande'!AE194","v":0},{"$f":"'1. Demande'!AN194","v":0},null,null,null,null,null,null,null,null,null,null,null,null,null,null,null,null,null,null,100,"R-415B","kg","0,25(HFC-22)+0,75(HFC-152a)",557.5,"Changes in atmospheric constituents and in radiative forcing (table 2.14 100-yr TAR) et Règlement sur la déclaration obligatoire de certaines émission de contaminants dans l'atmosphère, Loi sur la qualité de l'environnement, Q-2, a.2.2, 109.1 et 124.1",""]
[null,null,null,null,null,null,null,null,null,null,null,null,null,null,null,null,null,null,null,null,null,null,null,null,null,101,"R-416A","kg","0,59(HFC-134a)+0,395(HCFC-124)+0,015(600)",1034.01,"Changes in atmospheric constituents and in radiative forcing (table 2.14 100-yr TAR) et Règlement sur la déclaration obligatoire de certaines émission de contaminants dans l'atmosphère, Loi sur la qualité de l'environnement, Q-2, a.2.2, 109.1 et 124.1"]
["No_Projet_Sagir_Abrev","Code_FrmNRJ","Énergie","Unité","Production","Quantité","Coût","GJ","GES (t)","$/GJ","GJ/production",null,null,null,null,null,null,null,null,null,null,null,null,null,null,115,"R-417A","kg","0,466(HFC-125)+0,5(HFC-134a)+0,034(600)",2014.78,"Règlement sur la déclaration obligatoire de certaines émission de contaminants dans l'atmosphère, Loi sur la qualité de l'environnement, Q-2, a.2.2, 109.1 et 124.1"]
[{"$f":"DQ$2","v":0},{"$f":"'1. Demande'!C84","v":{"$error":"#N/A"}},{"$f":"'1. Demande'!D84","v":0},{"$f":"'1. Demande'!J84","v":""},{"$f":"'1. Demande'!N84","v":0},{"$f":"'1. Demande'!R84","v":0},{"$f":"'1. Demande'!V84","v":0},{"$f":"'1. Demande'!AA84","v":0},{"$f":"'1. Demande'!AE84","v":0},{"$f":"'1. Demande'!AJ84","v":0},{"$f":"'1. Demande'!AN84","v":0},null,null,null,null,null,null,null,null,null,null,null,null,null,null,102,"R-418A","kg","0,015(propane)+0,96(HCFC-22)+0,025(HFC-152a)",1764.26,"Changes in atmospheric constituents and in radiative forcing (table 2.14 100-yr TAR) et Règlement sur la déclaration obligatoire de certaines émission de contaminants dans l'atmosphère, Loi sur la qualité de l'environnement, Q-2, a.2.2, 109.1 et 124.1"]
[0,{"$f":"'1. Demande'!C85","v":{"$error":"#N/A"}},{"$f":"'1. Demande'!D85","v":0},{"$f":"'1. Demande'!J85","v":""},{"$f":"'1. Demande'!N85","v":0},{"$f":"'1. Demande'!R85","v":0},{"$f":"'1. Demande'!V85","v":0},{"$f":"'1. Demande'!AA85","v":0},{"$f":"'1. Demande'!AE85","v":0},{"$f":"'1. Demande'!AJ85","v":0},{"$f":"'1. Demande'!AN85","v":0},null,null,null,null,null,null,null,null,null,null,null,null,null,null,103,"R-419A","kg","0,77(HFC-125)+0,19(HFC-134a)+0,04(ethane)",2442.04,"Règlement sur la déclaration obligatoire de certaines émission de contaminants dans l'atmosphère, Loi sur la qualité de l'environnement, Q-2, a.2.2, 109.1 et 124.1"]
[0,{"$f":"'1. Demande'!C86","v":{"$error":"#N/A"}},{"$f":"'1. Demande'!D86","v":0},{"$f":"'1. Demande'!J86","v":""},{"$f":"'1. Demande'!N86","v":0},{"$f":"'1. Demande'!R86","v":0},{"$f":"'1. Demande'!V86","v":0},{"$f":"'1. Demande'!AA86","v":0},{"$f":"'1. Demande'!AE86","v":0},{"$f":"'1. Demande'!AJ86","v":0},{"$f":"'1. Demande'!AN86","v":0},null,null,null,null,null,null,null,null,null,null,null,null,null,null,104,"R-420A","kg","0,88(HFC-134a)+0,12(HCFC-142b)",1421.2,"Changes in atmospheric constituents and in radiative forcing (table 2.14 100-yr TAR) et Règlement sur la déclaration obligatoire de certaines émission de contaminants dans l'atmosphère, Loi sur la qualité de l'environnement, Q-2, a.2.2, 109.1 et 124.1"]
[0,{"$f":"'1. Demande'!C87","v":{"$error":"#N/A"}},{"$f":"'1. Demande'!D87","v":0},{"$f":"'1. Demande'!J87","v":""},{"$f":"'1. Demande'!N87","v":0},{"$f":"'1. Demande'!R87","v":0},{"$f":"'1. Demande'!V87","v":0},{"$f":"'1. Demande'!AA87","v":0},{"$f":"'1. Demande'!AE87","v":0},{"$f":"'1. Demande'!AJ87","v":0},{"$f":"'1. Demande'!AN87","v":0},null,null,null,null,null,null,null,null,null,null,null,null,null,null,105,"R-421A","kg","0,58(HFC-125)+0,42(HFC-134a)",2170,"Règlement sur la déclaration obligatoire de certaines émission de contaminants dans l'atmosphère, Loi sur la qualité de l'environnement, Q-2, a.2.2, 109.1 et 124.1"]
[0,{"$f":"'1. Demande'!C88","v":{"$error":"#N/A"}},{"$f":"'1. Demande'!D88","v":0},{"$f":"'1. Demande'!J88","v":""},{"$f":"'1. Demande'!N88","v":0},{"$f":"'1. Demande'!R88","v":0},{"$f":"'1. Demande'!V88","v":0},{"$f":"'1. Demande'!AA88","v":0},{"$f":"'1. Demande'!AE88","v":0},{"$f":"'1. Demande'!AJ88","v":0},{"$f":"'1. Demande'!AN88","v":0},null,null,null,null,null,null,null,null,null,null,null,null,null,null,106,"R-421B","kg","0,85(HFC-125)+0,15(HFC-134a)",2575,"Règlement sur la déclaration obligatoire de certaines émission de contaminants dans l'atmosphère, Loi sur la qualité de l'environnement, Q-2, a.2.2, 109.1 et 124.1"]
[0,{"$f":"'1. Demande'!C89","v":{"$error":"#N/A"}},{"$f":"'1. Demande'!D89","v":0},{"$f":"'1. Demande'!J89","v":""},{"$f":"'1. Demande'!N89","v":0},{"$f":"'1. Demande'!R89","v":0},{"$f":"'1. Demande'!V89","v":0},{"$f":"'1. Demande'!AA89","v":0},{"$f":"'1. Demande'!AE89","v":0},{"$f":"'1. Demande'!AJ89","v":0},{"$f":"'1. Demande'!AN89","v":0},null,null,null,null,null,null,null,null,null,null,null,null,null,null,89,"R-422A","kg","0,851(HFC-125)+0,115(HFC-134a)+0,034*(600a)",2292.27,"Règlement sur la déclaration obligatoire de certaines émission de contaminants dans l'atmosphère, Loi sur la qualité de l'environnement, Q-2, a.2.2, 109.1 et 124.1"]
[null,null,null,null,null,null,null,null,null,null,null,null,null,null,null,null,null,null,null,null,null,null,null,null,null,90,"R-422B","kg","0,55(HFC-125)+0,42(HFC-134a)+0,03*(600a)",2138.91,"Règlement sur la déclaration obligatoire de certaines émission de contaminants dans l'atmosphère, Loi sur la qualité de l'environnement, Q-2, a.2.2, 109.1 et 124.1"]
["No_Projet_Sagir_Abrev","No","Type","Capacité_Actuel","Code_Refrig_Actuel","Ref_actuel","Formule_actuel","PRPActuel","Charge_Actuel","Code_unite_Actuel","Unite_actuel","Taux_Fuite","fuites_Actuel ","GES_actuel","Capacité_Prevu","Code_Refrig_Prevu","Ref_prevu","Formule_prevu","PRPprevu","Charge_prevu","Code_unite_prevu","Unite_prevu","fuites_prevu ","GES_prevu",null,91,"R-422C","kg","0,82(HFC-125)+0,15(HFC-134a)+0,03*(600a)",2543.92,"Règlement sur la déclaration obligatoire de certaines émission de contaminants dans l'atmosphère, Loi sur la qualité de l'environnement, Q-2, a.2.2, 109.1 et 124.1"]
[{"$f":"DQ$2","v":0},{"$f":"'1. Demande'!D96","v":1},{"$f":"IF('1. Demande'!E96=\"\",\"\",'1. Demande'!E96)","v":""},{"$f":"'1. Demande'!G96","v":0},{"$f":"IF(F167=\"\",0,INDEX(OFFSET(PRP,,-1,,),MATCH(F167,PRP,0)))","v":0},{"$f":"IF('1. Demande'!J96=\"\",\"\",'1. Demande'!J96)","v":""},{"$f":"IF(F167=\"\",\"\",INDEX(OFFSET(PRP,,2,,),MATCH(F167,PRP,0)))","v":""},{"$f":"'1. Demande'!P96","v":""},{"$f":"'1. Demande'!R96","v":0},{"$f":"INDEX(OFFSET(Unite,,-1,,),MATCH(K167,Unite,0))","v":0},{"$f":"'1. Demande'!U96","v":"Choisir…"},{"$f":"'1. Demande'!AA$93","v":0.15},{"$f":"'1. Demande'!AA$93*'1. Demande'!R96","v":0},{"$f":"'1. Demande'!X96","v":0},{"$f":"'1. Demande'!Z96","v":0},{"$f":"IF(Q167=\"\",0,INDEX(OFFSET(PRP,,-1,,),MATCH(Q167,PRP,0)))","v":0},{"$f":"IF('1. Demande'!AC96=\"\",\"\",'1. Demande'!AC96)","v":""},{"$f":"IF(Q167=\"\",\"\",INDEX(OFFSET(PRP,,2,,),MATCH(Q167,PRP,0)))","v":""},{"$f":"'1. Demande'!AI96","v":""},{"$f":"'1. Demande'!AK96","v":0},{"$f":"INDEX(OFFSET(Unite,,-1,,),MATCH(V167,Unite,0))","v":0},{"$f":"'1. Demande'!AN96","v":"Choisir…"},{"$f":"'1. Demande'!AA$93*'1. Demande'!AK96","v":0},{"$f":"'1. Demande'!AP96","v":0},null,107,"R-423A","kg","0,525(HFC-134a)+0,475(HFC-227ea)",2060,"Règlement sur la déclaration obligatoire de certaines émission de contaminants dans l'atmosphère, Loi sur la qualité de l'environnement, Q-2, a.2.2, 109.1 et 124.1"]
[0,{"$f":"'1. Demande'!D97","v":2},{"$f":"IF('1. Demande'!E97=\"\",\"\",'1. Demande'!E97)","v":""},{"$f":"'1. Demande'!G97","v":0},0,{"$f":"IF('1. Demande'!J97=\"\",\"\",'1. Demande'!J97)","v":""},null,{"$f":"'1. Demande'!P97","v":""},{"$f":"'1. Demande'!R97","v":0},0,{"$f":"'1. Demande'!U97","v":"Choisir…"},{"$f":"'1. Demande'!AA$93","v":0.15},{"$f":"'1. Demande'!AA$93*'1. Demande'!R97","v":0},{"$f":"'1. Demande'!X97","v":0},{"$f":"'1. Demande'!Z97","v":0},0,{"$f":"IF('1. Demande'!AC97=\"\",\"\",'1. Demande'!AC97)","v":""},"",{"$f":"'1. Demande'!AI97","v":""},{"$f":"'1. Demande'!AK97","v":0},0,{"$f":"'1. Demande'!AN97","v":"Choisir…"},{"$f":"'1. Demande'!AA$93*'1. Demande'!AK97","v":0},{"$f":"'1. Demande'!AP97","v":0},null,108,"R-424A","kg",",505(125)+,47(134a)+0,09(600a)+,01(600)+,006(601a)",2183.87,"Règlement sur la déclaration obligatoire de certaines émission de contaminants dans l'atmosphère, Loi sur la qualité de l'environnement, Q-2, a.2.2, 109.1 et 124.1 (note dditionnelle: Pentane (601) et isopentane (601a) sont négligés et Butane (600) et iso"]
[0,{"$f":"'1. Demande'!D98","v":3},{"$f":"IF('1. Demande'!E98=\"\",\"\",'1. Demande'!E98)","v":""},{"$f":"'1. Demande'!G98","v":0},0,{"$f":"IF('1. Demande'!J98=\"\",\"\",'1. Demande'!J98)","v":""},null,{"$f":"'1. Demande'!P98","v":""},{"$f":"'1. Demande'!R98","v":0},0,{"$f":"'1. Demande'!U98","v":"Choisir…"},{"$f":"'1. Demande'!AA$93","v":0.15},{"$f":"'1. Demande'!AA$93*'1. Demande'!R98","v":0},{"$f":"'1. Demande'!X98","v":0},{"$f":"'1. Demande'!Z98","v":0},0,{"$f":"IF('1. Demande'!AC98=\"\",\"\",'1. Demande'!AC98)","v":""},"",{"$f":"'1. Demande'!AI98","v":""},{"$f":"'1. Demande'!AK98","v":0},0,{"$f":"'1. Demande'!AN98","v":"Choisir…"},{"$f":"'1. Demande'!AA$93*'1. Demande'!AK98","v":0},{"$f":"'1. Demande'!AP98","v":0},null,109,"R-425A","kg","0,185(HFC-32)+0,695(HFC-134a)+0,12(HFC-227ea)",1371.75,"Règlement sur la déclaration obligatoire de certaines émission de contaminants dans l'atmosphère, Loi sur la qualité de l'environnement, Q-2, a.2.2, 109.1 et 124.1"]
[0,{"$f":"'1. Demande'!D99","v":4},{"$f":"IF('1. Demande'!E99=\"\",\"\",'1. Demande'!E99)","v":""},{"$f":"'1. Demande'!G99","v":0},0,{"$f":"IF('1. Demande'!J99=\"\",\"\",'1. Demande'!J99)","v":""},null,{"$f":"'1. Demande'!P99","v":""},{"$f":"'1. Demande'!R99","v":0},0,{"$f":"'1. Demande'!U99","v":"Choisir…"},{"$f":"'1. Demande'!AA$93","v":0.15},{"$f":"'1. Demande'!AA$93*'1. Demande'!R99","v":0},{"$f":"'1. Demande'!X99","v":0},{"$f":"'1. Demande'!Z99","v":0},0,{"$f":"IF('1. Demande'!AC99=\"\",\"\",'1. Demande'!AC99)","v":""},"",{"$f":"'1. Demande'!AI99","v":""},{"$f":"'1. Demande'!AK99","v":0},0,{"$f":"'1. Demande'!AN99","v":"Choisir…"},{"$f":"'1. Demande'!AA$93*'1. Demande'!AK99","v":0},{"$f":"'1. Demande'!AP99","v":0},null,110,"R-426A","kg","0,051(HFC-125)+0,93(134a)+0,013(600a)+0,006(601a)",1374.73,"Règlement sur la déclaration obligatoire de certaines émission de contaminants dans l'atmosphère, Loi sur la qualité de l'environnement, Q-2, a.2.2, 109.1 et 124.1"]
[0,{"$f":"'1. Demande'!D100","v":5},{"$f":"IF('1. Demande'!E100=\"\",\"\",'1. Demande'!E100)","v":""},{"$f":"'1. Demande'!G100","v":0},0,{"$f":"IF('1. Demande'!J100=\"\",\"\",'1. Demande'!J100)","v":""},null,{"$f":"'1. Demande'!P100","v":""},{"$f":"'1. Demande'!R100","v":0},0,{"$f":"'1. Demande'!U100","v":"Choisir…"},{"$f":"'1. Demande'!AA$93","v":0.15},{"$f":"'1. Demande'!AA$93*'1. Demande'!R100","v":0},{"$f":"'1. Demande'!X100","v":0},{"$f":"'1. Demande'!Z100","v":0},0,{"$f":"IF('1. Demande'!AC100=\"\",\"\",'1. Demande'!AC100)","v":""},"",{"$f":"'1. Demande'!AI100","v":""},{"$f":"'1. Demande'!AK100","v":0},0,{"$f":"'1. Demande'!AN100","v":"Choisir…"},{"$f":"'1. Demande'!AA$93*'1. Demande'!AK100","v":0},{"$f":"'1. Demande'!AP100","v":0},null,111,"R-427A","kg","0,15(HFC32)+,25(HFC125)+,1(HFC143a)+,5(HFC134a)",1827.5,"Règlement sur la déclaration obligatoire de certaines émission de contaminants dans l'atmosphère, Loi sur la qualité de l'environnement, Q-2, a.2.2, 109.1 et 124.1"]
[0,{"$f":"'1. Demande'!D101","v":6},{"$f":"IF('1. Demande'!E101=\"\",\"\",'1. Demande'!E101)","v":""},{"$f":"'1. Demande'!G101","v":0},0,{"$f":"IF('1. Demande'!J101=\"\",\"\",'1. Demande'!J101)","v":""},null,{"$f":"'1. Demande'!P101","v":""},{"$f":"'1. Demande'!R101","v":0},0,{"$f":"'1. Demande'!U101","v":"Choisir…"},{"$f":"'1. Demande'!AA$93","v":0.15},{"$f":"'1. Demande'!AA$93*'1. Demande'!R101","v":0},{"$f":"'1. Demande'!X101","v":0},{"$f":"'1. Demande'!Z101","v":0},0,{"$f":"IF('1. Demande'!AC101=\"\",\"\",'1. Demande'!AC101)","v":""},"",{"$f":"'1. Demande'!AI101","v":""},{"$f":"'1. Demande'!AK101","v":0},0,{"$f":"'1. Demande'!AN101","v":"Choisir…"},{"$f":"'1. Demande'!AA$93*'1. Demande'!AK101","v":0},{"$f":"'1. Demande'!AP101","v":0},null,112,"R-428A","kg",",775(HFC125)+,2(HFC143a)+,006(propane)+0,019(600a)",2972.78,"Règlement sur la déclaration obligatoire de certaines émission de contaminants dans l'atmosphère, Loi sur la qualité de l'environnement, Q-2, a.2.2, 109.1 et 124.1"]
[null,null,null,null,null,null,null,null,null,null,null,null,null,null,null,null,null,null,null,null,null,null,null,null,null,93,"R-438A","kg",",085(32)+,45(125)+,442(134a)+,017(600)+,006*(601a)",1930.42,"Règlement sur la déclaration obligatoire de certaines émission de contaminants dans l'atmosphère, Loi sur la qualité de l'environnement, Q-2, a.2.2, 109.1 et 124.1 (note additionnelle: PRP du butane utilisé pour le PRP de l'isobutane)"]
["No_Projet_Sagir_Abrev","Code_Volet","Code_composante","Activité","GrandConsom","Secteur","Coût_Interne","Coût_externe","Coût","Aide_demande","QTE","CatMEE","CodeMEE",null,null,null,null,null,null,null,null,null,null,null,null,63,"R-500","kg","0,735(CFC-12)+0,262(HFC-152a)",8048.18,"Changes in atmospheric constituents and in radiative forcing (table 2.14 100-yr TAR) et Règlement sur la déclaration obligatoire de certaines émission de contaminants dans l'atmosphère, Loi sur la qualité de l'environnement, Q-2, a.2.2, 109.1 et 124.1"]
[{"$f":"DQ$2","v":0},{"$f":"IF(E$56=TRUE,5,IF(F$56=TRUE,6,0))","v":0},{"$f":"'1. Demande'!C177","v":""},{"$f":"'1. Demande'!D177","v":"Choisir…"},false,{"$f":"IF(AND(DP$2=\"Agricole\",LEFT(C175,2)=\"52\"),\"Agricole\",\"Affaires\")","v":"Affaires"},{"$f":"'1. Demande'!V177","v":0},{"$f":"'1. Demande'!AA177","v":0},{"$f":"'1. Demande'!AE177","v":0},{"$f":"'1. Demande'!AJ177","v":0},{"$f":"'1. Demande'!R177","v":0},{"$f":"IF(D175<>\"Choisir…\",INDEX(OFFSET(INDIRECT(AD$30),,1,,),MATCH(D175,INDIRECT(AD$30),0)),\"\")","v":""},{"$f":"IF(D175<>\"Choisir…\",INDEX(OFFSET(INDIRECT(AD$30),,2,,),MATCH(D175,INDIRECT(AD$30),0)),\"\")","v":""},null,null,null,null,null,null,null,null,null,null,null,null,64,"R-501","kg","0,75(HCFC-22)+0,25(CFC-12)",4082.5,"Changes in atmospheric constituents and in radiative forcing (table 2.14 100-yr TAR) et Règlement sur la déclaration obligatoire de certaines émission de contaminants dans l'atmosphère, Loi sur la qualité de l'environnement, Q-2, a.2.2, 109.1 et 124.1"]
[0,0,{"$f":"'1. Demande'!C178","v":""},{"$f":"'1. Demande'!D178","v":"Choisir…"},false,"Affaires",{"$f":"'1. Demande'!V178","v":0},{"$f":"'1. Demande'!AA178","v":0},{"$f":"'1. Demande'!AE178","v":0},{"$f":"'1. Demande'!AJ178","v":0},{"$f":"'1. Demande'!R178","v":0},"","",null,null,null,null,null,null,null,null,null,null,null,null,65,"R-502","kg","0,488(HCFC-22)+0,512(CFC-115)",4656.72,"Changes in atmospheric constituents and in radiative forcing (table 2.14 100-yr TAR) et Règlement sur la déclaration obligatoire de certaines émission de contaminants dans l'atmosphère, Loi sur la qualité de l'environnement, Q-2, a.2.2, 109.1 et 124.1"]
[0,0,{"$f":"'1. Demande'!C179","v":""},{"$f":"'1. Demande'!D179","v":"Choisir…"},false,"Affaires",{"$f":"'1. Demande'!V179","v":0},{"$f":"'1. Demande'!AA179","v":0},{"$f":"'1. Demande'!AE179","v":0},{"$f":"'1. Demande'!AJ179","v":0},{"$f":"'1. Demande'!R179","v":0},"","",null,null,null,null,null,null,null,null,null,null,null,null,66,"R-503","kg","0,401(HFC-23)+0,599(CFC-13)",13317.3,"Changes in atmospheric constituents and in radiative forcing (table 2.14 100-yr TAR) et Règlement sur la déclaration obligatoire de certaines émission de contaminants dans l'atmosphère, Loi sur la qualité de l'environnement, Q-2, a.2.2, 109.1 et 124.1"]
[0,0,{"$f":"'1. Demande'!C180","v":""},{"$f":"'1. Demande'!D180","v":"Choisir…"},false,"Affaires",{"$f":"'1. Demande'!V180","v":0},{"$f":"'1. Demande'!AA180","v":0},{"$f":"'1. Demande'!AE180","v":0},{"$f":"'1. Demande'!AJ180","v":0},{"$f":"'1. Demande'!R180","v":0},"","",null,null,null,null,null,null,null,null,null,null,null,null,67,"R-504","kg","0,482(HFC-32)+0,518(CFC-115)",4130.96,"Changes in atmospheric constituents and in radiative forcing (table 2.14 100-yr TAR) et Règlement sur la déclaration obligatoire de certaines émission de contaminants dans l'atmosphère, Loi sur la qualité de l'environnement, Q-2, a.2.2, 109.1 et 124.1"]
[0,0,{"$f":"'1. Demande'!C181","v":""},{"$f":"'1. Demande'!D181","v":"Choisir…"},false,"Affaires",{"$f":"'1. Demande'!V181","v":0},{"$f":"'1. Demande'!AA181","v":0},{"$f":"'1. Demande'!AE181","v":0},{"$f":"'1. Demande'!AJ181","v":0},{"$f":"'1. Demande'!R181","v":0},"","",null,null,null,null,null,null,null,null,null,null,null,null,69,"R-508A","kg","0,39(HFC-23)+0,61(PFC-116)",10175,"Règlement sur la déclaration obligatoire de certaines émission de contaminants dans l'atmosphère, Loi sur la qualité de l'environnement, Q-2, a.2.2, 109.1 et 124.1"]
[0,0,{"$f":"'1. Demande'!C182","v":""},{"$f":"'1. Demande'!D182","v":"Choisir…"},false,"Affaires",{"$f":"'1. Demande'!V182","v":0},{"$f":"'1. Demande'!AA182","v":0},{"$f":"'1. Demande'!AE182","v":0},{"$f":"'1. Demande'!AJ182","v":0},{"$f":"'1. Demande'!R182","v":0},"","",null,null,null,null,null,null,null,null,null,null,null,null,70,"R-508B","kg","0,46(HFC-23)+0,54(PFC-116)",10350,"Règlement sur la déclaration obligatoire de certaines émission de contaminants dans l'atmosphère, Loi sur la qualité de l'environnement, Q-2, a.2.2, 109.1 et 124.1"]
[null,null,null,null,null,null,null,null,null,null,null,null,null,null,null,null,null,null,null,null,null,null,null,null,null,71,"R-509A","kg","0,44(HCFC-22)+0,56(PFC-218)",4716.3999999999996,"Règlement sur la déclaration obligatoire de certaines émission de contaminants dans l'atmosphère, Loi sur la qualité de l'environnement, Q-2, a.2.2, 109.1 et 124.1"]
[null,null,null,null,null,null,null,null,null,null,null,null,null,null,null,null,null,null,null,null,null,null,null,null,null,75,"Tétrachlorure de carbone","kg","CCl4",1400,"Changes in atmospheric constituents and in radiative forcing (table 2.14 100-yr TAR)"]
[null,null,null,null,null,null,null,null,null,null,null,null,null,null,null,null,null,null,null,null,null,null,null,null,null,76,"Trifluorure d'azote","kg","NF3",17200,"Règlement sur la déclaration obligatoire de certaines émission de contaminants dans l'atmosphère, Loi sur la qualité de l'environnement, Q-2, a.2.2, 109.1 et 124.1"]
[null,null,null,null,null,null,null,null,null,null,null,null,null,null,null,null,null,null,null,null,null,null,null,null,null,82,"Autre","kg","N/A",0,""]
[null,null,null,null,null,null,null,null,null,null,null,null,null,null,null,"der"]
[]
[]
[]
[]
[]
[]
[]
[null,null,null,null,null,null,"No_Projet_Sagir_Abrev","NEQ","Code SCIAN","Type entreprise","Nom site","Adresse","Municipalité","Code postal","Entreprise","Code_entreprise","Regr_Entreprise","Tjatteint"]
[null,null,null,null,null,null,{"$f":"DQ$2","v":0},{"$f":"IF('Autres sites'!B15=\"\",\"\",'Autres sites'!B15)","v":""},{"$f":"IF('Autres sites'!C15=\"\",\"\",'Autres sites'!C15)","v":""},{"$f":"IF('Autres sites'!D15=\"\",\"\",'Autres sites'!D15)","v":"Choisir…"},{"$f":"IF('Autres sites'!E15=\"\",\"\",'Autres sites'!E15)","v":""},{"$f":"IF('Autres sites'!F15=\"\",\"\",'Autres sites'!F15)","v":""},{"$f":"IF('Autres sites'!G15=\"\",\"\",'Autres sites'!G15)","v":""},{"$f":"IF('Autres sites'!H15=\"\",\"\",'Autres sites'!H15)","v":""},{"$f":"IF('Autres sites'!I15=\"\",\"\",'Autres sites'!I15)","v":""},{"$f":"IF('Autres sites'!J15=\"\",\"\",'Autres sites'!J15)","v":""},{"$f":"IF('Autres sites'!K15=\"\",\"\",'Autres sites'!K15)","v":""},{"$f":"IF('Autres sites'!L15=\"\",\"\",'Autres sites'!L15)","v":false}]
[null,null,null,null,null,null,0,{"$f":"IF('Autres sites'!B16=\"\",\"\",'Autres sites'!B16)","v":""},{"$f":"IF('Autres sites'!C16=\"\",\"\",'Autres sites'!C16)","v":""},{"$f":"IF('Autres sites'!D16=\"\",\"\",'Autres sites'!D16)","v":"Choisir…"},{"$f":"IF('Autres sites'!E16=\"\",\"\",'Autres sites'!E16)","v":""},{"$f":"IF('Autres sites'!F16=\"\",\"\",'Autres sites'!F16)","v":""},{"$f":"IF('Autres sites'!G16=\"\",\"\",'Autres sites'!G16)","v":""},{"$f":"IF('Autres sites'!H16=\"\",\"\",'Autres sites'!H16)","v":""},{"$f":"IF('Autres sites'!I16=\"\",\"\",'Autres sites'!I16)","v":""},{"$f":"IF('Autres sites'!J16=\"\",\"\",'Autres sites'!J16)","v":""},{"$f":"IF('Autres sites'!K16=\"\",\"\",'Autres sites'!K16)","v":""},{"$f":"IF('Autres sites'!L16=\"\",\"\",'Autres sites'!L16)","v":false}]
[null,null,null,null,null,null,0,{"$f":"IF('Autres sites'!B17=\"\",\"\",'Autres sites'!B17)","v":""},{"$f":"IF('Autres sites'!C17=\"\",\"\",'Autres sites'!C17)","v":""},{"$f":"IF('Autres sites'!D17=\"\",\"\",'Autres sites'!D17)","v":"Choisir…"},{"$f":"IF('Autres sites'!E17=\"\",\"\",'Autres sites'!E17)","v":""},{"$f":"IF('Autres sites'!F17=\"\",\"\",'Autres sites'!F17)","v":""},{"$f":"IF('Autres sites'!G17=\"\",\"\",'Autres sites'!G17)","v":""},{"$f":"IF('Autres sites'!H17=\"\",\"\",'Autres sites'!H17)","v":""},{"$f":"IF('Autres sites'!I17=\"\",\"\",'Autres sites'!I17)","v":""},{"$f":"IF('Autres sites'!J17=\"\",\"\",'Autres sites'!J17)","v":""},{"$f":"IF('Autres sites'!K17=\"\",\"\",'Autres sites'!K17)","v":""},{"$f":"IF('Autres sites'!L17=\"\",\"\",'Autres sites'!L17)","v":false}]
[null,null,null,null,null,null,0,{"$f":"IF('Autres sites'!B18=\"\",\"\",'Autres sites'!B18)","v":""},{"$f":"IF('Autres sites'!C18=\"\",\"\",'Autres sites'!C18)","v":""},{"$f":"IF('Autres sites'!D18=\"\",\"\",'Autres sites'!D18)","v":"Choisir…"},{"$f":"IF('Autres sites'!E18=\"\",\"\",'Autres sites'!E18)","v":""},{"$f":"IF('Autres sites'!F18=\"\",\"\",'Autres sites'!F18)","v":""},{"$f":"IF('Autres sites'!G18=\"\",\"\",'Autres sites'!G18)","v":""},{"$f":"IF('Autres sites'!H18=\"\",\"\",'Autres sites'!H18)","v":""},{"$f":"IF('Autres sites'!I18=\"\",\"\",'Autres sites'!I18)","v":""},{"$f":"IF('Autres sites'!J18=\"\",\"\",'Autres sites'!J18)","v":""},{"$f":"IF('Autres sites'!K18=\"\",\"\",'Autres sites'!K18)","v":""},{"$f":"IF('Autres sites'!L18=\"\",\"\",'Autres sites'!L18)","v":false}]
[null,null,null,null,null,null,0,{"$f":"IF('Autres sites'!B19=\"\",\"\",'Autres sites'!B19)","v":""},{"$f":"IF('Autres sites'!C19=\"\",\"\",'Autres sites'!C19)","v":""},{"$f":"IF('Autres sites'!D19=\"\",\"\",'Autres sites'!D19)","v":"Choisir…"},{"$f":"IF('Autres sites'!E19=\"\",\"\",'Autres sites'!E19)","v":""},{"$f":"IF('Autres sites'!F19=\"\",\"\",'Autres sites'!F19)","v":""},{"$f":"IF('Autres sites'!G19=\"\",\"\",'Autres sites'!G19)","v":""},{"$f":"IF('Autres sites'!H19=\"\",\"\",'Autres sites'!H19)","v":""},{"$f":"IF('Autres sites'!I19=\"\",\"\",'Autres sites'!I19)","v":""},{"$f":"IF('Autres sites'!J19=\"\",\"\",'Autres sites'!J19)","v":""},{"$f":"IF('Autres sites'!K19=\"\",\"\",'Autres sites'!K19)","v":""},{"$f":"IF('Autres sites'!L19=\"\",\"\",'Autres sites'!L19)","v":false}]
[null,null,null,null,null,null,0,{"$f":"IF('Autres sites'!B20=\"\",\"\",'Autres sites'!B20)","v":""},{"$f":"IF('Autres sites'!C20=\"\",\"\",'Autres sites'!C20)","v":""},{"$f":"IF('Autres sites'!D20=\"\",\"\",'Autres sites'!D20)","v":"Choisir…"},{"$f":"IF('Autres sites'!E20=\"\",\"\",'Autres sites'!E20)","v":""},{"$f":"IF('Autres sites'!F20=\"\",\"\",'Autres sites'!F20)","v":""},{"$f":"IF('Autres sites'!G20=\"\",\"\",'Autres sites'!G20)","v":""},{"$f":"IF('Autres sites'!H20=\"\",\"\",'Autres sites'!H20)","v":""},{"$f":"IF('Autres sites'!I20=\"\",\"\",'Autres sites'!I20)","v":""},{"$f":"IF('Autres sites'!J20=\"\",\"\",'Autres sites'!J20)","v":""},{"$f":"IF('Autres sites'!K20=\"\",\"\",'Autres sites'!K20)","v":""},{"$f":"IF('Autres sites'!L20=\"\",\"\",'Autres sites'!L20)","v":false}]
[null,null,null,null,null,null,0,{"$f":"IF('Autres sites'!B21=\"\",\"\",'Autres sites'!B21)","v":""},{"$f":"IF('Autres sites'!C21=\"\",\"\",'Autres sites'!C21)","v":""},{"$f":"IF('Autres sites'!D21=\"\",\"\",'Autres sites'!D21)","v":"Choisir…"},{"$f":"IF('Autres sites'!E21=\"\",\"\",'Autres sites'!E21)","v":""},{"$f":"IF('Autres sites'!F21=\"\",\"\",'Autres sites'!F21)","v":""},{"$f":"IF('Autres sites'!G21=\"\",\"\",'Autres sites'!G21)","v":""},{"$f":"IF('Autres sites'!H21=\"\",\"\",'Autres sites'!H21)","v":""},{"$f":"IF('Autres sites'!I21=\"\",\"\",'Autres sites'!I21)","v":""},{"$f":"IF('Autres sites'!J21=\"\",\"\",'Autres sites'!J21)","v":""},{"$f":"IF('Autres sites'!K21=\"\",\"\",'Autres sites'!K21)","v":""},{"$f":"IF('Autres sites'!L21=\"\",\"\",'Autres sites'!L21)","v":false}]
[null,null,null,null,null,null,0,{"$f":"IF('Autres sites'!B22=\"\",\"\",'Autres sites'!B22)","v":""},{"$f":"IF('Autres sites'!C22=\"\",\"\",'Autres sites'!C22)","v":""},{"$f":"IF('Autres sites'!D22=\"\",\"\",'Autres sites'!D22)","v":"Choisir…"},{"$f":"IF('Autres sites'!E22=\"\",\"\",'Autres sites'!E22)","v":""},{"$f":"IF('Autres sites'!F22=\"\",\"\",'Autres sites'!F22)","v":""},{"$f":"IF('Autres sites'!G22=\"\",\"\",'Autres sites'!G22)","v":""},{"$f":"IF('Autres sites'!H22=\"\",\"\",'Autres sites'!H22)","v":""},{"$f":"IF('Autres sites'!I22=\"\",\"\",'Autres sites'!I22)","v":""},{"$f":"IF('Autres sites'!J22=\"\",\"\",'Autres sites'!J22)","v":""},{"$f":"IF('Autres sites'!K22=\"\",\"\",'Autres sites'!K22)","v":""},{"$f":"IF('Autres sites'!L22=\"\",\"\",'Autres sites'!L22)","v":false}]
[null,null,null,null,null,null,0,{"$f":"IF('Autres sites'!B23=\"\",\"\",'Autres sites'!B23)","v":""},{"$f":"IF('Autres sites'!C23=\"\",\"\",'Autres sites'!C23)","v":""},{"$f":"IF('Autres sites'!D23=\"\",\"\",'Autres sites'!D23)","v":"Choisir…"},{"$f":"IF('Autres sites'!E23=\"\",\"\",'Autres sites'!E23)","v":""},{"$f":"IF('Autres sites'!F23=\"\",\"\",'Autres sites'!F23)","v":""},{"$f":"IF('Autres sites'!G23=\"\",\"\",'Autres sites'!G23)","v":""},{"$f":"IF('Autres sites'!H23=\"\",\"\",'Autres sites'!H23)","v":""},{"$f":"IF('Autres sites'!I23=\"\",\"\",'Autres sites'!I23)","v":""},{"$f":"IF('Autres sites'!J23=\"\",\"\",'Autres sites'!J23)","v":""},{"$f":"IF('Autres sites'!K23=\"\",\"\",'Autres sites'!K23)","v":""},{"$f":"IF('Autres sites'!L23=\"\",\"\",'Autres sites'!L23)","v":false}]
[null,null,null,null,null,null,0,{"$f":"IF('Autres sites'!B24=\"\",\"\",'Autres sites'!B24)","v":""},{"$f":"IF('Autres sites'!C24=\"\",\"\",'Autres sites'!C24)","v":""},{"$f":"IF('Autres sites'!D24=\"\",\"\",'Autres sites'!D24)","v":"Choisir…"},{"$f":"IF('Autres sites'!E24=\"\",\"\",'Autres sites'!E24)","v":""},{"$f":"IF('Autres sites'!F24=\"\",\"\",'Autres sites'!F24)","v":""},{"$f":"IF('Autres sites'!G24=\"\",\"\",'Autres sites'!G24)","v":""},{"$f":"IF('Autres sites'!H24=\"\",\"\",'Autres sites'!H24)","v":""},{"$f":"IF('Autres sites'!I24=\"\",\"\",'Autres sites'!I24)","v":""},{"$f":"IF('Autres sites'!J24=\"\",\"\",'Autres sites'!J24)","v":""},{"$f":"IF('Autres sites'!K24=\"\",\"\",'Autres sites'!K24)","v":""},{"$f":"IF('Autres sites'!L24=\"\",\"\",'Autres sites'!L24)","v":false}]
[null,null,null,null,null,null,0,{"$f":"IF('Autres sites'!B25=\"\",\"\",'Autres sites'!B25)","v":""},{"$f":"IF('Autres sites'!C25=\"\",\"\",'Autres sites'!C25)","v":""},{"$f":"IF('Autres sites'!D25=\"\",\"\",'Autres sites'!D25)","v":"Choisir…"},{"$f":"IF('Autres sites'!E25=\"\",\"\",'Autres sites'!E25)","v":""},{"$f":"IF('Autres sites'!F25=\"\",\"\",'Autres sites'!F25)","v":""},{"$f":"IF('Autres sites'!G25=\"\",\"\",'Autres sites'!G25)","v":""},{"$f":"IF('Autres sites'!H25=\"\",\"\",'Autres sites'!H25)","v":""},{"$f":"IF('Autres sites'!I25=\"\",\"\",'Autres sites'!I25)","v":""},{"$f":"IF('Autres sites'!J25=\"\",\"\",'Autres sites'!J25)","v":""},{"$f":"IF('Autres sites'!K25=\"\",\"\",'Autres sites'!K25)","v":""},{"$f":"IF('Autres sites'!L25=\"\",\"\",'Autres sites'!L25)","v":false}]
[null,null,null,null,null,null,0,{"$f":"IF('Autres sites'!B26=\"\",\"\",'Autres sites'!B26)","v":""},{"$f":"IF('Autres sites'!C26=\"\",\"\",'Autres sites'!C26)","v":""},{"$f":"IF('Autres sites'!D26=\"\",\"\",'Autres sites'!D26)","v":"Choisir…"},{"$f":"IF('Autres sites'!E26=\"\",\"\",'Autres sites'!E26)","v":""},{"$f":"IF('Autres sites'!F26=\"\",\"\",'Autres sites'!F26)","v":""},{"$f":"IF('Autres sites'!G26=\"\",\"\",'Autres sites'!G26)","v":""},{"$f":"IF('Autres sites'!H26=\"\",\"\",'Autres sites'!H26)","v":""},{"$f":"IF('Autres sites'!I26=\"\",\"\",'Autres sites'!I26)","v":""},{"$f":"IF('Autres sites'!J26=\"\",\"\",'Autres sites'!J26)","v":""},{"$f":"IF('Autres sites'!K26=\"\",\"\",'Autres sites'!K26)","v":""},{"$f":"IF('Autres sites'!L26=\"\",\"\",'Autres sites'!L26)","v":false}]
[null,null,null,null,null,null,0,{"$f":"IF('Autres sites'!B27=\"\",\"\",'Autres sites'!B27)","v":""},{"$f":"IF('Autres sites'!C27=\"\",\"\",'Autres sites'!C27)","v":""},{"$f":"IF('Autres sites'!D27=\"\",\"\",'Autres sites'!D27)","v":"Choisir…"},{"$f":"IF('Autres sites'!E27=\"\",\"\",'Autres sites'!E27)","v":""},{"$f":"IF('Autres sites'!F27=\"\",\"\",'Autres sites'!F27)","v":""},{"$f":"IF('Autres sites'!G27=\"\",\"\",'Autres sites'!G27)","v":""},{"$f":"IF('Autres sites'!H27=\"\",\"\",'Autres sites'!H27)","v":""},{"$f":"IF('Autres sites'!I27=\"\",\"\",'Autres sites'!I27)","v":""},{"$f":"IF('Autres sites'!J27=\"\",\"\",'Autres sites'!J27)","v":""},{"$f":"IF('Autres sites'!K27=\"\",\"\",'Autres sites'!K27)","v":""},{"$f":"IF('Autres sites'!L27=\"\",\"\",'Autres sites'!L27)","v":false}]
[null,null,null,null,null,null,0,{"$f":"IF('Autres sites'!B28=\"\",\"\",'Autres sites'!B28)","v":""},{"$f":"IF('Autres sites'!C28=\"\",\"\",'Autres sites'!C28)","v":""},{"$f":"IF('Autres sites'!D28=\"\",\"\",'Autres sites'!D28)","v":"Choisir…"},{"$f":"IF('Autres sites'!E28=\"\",\"\",'Autres sites'!E28)","v":""},{"$f":"IF('Autres sites'!F28=\"\",\"\",'Autres sites'!F28)","v":""},{"$f":"IF('Autres sites'!G28=\"\",\"\",'Autres sites'!G28)","v":""},{"$f":"IF('Autres sites'!H28=\"\",\"\",'Autres sites'!H28)","v":""},{"$f":"IF('Autres sites'!I28=\"\",\"\",'Autres sites'!I28)","v":""},{"$f":"IF('Autres sites'!J28=\"\",\"\",'Autres sites'!J28)","v":""},{"$f":"IF('Autres sites'!K28=\"\",\"\",'Autres sites'!K28)","v":""},{"$f":"IF('Autres sites'!L28=\"\",\"\",'Autres sites'!L28)","v":false}]
[null,null,null,null,null,null,0,{"$f":"IF('Autres sites'!B29=\"\",\"\",'Autres sites'!B29)","v":""},{"$f":"IF('Autres sites'!C29=\"\",\"\",'Autres sites'!C29)","v":""},{"$f":"IF('Autres sites'!D29=\"\",\"\",'Autres sites'!D29)","v":"Choisir…"},{"$f":"IF('Autres sites'!E29=\"\",\"\",'Autres sites'!E29)","v":""},{"$f":"IF('Autres sites'!F29=\"\",\"\",'Autres sites'!F29)","v":""},{"$f":"IF('Autres sites'!G29=\"\",\"\",'Autres sites'!G29)","v":""},{"$f":"IF('Autres sites'!H29=\"\",\"\",'Autres sites'!H29)","v":""},{"$f":"IF('Autres sites'!I29=\"\",\"\",'Autres sites'!I29)","v":""},{"$f":"IF('Autres sites'!J29=\"\",\"\",'Autres sites'!J29)","v":""},{"$f":"IF('Autres sites'!K29=\"\",\"\",'Autres sites'!K29)","v":""},{"$f":"IF('Autres sites'!L29=\"\",\"\",'Autres sites'!L29)","v":false}]
[null,null,null,null,null,null,0,{"$f":"IF('Autres sites'!B30=\"\",\"\",'Autres sites'!B30)","v":""},{"$f":"IF('Autres sites'!C30=\"\",\"\",'Autres sites'!C30)","v":""},{"$f":"IF('Autres sites'!D30=\"\",\"\",'Autres sites'!D30)","v":"Choisir…"},{"$f":"IF('Autres sites'!E30=\"\",\"\",'Autres sites'!E30)","v":""},{"$f":"IF('Autres sites'!F30=\"\",\"\",'Autres sites'!F30)","v":""},{"$f":"IF('Autres sites'!G30=\"\",\"\",'Autres sites'!G30)","v":""},{"$f":"IF('Autres sites'!H30=\"\",\"\",'Autres sites'!H30)","v":""},{"$f":"IF('Autres sites'!I30=\"\",\"\",'Autres sites'!I30)","v":""},{"$f":"IF('Autres sites'!J30=\"\",\"\",'Autres sites'!J30)","v":""},{"$f":"IF('Autres sites'!K30=\"\",\"\",'Autres sites'!K30)","v":""},{"$f":"IF('Autres sites'!L30=\"\",\"\",'Autres sites'!L30)","v":false}]
[null,null,null,null,null,null,0,{"$f":"IF('Autres sites'!B31=\"\",\"\",'Autres sites'!B31)","v":""},{"$f":"IF('Autres sites'!C31=\"\",\"\",'Autres sites'!C31)","v":""},{"$f":"IF('Autres sites'!D31=\"\",\"\",'Autres sites'!D31)","v":"Choisir…"},{"$f":"IF('Autres sites'!E31=\"\",\"\",'Autres sites'!E31)","v":""},{"$f":"IF('Autres sites'!F31=\"\",\"\",'Autres sites'!F31)","v":""},{"$f":"IF('Autres sites'!G31=\"\",\"\",'Autres sites'!G31)","v":""},{"$f":"IF('Autres sites'!H31=\"\",\"\",'Autres sites'!H31)","v":""},{"$f":"IF('Autres sites'!I31=\"\",\"\",'Autres sites'!I31)","v":""},{"$f":"IF('Autres sites'!J31=\"\",\"\",'Autres sites'!J31)","v":""},{"$f":"IF('Autres sites'!K31=\"\",\"\",'Autres sites'!K31)","v":""},{"$f":"IF('Autres sites'!L31=\"\",\"\",'Autres sites'!L31)","v":false}]
[null,null,null,null,null,null,0,{"$f":"IF('Autres sites'!B32=\"\",\"\",'Autres sites'!B32)","v":""},{"$f":"IF('Autres sites'!C32=\"\",\"\",'Autres sites'!C32)","v":""},{"$f":"IF('Autres sites'!D32=\"\",\"\",'Autres sites'!D32)","v":"Choisir…"},{"$f":"IF('Autres sites'!E32=\"\",\"\",'Autres sites'!E32)","v":""},{"$f":"IF('Autres sites'!F32=\"\",\"\",'Autres sites'!F32)","v":""},{"$f":"IF('Autres sites'!G32=\"\",\"\",'Autres sites'!G32)","v":""},{"$f":"IF('Autres sites'!H32=\"\",\"\",'Autres sites'!H32)","v":""},{"$f":"IF('Autres sites'!I32=\"\",\"\",'Autres sites'!I32)","v":""},{"$f":"IF('Autres sites'!J32=\"\",\"\",'Autres sites'!J32)","v":""},{"$f":"IF('Autres sites'!K32=\"\",\"\",'Autres sites'!K32)","v":""},{"$f":"IF('Autres sites'!L32=\"\",\"\",'Autres sites'!L32)","v":false}]
[null,null,null,null,null,null,0,{"$f":"IF('Autres sites'!B33=\"\",\"\",'Autres sites'!B33)","v":""},{"$f":"IF('Autres sites'!C33=\"\",\"\",'Autres sites'!C33)","v":""},{"$f":"IF('Autres sites'!D33=\"\",\"\",'Autres sites'!D33)","v":"Choisir…"},{"$f":"IF('Autres sites'!E33=\"\",\"\",'Autres sites'!E33)","v":""},{"$f":"IF('Autres sites'!F33=\"\",\"\",'Autres sites'!F33)","v":""},{"$f":"IF('Autres sites'!G33=\"\",\"\",'Autres sites'!G33)","v":""},{"$f":"IF('Autres sites'!H33=\"\",\"\",'Autres sites'!H33)","v":""},{"$f":"IF('Autres sites'!I33=\"\",\"\",'Autres sites'!I33)","v":""},{"$f":"IF('Autres sites'!J33=\"\",\"\",'Autres sites'!J33)","v":""},{"$f":"IF('Autres sites'!K33=\"\",\"\",'Autres sites'!K33)","v":""},{"$f":"IF('Autres sites'!L33=\"\",\"\",'Autres sites'!L33)","v":false}]
[null,null,null,null,null,null,0,{"$f":"IF('Autres sites'!B34=\"\",\"\",'Autres sites'!B34)","v":""},{"$f":"IF('Autres sites'!C34=\"\",\"\",'Autres sites'!C34)","v":""},{"$f":"IF('Autres sites'!D34=\"\",\"\",'Autres sites'!D34)","v":"Choisir…"},{"$f":"IF('Autres sites'!E34=\"\",\"\",'Autres sites'!E34)","v":""},{"$f":"IF('Autres sites'!F34=\"\",\"\",'Autres sites'!F34)","v":""},{"$f":"IF('Autres sites'!G34=\"\",\"\",'Autres sites'!G34)","v":""},{"$f":"IF('Autres sites'!H34=\"\",\"\",'Autres sites'!H34)","v":""},{"$f":"IF('Autres sites'!I34=\"\",\"\",'Autres sites'!I34)","v":""},{"$f":"IF('Autres sites'!J34=\"\",\"\",'Autres sites'!J34)","v":""},{"$f":"IF('Autres sites'!K34=\"\",\"\",'Autres sites'!K34)","v":""},{"$f":"IF('Autres sites'!L34=\"\",\"\",'Autres sites'!L34)","v":false}]
[null,null,null,null,null,null,0,{"$f":"IF('Autres sites'!B35=\"\",\"\",'Autres sites'!B35)","v":""},{"$f":"IF('Autres sites'!C35=\"\",\"\",'Autres sites'!C35)","v":""},{"$f":"IF('Autres sites'!D35=\"\",\"\",'Autres sites'!D35)","v":"Choisir…"},{"$f":"IF('Autres sites'!E35=\"\",\"\",'Autres sites'!E35)","v":""},{"$f":"IF('Autres sites'!F35=\"\",\"\",'Autres sites'!F35)","v":""},{"$f":"IF('Autres sites'!G35=\"\",\"\",'Autres sites'!G35)","v":""},{"$f":"IF('Autres sites'!H35=\"\",\"\",'Autres sites'!H35)","v":""},{"$f":"IF('Autres sites'!I35=\"\",\"\",'Autres sites'!I35)","v":""},{"$f":"IF('Autres sites'!J35=\"\",\"\",'Autres sites'!J35)","v":""},{"$f":"IF('Autres sites'!K35=\"\",\"\",'Autres sites'!K35)","v":""},{"$f":"IF('Autres sites'!L35=\"\",\"\",'Autres sites'!L35)","v":false}]
[null,null,null,null,null,null,0,{"$f":"IF('Autres sites'!B36=\"\",\"\",'Autres sites'!B36)","v":""},{"$f":"IF('Autres sites'!C36=\"\",\"\",'Autres sites'!C36)","v":""},{"$f":"IF('Autres sites'!D36=\"\",\"\",'Autres sites'!D36)","v":"Choisir…"},{"$f":"IF('Autres sites'!E36=\"\",\"\",'Autres sites'!E36)","v":""},{"$f":"IF('Autres sites'!F36=\"\",\"\",'Autres sites'!F36)","v":""},{"$f":"IF('Autres sites'!G36=\"\",\"\",'Autres sites'!G36)","v":""},{"$f":"IF('Autres sites'!H36=\"\",\"\",'Autres sites'!H36)","v":""},{"$f":"IF('Autres sites'!I36=\"\",\"\",'Autres sites'!I36)","v":""},{"$f":"IF('Autres sites'!J36=\"\",\"\",'Autres sites'!J36)","v":""},{"$f":"IF('Autres sites'!K36=\"\",\"\",'Autres sites'!K36)","v":""},{"$f":"IF('Autres sites'!L36=\"\",\"\",'Autres sites'!L36)","v":false}]
[null,null,null,null,null,null,0,{"$f":"IF('Autres sites'!B37=\"\",\"\",'Autres sites'!B37)","v":""},{"$f":"IF('Autres sites'!C37=\"\",\"\",'Autres sites'!C37)","v":""},{"$f":"IF('Autres sites'!D37=\"\",\"\",'Autres sites'!D37)","v":"Choisir…"},{"$f":"IF('Autres sites'!E37=\"\",\"\",'Autres sites'!E37)","v":""},{"$f":"IF('Autres sites'!F37=\"\",\"\",'Autres sites'!F37)","v":""},{"$f":"IF('Autres sites'!G37=\"\",\"\",'Autres sites'!G37)","v":""},{"$f":"IF('Autres sites'!H37=\"\",\"\",'Autres sites'!H37)","v":""},{"$f":"IF('Autres sites'!I37=\"\",\"\",'Autres sites'!I37)","v":""},{"$f":"IF('Autres sites'!J37=\"\",\"\",'Autres sites'!J37)","v":""},{"$f":"IF('Autres sites'!K37=\"\",\"\",'Autres sites'!K37)","v":""},{"$f":"IF('Autres sites'!L37=\"\",\"\",'Autres sites'!L37)","v":false}]
[null,null,null,null,null,null,0,{"$f":"IF('Autres sites'!B38=\"\",\"\",'Autres sites'!B38)","v":""},{"$f":"IF('Autres sites'!C38=\"\",\"\",'Autres sites'!C38)","v":""},{"$f":"IF('Autres sites'!D38=\"\",\"\",'Autres sites'!D38)","v":"Choisir…"},{"$f":"IF('Autres sites'!E38=\"\",\"\",'Autres sites'!E38)","v":""},{"$f":"IF('Autres sites'!F38=\"\",\"\",'Autres sites'!F38)","v":""},{"$f":"IF('Autres sites'!G38=\"\",\"\",'Autres sites'!G38)","v":""},{"$f":"IF('Autres sites'!H38=\"\",\"\",'Autres sites'!H38)","v":""},{"$f":"IF('Autres sites'!I38=\"\",\"\",'Autres sites'!I38)","v":""},{"$f":"IF('Autres sites'!J38=\"\",\"\",'Autres sites'!J38)","v":""},{"$f":"IF('Autres sites'!K38=\"\",\"\",'Autres sites'!K38)","v":""},{"$f":"IF('Autres sites'!L38=\"\",\"\",'Autres sites'!L38)","v":false}]
[null,null,null,null,null,null,0,{"$f":"IF('Autres sites'!B39=\"\",\"\",'Autres sites'!B39)","v":""},{"$f":"IF('Autres sites'!C39=\"\",\"\",'Autres sites'!C39)","v":""},{"$f":"IF('Autres sites'!D39=\"\",\"\",'Autres sites'!D39)","v":"Choisir…"},{"$f":"IF('Autres sites'!E39=\"\",\"\",'Autres sites'!E39)","v":""},{"$f":"IF('Autres sites'!F39=\"\",\"\",'Autres sites'!F39)","v":""},{"$f":"IF('Autres sites'!G39=\"\",\"\",'Autres sites'!G39)","v":""},{"$f":"IF('Autres sites'!H39=\"\",\"\",'Autres sites'!H39)","v":""},{"$f":"IF('Autres sites'!I39=\"\",\"\",'Autres sites'!I39)","v":""},{"$f":"IF('Autres sites'!J39=\"\",\"\",'Autres sites'!J39)","v":""},{"$f":"IF('Autres sites'!K39=\"\",\"\",'Autres sites'!K39)","v":""},{"$f":"IF('Autres sites'!L39=\"\",\"\",'Autres sites'!L39)","v":false}]
[null,null,null,null,null,null,0,{"$f":"IF('Autres sites'!B40=\"\",\"\",'Autres sites'!B40)","v":""},{"$f":"IF('Autres sites'!C40=\"\",\"\",'Autres sites'!C40)","v":""},{"$f":"IF('Autres sites'!D40=\"\",\"\",'Autres sites'!D40)","v":"Choisir…"},{"$f":"IF('Autres sites'!E40=\"\",\"\",'Autres sites'!E40)","v":""},{"$f":"IF('Autres sites'!F40=\"\",\"\",'Autres sites'!F40)","v":""},{"$f":"IF('Autres sites'!G40=\"\",\"\",'Autres sites'!G40)","v":""},{"$f":"IF('Autres sites'!H40=\"\",\"\",'Autres sites'!H40)","v":""},{"$f":"IF('Autres sites'!I40=\"\",\"\",'Autres sites'!I40)","v":""},{"$f":"IF('Autres sites'!J40=\"\",\"\",'Autres sites'!J40)","v":""},{"$f":"IF('Autres sites'!K40=\"\",\"\",'Autres sites'!K40)","v":""},{"$f":"IF('Autres sites'!L40=\"\",\"\",'Autres sites'!L40)","v":false}]
[null,null,null,null,null,null,0,{"$f":"IF('Autres sites'!B41=\"\",\"\",'Autres sites'!B41)","v":""},{"$f":"IF('Autres sites'!C41=\"\",\"\",'Autres sites'!C41)","v":""},{"$f":"IF('Autres sites'!D41=\"\",\"\",'Autres sites'!D41)","v":"Choisir…"},{"$f":"IF('Autres sites'!E41=\"\",\"\",'Autres sites'!E41)","v":""},{"$f":"IF('Autres sites'!F41=\"\",\"\",'Autres sites'!F41)","v":""},{"$f":"IF('Autres sites'!G41=\"\",\"\",'Autres sites'!G41)","v":""},{"$f":"IF('Autres sites'!H41=\"\",\"\",'Autres sites'!H41)","v":""},{"$f":"IF('Autres sites'!I41=\"\",\"\",'Autres sites'!I41)","v":""},{"$f":"IF('Autres sites'!J41=\"\",\"\",'Autres sites'!J41)","v":""},{"$f":"IF('Autres sites'!K41=\"\",\"\",'Autres sites'!K41)","v":""},{"$f":"IF('Autres sites'!L41=\"\",\"\",'Autres sites'!L41)","v":false},null,null,null,null,null,null,null,null,null,null,null,null,5]
[null,null,null,null,null,null,0,{"$f":"IF('Autres sites'!B42=\"\",\"\",'Autres sites'!B42)","v":""},{"$f":"IF('Autres sites'!C42=\"\",\"\",'Autres sites'!C42)","v":""},{"$f":"IF('Autres sites'!D42=\"\",\"\",'Autres sites'!D42)","v":"Choisir…"},{"$f":"IF('Autres sites'!E42=\"\",\"\",'Autres sites'!E42)","v":""},{"$f":"IF('Autres sites'!F42=\"\",\"\",'Autres sites'!F42)","v":""},{"$f":"IF('Autres sites'!G42=\"\",\"\",'Autres sites'!G42)","v":""},{"$f":"IF('Autres sites'!H42=\"\",\"\",'Autres sites'!H42)","v":""},{"$f":"IF('Autres sites'!I42=\"\",\"\",'Autres sites'!I42)","v":""},{"$f":"IF('Autres sites'!J42=\"\",\"\",'Autres sites'!J42)","v":""},{"$f":"IF('Autres sites'!K42=\"\",\"\",'Autres sites'!K42)","v":""},{"$f":"IF('Autres sites'!L42=\"\",\"\",'Autres sites'!L42)","v":false},null,null,null,null,null,null,null,null,null,null,null,null,0.25]
[null,null,null,null,null,null,0,{"$f":"IF('Autres sites'!B43=\"\",\"\",'Autres sites'!B43)","v":""},{"$f":"IF('Autres sites'!C43=\"\",\"\",'Autres sites'!C43)","v":""},{"$f":"IF('Autres sites'!D43=\"\",\"\",'Autres sites'!D43)","v":"Choisir…"},{"$f":"IF('Autres sites'!E43=\"\",\"\",'Autres sites'!E43)","v":""},{"$f":"IF('Autres sites'!F43=\"\",\"\",'Autres sites'!F43)","v":""},{"$f":"IF('Autres sites'!G43=\"\",\"\",'Autres sites'!G43)","v":""},{"$f":"IF('Autres sites'!H43=\"\",\"\",'Autres sites'!H43)","v":""},{"$f":"IF('Autres sites'!I43=\"\",\"\",'Autres sites'!I43)","v":""},{"$f":"IF('Autres sites'!J43=\"\",\"\",'Autres sites'!J43)","v":""},{"$f":"IF('Autres sites'!K43=\"\",\"\",'Autres sites'!K43)","v":""},{"$f":"IF('Autres sites'!L43=\"\",\"\",'Autres sites'!L43)","v":false},null,null,null,null,null,null,null,null,null,null,null,null,0.1]
[null,null,null,null,null,null,null,null,null,null,null,null,null,null,null,null,null,null,null,null,null,null,null,null,null,null,null,36403,"litre/an",null,0.55000000000000004,"taux participation",null,38.68,2789.7930000000001]
[]
[]
[]
[]
[]
[]
[]
[]
[]
[]
[]
[]
[]
[]
[]
[]
[]
[]
[]
[]
[]
[]
[]
[]
["No_Projet_Sagir_Abrev","Type_Depense","Cint","Cext","Ctot","CintProj","CextProj","CtotProj"]
[{"$f":"DQ$2","v":0},{"$f":"'1. Demande'!D166","v":"A. Acquisition équipement/matériel"},{"$f":"'1. Demande'!R166","v":0},{"$f":"'1. Demande'!V166","v":0},{"$f":"'1. Demande'!AA166","v":0},{"$f":"'1. Demande'!AE166","v":0},{"$f":"'1. Demande'!AJ166","v":0},{"$f":"'1. Demande'!AN166","v":0}]
[0,{"$f":"'1. Demande'!D167","v":"B. Acquisition/location de l'équipement de mesurage"},{"$f":"'1. Demande'!R167","v":0},{"$f":"'1. Demande'!V167","v":0},{"$f":"'1. Demande'!AA167","v":0},{"$f":"'1. Demande'!AE167","v":0},{"$f":"'1. Demande'!AJ167","v":0},{"$f":"'1. Demande'!AN167","v":0}]
[0,{"$f":"'1. Demande'!D168","v":"C. Mesurage, quantification et vérification"},{"$f":"'1. Demande'!R168","v":0},{"$f":"'1. Demande'!V168","v":0},{"$f":"'1. Demande'!AA168","v":0},{"$f":"'1. Demande'!AE168","v":0},{"$f":"'1. Demande'!AJ168","v":0},{"$f":"'1. Demande'!AN168","v":0}]
[0,{"$f":"'1. Demande'!D169","v":"D. Ingénierie ou services professionnels *"},{"$f":"'1. Demande'!R169","v":0},{"$f":"'1. Demande'!V169","v":0},{"$f":"'1. Demande'!AA169","v":0},{"$f":"'1. Demande'!AE169","v":0},{"$f":"'1. Demande'!AJ169","v":0},{"$f":"'1. Demande'!AN169","v":0}]
[0,{"$f":"'1. Demande'!D170","v":"E. Installation et mise en fonction"},{"$f":"'1. Demande'!R170","v":0},{"$f":"'1. Demande'!V170","v":0},{"$f":"'1. Demande'!AA170","v":0},{"$f":"'1. Demande'!AE170","v":0},{"$f":"'1. Demande'!AJ170","v":0},{"$f":"'1. Demande'!AN170","v":0}]
[0,{"$f":"'1. Demande'!D171","v":"F. Contingences"},{"$f":"'1. Demande'!R171","v":0},{"$f":"'1. Demande'!V171","v":0},{"$f":"'1. Demande'!AA171","v":0},{"$f":"'1. Demande'!AE171","v":0},{"$f":"'1. Demande'!AJ171","v":0},{"$f":"'1. Demande'!AN171","v":0}]

{"sheet":"Code SCIAN","index":10,"n_rows":0,"n_cols":0,"rows_kept":0,"cut":false,"hidden":true,"merged":[]}